Workbook

Sheet RWH_Design
F2: Rainwater Harvesting Design & Costing Tool
F4: 1. Welcome to the Rainwater Harvesting Design & Costing Tool. If the Design & Costing Tool has not loaded automatically, click on the Rainwater Harvesting Design & Costing Tool Icon below:
F13: Troubleshooting Instructions - Design & Costing Tool Does Not Load Properly
F15: 1. If the Design & Costing Tool has not loaded automatically, or load when you click on the above Icon, then you may be experiencing difficulties with macros, which must be enabled on your computer in order for this program to run.
F17: 2. To learn how to enable macros, consult the instructions below:
F19: For users of Microsoft Excel 2003 (or earlier versions):
F20: Click here for instructions
F22: For users of Microsoft Excel 2007:
F23: Click here for instructions
F25: For users of Microsoft Excel 2010:
F26: Click here for instructions
F28: 3. After completing the above instructions, click on the Rainwater Harvesting Design & Costing Tool Icon to launch the program.
F30: 4. If the Design & Costing Tool still does not launch successfully, then consult Microsoft Excel Help and/or your Network Admisitrator for assistance.
F31: _______________________________________________________________________________________
F33: © Connect the Drops 2011. All rights reserved.
F35: http://www.connectthedrops.ca

Sheet Help
A1: Rainwater Harvesting Design & Costing Tool Help
A4: Table of Contents
A6: 1 | B6: Cannot Launch Design & Costing Tool (Troubleshooting Macros)
A7: 1.1 | B7: Users of Microsoft Excel 2003 (or earlier versions)
A8: 1.2 | B8: Users of Microsoft Excel 2007
A9: 1.3 | B9: Users of Microsoft Excel 2010
A11: 1. Cannot Launch Design & Costing Tool (Troubleshooting Macros)
A13: 1.1 | B13: Users of Microsoft Excel 2003 (or earlier versions)
B15: 1. In most cases, the macro contained in this document will be disabled by default, and a Security Warning Dialog Box will appear in the centre of the screen when you open the Design & Costing Tool file (shown below).
B30: 2. To Enable the macro, the Enable Macros Button must be clicked on at the time when the Design & Costing Tool file was first opened. If Disable Macros or More Info was selected, it will be necessary to close the Workbook and reopen it, selecting the Enable Macros Button.
B32: 3. If the Enable Macros Button was selected, then the Design & Costing Tool can be launched by clicking on the Rainwater Harvesting Design & Costing Tool Icon.
B33: Click here to access the Rainwater Harvesting Design & Costing Tool icon.
B35: 4. If the Security Warning Dialog Box did not appear, or if the Dialog Box shown below appeared,
B53: 5. Select the Tools menu option and then select Macro and Security.
B55: 6. In the Security Dialog Box, set the security level to Medium by clicking the Medium Radio Button and clicking OK. (Note: enabling all macros not recommended).
B57: 7. Close the workbook, and reopen it, following which the Security Warning Dialog Box should appear. Follow Steps 1-3 to launch the Rainwater Harvesting Design & Costing Tool.
B59: 8. If you cannot modify the Macro Settings, or have other difficulties enabling macros, your network administrator may have disabled macros. Refer to Microsoft Office Help, or your network administrator, for further assistance
B61: Return to Table of Contents
A63: 1.2 | B63: Users of Microsoft Excel 2007
B65: 1. In most cases, the macro contained in this document will be disabled by default, and a Security Warning Message Bar will appear near the top of the screen when you open the Design & Costing Tool file (shown below).
B78: Note: if the Message Bar does not appear, proceed directly to Step 5.
B80: 2. To enable the macro, click Options on the Message Bar, which opens a Security Dialog Box (shown below).
B103: 3. Select Enable this content and click OK. The Design & CostingTool should launch automatically.
B105: 4. If the Design & Costing Tool does not launch automatically, click on the Rainwater Harvesting Design & Costing Tool Icon.
B106: Click here to access the Rainwater Harvesting Design & Costing Tool icon.
B108: 5. If the Security Warning Message Bar did not appear, Click the Microsoft Office Button and then click Excel Options.
B110: 6. Click Trust Center, click Trust Center Settings, and then click Macro Settings.
B112: 7. Select Disable all macros with notification and click OK (Note: enabling all macros not recommended).
B114: 8. Close the workbook, and reopen it, following which the Security Warning Message Bar should appear. Follow Steps 1-4 to launch the Rainwater Harvesting Design & Costing Tool.
B116: 9. If you cannot modify the Macro Settings, or have other difficulties enabling macros, your network administrator may have disabled macros. Refer to Microsoft Office Help, or your network administrator, for further assistance
B118: Return to Table of Contents
A120: 1.3 | B120: Users of Microsoft Excel 2010
B122: 1. In most cases, the macro contained in this document will be disabled by default, and a Security Warning Message Bar will appear near the top of the screen when you open the Design & Costing Tool file (shown below).
B137: Note: if the Message Bar does not appear, proceed directly to Step 4.
B139: 2. To enable the macro, click Enable Content on the Message Bar. The Design & Costing Tool should launch automatically.
B141: 3. If the Design & Costing Tool does not launch automatically, click on the Rainwater Harvesting Design & Costing Tool Icon.
B142: Click here to access the Rainwater Harvesting Design & Costing Tool icon.
B144: 4. If the Security Warning Message Bar did not appear, click File and then click Options.
B146: 5. Click Trust Center, click Trust Center Settings, and then click Macro Settings.
B148: 6. Select Disable all macros with notification and click OK (Note: enabling all macros not recommended).
B150: 7. Close the workbook, and reopen it, following which the Security Warning Message Bar should appear. Follow Steps 1-3 to launch the Rainwater Harvesting Design & Costing Tool.
B152: 8. If you cannot modify the Macro Settings, or have other difficulties enabling macros, your network administrator may have disabled macros. Refer to Microsoft Office Help, or your network administrator, for further assistance
B154: Return to Table of Contents

Sheet DESIGN_DATABASE (hidden)
A1: Item | B1: Avg. Residential Figures | C1: Avg. Commercial Figures | D1: Avg. Institutional Figures | E1: Avg. Industrial Figures | F1: Custom Figures | G1: LEED-H Baseline Figures | H1: LEED-NC Baseline Figures | I1: Unit/Details | J1: Source(s)
A2: Roof Catchment Losses & Pre-storage Treatment Losses
A3: Steel Roof | B3: 0.25 | C3: 0.25 | D3: 0.25 | E3: 0.25 | F3: 0.25 | G3: 0.25 | H3: 0.25 | I3: Rainfall Loss Factor (mm) | J3: Assumption
A4: Steel Roof | B4: 0.1 | C4: 0.1 | D4: 0.1 | E4: 0.1 | F4: 0.1 | G4: 0.1 | H4: 0.1 | I4: Continuous Rainfall Loss Ratio (%) | J4: Assumption
A5: Asphalt Shingle Roof | B5: 0.5 | C5: 0.5 | D5: 0.5 | E5: 0.5 | F5: 0.5 | G5: 0.5 | H5: 0.5 | I5: Rainfall Loss Factor (mm) | J5: Despins 2008
A6: Asphalt Shingle Roof | B6: 0.2 | C6: 0.2 | D6: 0.2 | E6: 0.2 | G6: 0.2 | H6: 0.2 | I6: Continuous Rainfall Loss Ratio (%) | J6: DIN 2002; Despins 2008
A7: Fiberglass Shingle Roof | B7: 0.5 | C7: 0.5 | D7: 0.5 | E7: 0.5 | F7: 0.5 | G7: 0.5 | H7: 0.5 | I7: Rainfall Loss Factor (mm) | J7: Assumption
A8: Fiberglass Shingle Roof | B8: 0.2 | C8: 0.2 | D8: 0.2 | E8: 0.2 | F8: 0.2 | G8: 0.2 | H8: 0.2 | I8: Continuous Rainfall Loss Ratio (%) | J8: Assumption
A9: Green Roof | B9: 1.5 | C9: 1.5 | D9: 1.5 | E9: 1.5 | F9: 1.5 | G9: 1.5 | H9: 1.5 | I9: Rainfall Loss Factor (mm) | J9: DIN 2002
A10: Green Roof | B10: 0.5 | C10: 0.5 | D10: 0.5 | E10: 0.5 | F10: 0.5 | G10: 0.5 | H10: 0.5 | I10: Continuous Rainfall Loss Ratio (%) | J10: DIN 2002
A11: Asphalt Built-up Flat Roof | B11: 1 | C11: 1 | D11: 1 | E11: 1 | F11: 1 | G11: 1 | H11: 1 | I11: Rainfall Loss Factor (mm) | J11: Assumption
A12: Asphalt Built-up Flat Roof | B12: 0.2 | C12: 0.2 | D12: 0.2 | E12: 0.2 | F12: 0.2 | G12: 0.2 | H12: 0.2 | I12: Continuous Rainfall Loss Ratio (%) | J12: DIN 2002
A13: Hypalon (Rubber) Flat Roof | B13: 1 | C13: 1 | D13: 1 | E13: 1 | F13: 1 | G13: 1 | H13: 1 | I13: Rainfall Loss Factor (mm) | J13: Assumption
A14: Hypalon (Rubber) Flat Roof | B14: 0.2 | C14: 0.2 | D14: 0.2 | E14: 0.2 | F14: 0.2 | G14: 0.2 | H14: 0.2 | I14: Continuous Rainfall Loss Ratio (%) | J14: DIN 2002
A15: First Flush Pre-treatment | B15: 0.5 | C15: 0.5 | D15: 0.5 | E15: 0.5 | F15: 0.5 | G15: 0.5 | H15: 0.5 | I15: Rainfall Loss Factor (mm) | J15: TWDB 2005
A16: First Flush Pre-treatment | B16: 0 | C16: 0 | D16: 0 | E16: 0 | F16: 0 | G16: 0 | H16: 0 | I16: Continuous Rainfall Loss Ratio (%) | J16: TWDB 2005
A17: Filtration Pre-treatment | B17: 0 | C17: 0 | D17: 0 | E17: 0 | F17: 0 | G17: 0 | H17: 0 | I17: Rainfall Loss Factor (mm) | J17: WISY 2006
A18: Filtration Pre-treatment | B18: 0.1 | C18: 0.1 | D18: 0.1 | E18: 0.1 | F18: 0.1 | G18: 0.1 | H18: 0.1 | I18: Continuous Rainfall Loss Ratio (%) | J18: WISY 2006
A19: N/A - No Treatment | B19: 0 | C19: 0 | D19: 0 | E19: 0 | F19: 0 | G19: 0 | H19: 0 | I19: Rainfall Loss Factor (mm) | J19: -
A20: N/A - No Treatment | B20: 0 | C20: 0 | D20: 0 | E20: 0 | F20: 0 | G20: 0 | H20: 0 | I20: Continuous Rainfall Loss Ratio (%) | J20: -
A21: BLANK (TBD)
A22: BLANK (TBD)
A23: BLANK (TBD)
A24: BLANK (TBD)
A25: Rainwater Usage (INDOOR)
A26: Conventional Toilet | B26: 13.2 | C26: 13.2 | D26: 13.2 | E26: 13.2 | F26: 13.2 | G26: 13.2 | H26: 13.2 | I26: Liters per flush | J26: Vickers 2001
A27: Low Flow toilet | B27: 6 | C27: 6 | D27: 6 | E27: 6 | F27: 6 | G27: 6.1 | H27: 6.1 | I27: Liters per flush | J27: Vickers 2001; CaGBC 2009 (LEED-H); Enermodal Engineering Inc. 2006 (LEED-NC)
A28: Dual-flush/HET Toilet | B28: 4.8 | C28: 4.8 | D28: 4.8 | E28: 4.8 | F28: 4.8 | G28: 4.8 | H28: 4.8 | I28: Liters per flush | J28: Vickers 2001
A29: Pint Flush Toilet | B29: 0.5 | C29: 0.5 | D29: 0.5 | E29: 0.5 | F29: 0.5 | G29: 0.5 | H29: 0.5 | I29: Liters per flush | J29: Vickers 2001
A30: Toilet Flushes per Person per Day (Women's flushes for LEED) | B30: 5 | C30: 3 | D30: 3 | E30: 3 | F30: 2 | G30: 3 | H30: 3 | I30: Flushes per person per day | J30: Vickers 2001; Enermodal Engineering Inc. 2006 (LEED-NC)
A31: Toilet Flushes per Person per Day (Men's flushes for LEED) | B31: 5 | C31: 1 | D31: 1 | E31: 1 | G31: 1 | H31: 1 | I31: Uses per person per day | J31: Enermodal Engineering Inc. 2006 (LEED-NC)
A32: Conventional Urinal | B32: 6 | C32: 6 | D32: 6 | E32: 6 | F32: 6 | G32: 6 | H32: 6 | I32: Liters per flush | J32: Vickers 2001
A33: Low-flow Urinal | B33: 3.8 | C33: 3.8 | D33: 3.8 | E33: 3.8 | F33: 3.8 | G33: 3.8 | H33: 3.8 | I33: Liters per flush | J33: Vickers 2001; Enermodal Engineering Inc. 2006 (LEED-NC)
A34: Pint Flush Urinal | B34: 0.5 | C34: 0.5 | D34: 0.5 | E34: 0.5 | F34: 0.5 | G34: 0.5 | H34: 0.5 | I34: Liters per flush | J34: Vickers 2001
A35: Waterless Urinal | B35: 0 | C35: 0 | D35: 0 | E35: 0 | F35: 0 | G35: 0 | H35: 0 | I35: Liters per flush | J35: -
A36: Urinal Flushes per Person per Day | B36: 0 | C36: 2 | D36: 2 | E36: 2 | F36: 2 | G36: 2 | H36: 2 | I36: Liters per flush | J36: Vickers 2001; Enermodal Engineering Inc. 2006 (LEED-NC)
A37: Top-loading Washing Machine | B37: 150 | C37: 150 | D37: 150 | E37: 150 | F37: 150 | G37: 150 | H37: 150 | I37: Liters per load | J37: Vickers 2001
A38: Front-loading Washing Machine | B38: 100 | C38: 100 | D38: 100 | E38: 100 | F38: 100 | G38: 100 | H38: 100 | I38: Liters per load | J38: Vickers 2001
A39: Cold Setting - Ratio of Cold Water | B39: 0.8 | C39: 0.8 | D39: 0.8 | E39: 0.8 | F39: 0.8 | G39: 0.8 | H39: 0.8 | I39: Water ratio | J39: Assumption
A40: Cold Setting - Ratio of Hot Water | B40: 0.2 | C40: 0.2 | D40: 0.2 | E40: 0.2 | F40: 0.2 | G40: 0.2 | H40: 0.2 | I40: Water ratio | J40: Assumption
A41: Warm Setting - Ratio of Cold Water | B41: 0.5 | C41: 0.5 | D41: 0.5 | E41: 0.5 | F41: 0.5 | G41: 0.5 | H41: 0.5 | I41: Water ratio | J41: Assumption
A42: Warm Setting - Ratio of Hot Water | B42: 0.5 | C42: 0.5 | D42: 0.5 | E42: 0.5 | F42: 0.5 | G42: 0.5 | H42: 0.5 | I42: Water ratio | J42: Assumption
A43: Hot Setting - Ratio of Cold Water | B43: 0.2 | C43: 0.2 | D43: 0.2 | E43: 0.2 | F43: 0.2 | G43: 0.2 | H43: 0.2 | I43: Water ratio | J43: Assumption
A44: Hot Setting - Ratio of Hot Water | B44: 0.8 | C44: 0.8 | D44: 0.8 | E44: 0.8 | F44: 0.8 | G44: 0.8 | H44: 0.8 | I44: Water ratio | J44: Assumption
A45: Laundry Schedule | B45: 2.6 | C45: 2.6 | D45: 2.6 | E45: 2.6 | F45: 2.6 | G45: 2.6 | H45: 2.6 | I45: Loads per person per week | J45: Vickers 2001
A46: Standard Dishwasher (HOT) | B46: 45.6 | C46: 45.6 | D46: 45.6 | E46: 45.6 | F46: 45.6 | G46: 45.6 | H46: 45.6 | I46: Liters per load | J46: Vickers 2001
A47: High Efficiency Dishawsher (HOT) | B47: 26.4 | C47: 26.4 | D47: 26.4 | E47: 26.4 | F47: 26.4 | G47: 26.4 | H47: 26.4 | I47: Liters per load | J47: Vickers 2001
A48: Dishwasher Schedule | B48: 1 | C48: 1 | D48: 1 | E48: 1 | F48: 1 | G48: 1 | H48: 1 | I48: Loads per week | J48: NRCAN 1997
A49: Conventional Shower (COLD) | B49: 4 | C49: 4 | D49: 4 | E49: 4 | F49: 4 | G49: 4.75 | H49: 4.75 | I49: Liters per minute | J49: OBC 2006; Enermodal Engineering Inc. 2006 (LEED-NC) | L49: *Assume 50% hot, 50% cold
A50: Low-flow Shower (COLD) | B50: 2.65 | C50: 2.65 | D50: 2.65 | E50: 2.65 | F50: 2.65 | G50: 2.65 | H50: 2.65 | I50: Liters per minute | J50: Vickers 2001
A51: High Efficiency Shower (COLD) | B51: 1.6 | C51: 1.6 | D51: 1.6 | E51: 1.6 | F51: 1.6 | G51: 1.6 | H51: 1.6 | I51: Liters per minute | J51: Vickers 2001
A52: Conventional Shower (HOT) | B52: 4 | C52: 4 | D52: 4 | E52: 4 | F52: 4 | G52: 4.75 | H52: 4.75 | I52: Liters per minute | J52: OBC 2006; Enermodal Engineering Inc. 2006 (LEED-NC)
A53: Low-flow Shower (HOT) | B53: 2.65 | C53: 2.65 | D53: 2.65 | E53: 2.65 | F53: 2.65 | G53: 2.65 | H53: 2.65 | I53: Liters per minute | J53: Vickers 2001
A54: High Efficiency Shower (HOT) | B54: 1.6 | C54: 1.6 | D54: 1.6 | E54: 1.6 | F54: 1.6 | G54: 1.6 | H54: 1.6 | I54: Liters per minute | J54: Vickers 2001
A55: Shower Length | B55: 3.2 | C55: 3.2 | D55: 3.2 | E55: 3.2 | F55: 3.2 | G55: 5 | H55: 5 | I55: Minutes per person per shower | J55: Vickers 2001; Enermodal Engineering Inc. 2006 (LEED-NC)
A56: Shower uses per person per day | B56: 1 | C56: 1 | D56: 1 | E56: 1 | F56: 1 | G56: 0.25 | H56: 0.25 | I56: Uses per person per day | J56: Enermodal Engineering Inc. 2006 (LEED-NC)
A57: Residential Kitchen Faucet (COLD) | B57: 4.15 | C57: 4.15 | D57: 4.15 | E57: 4.15 | F57: 4.15 | G57: 4.15 | H57: 4.15 | I57: Litres per minute | J57: CaGBC 2009 LEED-NC 2009
A58: Residential Lavatory Faucet (COLD) | B58: 2.85 | C58: 2.85 | D58: 2.85 | E58: 2.85 | F58: 2.85 | G58: 4.15 | H58: 4.15 | I58: Litres per minute | J58: CaGBC 2009 LEED-NC 2009
A59: Commercial Lavatory Faucet (COLD) | B59: 0.95 | C59: 0.95 | D59: 0.95 | E59: 0.95 | F59: 0.95 | G59: 0.95 | H59: 0.95 | I59: Litres per minute | J59: CaGBC 2009 LEED-NC 2009
A60: Residential Kitchen Faucet (HOT) | B60: 2.85 | C60: 2.85 | D60: 2.85 | E60: 2.85 | F60: 2.85 | G60: 4.15 | H60: 4.15 | I60: Litres per minute | J60: CaGBC 2009 LEED-NC 2009
A61: Residential Lavatory Faucet (HOT) | B61: 4.15 | C61: 4.15 | D61: 4.15 | E61: 4.15 | F61: 4.15 | G61: 4.15 | H61: 4.15 | I61: Litres per minute | J61: CaGBC 2009 LEED-NC 2009
A62: Commercial Lavatory Faucet (HOT) | B62: 0.95 | C62: 0.95 | D62: 0.95 | E62: 0.95 | F62: 0.95 | G62: 0.95 | H62: 0.95 | I62: Litres per minute | J62: CaGBC 2009 LEED-NC 2009
A63: Faucet Use Length | B63: 1 | C63: 2 | D63: 3 | E63: 4 | F63: 4 | G63: 0.5 | H63: 0.5 | I63: Minutes per person per lav use | J63: Enermodal Engineering Inc. 2006 (LEED-NC)
A64: Faucet Uses per Person per Day | B64: 2 | C64: 4 | D64: 6 | E64: 8 | F64: 8 | G64: 3 | H64: 3 | I64: Uses per person per day | J64: Enermodal Engineering Inc. 2006 (LEED-NC)
A65: Rainwater Usage (OUTDOOR)
A66: Hose watering (3/4") | B66: 19 | C66: 19 | D66: 19 | E66: 19 | F66: 19 | G66: 19 | H66: 19 | I66: Litres per min. (LPM) | J66: ITT Corporation 2007; Enermodal Engineering Inc. 2006 (LEED-NC)
A67: Hose watering (1/2") | B67: 11 | C67: 11 | D67: 11 | E67: 11 | F67: 11 | G67: 11 | H67: 11 | I67: Litres per min (LPM) | J67: ITT Corporation 2007
A69: Average length of time hose is used per use | B69: 30 | C69: 30 | D69: 30 | E69: 30 | F69: 30 | G69: 5 | H69: 5 | I69: Minutes | J69: Assumption; Enermodal Engineering Inc. 2006 (LEED-NC)
A70: Hose watering Schedule | B70: 3 | C70: 3 | D70: 3 | E70: 3 | F70: 3 | G70: 0.01 | H70: 0.01 | I70: Times per week / Times/person/day (LEED) | J70: Assumption; Enermodal Engineering Inc. 2006 (LEED-NC)
A71: Hose watering - Start month | B71: 5 | C71: 5 | D71: 5 | E71: 5 | F71: 5 | G71: 5 | H71: 5 | I71: Numeric representation of month | J71: Assumption
A72: Hose watering - End month | B72: 9 | C72: 9 | D72: 9 | E72: 9 | F72: 9 | G72: 9 | H72: 9 | I72: Numeric representation of month | J72: Assumption
A73: Basic Irrigation (equiv.: 1" cover) | B73: 25.4 | C73: 25.4 | D73: 25.4 | E73: 25.4 | F73: 25.4 | G73: 25.4 | H73: 25.4 | I73: Litres per square metre | J73: Calculation - convert inches to mm, apply to 1 sq. Metre
A74: Basic Irrigation (equiv.: 0.5" cover) | B74: 12.7 | C74: 12.7 | D74: 12.7 | E74: 12.7 | F74: 12.7 | G74: 12.7 | H74: 12.7 | I74: Litres per square metre | J74: Calculation - convert inches to mm, apply to 1 sq. Metre
A75: Basic Irrigation (equiv.: 0.25" cover) | B75: 6.4 | C75: 6.4 | D75: 6.4 | E75: 6.4 | F75: 6.4 | G75: 6.4 | H75: 6.4 | I75: Litres per square metre | J75: Calculation - convert inches to mm, apply to 1 sq. Metre
A76: Basic Irrigation Schedule | B76: 1 | C76: 1 | D76: 1 | E76: 1 | F76: 1 | G76: 3 | H76: 3 | I76: Times per week | J76: Assumption
A77: Basic Irrigation Irrigation Efficiency | B77: 0.6 | C77: 0.6 | D77: 0.6 | E77: 0.6 | F77: 0.6 | G77: 0.6 | H77: 0.6 | I77: Irrigation Efficiency (%) | J77: CaGBC 2009
A78: Basic Irrigation - Start Month | B78: 5 | C78: 5 | D78: 5 | E78: 5 | F78: 5 | G78: 5 | H78: 5 | I78: Numeric representation of month | J78: Assumption
A79: Basic Irrigation - End Month | B79: 9 | C79: 9 | D79: 9 | E79: 9 | F79: 9 | G79: 9 | H79: 9 | I79: Numeric representation of month | J79: Assumption
A80: Adv. Irrigation - LEED Baseline Calc. Factor | B80: 0.62 | C80: 0.62 | D80: 0.62 | E80: 0.62 | F80: 0.62 | G80: 0.62 | H80: 0.62 | I80: LEED Baseline Irrigation Factor | J80: CaGBC 2009
A81: Adv. Irrigation - Avg, Species Factor (Ks) - Trees | B81: 0.5 | C81: 0.5 | D81: 0.5 | E81: 0.5 | F81: 0.5 | G81: 0.5 | H81: 0.5 | I81: Species Factor (Ks) | J81: CaGBC 2009
A82: Adv. Irrigation - Avg, Species Factor (Ks) - Shrubs | B82: 0.5 | C82: 0.5 | D82: 0.5 | E82: 0.5 | F82: 0.5 | G82: 0.5 | H82: 0.5 | I82: Species Factor (Ks) | J82: CaGBC 2009
A83: Adv. Irrigation - Avg, Species Factor (Ks) - Groundcover | B83: 0.5 | C83: 0.5 | D83: 0.5 | E83: 0.5 | F83: 0.5 | G83: 0.5 | H83: 0.5 | I83: Species Factor (Ks) | J83: CaGBC 2009
A84: Adv. Irrigation - Avg, Species Factor (Ks) - Turf | B84: 0.7 | C84: 0.7 | D84: 0.7 | E84: 0.7 | F84: 0.7 | G84: 0.7 | H84: 0.7 | I84: Species Factor (Ks) | J84: CaGBC 2009
A85: Adv. Irrigation - Avg. Microclimate Factor - Shading | B85: 0.8 | C85: 0.8 | D85: 0.8 | E85: 0.8 | F85: 0.8 | G85: 0.8 | H85: 0.8 | I85: Microclimate Factor (Kmc) | J85: CaGBC 2009
A86: Adv. Irrigation - Avg. Microclimate Factor - High Sun Exp. | B86: 1.2 | C86: 1.2 | D86: 1.2 | E86: 1.2 | F86: 1.2 | G86: 1.2 | H86: 1.2 | I86: Microclimate Factor (Kmc) | J86: CaGBC 2009
A87: Adv. Irrigation - Avg. Microclimate Factor - Prot. From Wind | B87: 0.9 | C87: 0.9 | D87: 0.9 | E87: 0.9 | F87: 0.9 | G87: 0.9 | H87: 0.9 | I87: Microclimate Factor (Kmc) | J87: CaGBC 2009
A88: Adv. Irrigation - Avg. Microclimate Factor - Windy Area | B88: 1.2 | C88: 1.2 | D88: 1.2 | E88: 1.2 | F88: 1.2 | G88: 1.2 | H88: 1.2 | I88: Microclimate Factor (Kmc) | J88: CaGBC 2009
A89: Adv. Irrigation - Low Irr. Effic. - Fixed Spray | B89: 0.4 | C89: 0.4 | D89: 0.4 | E89: 0.4 | F89: 0.4 | G89: 0.4 | H89: 0.4 | I89: Irrigation Efficiency (IE) | J89: CaGBC 2009
A90: Adv. Irrigation - Low Irr. Effic. - Impact & Microspray | B90: 0.5 | C90: 0.5 | D90: 0.5 | E90: 0.5 | F90: 0.5 | G90: 0.5 | H90: 0.5 | I90: Irrigation Efficiency (IE) | J90: CaGBC 2009
A91: Adv. Irrigation - Low Irr. Effic. - Rotors | B91: 0.6 | C91: 0.6 | D91: 0.6 | E91: 0.6 | F91: 0.6 | G91: 0.6 | H91: 0.6 | I91: Irrigation Efficiency (IE) | J91: CaGBC 2009
A92: Adv. Irrigation - Low Irr. Effic. - Multistream Rotators | B92: 0.6 | C92: 0.6 | D92: 0.6 | E92: 0.6 | F92: 0.6 | G92: 0.6 | H92: 0.6 | I92: Irrigation Efficiency (IE) | J92: CaGBC 2009
A93: Adv. Irrigation - Low Irr. Effic. - Low vol (i.e., drip irr) | B93: 0.7 | C93: 0.7 | D93: 0.7 | E93: 0.7 | F93: 0.7 | G93: 0.7 | H93: 0.7 | I93: Irrigation Efficiency (IE) | J93: CaGBC 2009
A94: Adv. Irrigation - Schedule | B94: 1 | C94: 1 | D94: 1 | E94: 1 | F94: 1 | G94: 1 | H94: 1 | I94: Times per week | J94: CaGBC 2009 - Baseline 1 irr/wk
A95: Adv. Irrigation - Start Month | B95: 5 | C95: 5 | D95: 5 | E95: 5 | F95: 5 | G95: 5 | H95: 5 | I95: Numeric representation of month | J95: Assumption
A96: Adv. Irrigation - End Month | B96: 9 | C96: 9 | D96: 9 | E96: 9 | F96: 9 | G96: 9 | H96: 9 | I96: Numeric representation of month | J96: Assumption
A97: Adv. Irrigation - Conventional Timer Controller | B97: 1 | C97: 1 | D97: 1 | E97: 1 | F97: 1 | G97: 1 | H97: 1 | I97: Control Factor (CF) | J97: CaGBC 2009; Assumption - no savings
A98: Adv. Irrigation - Controller with Rain Sensor | B98: 0.85 | C98: 0.85 | D98: 0.85 | E98: 0.85 | F98: 0.85 | G98: 0.85 | H98: 0.85 | I98: Control Factor (CF) | J98: CaGBC 2009; Dukes (2009)
A99: Adv. Irrigation - Controller w Soil Moisture Sensor | B99: 0.8 | C99: 0.8 | D99: 0.8 | E99: 0.8 | F99: 0.8 | G99: 0.8 | H99: 0.8 | I99: Control Factor (CF) | J99: CaGBC 2009; Dukes (2009)
A100: Adv. Irrigation - Controller w Soil Moisture Sens. & Rain Sens. | B100: 0.6 | C100: 0.6 | D100: 0.6 | E100: 0.6 | F100: 0.6 | G100: 0.6 | H100: 0.6 | I100: Control Factor (CF) | J100: CaGBC 2009; Dukes (2009)
A101: Adv. Irrigation - Evapotranspiration (ET) Controller | B101: 0.6 | C101: 0.6 | D101: 0.6 | E101: 0.6 | F101: 0.6 | G101: 0.6 | H101: 0.6 | I101: Control Factor (CF) | J101: CaGBC 2009; Dukes (2009)
A102: BLANK (TBD)
A103: BLANK (TBD)
A104: BLANK (TBD)
A105: BLANK (TBD)
A106: BLANK (TBD)
A107: BLANK (TBD)
A108: BLANK (TBD)
A109: BLANK (TBD)
A110: Rainwater Storage Tank Sizing
A111: Snow Melt Loss Factor (Frequent snowmelt) | B111: 0.5 | C111: 0.5 | D111: 0.5 | E111: 0.5 | F111: 0.5 | G111: 0.5 | H111: 0.5 | I111: Percent of Snowfall lost (not collected) | J111: (for Southern Ontario) Despins 2008
A112: Tank Dead Volume | B112: 0.15 | C112: 0.15 | D112: 0.15 | E112: 0.15 | F112: 0.15 | G112: 0.15 | H112: 0.15 | I112: Percent of Total Tank Volume | J112: -
A113: Tank water savings increase | B113: 0.02 | C113: 0.02 | D113: 0.02 | E113: 0.02 | F113: 0.02 | G113: 0.02 | H113: 0.02 | I113: % incr. Water savings/1,000 L incr. | J113: -
A114: Target water conservation (Indoor Water use reduction Target for LEED) | B114: 0.3 | C114: 0.3 | D114: 0.3 | E114: 0.3 | F114: 0.3 | G114: 0.5 | H114: 0.5 | I114: Water conservation target | J114: CaGBC 2009
A115: Per capita water use | B115: 200 | C115: 100 | D115: 100 | E115: 100 | F115: 100 | G115: 200 | H115: 200 | I115: Litres per person per day
A116: Tank Sizing Safety Factor (Dry period sizing, SWM detention) | B116: 0.25 | C116: 0.25 | D116: 0.25 | E116: 0.25 | F116: 0.25 | G116: 0.25 | H116: 0.25 | I116: % safety factor | J116: Assumption
A117: Snow Melt Loss Factor (Infrequent snowmelt) | B117: 0.75 | C117: 0.75 | D117: 0.75 | E117: 0.75 | F117: 0.75 | G117: 0.75 | H117: 0.75 | I117: Percent of Snowfall lost (not collected) | J117: Assumption, adapted for Alberta from Despins 2008
A118: LEED-H Minimum Rain Event RWH System Must Capture 100% | B118: 25 | C118: 25 | D118: 25 | E118: 25 | F118: 25 | G118: 25 | H118: 25 | I118: mm Rainfall event contacting catch. Area | J118: CaGBC 2009
A119: Outdoor Water use reduction Target for LEED | B119: 0.6 | C119: 0.6 | D119: 0.6 | E119: 0.6 | F119: 0.6 | G119: 0.6 | H119: 0.5 | I119: Outdoor Water use reduction Target (%) | J119: CaGBC 2009
A120: Pump and Pressure Tank Sizing
A121: Number of toilets | B121: 2 | C121: 10 | D121: 10 | E121: 10 | F121: 10 | G121: 2 | H121: 2 | I121: per household/building | J121: Assumption
A122: Number of urinals | B122: 0 | C122: 10 | D122: 10 | E122: 10 | F122: 10 | G122: 0 | H122: 0 | I122: per household/building | J122: Assumption
A123: Number of washing machines | B123: 1 | C123: 0 | D123: 0 | E123: 0 | F123: 0 | G123: 1 | H123: 1 | I123: per household/building | J123: Assumption
A124: Number of dishwashers | B124: 1 | C124: 1 | D124: 1 | E124: 1 | F124: 1 | G124: 1 | H124: 1 | I124: per household/building | J124: Assumption
A125: Number of lavatory faucets | B125: 2 | C125: 10 | D125: 10 | E125: 10 | F125: 10 | G125: 2 | H125: 2 | I125: per household/building | J125: Assumption
A126: Number of showers | B126: 2 | C126: 0 | D126: 0 | E126: 0 | F126: 0 | G126: 2 | H126: 2 | I126: per household/building | J126: Assumption
A127: Conventional Toilet | B127: 2.7 | C127: 2.7 | D127: 2.7 | E127: 2.7 | F127: 2.7 | G127: 2.7 | H127: 2.7 | I127: Flow rate (LPM) per Toilet | J127: ITT Corporation 2007
A128: Low Flow toilet | B128: 2.7 | C128: 2.7 | D128: 2.7 | E128: 2.7 | F128: 2.7 | G128: 2.7 | H128: 2.7 | I128: Flow rate (LPM) per Toilet | J128: ITT Corporation 2007
A129: Dual-flush/HET Toilet | B129: 2.7 | C129: 2.7 | D129: 2.7 | E129: 2.7 | F129: 2.7 | G129: 2.7 | H129: 2.7 | I129: Flow rate (LPM) per Toilet | J129: ITT Corporation 2007
A130: Pint Flush Toilet | B130: 2.7 | C130: 2.7 | D130: 2.7 | E130: 2.7 | F130: 2.7 | G130: 2.7 | H130: 2.7 | I130: Flow rate (LPM) per Toilet | J130: ITT Corporation 2007
A131: Conventional Urinal | B131: 2.7 | C131: 2.7 | D131: 2.7 | E131: 2.7 | F131: 2.7 | G131: 2.7 | H131: 2.7 | I131: Flow rate (LPM) per Urinal | J131: ITT Corporation 2007
A132: Low-flow Urinal | B132: 2.7 | C132: 2.7 | D132: 2.7 | E132: 2.7 | F132: 2.7 | G132: 2.7 | H132: 2.7 | I132: Flow rate (LPM) per Urinal | J132: ITT Corporation 2007
A133: Pint Flush Urinal | B133: 2.7 | C133: 2.7 | D133: 2.7 | E133: 2.7 | F133: 2.7 | G133: 2.7 | H133: 2.7 | I133: Flow rate (LPM) per Urinal | J133: ITT Corporation 2007
A134: Waterless Urinal | B134: 0 | C134: 0 | D134: 0 | E134: 0 | F134: 0 | G134: 0 | H134: 0 | I134: Flow rate (LPM) per Urinal | J134: -
A135: Top-loading Washing Machine | B135: 19 | C135: 19 | D135: 19 | E135: 19 | F135: 19 | G135: 19 | H135: 19 | I135: Flow rate (LPM) per Washing Machine | J135: ITT Corporation 2007
A136: Front-loading Washing Machine | B136: 19 | C136: 19 | D136: 19 | E136: 19 | F136: 19 | G136: 19 | H136: 19 | I136: Flow rate (LPM) per Washing Machine | J136: ITT Corporation 2007
A137: Standard Dishwasher | B137: 7.56 | C137: 7.56 | D137: 7.56 | E137: 7.56 | F137: 7.56 | G137: 7.56 | H137: 7.56 | I137: Flow rate (LPM) per Dishwasher | J137: ITT Corporation 2007
A138: High Efficiency Dishawsher | B138: 7.56 | C138: 7.56 | D138: 7.56 | E138: 7.56 | F138: 7.56 | G138: 7.56 | H138: 7.56 | I138: Flow rate (LPM) per Dishwasher | J138: ITT Corporation 2007
A139: Irrigation System Area Factor (Area 0-250 sq metres) | I139: Flow rate (LPM) | K139: TEMP!
A140: Irrigation System Area Factor (Area 250-500 sq metres) | I140: Area Factor | K140: TEMP!
A141: Irrigation System Area Factor (Area 500-1000 sq metres) | I141: Area Factor | K141: TEMP!
A142: Fixed Spray Irrigation System Flow Rate | I142: Flow Rate (LPM) per m2 | K142: TEMP!
A143: Impact & Microspray Irrigation System Flow Rate | I143: Flow Rate (LPM) per m2
A144: Rotors Irrigation System Flow Rate | I144: Flow Rate (LPM) per m2
A145: Multistream rotators Irrigation System Flow Rate | I145: Flow Rate (LPM) per m2
A146: Low Volume (i.e., drip) Irrigation System Flow Rate | I146: Flow Rate (LPM) per m2
A147: Toilets/Urinals - Gould's Pump Fundamentals | B147: 2.7 | C147: 2.7 | D147: 2.7 | E147: 2.7 | F147: 2.7 | G147: 2.7 | H147: 2.7 | I147: Flow rate (LPM) | J147: ITT Corporation 2007
A148: Laundry - Gould's Pump Fundamentals | B148: 19 | C148: 19 | D148: 19 | E148: 19 | F148: 19 | G148: 19 | H148: 19 | I148: Flow rate (LPM) | J148: ITT Corporation 2007
A149: Dishwasher - Gould's Pump Fundamentals | B149: 7.6 | C149: 7.6 | D149: 7.6 | E149: 7.6 | F149: 7.6 | G149: 7.6 | H149: 7.6 | I149: Flow rate (LPM) | J149: ITT Corporation 2007
A150: Shower - Gould's Pump Fundamentals | B150: 19 | C150: 19 | D150: 19 | E150: 19 | F150: 19 | G150: 19 | H150: 19 | I150: Flow rate (LPM) | J150: ITT Corporation 2007
A151: Kitchen Sink - Gould's Pump Fundamentals | B151: 1.6 | C151: 1.6 | D151: 1.6 | E151: 1.6 | F151: 1.6 | G151: 1.6 | H151: 1.6 | I151: Flow rate (LPM) | J151: ITT Corporation 2007
A152: Lavatory - Gould's Pump Fundamentals | B152: 1 | C152: 1 | D152: 1 | E152: 1 | F152: 1 | G152: 1 | H152: 1 | I152: Flow rate (LPM) | J152: ITT Corporation 2007
A153: Percentage of fixtures active at once | B153: 0.6 | C153: 0.6 | D153: 0.6 | E153: 0.6 | F153: 0.6 | G153: 0.6 | H153: 0.6 | I153: % | J153: Assumption
A154: Peak Demand Factor | B154: 7 | C154: 7 | D154: 7 | E154: 7 | F154: 7 | G154: 7 | H154: 7 | I154: Minutes | J154: ITT Corporation 2007
A155: Friction Loss Per Fitting - 13 mm pipe | B155: 0.5 | C155: 0.5 | D155: 0.5 | E155: 0.5 | F155: 0.5 | G155: 0.5 | H155: 0.5 | I155: Equivalent Length of Pipe (m) per fitting | J155: ITT Corporation 2007
A156: Friction Loss Per Fitting - 20 mm pipe | B156: 0.8 | C156: 0.8 | D156: 0.8 | E156: 0.8 | F156: 0.8 | G156: 0.8 | H156: 0.8 | I156: Equivalent Length of Pipe (m) per fitting | J156: ITT Corporation 2007
A157: Friction Loss Per Fitting - 25 mm pipe | B157: 1 | C157: 1 | D157: 1 | E157: 1 | F157: 1 | G157: 1 | H157: 1 | I157: Equivalent Length of Pipe (m) per fitting | J157: ITT Corporation 2007
A158: Friction Loss Per Fitting - 32 mm pipe | B158: 1.4 | C158: 1.4 | D158: 1.4 | E158: 1.4 | F158: 1.4 | G158: 1.4 | H158: 1.4 | I158: Equivalent Length of Pipe (m) per fitting | J158: ITT Corporation 2007
A159: Friction Loss Per Fitting - 40 mm pipe | B159: 1.6 | C159: 1.6 | D159: 1.6 | E159: 1.6 | F159: 1.6 | G159: 1.6 | H159: 1.6 | I159: Equivalent Length of Pipe (m) per fitting | J159: ITT Corporation 2007
A160: Friction Loss Per Fitting - 50 mm pipe | B160: 2.2 | C160: 2.2 | D160: 2.2 | E160: 2.2 | F160: 2.2 | G160: 2.2 | H160: 2.2 | I160: Equivalent Length of Pipe (m) per fitting | J160: ITT Corporation 2007
A161: Friction Loss Per Fitting - 65 mm pipe | B161: 2.7 | C161: 2.7 | D161: 2.7 | E161: 2.7 | F161: 2.7 | I161: Equivalent Length of Pipe (m) per fitting | J161: ITT Corporation 2007
A162: Friction Loss Per Fitting - 80 mm pipe | B162: 3.3 | C162: 3.3 | D162: 3.3 | E162: 3.3 | F162: 3.3 | G162: 3.3 | H162: 3.3 | I162: Equivalent Length of Pipe (m) per fitting | J162: ITT Corporation 2007
A163: Press. Tank Cut-in/out 138/276 kPa [20/40 psi] | B163: 0.37 | C163: 0.37 | D163: 0.37 | E163: 0.37 | F163: 0.37 | G163: 0.37 | H163: 0.37 | I163: Drawdown Factor | J163: ITT Corporation 2007
A164: Press. Tank Cut-in/out 276/414 kPa [40/60 psi] | B164: 0.27 | C164: 0.27 | D164: 0.27 | E164: 0.27 | F164: 0.27 | G164: 0.27 | H164: 0.27 | I164: Drawdown Factor | J164: ITT Corporation 2007
A165: Press. Tank Cut-in/out 414/552 kPa [60/80 psi] | B165: 0.21 | C165: 0.21 | D165: 0.21 | E165: 0.21 | F165: 0.21 | G165: 0.21 | H165: 0.21 | I165: Drawdown Factor | J165: ITT Corporation 2007
A166: Press. Tank Cut-in/out 552/689 kPa [80/100 psi] | B166: 0.17 | C166: 0.17 | D166: 0.17 | E166: 0.17 | F166: 0.17 | G166: 0.17 | H166: 0.17 | I166: Drawdown Factor | J166: ITT Corporation 2007
A167: SERVICE Pipe Sizing Criteria | B167: 5 | C167: 5 | D167: 5 | E167: 5 | F167: 5 | G167: 5 | H167: 5 | I167: (m) Head loss/ 100 m of pipe | J167: Turner 1982
A168: Toilet - Fixture Units | B168: 3 | C168: 3 | D168: 3 | E168: 3 | F168: 3 | G168: 3 | H168: 3 | I168: Fixture Units | J168: National Plumbing Code 2005
A169: Urinal - Fixture Units | B169: 2 | C169: 2 | D169: 2 | E169: 2 | F169: 2 | G169: 2 | H169: 2 | I169: Fixture Units | J169: National Plumbing Code 2005
A170: Washing machine - Fixture Units | B170: 2 | C170: 2 | D170: 2 | E170: 2 | F170: 2 | G170: 2 | H170: 2 | I170: Fixture Units | J170: National Plumbing Code 2005
A171: Lavatory - Fixture Units | B171: 1 | C171: 1 | D171: 1 | E171: 1 | F171: 1 | G171: 1 | H171: 1 | I171: Fixture Units | J171: National Plumbing Code 2005
A172: Shower/bath - Fixture Units | B172: 2 | C172: 2 | D172: 2 | E172: 2 | F172: 2 | G172: 2 | H172: 2 | I172: Fixture Units | J172: National Plumbing Code 2005
A173: Hose bib - Fixture Units | B173: 2 | C173: 2 | D173: 2 | E173: 2 | F173: 2 | G173: 2 | H173: 2 | I173: Fixture Units | J173: National Plumbing Code 2005
A174: Other/Irrigation System - Fixture Unit Estimation | B174: 31.7 | C174: 31.7 | D174: 31.7 | E174: 31.7 | F174: 31.7 | I174: Fixture Units/1 Litre per Second (LPS) | J174: National Plumbing Code 2005
A175: BLANK (TBD)
A176: BLANK (TBD)
A177: BLANK (TBD)
A178: BLANK (TBD)
A179: BLANK (TBD)
A180: BLANK (TBD)
A181: BLANK (TBD)
A182: BLANK (TBD)
A183: BLANK (TBD)
A184: BLANK (TBD)
A185: BLANK (TBD)
A186: BLANK (TBD)
A187: BLANK (TBD)
A220: Pump and Pressure Tank Sizing (Design Table)
A222: PLASTIC PIPE | B222: F100, Friction Head (m / 100 m pipe) | L222: Source(s)
A223: Flow Rate, Q (LPM) | B223: Pipe Diameter
B224: 13 mm [½ in.] | C224: 20 mm [¾ in.] | D224: 25 mm [1 in.] | E224: 32 mm [1 ¼ in.] | F224: 40 mm [1 ½ in.] | G224: 50 mm [2 in.] | H224: 75 mm [3 in.] | I224: 50 mm [2 in.] | J224: 65 mm [2 1/2 in.] | K224: 80 mm [3 in.]
A225: 3.78 | B225: 1.38 | C225: 0.356 | D225: 0.11 | E225: 0.05 | F225: 0.08 | I225: 0.025 | J225: 0.022 | K225: 0.01857142857 | L225: ITT Corporation 2010 | M225: Note: Values in italics inerted by Connect the Drops. Linear Interpolation.
A226: 7.56 | B226: 4.83 | C226: 1.21 | D226: 0.38 | E226: 0.1 | F226: 0.16 | I226: 0.05 | J226: 0.044 | K226: 0.03714285714 | L226: ITT Corporation 2010
A227: 18.9 | B227: 25.75 | C227: 6.33 | D227: 1.92 | E227: 0.51 | F227: 0.24 | I227: 0.075 | J227: 0.066 | K227: 0.05571428571 | L227: ITT Corporation 2010
A228: 26.46 | B228: 36.34 | C228: 8.83 | D228: 2.69 | E228: 0.71 | F228: 0.33 | G228: 0.1 | I228: 0.1 | J228: 0.088 | K228: 0.07428571429 | L228: ITT Corporation 2010
A229: 37.8 | B229: 97.52 | C229: 25.98 | D229: 6.88 | E229: 1.78 | F229: 0.83 | G229: 0.25 | H229: 0.11 | I229: 0.25 | J229: 0.11 | K229: 0.09285714286 | L229: ITT Corporation 2010
A230: 56.7 | C230: 49.68 | D230: 14.63 | E230: 3.75 | F230: 1.74 | G230: 0.52 | H230: 0.22 | I230: 0.52 | J230: 0.22 | K230: 0.1114285714 | L230: ITT Corporation 2010
A231: 75.6 | C231: 89.64 | D231: 25.07 | E231: 6.39 | F231: 2.94 | G231: 0.86 | H231: 0.36 | I231: 0.86 | J231: 0.36 | K231: 0.13 | L231: ITT Corporation 2010
A232: 94.5 | D232: 38.41 | E232: 9.71 | F232: 4.44 | G232: 1.29 | H232: 0.54 | I232: 1.29 | J232: 0.54 | K232: 0.19 | L232: ITT Corporation 2010
A233: 113.4 | E233: 13.62 | F233: 6.26 | G233: 1.81 | H233: 0.75 | I233: 1.81 | J233: 0.75 | K233: 0.26 | L233: ITT Corporation 2010
A234: 132.3 | E234: 18.17 | F234: 8.37 | G234: 2.42 | H234: 1 | I234: 2.42 | J234: 1 | K234: 0.35 | L234: ITT Corporation 2010
... 63 more rows

Sheet COST_DATABASE (hidden)
A3: Conveyance Piping, Overflow Piping & Accessories
A4: Item No. | B4: Item Name | C4: Unit Cost | D4: Costs Vary By Diameter (mm): | N4: Cost Details | O4: Quote Source(s) | P4: Quote Date(s) | Q4: Interpolated Costs
D5: 40 | E5: 50 | F5: 65 | G5: 80 | H5: 100 | I5: 150 | J5: 200 | K5: 250 | L5: 300 | M5: 375
A6: 1 | B6: PVC SDR 35 (ext. installation) | C6: $/metre | D6: - | E6: - | F6: - | G6: - | H6: 22.12 | I6: 33.76 | J6: 59.265 | K6: 84.77 | L6: 94.59 | M6: 114.39 | N6: Excl. excavation, bedding, backfill. THESE COSTS TO BE ADDED ONTO INSTALLATION COST BY COSTING TOOL. | O6: RSMeans | P6: Nov-2010 (Q3 2010) | Q6: 200 mm (Avg.)
A7: 2 | B7: PVC SCH 40 (ext. installation) | C7: $/metre | D7: - | E7: - | F7: - | G7: - | H7: 33.36 | I7: 53.5 | J7: 82.51 | K7: - | L7: - | M7: - | N7: Excl. excavation, bedding, backfill | O7: RSMeans | P7: Nov-2010 (Q3 2010)
A8: 3 | B8: ABS (ext. installation) | C8: $/metre | D8: - | E8: 30.401 | F8: 33.53785 | G8: 36.6747 | H8: 42.2776 | I8: 59.3099 | J8: - | K8: - | L8: - | M8: - | N8: Excl. excavation, bedding, backfill | O8: RSMeans | P8: Nov-2010 (Q3 2010) | Q8: All values (43% of interior install. Cost)
A9: 4 | B9: ABS (int. installation) | C9: $/metre | D9: - | E9: 70.7 | F9: 77.995 | G9: 85.29 | H9: 98.32 | I9: 137.93 | J9: - | K9: - | L9: - | M9: - | N9: Incl. installation, 1 pipe hanger /3m | O9: RSMeans | P9: Nov-2010 (Q3 2010) | Q9: 65 mm (Avg.)
A10: 5 | B10: Backwater Valve | C10: Each | D10: - | E10: 610.91 | F10: 674.362 | G10: 829.984 | H10: 1129.65 | I10: 1596.15 | J10: - | K10: - | L10: - | M10: - | N10: Cast iron body, bronze flapper valve, bolted cover | O10: RSMeans | P10: Nov-2010 (Q3 2010) | Q10: 65 mm (Avg.), 80 mm (Avg.)
A11: 6 | B11: Cleanout Tee | C11: Each | D11: - | E11: 22.53 | F11: 29.895 | G11: 37.26 | H11: 47.38 | I11: 71.94 | J11: - | K11: - | L11: - | M11: - | N11: Excl. piping to grade | O11: RSMeans | P11: Nov-2010 (Q3 2010) | Q11: 65 mm (Avg.)
A12: 7 | B12: Manhole (Pre-cast concrete) | C12: Each | D12: - | E12: - | F12: - | G12: - | H12: - | I12: - | J12: 2839.41 | K12: 2839.41 | L12: 2839.41 | M12: 2839.41 | N12: Manhole/catch basin, concrete, precast, 1.2 m ID riser, 1.2 m deep, incl. excavation, backfill. | O12: RSMeans | P12: Nov-2010 (Q3 2010)
A13: 8 | B13: Blank-1
A14: 9 | B14: Blank-2
A15: 10 | B15: Blank-3
A16: 11 | B16: Blank-4
A17: 12 | B17: Blank-5
A18: 13 | B18: Blank-6
A19: 14 | B19: Blank-7
A20: 15 | B20: Blank-8
A21: 16 | B21: Blank-9
A22: 17 | B22: Blank-10
A23: 18 | B23: Blank-11
A24: 19 | B24: Blank-12
A25: 20 | B25: Blank-13
A27: 1 | B27: CUSTOM: PVC SDR 35 (ext. installation) | C27: $/metre | D27: - | E27: - | F27: - | G27: - | N27: Type cost details here…
A28: 2 | B28: CUSTOM: PVC SCH 40 (ext. installation) | C28: $/metre | D28: - | E28: - | F28: - | G28: - | K28: - | L28: - | M28: - | N28: Type cost details here…
A29: 3 | B29: CUSTOM: ABS (ext. installation) | C29: $/metre | D29: - | J29: - | K29: - | L29: - | M29: - | N29: Type cost details here…
A30: 4 | B30: CUSTOM: ABS (int. installation) | C30: $/metre | D30: - | J30: - | K30: - | L30: - | M30: - | N30: Type cost details here…
A31: 5 | B31: CUSTOM: Backwater Valve | C31: Each | D31: - | J31: - | K31: - | L31: - | M31: - | N31: Type cost details here…
A32: 6 | B32: CUSTOM: Cleanout Tee | C32: Each | D32: - | J32: - | K32: - | L32: - | M32: - | N32: Type cost details here…
A33: 7 | B33: CUSTOM: Manhole (Pre-cast concrete) | C33: Each | D33: - | E33: - | F33: - | G33: - | H33: - | I33: - | N33: Type cost details here…
A34: 8 | B34: CUSTOM: Blank-1
A35: 9 | B35: CUSTOM: Blank-2
A36: 10 | B36: CUSTOM: Blank-3
A37: 11 | B37: CUSTOM: Blank-4
A38: 12 | B38: CUSTOM: Blank-5
A39: 13 | B39: CUSTOM: Blank-6
A40: 14 | B40: CUSTOM: Blank-7
A41: 15 | B41: CUSTOM: Blank-8
A42: 16 | B42: CUSTOM: Blank-9
A43: 17 | B43: CUSTOM: Blank-10
A44: 18 | B44: CUSTOM:Blank-11
A45: 19 | B45: CUSTOM:Blank-12
A46: 20 | B46: CUSTOM:Blank-13
A47: Pre-storage Treatment
A48: Item No. | B48: Item | C48: Unit Cost | D48: Costs Vary By Catchment Area (m2): | N48: Cost Details | O48: Quote Source(s) | P48: Quote Date(s) | Q48: Interpolated Costs
D49: 100 | E49: 200 | F49: 300 | G49: 500 | H49: 750 | I49: 1000 | J49: 1500 | K49: 2000 | L49: 3500 | M49: 5000
A50: 1 | B50: Leaf Screen | C50: Each | D50: 100 | E50: 200 | F50: 300 | G50: 500 | H50: - | I50: - | J50: - | K50: - | L50: - | M50: - | N50: 1 screen per 100 m2. Installed on each downspout. Recommended for Residential Use Only | O50: Connect the Drops 2010, TRCA 2009 | P50: Sep-09 - Nov-10
A51: 2 | B51: Leaf Screen & First flush kit | C51: Each | D51: 350 | E51: 700 | F51: 1050 | G51: 1750 | H51: - | I51: - | J51: - | K51: - | L51: - | M51: - | N51: 1 kit per 100 m2. Installed on each downspout. Recommended for Residential Use Only | O51: Connect the Drops 2010 | P51: 2010-11-01
A52: 3 | B52: Inline German-style Filter | C52: Each | D52: 678 | E52: 678 | F52: 678 | G52: 1356 | H52: 1356 | I52: 3340 | J52: 4780 | K52: 5825 | L52: 5981 | M52: 11259 | N52: Installed inground, incorporated into conveyance network, prior to storage tank. **MANHOLE REQUIRED FOR sizes 1000 m2 + | O52: Connect the Drops 2010 | P52: 2010-11-01
A53: 4 | B53: Inline German-style Filter | C53: N/A - Model # | D53: 3P VF1 | E53: 3P VF1 | F53: 3P VF1 | G53: (2) 3P VF1 | H53: (2) 3P VF1 | I53: 3P VF2 | J53: 3P VF3 | K53: 3P VF4 | L53: 3P VF6 | M53: 3P VF12 | N53: Model numbers for inline filter costs listed above. | O53: Connect the Drops 2010 | P53: 2010-11-01
A54: 5 | B54: Blank-1
A55: 6 | B55: Blank-2
A56: 7 | B56: Blank-3
A57: 8 | B57: Blank-4
A58: 9 | B58: Blank-5
A59: 10 | B59: Blank-6
A60: 11 | B60: Blank-7
A61: 12 | B61: Blank-8
A62: 13 | B62: Blank-9
A63: 14 | B63: Blank-10
A64: 15 | B64: Blank-11
A65: 16 | B65: Blank-12
A66: 17 | B66: Blank-13
A67: 18 | B67: Blank-14
A68: 19 | B68: Blank-15
A69: 20 | B69: Blank-16
A71: 1 | B71: CUSTOM: Leaf Screen | C71: Each | H71: - | I71: - | J71: - | K71: - | L71: - | M71: - | N71: Type cost details here…
A72: 2 | B72: CUSTOM: Leaf Screen & First flush kit | C72: Each | H72: - | I72: - | J72: - | K72: - | L72: - | M72: - | N72: Type cost details here…
A73: 3 | B73: CUSTOM: Inline German-style Filter | C73: Each | N73: Type cost details here…
A74: 4 | B74: CUSTOM: Inline German-style Filter | C74: N/A - Model # | D74: Custom | E74: Custom | F74: Custom | G74: Custom | H74: Custom | I74: Custom | J74: Custom | K74: Custom | L74: Custom | M74: Custom | N74: Type cost details here…
A75: 5 | B75: CUSTOM: Blank-1
A76: 6 | B76: CUSTOM: Blank-2
A77: 7 | B77: CUSTOM: Blank-3
A78: 8 | B78: CUSTOM: Blank-4
A79: 9 | B79: CUSTOM: Blank-5
A80: 10 | B80: CUSTOM: Blank-6
A81: 11 | B81: CUSTOM: Blank-7
A82: 12 | B82: CUSTOM: Blank-8
A83: 13 | B83: CUSTOM: Blank-9
A84: 14 | B84: CUSTOM: Blank-10
A85: 15 | B85: CUSTOM: Blank-11
A86: 16 | B86: CUSTOM: Blank-12
A87: 17 | B87: CUSTOM: Blank-13
A88: 18 | B88: CUSTOM: Blank-14
A89: 19 | B89: CUSTOM: Blank-15
A90: 20 | B90: CUSTOM: Blank-16
A91: Rainwater Storage Tanks
A92: Item No. | B92: Item | C92: Unit Cost | D92: Costs Vary by Volume (Litres, L): | N92: Cost Details | O92: Quote Source(s) | P92: Quote Date(s) | Q92: Interpolated Costs
D93: 2000 | E93: 4000 | F93: 6000 | G93: 8000 | H93: 10000 | I93: 15000 | J93: 20000 | K93: 25000 | L93: 30000 | M93: 35000
A94: 1 | B94: Precast Concrete (below-ground) | C94: $/L | D94: 0.44 | E94: 0.35 | F94: 0.32 | G94: 0.36 | H94: 0.35 | I94: 0.34 | J94: 0.31 | K94: 0.3 | L94: 0.29 | M94: 0.23 | N94: Excl. excavation, bedding, backfill, delivery, access riser, craning/installation | O94: Connect the Drops 2010, TRCA 2009 | P94: Sep-09 - Nov-10
A95: 2 | B95: Plastic (below-ground) | C95: $/L | D95: 0.59 | E95: 0.37 | F95: 0.38 | G95: 0.32 | H95: 0.29 | I95: 0.29 | J95: 0.29 | K95: 0.29 | L95: 0.29 | M95: 0.29 | N95: Excl. excavation, bedding, backfill, delivery, access riser, craning/installation | O95: Connect the Drops 2010, TRCA 2009 | P95: Sep-09 - Nov-10 | Q95: 8000 L tank and 10,000 L tank costs from BG tanks
A96: 3 | B96: Plastic (above-ground) | C96: $/L | D96: 0.65 | E96: 0.47 | F96: 0.35 | G96: 0.32 | H96: 0.29 | I96: 0.29 | J96: 0.29 | K96: 0.29 | L96: 0.29 | M96: 0.29 | N96: Excl. excavation, bedding, backfill | O96: Connect the Drops 2010, TRCA 2009 | P96: Sep-09 - Nov-10 | Q96: 8000 L tank (Avg.). 15,000 - 35,000 L tank costs extrapolated from 10,000 (flat price, no cost savings per Litre after 10,000)
A97: 4 | B97: Tank Delivery/Freight | C97: Per tank | D97: 233 | E97: 233 | F97: 233 | G97: 233 | H97: 233 | I97: 233 | J97: 233 | K97: 233 | L97: 233 | M97: 233 | N97: Appl. For Precast concrete tanks | O97: Connect the Drops 2010, TRCA 2009 | P97: Sep-09 - Nov-10 | Q97: 15,000 - 35,000 L tank costs extrapolated from 10,000 (flat price, no cost savings per Litre after 10,000)
A98: 5 | B98: Standard Tank Access Riser | C98: For Tank(s) | D98: 418 | E98: 418 | F98: 418 | G98: 418 | H98: 418 | I98: 418 | J98: 418 | K98: 418 | L98: 418 | M98: 418 | N98: Appl. For below ground tanks. Typical access riser, 0-1.0 m height, plastic | O98: Connect the Drops 2010, TRCA 2009 | P98: Sep-09 - Nov-10
A99: 6 | B99: Installation/Craning | C99: Per hour | D99: 155 | E99: 155 | F99: 155 | G99: 155 | H99: 155 | I99: 155 | J99: 155 | K99: 155 | L99: 155 | M99: 155 | N99: Appl. For Precast concrete tanks. Crane rental @155/hr, 4 hour minimum. Crane typ. Required for tanks larger than 20000 L | O99: Connect the Drops 2010, TRCA 2009 | P99: Sep-09 - Nov-10
A100: 7 | B100: Blank-1
A101: 8 | B101: Blank-2
A102: 9 | B102: Blank-3
A103: 10 | B103: Blank-4
A104: 11 | B104: Blank-5
A105: 12 | B105: Blank-6
A106: 13 | B106: Blank-7
A107: 14 | B107: Blank-8
A108: 15 | B108: Blank-9
A109: 16 | B109: Blank-10
A110: 17 | B110: Blank-11
A111: 18 | B111: Blank-12
A112: 19 | B112: Blank-13
A113: 20 | B113: Blank-14
A115: 1 | B115: CUSTOM: Precast Concrete (below-ground) | C115: $/L | N115: Type cost details here…
A116: 2 | B116: CUSTOM: Plastic (below-ground) | C116: $/L | N116: Type cost details here…
A117: 3 | B117: CUSTOM: Plastic (above-ground) | C117: $/L | N117: Type cost details here…
A118: 4 | B118: CUSTOM: Tank Delivery/Freight | C118: Per tank | N118: Type cost details here…
A119: 5 | B119: CUSTOM: Standard Tank Access Riser | C119: For Tank(s) | N119: Type cost details here…
A120: 6 | B120: CUSTOM: Installation/Craning | C120: For Tank(s) | N120: Type cost details here…
A121: 7 | B121: CUSTOM: Blank-1
A122: 8 | B122: CUSTOM: Blank-2
A123: 9 | B123: CUSTOM: Blank-3
A124: 10 | B124: CUSTOM: Blank-4
A125: 11 | B125: CUSTOM: Blank-5
A126: 12 | B126: CUSTOM: Blank-6
A127: 13 | B127: CUSTOM: Blank-7
A128: 14 | B128: CUSTOM: Blank-8
A129: 15 | B129: CUSTOM: Blank-9
A130: 16 | B130: CUSTOM: Blank-10
A131: 17 | B131: CUSTOM: Blank-11
A132: 18 | B132: CUSTOM: Blank-12
A133: 19 | B133: CUSTOM: Blank-13
A134: 20 | B134: CUSTOM: Blank-14
A135: Pressure Piping (Service Piping & Supply Piping) & Accessories
A136: Item No. | B136: Item | C136: Unit Cost | D136: Costs Vary by Diameter (mm): | N136: Cost Details | O136: Quote Source(s) | P136: Quote Date(s) | Q136: Interpolated Costs
D137: 15 | E137: 20 | F137: 25 | G137: 32 | H137: 40 | I137: 50 | J137: 65 | K137: 80 | L137: 100 | M137: 150
A138: 1 | B138: Polyethylene (PE) C901 | C138: $/metre | D138: - | E138: 8.54 | F138: 10.17 | G138: 10.745 | H138: 11.32 | I138: 16.21 | J138: - | K138: - | L138: - | M138: - | N138: Excl. excavation, bedding, backfill | O138: RSMeans | P138: Nov-10-2010 (Q3 2010) | Q138: 32 mm (Avg.)
A139: 2 | B139: PVC Class 150 | C139: $/metre | D139: - | E139: - | F139: - | G139: - | H139: 5.34 | I139: 6.61 | J139: 9.3 | K139: 16.91 | L139: - | M139: - | N139: Excl. excavation, bedding, backfill | O139: RSMeans | P139: Nov-10-2010 (Q3 2010)
A140: 3 | B140: Copper Class K | C140: $/metre | D140: 40.23 | E140: 51.04 | F140: 61.99 | G140: 75.54 | H140: 91.72 | I140: 128.23 | J140: 180.165 | K140: 232.1 | L140: - | M140: - | N140: Pipe, copper, tubing, solder, type K, includes coupling & clevis hanger assembly 3 m O.C. | O140: RSMeans | P140: Nov-10-2010 (Q3 2010) | Q140: 65 mm (Avg.)
A141: 4 | B141: PVC SCH 40 | C141: $/metre | D141: 45.7 | E141: 48.67 | F141: 54.44 | G141: 60.63 | H141: 70.24 | I141: 78.16 | J141: 88.25 | K141: 98.34 | L141: - | M141: - | N141: Pipe, plastic, PVC, schedule 40, includes couplings 3 m OC, and hangers 3 per 3 m | O141: RSMeans | P141: Nov-10-2010 (Q3 2010) | Q141: 65 mm (Avg.)
A142: 5 | B142: PEX | C142: $/metre | D142: 2.09 | E142: 3.77 | F142: 6.43 | G142: 10.92 | H142: 13.69 | I142: - | J142: - | K142: - | L142: - | M142: - | N142: Pipe, plastic, PEX, flexible, non-barrier type, excludes couplings and hangers | O142: RSMeans | P142: Nov-10-2010 (Q3 2010)
A143: 6 | B143: Double Check Valve | C143: Each | D143: - | E143: 321.63 | F143: 370.19 | G143: 640.79 | H143: 911.39 | I143: 1106.12 | J143: - | K143: - | L143: - | M143: - | N143: Backflow preventer, double check principle, automatic operation, ball valves, threaded, includes valves and four test cocks | O143: RSMeans | P143: Nov-10-2010 (Q3 2010) | Q143: 32 mm (Avg.)
A144: 7 | B144: Reduced Press. Backflow Preventer | C144: Each | D144: - | E144: 458.52 | F144: 495.59 | G144: 827.33 | H144: 911.39 | I144: 1043.42 | J144: 1918.65 | K144: 2793.88 | L144: - | M144: - | N144: Backflow preventer, reduced pressure principle, automatic operation, ball valves, includes valves and four test cocks | O144: RSMeans | P144: Nov-10-2010 (Q3 2010) | Q144: 65 mm (Avg.)
A145: 8 | B145: Water Hammer Arrester | C145: Each | D145: 77.54 | E145: 77.54 | F145: 129.11 | G145: 131.72 | H145: 153.67 | I145: 186.59 | J145: 491.26 | K145: - | L145: - | M145: - | N145: Water hammer arrester/shock absorber, copper | O145: RSMeans | P145: Nov-10-2010 (Q3 2010) | Q145: 15 mm (Same as 20 mm cost)
A146: 9 | B146: Solenoid Valve | C146: Each | D146: 150 | E146: 309.9 | F146: 387.375 | G146: 535.2875 | H146: 683.2 | I146: 854 | J146: - | K146: - | L146: - | M146: - | N146: Water solenoid valve, domestic/commercial, bronze, compound, flanged | O146: Connect the Drops 2010, TRCA 2009 | P146: Sep-09 - Nov-10 | Q146: 25 mm (Avg.), 32 mm (Avg.), 40 mm (Avg.)
A147: 10 | B147: Water Meter | C147: Each | D147: - | E147: 134.02 | F147: 187.79 | G147: 240.3712 | H147: 441.752 | I147: 552.19 | J147: 1973.1 | K147: 3394.01 | L147: - | M147: - | N147: Water supply meter, domestic/commercial, bronze, compound, flanged | O147: RSMeans | P147: Nov-10-2010 (Q3 2010) | Q147: 32 mm (Avg.), 40 mm (Avg.), 65 mm (Avg.)
A148: 11 | B148: Blank-1
A149: 12 | B149: Blank-2
A150: 13 | B150: Blank-3
A151: 14 | B151: Blank-4
A152: 15 | B152: Blank-5
A153: 16 | B153: Blank-6
A154: 17 | B154: Blank-7
A155: 18 | B155: Blank-8
A156: 19 | B156: Blank-9
A157: 20 | B157: Blank-10
A159: 1 | B159: Polyethylene (PE) C901 | C159: $/metre | D159: - | J159: - | K159: - | L159: - | M159: - | N159: Type cost details here…
A160: 2 | B160: PVC Class 150 | C160: $/metre | D160: - | E160: - | F160: - | G160: - | L160: - | M160: - | N160: Type cost details here…
A161: 3 | B161: Copper Class K | C161: $/metre | L161: - | M161: - | N161: Type cost details here…
A162: 4 | B162: PVC SCH 40 | C162: $/metre | L162: - | M162: - | N162: Type cost details here…
A163: 5 | B163: PEX | C163: $/metre | I163: - | J163: - | K163: - | L163: - | M163: - | N163: Type cost details here…
A164: 6 | B164: Double Check Valve | C164: Each | D164: - | J164: - | K164: - | L164: - | M164: - | N164: Type cost details here…
A165: 7 | B165: Reduced Press. Backflow Preventer | C165: Each | D165: - | L165: - | M165: - | N165: Type cost details here…
A166: 8 | B166: Water Hammer Arrester | C166: Each | K166: - | L166: - | M166: - | N166: Type cost details here…
A167: 9 | B167: Solenoid Valve | C167: Each | J167: - | K167: - | L167: - | M167: - | N167: Type cost details here…
A168: 10 | B168: Water Meter | C168: Each | D168: - | L168: - | M168: - | N168: Type cost details here…
A169: 11 | B169: CUSTOM: Blank-1
A170: 12 | B170: CUSTOM: Blank-2
A171: 13 | B171: CUSTOM: Blank-3
A172: 14 | B172: CUSTOM: Blank-4
A173: 15 | B173: CUSTOM: Blank-5
A174: 16 | B174: CUSTOM: Blank-6
A175: 17 | B175: CUSTOM: Blank-7
A176: 18 | B176: CUSTOM: Blank-8
A177: 19 | B177: CUSTOM: Blank-9
A178: 20 | B178: CUSTOM: Blank-10
A179: Pumps, Wiring & Electrical Accessories
A180: Item No. | B180: Item | C180: Unit Cost | D180: Cost Vary by Flow Rate (Litres per Minute - LPM): | N180: Cost Details | O180: Quote Source(s) | P180: Quote Date(s) | Q180: Interpolated Costs
D181: 38 | E181: 76 | F181: 114 | G181: 189 | H181: 284 | I181: 378 | J181: 567 | K181: 945 | L181: 1323 | M181: 1890
A182: 1 | B182: Pump & Pressure System (ICI) | C182: $/LPM | D182: 47.2606194 | E182: 46.58323066 | F182: 35.14129684 | G182: 29.49983163 | H182: 28.68525533 | I182: 12.27660846 | J182: 13.55364125 | K182: 11.01148918 | L182: 9.062198117 | M182: - | N182: Appl. for ICI use. Submersible pump with controls, single phase, 0.37-11.1 kW pump, 30m chord (used for fountain applications) | O182: RSMeans | P182: Nov-10-2010 (Q3 2010) | Q182: 200 mm (Avg.)
A183: 2 | B183: Pump & Pressure System (RES) | C183: $/LPM | D183: =D182*0.6 -> 28.35637164 | E183: =E182*0.6 -> 27.9499384 | F183: =F182*0.6 -> 21.0847781 | G183: - | H183: - | I183: - | J183: - | K183: - | L183: - | M183: - | N183: Appl. for residential use. Submersible pump with sontrols, Assume 40% reduction in pump cost, up to 30 GPM. | O183: RSMeans | P183: Nov-10-2010 (Q3 2010)
A184: 3 | B184: Float Switch | C184: Each | D184: 54.16 | E184: 75.77 | F184: 97.38 | G184: 98.655 | H184: 99.93 | I184: 199.86 | J184: 399.72 | K184: 799.44 | L184: 1598.88 | M184: - | N184: Approx. cost of float switch, excl. wiring from power supply to pump. | O184: Connect the Drops 2010 | P184: Nov-10-2010 (Q3 2010) | Q184: 3/4 hp (Avg.), 1.5 hp (Avg.), 5 hp + (Doubling)
A185: 4 | B185: Electrical Wiring | C185: $/m | D185: 1.67 | E185: 2.18 | F185: 2.62 | G185: 3.67 | H185: 5.14 | I185: 7.17 | J185: 9.88 | K185: 12.15 | L185: 14.68 | M185: - | N185: 2 Wire, Excl. excavation and backfill (NOTE: Tool assumes electrical in same trench as rainwater conveyance piping). Assumed "Raceway" wiring cost. | O185: RSMeans | P185: Nov-10-2010 (Q3 2010)
A186: 5 | B186: Wire Gauge | C186: N/A - Wire Gauge | D186: 14 gauge | E186: 12 gauge | F186: 10 gauge | G186: 8 gauge | H186: 6 gauge | I186: 4 gauge | J186: 2 gauge | K186: 1 gauge | L186: 1/0 gauge | M186: - | N186: Approximate Wire gauge | O186: N/A
A187: 6 | B187: Equivalent (Approx.) Horsepower rating for pump flow rates | C187: N/A - Equiv. HP | D187: 1/2 hp | E187: 3/4 hp | F187: 1 hp | G187: 1.5 hp | H187: 2 hp | I187: 5 hp | J187: 7.5 hp | K187: 10 hp | L187: 15 hp | M187: - | N187: Approximate horespower (HP) ratings for Pumps, wiring & Elec. Components. | O187: N/A
A188: 7 | B188: Blank-1
A189: 8 | B189: Blank-2
A190: 9 | B190: Blank-3
A191: 10 | B191: Blank-4
A192: 11 | B192: Blank-5
A193: 12 | B193: Blank-6
A194: 13 | B194: Blank-7
A195: 14 | B195: Blank-8
A196: 15 | B196: Blank-9
A197: 16 | B197: Blank-10
A198: 17 | B198: Blank-11
A199: 18 | B199: Blank-12
A200: 19 | B200: Blank-13
A201: 20 | B201: Blank-14
A203: 1 | B203: CUSTOM: Pump & Pressure System (ICI) | C203: $/LPM | M203: - | N203: Type cost details here…
A204: 2 | B204: CUSTOM: Pump & Pressure System (RES) | C204: $/LPM | G204: - | H204: - | I204: - | J204: - | K204: - | L204: - | M204: - | N204: Type cost details here…
A205: 3 | B205: CUSTOM: Float Switch | C205: Each | M205: - | N205: Type cost details here…
A206: 4 | B206: CUSTOM: Electrical Wiring | C206: $/m | M206: - | N206: Type cost details here…
A207: 5 | B207: CUSTOM: Wire Gauge | C207: N/A - Wire Gauge | D207: 14 | E207: 12 | F207: 10 | G207: 8 | H207: 6 | I207: 4 | J207: 2 | K207: 1 | L207: 1/0 | M207: - | N207: Approximate wire gauge
... 144 more rows

Sheet Data (hidden)
A1: RWH Design Tool: Progress Indicator
A3: Parameter | B3: Status 1 | C3: Status 2 | D3: Designer note: Status can be either Not accessed, accessed, complete, or skipped. Used to assess progress through tool, used for jumping back in when help function is activated
A4: Step 0 | B4: Accessed | C4: Complete
A5: Step 1 | B5: Accessed | C5: Complete | F5: Not accessed
A6: Step 2 | B6: Accessed | C6: Complete | F6: Accessed
A7: Step 3 | B7: Accessed | C7: Complete | F7: Completed
A8: Step 3a | B8: Accessed | C8: Complete | F8: Skipped
A9: Step 3b | B9: Accessed | C9: Complete
A10: Step 3c | B10: Accessed | C10: Complete
A11: Step 3d | B11: Not accessed | C11: Incomplete
A12: Step 4 | B12: Not accessed | C12: Incomplete
A13: Step 4a | B13: Not accessed | C13: Incomplete
A14: Step 4b | B14: Not accessed | C14: Incomplete
A15: Step 4c | B15: Not accessed | C15: Incomplete
A16: Step 4d | B16: Not accessed | C16: Incomplete
A17: Step 3g | B17: Not accessed | C17: Incomplete
A18: Step 3h | B18: Not accessed | C18: Incomplete
A19: Step 3i | B19: Not accessed | C19: Incomplete
A20: Step 9 | B20: Not accessed | C20: Incomplete
A21: Step 9a | B21: Not accessed | C21: Incomplete
A22: Step 9b | B22: Not accessed | C22: Incomplete
A23: Step 9c | B23: Not accessed | C23: Incomplete
B24: Not accessed | C24: Incomplete
B25: Not accessed | C25: Incomplete
B26: Not accessed | C26: Incomplete
B27: Not accessed | C27: Incomplete
A28: Step 7 | B28: Not accessed | C28: Incomplete
A29: Step 0b | B29: Accessed | C29: Incomplete
A30: Step 3e | B30: Not accessed | C30: Incomplete
A31: Step 3f | B31: Not accessed | C31: Incomplete
A32: Step 3j | B32: Not accessed | C32: Incomplete
A33: Step 4e | B33: Not accessed | C33: Incomplete
A34: Step 4f | B34: Not accessed | C34: Incomplete
A35: Step 4g | B35: Not accessed | C35: Incomplete
A36: Step_8na | B36: Not accessed | C36: Incomplete
A37: Step 1c | B37: Not accessed | C37: Incomplete
A38: Step 8o | B38: Not accessed | C38: Incomplete
A39: Step 8oa | B39: Not accessed | C39: Incomplete
A40: Step 8p | B40: Not accessed | C40: Incomplete
A41: Blank | B41: Not accessed | C41: Incomplete
A42: Blank | B42: Not accessed | C42: Incomplete
A43: Step 1a | B43: Not accessed | C43: Incomplete
A44: Step 8 | B44: Not accessed | C44: Incomplete
A45: Step 8a | B45: Not accessed | C45: Incomplete
A46: Step 8b | B46: Not accessed | C46: Incomplete
A47: Step 8c | B47: Not accessed | C47: Incomplete
A48: Step 8d | B48: Not accessed | C48: Incomplete
A49: Step 8e | B49: Not accessed | C49: Incomplete
A50: Step 8f | B50: Not accessed | C50: Incomplete
A51: Step 1b | B51: Not accessed | C51: Incomplete
A52: Step 8g | B52: Not accessed | C52: Incomplete
A53: Step 2a | B53: Accessed | C53: Complete
A54: Step 2b | B54: Not accessed | C54: Incomplete
A55: Step 2c | B55: Not accessed | C55: Incomplete
A56: Step 2d | B56: Accessed | C56: Complete
A57: Step 8h | B57: Not accessed | C57: Incomplete
A58: Step 8i | B58: Not accessed | C58: Incomplete
A59: Step 8j | B59: Not accessed | C59: Incomplete
A60: Step 8k | B60: Not accessed | C60: Incomplete
A61: Step 8l | B61: Not accessed | C61: Incomplete
A62: Step 8z | B62: Not accessed | C62: Incomplete
A63: Step 8m | B63: Not accessed | C63: Incomplete
A64: Step 8y | B64: Not accessed | C64: Incomplete
A65: Step 8n | B65: Not accessed | C65: Incomplete
A66: Step 8o | B66: Not accessed | C66: Incomplete
A67: Step 8x | B67: Not accessed | C67: Incomplete
A68: Step 8w | B68: Not accessed | C68: Incomplete
A69: Step 8v | B69: Not accessed | C69: Incomplete
A70: Blank | B70: Not accessed | C70: Incomplete
A71: Step 0z | B71: Not accessed | C71: Incomplete
A72: Step 8fa | B72: Not accessed | C72: Incomplete
A73: Step 8ha | B73: Not accessed | C73: Incomplete
A74: Step 3z | B74: Not accessed | C74: Incomplete
A75: Blank | B75: Not accessed | C75: Incomplete
A76: Blank | B76: Not accessed | C76: Incomplete
A77: Blank | B77: Not accessed | C77: Incomplete
A78: Step 5 | B78: Not accessed | C78: Incomplete
A79: Step 5x | B79: Not accessed | C79: Incomplete
A80: Step 5y | B80: Not accessed | C80: Incomplete
A81: Step 5a | B81: Not accessed | C81: Incomplete
A82: Step 5b | B82: Not accessed | C82: Incomplete
A83: Step 5c | B83: Not accessed | C83: Incomplete
A84: Step 5d | B84: Not accessed | C84: Incomplete
A85: Step 5e | B85: Not accessed | C85: Incomplete
A86: Step 5f | B86: Not accessed | C86: Incomplete
A87: Step 5g | B87: Not accessed | C87: Incomplete
A88: Step 5h | B88: Not accessed | C88: Incomplete
A89: Step 5i | B89: Not accessed | C89: Incomplete
A90: Step 5j | B90: Not accessed | C90: Incomplete
A91: Step 3z | B91: Accessed | C91: Incomplete
A92: Step 5w | B92: Not accessed | C92: Incomplete
A93: Step 5v | B93: Not accessed | C93: Incomplete
A94: Step 5k | B94: Not accessed | C94: Incomplete
A95: Step 4z | B95: Not accessed | C95: Incomplete
A96: Step 5z | B96: Not accessed | C96: Incomplete
B97: Not accessed | C97: Incomplete
B98: Not accessed | C98: Incomplete
B99: Not accessed | C99: Incomplete
B100: Not accessed | C100: Incomplete
A102: Step 2: Project & Supply Details
A104: Parameter | B104: Status | C104: Cold | D104: Hot | E104: Water Use Detail 1 | F104: Water Use Detail 2 | G104: Average Water Use (L/day)
A105: Toilets | B105: Not selected | C105: No | D105: No | G105: 0
A106: Urinals | B106: Not selected | C106: No | D106: No | G106: 0
A107: Irrigation | B107: Not selected | C107: No | D107: No | G107: 0
A108: Laundry | B108: Not selected | C108: No | D108: No | G108: 0
A109: Lavatory faucets | B109: Not selected | C109: No | D109: No | G109: 0
A110: Dishwasher | B110: Not selected | C110: No | D110: No | G110: 0
A111: Shower | B111: Not selected | C111: No | D111: No | G111: 0
A112: Other | B112: Not selected | C112: No | D112: No | G112: 0
A113: blank
A114: blank
A115: blank
A116: blank
A118: Step 3: Project & Supply Details

Sheet Report_1 (hidden)
A1: Rainwater Harvesting Design & Costing Tool Report
A3: Project Details
A5: Project name: | C5: N/A
A6: Project number: | C6: N/A
A7: Project details: | C7: N/A
A10: Building Details
A12: Province: | E12: N/A
A13: City: | E13: N/A
A14: Annual rainfall characteristics: | E14: 0 | F14: mm | G14: (Minimum on record)
E15: 0 | F15: mm | G15: (Typical year - Median)*
E16: 0 | F16: mm | G16: (Maximum on record)
A18: Building type: | E18: N/A
A19: Number of occupants: | E19: N/A
A20: Days occupied per week: | E20: N/A
A22: Total building roof surface area: | E22: 0 | F22: m2
A23: Rainwater catchment area: | E23: 0 | F23: m2
A24: Proportion of roof surface collected: | E24: =IF((E22<>0),E23/E22,0) -> 0
A26: Catchment Surface Details
A28: Roofing material: | E28: N/A
A29: Initial loss factor: | E29: 0 | F29: mm
A30: Continuous loss factor: | E30: 0
A32: Pre-storage Treatment Details
A34: Pre-storage treatment method: | E34: N/A
A35: Initial loss factor: | E35: 0 | F35: mm
A36: Continuous loss factor: | E36: 0
A38: Snowfall/Snowmelt Contribution Details
A40: Snowfall/Snowmelt loss factor: | E40: 0
A42: *Unless otherwise stated, all figures and charts provided in this report are based upon the data
A43: generated during a "typical year" (the median annual rainfall on record) for the selected city.

Sheet Report_2 (hidden)
A1: Rainwater Demand
A3: Indoor Fixtures
A5: Fixture | B5: Fixture Type | C5: Water Usage | D5: Unit | E5: Water Usage Duration | F5: Units | G5: Number of Occupants | H5: Uses Per Occupant Per day | I5: Daily Water Demand (L/day)
A6: =Input_Indoor!B34 -> Toilet (male) | B6: N/A | C6: 0 | D6: L/flush | E6: 0 | F6: Flush | G6: 0 | H6: 0 | I6: 0
A7: =Input_Indoor!B35 -> Toiet (female) | B7: N/A | C7: 0 | D7: L/flush | E7: 0 | F7: Flush | G7: 0 | H7: 0 | I7: 0
A8: =Input_Indoor!B36 -> Urinal | B8: N/A | C8: 0 | D8: L/flush | E8: 0 | F8: Flush | G8: 0 | H8: 0 | I8: 0
A9: =Input_Indoor!B37 -> Laundry | B9: N/A | C9: 0 | D9: L/load | E9: 0 | F9: Load | G9: 0 | H9: 0 | I9: 0
A10: =Input_Indoor!B38 -> Dishwasher | B10: N/A | C10: 0 | D10: L/load | E10: 0 | F10: Load | G10: 0 | H10: 0 | I10: 0
A11: =Input_Indoor!B39 -> Lavatory Faucets | B11: N/A | C11: 0 | D11: L/min | E11: 0 | F11: Minutes | G11: 0 | H11: 0 | I11: 0
A12: =Input_Indoor!B40 -> Shower | B12: N/A | C12: 0 | D12: L/min | E12: 0 | F12: Minutes | G12: 0 | H12: 0 | I12: 0
A13: =Input_Indoor!B41 -> Other | B13: N/A | C13: 0 | D13: Litres | E13: 0 | F13: Day | G13: 0 | H13: 0 | I13: 0
A15: Total Indoor Rainwater Demand: | F15: 48 | G15: Litres/day
A17: Daily Rainwater Demand (Occupancy Adjustment): | F17: 48 | G17: Litres/day
A18: (Building occupied 7 of 7 days per week)
A20: Outdoor Fixtures - Hose Watering & Basic Irrigation System
A22: Irrigation Season: | C22: Hose watering: | E22: N/A | F22: - | G22: N/A
C23: Irrigation system: | E23: N/A | F23: - | G23: N/A
A25: Fixture | B25: Fixture Type | C25: Water Usage | D25: Unit | E25: Water Usage Duration/Area | F25: Units | G25: Irrigation Efficiency (%) | H25: Uses per Day | I25: Daily Water Demand (L/day)
A26: =Input_Outdoor!B48 -> Garden hose | B26: N/A | C26: 0 | D26: L/min | E26: 0 | F26: Minutes | G26: 0 | H26: 0 | I26: 0
A27: =Input_Outdoor!B49 -> Irrigation system | B27: N/A | C27: 0 | D27: L/m2 | E27: 0 | F27: m2 | G27: 0 | H27: 0 | I27: 0
A29: Total Outdoor Rainwater Demand: | F29: 0 | G29: Litres/day*
A30: *(peak volume during irrigation season)

Sheet Report_3 (hidden)
A1: Rainwater Demand
A3: Outdoor Fixtures - Advanced Irrigation System
A5: Irrigation Season: | E5: N/A | F5: - | G5: N/A
A8: Irrigation Controller: | E8: N/A
A9: Control Factor (CF): | E9: 0
A10: Evapotranspiration Rate (ET): | E10: 0 | F10: mm/month
A11: Number of Times Irrigated per Week: | E11: 0
A14: Landscape/Zone | B14: Area (m2) | C14: Species Factor (Ks) | D14: Micro-climate Factor (Type) | E14: Micro-climate Factor (Kmc) | F14: Irrigation Type | G14: Irrigation Efficiency (IE) (%) | H14: Daily Water Demand (L/day)
A15: N/A | B15: 0 | C15: 0 | D15: N/A | E15: 0 | F15: N/A | G15: 0 | H15: 0
A16: N/A | B16: 0 | C16: 0 | D16: N/A | E16: 0 | F16: N/A | G16: 0 | H16: 0
A17: N/A | B17: 0 | C17: 0 | D17: N/A | E17: 0 | F17: N/A | G17: 0 | H17: 0
A18: N/A | B18: 0 | C18: 0 | D18: N/A | E18: 0 | F18: N/A | G18: 0 | H18: 0
A19: N/A | B19: 0 | C19: 0 | D19: N/A | E19: 0 | F19: N/A | G19: 0 | H19: 0
A20: N/A | B20: 0 | C20: 0 | D20: N/A | E20: 0 | F20: N/A | G20: 0 | H20: 0
A23: Total Irrigation System Rainwater Demand: | F23: 0 | G23: Litres/day

Sheet Report_4 (hidden)
A1: Rainwater Demand
A3: Daily Rainwater Demand
A5: Indoor Rainwater Demand: | F5: =Report_2!F17 -> 48 | G5: Litres/day
A6: Outdoor Rainwater Demand: | F6: =SUM(Report_2!F29,Report_3!F23) -> 0 | G6: Litres/day*
A7: Total Rainwater Demand: | F7: =SUM(F5:F6) -> 48 | G7: Litres/day*
A8: *(peak volume during irrigation season)
A10: Monthly Rainwater Demand
A31: Annual Rainwater Demand
A33: Indoor Rainwater Demand | F33: =SUM(Sheet1!B11:M11)/1000 -> 17.52 | G33: m3/year
A34: Outdoor Rainwater Demand | F34: =SUM(Sheet1!B16:M16)/1000 -> 0 | G34: m3/year
A35: Total Rainwater Demand | F35: =SUM(F33:F34) -> 17.52 | G35: m3/year
A36: (1 m3 = 1,000 L)

Sheet Report_14 (hidden)
A1: Tank Sizing - Maximize Water Savings with Small Tank
A3: Tank Sizing Design Factors
A5: Tank Selection Criteria: | D5: 0
A6: Tank Unused Volume ("Dead space"): | D6: 0
A9: Details on How the Recommended Tank Size is Determined
F28: Chart values based upon a typical year for the selected city.
A30: The Design & Costing Tool has automatically analyzed the rainwater usage (water savings) from
A31: various sizes of rainwater storage tanks. Some of these tank sizes and corresponding rainwater
A32: usage estimates are displayed in the upper portion of the figure above. To determine the optimum
A33: tank size, the Design & Costing Tool compares the rainwater usage for smaller tanks to that of
A34: larger tanks. This information is displayed in the lower portion of the figure. If a larger tank does
A35: not improve water savings by an amount greater than the Tank Selection Criteria, then that tank
A36: size (and all larger tank sizes) are not recommended. This ensures that costs are minimized by
A37: selecting the smallest tank that maximizes water savings.
A39: Recommended Tank Size
A41: Tank Size: | D41: 0 | E41: Litres

Sheet Report_6 (hidden)
A1: Tank Sizing - Provide a "Back-up" Volume for Dry Periods
A3: Daily Rainwater Demand
A5: Indoor Rainwater Demand: | D5: =Report_2!F17 -> 48 | E5: Litres/day
A6: Outdoor Rainwater Demand: | D6: =Report_4!F6 -> 0 | E6: Litres/day*
A7: Peak Daily Rainwater Demand: | D7: =SUM(D5:D6) -> 48 | E7: Litres/day*
A8: *(peak volume during irrigation season)
A10: Back-up Supply Requirements
A12: Back-up Supply Period: | D12: 0 | E12: Days
A13: Back-up Supply Volume: | D13: 0 | E13: Litres
A15: Tank Sizing Design Factors
A17: Safety Factor: | D17: 0
A18: Tank Unused Volume ("Dead space"): | D18: 0
A21: Recommended Tank Size
A23: Tank Size | D23: 0 | E23: Litres
A24: (rounded to the nearest 100 Litres)

Sheet Report_5 (hidden)
A1: Tank Sizing - Meet a Specific Water Conservation Target
A3: Water Conservation Target: | F3: 0
A4: Water Conservation Target Achievable? | F4: N/A
A6: If the Water Conservation Target is Not Achievable:
A7: Maximum Water Conservation Target Achievable: | F7: N/A
A8: New Water Conservation Target: | F8: N/A
A11: Analysis Method: | B11: N/A
A13: Building Potable Water Use (Applicable if Analysis Method 2 Selected)
A15: Water Bill/Water Use Data: | F15: 0 | G15: L/bi-monthly
A16: Per Capita Water Use Data: | F16: 0 | G16: L/person/day
A17: Annual Total Building Water Use: | F17: 0 | G17: m3/yr
A19: Water Conservation Requirements
A21: Annual Rainwater Demand: | F21: 0 | G21: m3/yr
A22: Water Conservation Target: | F22: 0
A23: Rainwater to be Supplied by RWH System to Meet Target: | F23: =F21*F22 -> 0 | G23: m3/yr
A25: Tank Sizing Design Factor
A27: Tank Unused Volume ("Dead space"): | F27: 0
A29: Recommended Tank Size
A31: Tank Size | F31: 0 | G31: Litres

Sheet Report_10 (hidden)
A1: Tank Sizing - Meet Stormwater Management Requirements
A3: Analysis Method: | B3: N/A
A5: Building Rainwater Catchment Area
A7: Rainwater Catchment Area: | F7: =Report_1!E23 -> 0 | G7: m2
A8: Proportion of roof surface collected: | F8: =Report_1!E24 -> 0
A10: Stormwater Detention Details
A12: City: | F12: N/A
A13: Design Storm: | F13: N/A
A14: Rainfall Event: | F14: 0 | G14: mm
A16: Stormwater Detention Volume: | F16: 0 | G16: Litres
A18: Stormwater Retention Details (Applicable if Analysis Method 2 Selected)
A20: Analysis Method: | B20: N/A
A22: Stormwater Retention Volume: | F22: 0 | G22: Litres
A24: Tank Sizing Design Factors
A26: Safety Factor | F26: 0
A27: Tank Unused Volume ("Dead space"): | F27: 0
A30: Recommended Tank Size
A32: Tank Size | F32: 0 | G32: Litres
A35: Guaranteed Usable Tank Volume* | F35: 0 | G35: Litres
A37: *Note: If the rainwater storage tank is being used for guaranteed stormwater detention with
A38: slow stormwater release (Analysis Method 2), only the Retention Volume is guaranteed for
A39: use to meet rainwater demands. The Detention Volume will also be used to meet demands
A40: when possible, but this volume will automatically be drained from the tank every 24 Hours.

Sheet Report_11 (hidden)
A1: Tank Sizing & Analysis - Analyze User Specified Tank Size(s)
A3: Tanks Analyzed
A5: Number of Tank Sizes Analyzed: | F5: =COUNTIF(F9:F13,">0") -> 0 | G5: Tanks
A7: Tank Size(s)
A9: 1. Tank Volume: | F9: 0 | G9: Litres
A10: 2. Tank Volume: | F10: 0 | G10: Litres
A11: 3. Tank Volume: | F11: 0 | G11: Litres
A12: 4. Tank Volume: | F12: 0 | G12: Litres
A13: 5. Tank Volume: | F13: 0 | G13: Litres
A15: Tank Sizing Design Factor
A17: Tank Unused Volume ("Dead space"): | F17: 0
A19: Tank Analysis Details
A21: For each tank size specified, a 3-page analysis report has been generated. Please refer to the
A22: following report pages for details.

Sheet Report_7 (hidden)
A1: Tank Performance Details - Rainwater Usage (Water Savings)
A3: Tank Performance Summary
A5: Recommended Tank Size | D5: 0 | E5: Litres
A6: Annual Rainwater Use | D6: =TANK_Analysis!AM1897 -> 17.472 | E6: m3/yr
A7: Annual Rainwater Demand | D7: =Report_4!F35 -> 17.52 | E7: m3/yr
A8: Proportion of Demand Met | D8: =TANK_Analysis!AP1897 -> 0.997260274
A11: Rainwater Usage (Water Savings) for Smaller & Larger Tank Sizes
F30: Chart values based upon a typical year for the selected city.
A32: Rainwater Usage (Water Savings) for Different Rainfall Amounts
A34: Type of Year | B34: Annual Rainfall (mm) | C34: Rainwater Use (m3/yr) | D34: Rainwater Demand Met (%)
A37: Dry | B37: =TANK_Analysis!B36 -> 459 | C37: =TANK_Analysis!AM1895 -> 17.472 | D37: =TANK_Analysis!AP1895 -> 0.997260274
A38: Moderately Dry | B38: =TANK_Analysis!B37 -> 634.7 | C38: =TANK_Analysis!AM1896 -> 17.52 | D38: =TANK_Analysis!AP1896 -> 1
A39: Typical | B39: =TANK_Analysis!B38 -> 693.2 | C39: =TANK_Analysis!AM1897 -> 17.472 | D39: =TANK_Analysis!AP1897 -> 0.997260274
A40: Moderately Wet | B40: =TANK_Analysis!B39 -> 779.1 | C40: =TANK_Analysis!AM1898 -> 17.52 | D40: =TANK_Analysis!AP1898 -> 1
A41: Wet | B41: =TANK_Analysis!B40 -> 1096.5 | C41: =TANK_Analysis!AM1899 -> 17.472 | D41: =TANK_Analysis!AP1899 -> 0.997260274

Sheet Report_8 (hidden)
A1: Tank Performance Analysis - Rainwater Deficit (Top-up Requirements)
A3: Tank Performance Summary
A5: Recommended Tank Size | D5: 0 | E5: Litres
A6: Annual Rainwater Use | D6: =TANK_Analysis!AM1897 -> 17.472 | E6: m3/yr
A7: Annual Rainwater Demand | D7: =Report_4!F35 -> 17.52 | E7: m3/yr
A8: Annual Rainwater Supply Deficit | D8: =IF(D7-D6<0,0,D7-D6) -> 0.048 | E8: m3/yr
A9: Annual no. of Dry Days (Days Top-up Required) | D9: =TANK_Analysis!AJ1897 -> 1 | E9: Days
A11: Rainwater Usage (Water Savings) & Deficit (Top-up Requirements)
F30: Chart values based upon a typical year for the selected city.
A32: Rainwater Deficit (Top-up Requirements) for Different Rainfall Amounts
A34: Type of Year | B34: Annual Rainfall (mm) | C34: Rainwater Use (m3/yr) | D34: Rainwater Deficit/Top-up Required (m3/yr) | E34: Number of Days with Rainwater Deficit
A37: Dry | B37: =TANK_Analysis!B36 -> 459 | C37: =TANK_Analysis!AM1895 -> 17.472 | D37: =TANK_Analysis!C1895-TANK_Analysis!AM1895 -> 0.048 | E37: =TANK_Analysis!AJ1895 -> 1
A38: Moderately Dry | B38: =TANK_Analysis!B37 -> 634.7 | C38: =TANK_Analysis!AM1896 -> 17.52 | D38: =TANK_Analysis!C1896-TANK_Analysis!AM1896 -> 0 | E38: =TANK_Analysis!AJ1896 -> 0
A39: Typical | B39: =TANK_Analysis!B38 -> 693.2 | C39: =TANK_Analysis!AM1897 -> 17.472 | D39: =TANK_Analysis!C1897-TANK_Analysis!AM1897 -> 0.048 | E39: =TANK_Analysis!AJ1897 -> 1
A40: Moderately Wet | B40: =TANK_Analysis!B39 -> 779.1 | C40: =TANK_Analysis!AM1898 -> 17.52 | D40: =TANK_Analysis!C1898-TANK_Analysis!AM1898 -> 0 | E40: =TANK_Analysis!AJ1898 -> 0
A41: Wet | B41: =TANK_Analysis!B40 -> 1096.5 | C41: =TANK_Analysis!AM1899 -> 17.472 | D41: =TANK_Analysis!C1899-TANK_Analysis!AM1899 -> 0.048 | E41: =TANK_Analysis!AJ1899 -> 1

Sheet Report_9 (hidden)
A1: Tank Performance Analysis - Overflow Analysis
A3: Tank Performance Summary
A5: Recommended Tank Size | D5: 0 | E5: Litres
A6: Annual Rainwater Use | D6: =TANK_Analysis!AM1897 -> 17.472 | E6: m3/yr
A7: Annual Overflow from Tank | D7: =TANK_Analysis!AO1897 -> 0 | E7: m3/yr
A8: Percent of Rainwater Collected that is Used | D8: =D6/(D6+D7) -> 1
A9: Annual no. of Overflow Events | D9: =TANK_Analysis!AK1897 -> 0 | E9: Events
A11: Overflow Analysis
F30: Chart values based upon a typical year for the selected city.
A32: Rainwater Deficit (Top-up Requirements) for Different Rainfall Amounts
A34: Type of Year | B34: Annual Rainfall (mm) | C34: Rainwater Use (m3/yr) | D34: Rainwater Overflow (m3/yr) | E34: Proportion of Rainwater Collected that is Used | F34: Number of Overflow Events
A37: Dry | B37: =TANK_Analysis!B36 -> 459 | C37: =TANK_Analysis!AM1895 -> 17.472 | D37: =TANK_Analysis!AO1895 -> 0 | E37: =TANK_Analysis!AQ1895 -> 1 | F37: =TANK_Analysis!AK1895 -> 0
A38: Moderately Dry | B38: =TANK_Analysis!B37 -> 634.7 | C38: =TANK_Analysis!AM1896 -> 17.52 | D38: =TANK_Analysis!AO1896 -> 0 | E38: =TANK_Analysis!AQ1896 -> 1 | F38: =TANK_Analysis!AK1896 -> 0
A39: Typical | B39: =TANK_Analysis!B38 -> 693.2 | C39: =TANK_Analysis!AM1897 -> 17.472 | D39: =TANK_Analysis!AO1897 -> 0 | E39: =TANK_Analysis!AQ1897 -> 1 | F39: =TANK_Analysis!AK1897 -> 0
A40: Moderately Wet | B40: =TANK_Analysis!B39 -> 779.1 | C40: =TANK_Analysis!AM1898 -> 17.52 | D40: =TANK_Analysis!AO1898 -> 1.73351 | E40: =TANK_Analysis!AQ1898 -> 0.9099639494 | F40: =TANK_Analysis!AK1898 -> 1
A41: Wet | B41: =TANK_Analysis!B40 -> 1096.5 | C41: =TANK_Analysis!AM1899 -> 17.472 | D41: =TANK_Analysis!AO1899 -> 43.03139 | E41: =TANK_Analysis!AQ1899 -> 0.2887772074 | F41: =TANK_Analysis!AK1899 -> 37

Sheet Report_12 (hidden)
A1: Pump & Pressure System
A3: Piping Details & Pipe Sizing Recommendations
A5: Service Pipe
A7: Pipe material: | F7: N/A
A8: Number of pipe fittings: | F8: N/A
A10: Service Pipe Height (Vertical Length): | F10: 0 | G10: m
A11: Service Pipe Horizontal Length | F11: 0 | G11: m
A12: Service Pipe Total Length: | F12: 0 | G12: m
A14: Recommended Min. Service Pipe Size: | F14: 0 | G14: mm
A16: Supply Pipe
A18: Pipe material: | F18: N/A
A19: Number of pipe fittings: | F19: N/A
A21: Supply Pipe Height (Vertical Length): | F21: 0 | G21: m
A22: Supply Pipe Horizontal Length | F22: 0 | G22: m
A23: Supply Pipe Total Length: | F23: 0 | G23: m
A25: Recommended Min. Supply Pipe Size: | F25: 0 | G25: mm
A27: Pump Head
A29: Pump type/location: | D29: N/A
A31: Friction loss: | F31: 0 | G31: m
A32: Static lift: | F32: 0 | G32: m
A33: Static height: | F33: 0 | G33: m
A34: Total Dynamic Head (TDH): | F34: 0 | G34: m
A35: Total Dynamic Head (TDH) = Friction loss + Static lift + Static Height
A37: Operating pressure: | F37: N/A
A38: Operating pressure (equiv. head): | F38: 0 | G38: m
A40: Pump Head: | F40: 0 | G40: m
A41: Pump Head = TDH + Operating pressure
A43: *Refer to the following Pump & Pressure System report page for details.

Sheet Report_13 (hidden)
A1: Pump & Pressure System
A3: Fixtures & Flow Rate Details
A5: Fixture | B5: Number of Fixtures | C5: Flow Rate Per Fixture (LPM) | D5: Fixture Units per Fixture | E5: Total Fixture Flow Rate (LPM) | F5: Total Fixture Units
A6: Toilet | B6: - | C6: 0 | D6: 0 | E6: 0 | F6: 0
A7: Urinal | B7: - | C7: 0 | D7: 0 | E7: 0 | F7: 0
A8: Laundry | B8: - | C8: 0 | D8: 0 | E8: 0 | F8: 0
A9: Dishwasher | B9: - | C9: 0 | D9: 0 | E9: 0 | F9: 0
A10: Lavatory Faucets | B10: - | C10: 0 | D10: 0 | E10: 0 | F10: 0
A11: Shower | B11: - | C11: 0 | D11: 0 | E11: 0 | F11: 0
A12: Other | B12: - | C12: 0 | D12: 0 | E12: 0 | F12: 0
A13: Garden hose | B13: - | C13: 0 | D13: 0 | E13: 0 | F13: 0
A14: Irrigation system | B14: - | C14: 0 | D14: 0 | E14: 0 | F14: 0
A16: Total Fixture Units: | E16: 0 | F16: Fixture Units
A17: Indoor Fixtures Max. Flow rate: | E17: 0 | F17: LPM
A18: Outdoor Fixtures Max. Flow rate: | E18: 0 | F18: LPM
A19: Total Maximum Flow Rate: | E19: 0 | F19: LPM
A21: Pump Flow Rate
A23: Analysis Method: | B23: N/A
A25: Percent of Max flow served by pump: | E25: N/A
A27: Recommended Min. Pump Flow Rate: | E27: 0 | F27: LPM
A29: Pressure Tank Size
A31: Minimum pump run time: | E31: N/A
A32: Operating Pressure | E32: N/A
A33: Drawdown Factor (Sizing Factor): | E33: N/A
A35: Recommended Min. Pressure Tank Size: | E35: 0 | F35: Litres
A37: *Recommended Min. supply pipe size assumes that for the Other and/or Irrigation System
A38: every 1 Litre per second (LPS) of flow is equivalent to 31.7 Fixture Units. Consult an
A39: engineer and/or qualified pump specialist and/or irrigation contractor regarding sizing
A40: of supply piping & pump selection for RWH systems that include these fixtures.
A41: **Note: Rec. pump flow rate adjusted to provide min. flow for outdoor fixture(s).

Sheet Report_15 (hidden)
A1: Rainwater Harvesting System Cost Estimate
A3: Cost Overview
F30: 0
F31: 0
F32: 0
F33: 0
F34: 0
F35: 0
F36: 0
F37: 0
F38: 0
B40: RWH System Cost Estimate: | F40: 0

Sheet Report_16 (hidden)
A1: Rainwater Harvesting System Cost Estimate
A3: Itemized Costs
A5: Item | B5: Size / Description | D5: Quantity | F5: Unit Cost | H5: Total Cost
A6: Rainwater Conveyance Piping & Accessories
H7: 0
H8: 0
H9: 0
H10: 0
H11: 0
H12: 0
G13: Sub-Total: | H13: 0
A14: Rainwater Storage Tank
H15: 0
H16: 0
H17: 0
H18: 0
H19: 0
H20: 0
H21: 0
G22: Sub-Total: | H22: 0
A23: Rainwater Treatment
H24: 0
H25: 0
H26: 0
H27: 0
H29: 0
H30: 0
H31: 0
H32: 0
H33: 0
G34: Sub-Total: | H34: 0

Sheet Report_17 (hidden)
A1: Rainwater Harvesting System Cost Estimate
A3: Itemized Costs
A5: Item | B5: Size / Description | D5: Quantity | F5: Unit Cost | H5: Total Cost
A6: Pressurized Piping
H7: 0
H8: 0
H9: 0
H10: 0
H11: 0
G12: Sub-Total: | H12: 0
A13: Top-up System & Backflow Prevention
H14: 0
H15: 0
H16: 0
H17: 0
H18: 0
G19: Sub-Total: | H19: 0
A20: Overflow Handling & Overflow Accessories
H21: 0
H22: 0
H23: 0
H24: 0
H25: 0
H26: 0
H27: 0
H28: 0
H29: 0
H30: 0
H31: 0
G32: Sub-Total: | H32: 0
A33: Other Costs
H34: 0
H35: 0
H36: 0
G37: Sub-Total: | H37: 0

Sheet Report_18 (hidden)
A1: Rainwater Harvesting System Cost Estimate
A3: Itemized Costs
A5: Item | B5: Size / Description | D5: Quantity | F5: Unit Cost | H5: Total Cost
A6: Project Costs
H7: 0
H8: 0
H9: 0
G10: Sub-Total: | H10: 0
A13: Summary:
A15: Rainwater Conveyance Piping & Accessories | H15: 0
A16: Rainwater Storage Tank | H16: 0
A17: Rainwater Treatment | H17: 0
A18: Pump & Pressure System and Electrical Accessories | H18: 0
A19: Pressurized Piping | H19: 0
A20: Top-up System & Backflow Prevention | H20: 0
A21: Overflow Handling & Overflow Accessories | H21: 0
A22: Other Costs | H22: 0
A23: Project Costs/Safety Factor | H23: 0
A26: RWH System Cost Estimate | H26: 0

Sheet Page_0 (hidden)
A1: Rainwater Harvesting Design & Costing Tool Report
A3: How to View the Design & Costing Tool Report
A5: This report consists of several pages or "tabs". To navigate the pages, click on the tabs located
A6: at the bottom of the Excel workbook. The report pages are marked "Page_1", "Page_2", etc., a
A7: nd the page tabs will appear as follows:
A17: Printing the Report
A19: To print the entire report:
A21: For users of Microsoft Excel 2003 (or earlier versions) click on the 'File' drop-down menu item,
A22: and then click on Print. Under the "Print what" heading, change "Active sheet(s)" to "Entire
A23: workbook". Select the desired printer and click the OK button. For users of Microsoft Excel 2010
A24: click 'File' (Microsoft Excel 2007 users click on the Office Button in the top-left corner of the
A25: screen) and then click on Print. Under the "Settings" heading change "Print Active Sheets" to
A26: "Print Entire Workbook". Select the desired printer and click the OK button.
A28: To print just one page of the report:
A30: Select the desired report page by clicking on the appropriate tab at the bottom of the screen.
A31: For users of Microsoft Excel 2003 (or earlier versions) click on the 'File' drop-down menu item,
A32: and then click on Print. Select the desired printer and click on the "OK" button. For users of
A33: Microsoft Excel 2010 click 'File' (Microsoft Excell 2007 users click on the Office Button in the
A34: top-left corner of the screen) and then click on Print. Select the desired printer and click the
A35: OK button.
A37: Saving the Report
A39: Once you have viewed the report, be sure to save the workbook if you wish to view the report
A40: in the future. To save the file in Microsoft Excel 2003 (or earlier versions), click on the 'File'
A41: drop-down menu item, and click on 'Save as' and specify the desired file name and location.
A42: In Microsoft Excel 2010 click on 'File' (or click on the Office Button in the top-left corner of the
A43: screen in Microsoft Excel 2007), and click on 'Save as' and specify the desired file name and
A44: location.

Sheet Sheet1 (hidden)
A1: Typical Demand Analysis (Non-LEED)
B2: Start Month | C2: End Month | D2: Start Month (#) | E2: End Month (#)
A3: Indoor Rainwater Use Period | B3: January | C3: December | D3: 1 | E3: 12 | G3: *note: tool currently does not provide the option to select months of use - assumes yearly use for indoor fixtures
A4: Garden Hose Use Period | B4: =Input_Outdoor!K48 -> N/A | C4: =Input_Outdoor!L48 -> N/A | D4: =Input_Outdoor!M48 -> 0 | E4: =Input_Outdoor!N48 -> 0
A5: Irrigation System (Basic) Use Period | B5: =Input_Outdoor!K49 -> N/A | C5: =Input_Outdoor!L49 -> N/A | D5: =Input_Outdoor!M49 -> 0 | E5: =Input_Outdoor!N49 -> 0
A6: Irrigation System (Adv.) Use Period | B6: =Input_Outdoor!M20 -> N/A | C6: =Input_Outdoor!N20 -> N/A | D6: =Input_Outdoor!P20 -> 0 | E6: =Input_Outdoor!Q20 -> 0
A8: Month | B8: JAN | C8: FEB | D8: MAR | E8: APR | F8: MAY | G8: JUN | H8: JUL | I8: AUG | J8: SEP | K8: OCT | L8: NOV | M8: DEC
A9: Month as number representation | B9: 1 | C9: 2 | D9: 3 | E9: 4 | F9: 5 | G9: 6 | H9: 7 | I9: 8 | J9: 9 | K9: 10 | L9: 11 | M9: 12
A10: Days per month | B10: 31 | C10: 28 | D10: 31 | E10: 30 | F10: 31 | G10: 30 | H10: 31 | I10: 31 | J10: 30 | K10: 31 | L10: 30 | M10: 31
A11: Indoor Demand (L/month) | B11: =IF(B9>=$D$3,(IF(B9<=$E$3,(Input_Indoor!$J$42*B10),0)),0) -> 1488 | C11: =IF(C9>=$D$3,(IF(C9<=$E$3,(Input_Indoor!$J$42*C10),0)),0) -> 1344 | D11: =IF(D9>=$D$3,(IF(D9<=$E$3,(Input_Indoor!$J$42*D10),0)),0) -> 1488 | E11: =IF(E9>=$D$3,(IF(E9<=$E$3,(Input_Indoor!$J$42*E10),0)),0) -> 1440 | F11: =IF(F9>=$D$3,(IF(F9<=$E$3,(Input_Indoor!$J$42*F10),0)),0) -> 1488 | G11: =IF(G9>=$D$3,(IF(G9<=$E$3,(Input_Indoor!$J$42*G10),0)),0) -> 1440 | H11: =IF(H9>=$D$3,(IF(H9<=$E$3,(Input_Indoor!$J$42*H10),0)),0) -> 1488 | I11: =IF(I9>=$D$3,(IF(I9<=$E$3,(Input_Indoor!$J$42*I10),0)),0) -> 1488 | J11: =IF(J9>=$D$3,(IF(J9<=$E$3,(Input_Indoor!$J$42*J10),0)),0) -> 1440 | K11: =IF(K9>=$D$3,(IF(K9<=$E$3,(Input_Indoor!$J$42*K10),0)),0) -> 1488 | L11: =IF(L9>=$D$3,(IF(L9<=$E$3,(Input_Indoor!$J$42*L10),0)),0) -> 1440 | M11: =IF(M9>=$D$3,(IF(M9<=$E$3,(Input_Indoor!$J$42*M10),0)),0) -> 1488
A12: Hose Demand | B12: =IF(B9>=$D$4,(IF(B9<=$E$4,(Input_Outdoor!$J$48*B10),0)),0) -> 0 | C12: =IF(C9>=$D$4,(IF(C9<=$E$4,(Input_Outdoor!$J$48*C10),0)),0) -> 0 | D12: =IF(D9>=$D$4,(IF(D9<=$E$4,(Input_Outdoor!$J$48*D10),0)),0) -> 0 | E12: =IF(E9>=$D$4,(IF(E9<=$E$4,(Input_Outdoor!$J$48*E10),0)),0) -> 0 | F12: =IF(F9>=$D$4,(IF(F9<=$E$4,(Input_Outdoor!$J$48*F10),0)),0) -> 0 | G12: =IF(G9>=$D$4,(IF(G9<=$E$4,(Input_Outdoor!$J$48*G10),0)),0) -> 0 | H12: =IF(H9>=$D$4,(IF(H9<=$E$4,(Input_Outdoor!$J$48*H10),0)),0) -> 0 | I12: =IF(I9>=$D$4,(IF(I9<=$E$4,(Input_Outdoor!$J$48*I10),0)),0) -> 0 | J12: =IF(J9>=$D$4,(IF(J9<=$E$4,(Input_Outdoor!$J$48*J10),0)),0) -> 0 | K12: =IF(K9>=$D$4,(IF(K9<=$E$4,(Input_Outdoor!$J$48*K10),0)),0) -> 0 | L12: =IF(L9>=$D$4,(IF(L9<=$E$4,(Input_Outdoor!$J$48*L10),0)),0) -> 0 | M12: =IF(M9>=$D$4,(IF(M9<=$E$4,(Input_Outdoor!$J$48*M10),0)),0) -> 0
A13: Irrigation System (Basic) Demand | B13: =IF(B9>=$D$5,(IF(B9<=$E$5,(Input_Outdoor!$J$49*B10),0)),0) -> 0 | C13: =IF(C9>=$D$5,(IF(C9<=$E$5,(Input_Outdoor!$J$49*C10),0)),0) -> 0 | D13: =IF(D9>=$D$5,(IF(D9<=$E$5,(Input_Outdoor!$J$49*D10),0)),0) -> 0 | E13: =IF(E9>=$D$5,(IF(E9<=$E$5,(Input_Outdoor!$J$49*E10),0)),0) -> 0 | F13: =IF(F9>=$D$5,(IF(F9<=$E$5,(Input_Outdoor!$J$49*F10),0)),0) -> 0 | G13: =IF(G9>=$D$5,(IF(G9<=$E$5,(Input_Outdoor!$J$49*G10),0)),0) -> 0 | H13: =IF(H9>=$D$5,(IF(H9<=$E$5,(Input_Outdoor!$J$49*H10),0)),0) -> 0 | I13: =IF(I9>=$D$5,(IF(I9<=$E$5,(Input_Outdoor!$J$49*I10),0)),0) -> 0 | J13: =IF(J9>=$D$5,(IF(J9<=$E$5,(Input_Outdoor!$J$49*J10),0)),0) -> 0 | K13: =IF(K9>=$D$5,(IF(K9<=$E$5,(Input_Outdoor!$J$49*K10),0)),0) -> 0 | L13: =IF(L9>=$D$5,(IF(L9<=$E$5,(Input_Outdoor!$J$49*L10),0)),0) -> 0 | M13: =IF(M9>=$D$5,(IF(M9<=$E$5,(Input_Outdoor!$J$49*M10),0)),0) -> 0
A14: Irrigation System (Advanced) Demand | B14: =IF(B9>=$D$6,(IF(B9<=$E$6,(Input_Outdoor!$O$26*B10),0)),0) -> 0 | C14: =IF(C9>=$D$6,(IF(C9<=$E$6,(Input_Outdoor!$O$26*C10),0)),0) -> 0 | D14: =IF(D9>=$D$6,(IF(D9<=$E$6,(Input_Outdoor!$O$26*D10),0)),0) -> 0 | E14: =IF(E9>=$D$6,(IF(E9<=$E$6,(Input_Outdoor!$O$26*E10),0)),0) -> 0 | F14: =IF(F9>=$D$6,(IF(F9<=$E$6,(Input_Outdoor!$O$26*F10),0)),0) -> 0 | G14: =IF(G9>=$D$6,(IF(G9<=$E$6,(Input_Outdoor!$O$26*G10),0)),0) -> 0 | H14: =IF(H9>=$D$6,(IF(H9<=$E$6,(Input_Outdoor!$O$26*H10),0)),0) -> 0 | I14: =IF(I9>=$D$6,(IF(I9<=$E$6,(Input_Outdoor!$O$26*I10),0)),0) -> 0 | J14: =IF(J9>=$D$6,(IF(J9<=$E$6,(Input_Outdoor!$O$26*J10),0)),0) -> 0 | K14: =IF(K9>=$D$6,(IF(K9<=$E$6,(Input_Outdoor!$O$26*K10),0)),0) -> 0 | L14: =IF(L9>=$D$6,(IF(L9<=$E$6,(Input_Outdoor!$O$26*L10),0)),0) -> 0 | M14: =IF(M9>=$D$6,(IF(M9<=$E$6,(Input_Outdoor!$O$26*M10),0)),0) -> 0
A15: Hose & Basic Irr Demand | B15: =SUM(B12:B13) -> 0 | C15: =SUM(C12:C13) -> 0 | D15: 0 | E15: 0 | F15: 0 | G15: 0 | H15: 0 | I15: 0 | J15: 0 | K15: 0 | L15: 0 | M15: 0
A16: Total Outdoor Demand (basic & Adv) | B16: =SUM(B12:B14) -> 0 | C16: =SUM(C12:C14) -> 0 | D16: 0 | E16: 0 | F16: 0 | G16: 0 | H16: 0 | I16: 0 | J16: 0 | K16: 0 | L16: 0 | M16: 0
A17: Total Demand | B17: =SUM(B11,B16) -> 1488 | C17: =SUM(C11,C16) -> 1344 | D17: 1488 | E17: 1440 | F17: 1488 | G17: 1440 | H17: 1488 | I17: 1488 | J17: 1440 | K17: 1488 | L17: 1440 | M17: 1488
A18: Total Supply | B18: =SUM(TANK_Analysis!AO798:AO828) -> 1440 | C18: =SUM(TANK_Analysis!AO829:AO856) -> 1344 | D18: =SUM(TANK_Analysis!AO857:AO887) -> 1488 | E18: =SUM(TANK_Analysis!AO888:AO917) -> 1440 | F18: =SUM(TANK_Analysis!AO918:AO948) -> 1488 | G18: =SUM(TANK_Analysis!AO949:AO978) -> 1440 | H18: =SUM(TANK_Analysis!AO979:AO1009) -> 1488 | I18: =SUM(TANK_Analysis!AO1010:AO1040) -> 1488 | J18: =SUM(TANK_Analysis!AO1041:AO1070) -> 1440 | K18: =SUM(TANK_Analysis!AO1071:AO1101) -> 1488 | L18: =SUM(TANK_Analysis!AO1102:AO1131) -> 1440 | M18: =SUM(TANK_Analysis!AO1132:AO1162) -> 1488
A19: Top-up Required | B19: =IF((B17-B18)<0,0,(B17-B18)) -> 48 | C19: =IF((C17-C18)<0,0,(C17-C18)) -> 0 | D19: 0 | E19: 0 | F19: 0 | G19: 0 | H19: 0 | I19: 0 | J19: 0 | K19: 0 | L19: 0 | M19: 0
A23: Outdoor RW Demand (hose & bas. Irr) | B23: =MAX(B15:M15)/31 -> 0

Sheet Sheet3 (hidden)
A1: Overflow Analysis
H4: 24 hour analysis
B5: Rainfall [by volume] (mm) | C5: Rainfall [by rain events] (mm) | D5: Yield Following Pre-treatment and Roof Losses (L) | E5: Overflow? (1=yes) | H5: MIN YEAR - # rain events | I5: MIN YEAR - # Overflow Events | J5: MIN YEAR - Probability of Overflow | K5: MED YEAR - # rain events | L5: MED YEAR - # Overflow Events | M5: MED YEAR - Probability of Overflow | N5: MAX YEAR - # rain events | O5: MAX YEAR - # Overflow Events | P5: MAX YEAR - Probability of Overflow | R5: Min, formatted | S5: Med, formatted | T5: Max, formatted | W5: Find min value | X5: Find middle value | Y5: Find max value | Z5: MIN - REVISED | AA5: MED - REVISED | AB5: MAX - REVISED
A6: =TANK_Analysis!A68 -> MIN | B6: =TANK_Analysis!D68 -> 0 | C6: =TANK_Analysis!E68 -> 0 | D6: =TANK_Analysis!G68 -> 0 | E6: =TANK_Analysis!AR68 -> 0 | G6: 0.25-2.5 mm | H6: =COUNT(IF(B6:B370>0,IF(B6:B370<=2.5,B6:B370))) -> 32 | I6: =SUM(IF(B6:B370>0,IF(B6:B370<=2.5,E6:E370))) -> 0 | J6: =IF(H6=0,0,I6/H6) -> 0 | K6: =COUNT(IF(B736:B1100>0,IF(B736:B1100<=2.5,B736:B1100))) -> 42 | L6: =SUM(IF(B736:B1100>0,IF(B736:B1100<=2.5,E736:E1100))) -> 0 | M6: =IF(K6=0,0,L6/K6) -> 0 | N6: =COUNT(IF(B1466:B1830>0,IF(B1466:B1830<=2.5,B1466:B1830))) -> 45 | O6: =SUM(IF(B1466:B1830>0,IF(B1466:B1830<=2.5,E1466:E1830))) -> 6 | P6: =IF(N6=0,0,O6/N6) -> 0.1333333333 | R6: =IF(J6=0,0.01,J6) -> 0.01 | S6: =IF(M6=0,0.01,M6) -> 0.01 | T6: =IF(P6=0,0.01,P6) -> 0.1333333333 | W6: =MIN(J6,M6,P6) -> 0 | X6: =MEDIAN(J6,M6,P6) -> 0 | Y6: =MAX(J6,M6,P6) -> 0.1333333333 | Z6: =IF(J6=W6,W6,IF(J6=X6,X6-W6,IF(J6=Y6,Y6-X6))) -> 0 | AA6: =IF(M6=W6,W6,IF(M6=X6,X6-W6,IF(M6=Y6,Y6-X6))) -> 0 | AB6: =IF(P6=W6,W6,IF(P6=X6,X6-W6,IF(P6=Y6,Y6-X6))) -> 0.1333333333
A7: =TANK_Analysis!A69 -> 0 | B7: =TANK_Analysis!D69 -> 4.8 | C7: =TANK_Analysis!E69 -> 0 | D7: =TANK_Analysis!G69 -> 3387.83 | E7: =TANK_Analysis!AR69 -> 0 | G7: 2.5-5 mm | H7: =COUNT(IF(B6:B370>2.5,IF(B6:B370<=5,B6:B370))) -> 24 | I7: =SUM(IF(B6:B370>2.5,IF(B6:B370<=5,E6:E370))) -> 0 | J7: =IF(H7=0,0,I7/H7) -> 0 | K7: =COUNT(IF(B736:B1100>2.5,IF(B736:B1100<=5,B736:B1100))) -> 13 | L7: =SUM(IF(B736:B1100>2.5,IF(B736:B1100<=5,E736:E1100))) -> 0 | M7: =IF(K7=0,0,L7/K7) -> 0 | N7: =COUNT(IF(B1466:B1830>2.5,IF(B1466:B1830<=5,B1466:B1830))) -> 20 | O7: =SUM(IF(B1466:B1830>2.5,IF(B1466:B1830<=5,E1466:E1830))) -> 7 | P7: =IF(N7=0,0,O7/N7) -> 0.35 | R7: =IF(J7=0,0.01,J7) -> 0.01 | S7: =IF(M7=0,0.01,M7) -> 0.01 | T7: =IF(P7=0,0.01,P7) -> 0.35 | W7: =MIN(J7,M7,P7) -> 0 | X7: =MEDIAN(J7,M7,P7) -> 0 | Y7: =MAX(J7,M7,P7) -> 0.35 | Z7: =IF(J7=W7,W7,IF(J7=X7,X7-W7,IF(J7=Y7,Y7-X7))) -> 0 | AA7: =IF(M7=W7,W7,IF(M7=X7,X7-W7,IF(M7=Y7,Y7-X7))) -> 0 | AB7: =IF(P7=W7,W7,IF(P7=X7,X7-W7,IF(P7=Y7,Y7-X7))) -> 0.35
A8: =TANK_Analysis!A70 -> 0 | B8: =TANK_Analysis!D70 -> 0 | C8: =TANK_Analysis!E70 -> 0 | D8: =TANK_Analysis!G70 -> 0 | E8: =TANK_Analysis!AR70 -> 0 | G8: 5-10 mm | H8: =COUNT(IF(B6:B370>5,IF(B6:B370<=10,B6:B370))) -> 23 | I8: =SUM(IF(B6:B370>5,IF(B6:B370<=10,E6:E370))) -> 0 | J8: 0 | K8: =COUNT(IF(B736:B1100>5,IF(B736:B1100<=10,B736:B1100))) -> 24 | L8: =SUM(IF(B736:B1100>5,IF(B736:B1100<=10,E736:E1100))) -> 0 | M8: 0 | N8: =COUNT(IF(B1466:B1830>5,IF(B1466:B1830<=10,B1466:B1830))) -> 25 | O8: =SUM(IF(B1466:B1830>5,IF(B1466:B1830<=10,E1466:E1830))) -> 11 | P8: 0.44 | R8: 0.01 | S8: 0.01 | T8: 0.44 | W8: 0 | X8: 0 | Y8: 0.44 | Z8: 0 | AA8: 0 | AB8: 0.44
A9: =TANK_Analysis!A71 -> 0 | B9: =TANK_Analysis!D71 -> 0 | C9: =TANK_Analysis!E71 -> 0 | D9: =TANK_Analysis!G71 -> 0 | E9: =TANK_Analysis!AR71 -> 0 | G9: 10-15 mm | H9: =COUNT(IF(B6:B370>10,IF(B6:B370<=15,B6:B370))) -> 5 | I9: =SUM(IF(B6:B370>10,IF(B6:B370<=15,E6:E370))) -> 0 | J9: 0 | K9: =COUNT(IF(B736:B1100>10,IF(B736:B1100<=15,B736:B1100))) -> 7 | L9: =SUM(IF(B736:B1100>10,IF(B736:B1100<=15,E736:E1100))) -> 0 | M9: 0 | N9: =COUNT(IF(B1466:B1830>10,IF(B1466:B1830<=15,B1466:B1830))) -> 11 | O9: =SUM(IF(B1466:B1830>10,IF(B1466:B1830<=15,E1466:E1830))) -> 3 | P9: 0.2727272727 | R9: 0.01 | S9: 0.01 | T9: 0.2727272727 | W9: 0 | X9: 0 | Y9: 0.2727272727 | Z9: 0 | AA9: 0 | AB9: 0.2727272727
A10: =TANK_Analysis!A72 -> 0 | B10: =TANK_Analysis!D72 -> 0 | C10: =TANK_Analysis!E72 -> 0 | D10: =TANK_Analysis!G72 -> 0 | E10: =TANK_Analysis!AR72 -> 0 | G10: 15-25 mm | H10: =COUNT(IF(B6:B370>15,IF(B6:B370<=25,B6:B370))) -> 3 | I10: =SUM(IF(B6:B370>15,IF(B6:B370<=25,E6:E370))) -> 0 | J10: 0 | K10: =COUNT(IF(B736:B1100>15,IF(B736:B1100<=25,B736:B1100))) -> 11 | L10: =SUM(IF(B736:B1100>15,IF(B736:B1100<=25,E736:E1100))) -> 0 | M10: 0 | N10: =COUNT(IF(B1466:B1830>15,IF(B1466:B1830<=25,B1466:B1830))) -> 17 | O10: =SUM(IF(B1466:B1830>15,IF(B1466:B1830<=25,E1466:E1830))) -> 6 | P10: 0.3529411765 | R10: 0.01 | S10: 0.01 | T10: 0.3529411765 | W10: 0 | X10: 0 | Y10: 0.3529411765 | Z10: 0 | AA10: 0 | AB10: 0.3529411765
A11: =TANK_Analysis!A73 -> 0 | B11: =TANK_Analysis!D73 -> 0 | C11: =TANK_Analysis!E73 -> 0 | D11: =TANK_Analysis!G73 -> 0 | E11: =TANK_Analysis!AR73 -> 0 | G11: 25-50 mm | H11: =COUNT(IF(B6:B370>25,IF(B6:B370<=50,B6:B370))) -> 1 | I11: =SUM(IF(B6:B370>25,IF(B6:B370<=50,E6:E370))) -> 0 | J11: 0 | K11: =COUNT(IF(B736:B1100>25,IF(B736:B1100<=50,B736:B1100))) -> 4 | L11: =SUM(IF(B736:B1100>25,IF(B736:B1100<=50,E736:E1100))) -> 0 | M11: 0 | N11: =COUNT(IF(B1466:B1830>25,IF(B1466:B1830<=50,B1466:B1830))) -> 10 | O11: =SUM(IF(B1466:B1830>25,IF(B1466:B1830<=50,E1466:E1830))) -> 2 | P11: 0.2 | R11: 0.01 | S11: 0.01 | T11: 0.2 | W11: 0 | X11: 0 | Y11: 0.2 | Z11: 0 | AA11: 0 | AB11: 0.2
A12: =TANK_Analysis!A74 -> 0 | B12: =TANK_Analysis!D74 -> 0 | C12: =TANK_Analysis!E74 -> 0 | D12: =TANK_Analysis!G74 -> 0 | E12: =TANK_Analysis!AR74 -> 0 | G12: >50 mm | H12: =COUNT(IF(B6:B370>50,B6:B370)) -> 0 | I12: =SUM(IF(B6:B370>50,E6:E370)) -> 0 | J12: 0 | K12: =COUNT(IF(B736:B1100>50,B736:B1100)) -> 0 | L12: =SUM(IF(B736:B1100>50,E736:E1100)) -> 0 | M12: 0 | N12: =COUNT(IF(B1466:B1830>50,B1466:B1830)) -> 0 | O12: =SUM(IF(B1466:B1830>50,E1466:E1830)) -> 0 | P12: 0 | R12: 0.01 | S12: 0.01 | T12: 0.01 | W12: 0 | X12: 0 | Y12: 0 | Z12: 0 | AA12: 0 | AB12: 0
A13: =TANK_Analysis!A75 -> 0 | B13: =TANK_Analysis!D75 -> 0 | C13: =TANK_Analysis!E75 -> 0 | D13: =TANK_Analysis!G75 -> 0 | E13: =TANK_Analysis!AR75 -> 0
A14: =TANK_Analysis!A76 -> 0 | B14: =TANK_Analysis!D76 -> 0 | C14: =TANK_Analysis!E76 -> 0 | D14: =TANK_Analysis!G76 -> 0 | E14: =TANK_Analysis!AR76 -> 0 | G14: sum | H14: =SUM(H6:H12) -> 88 | I14: =SUM(I6:I12) -> 0
A15: =TANK_Analysis!A77 -> 0 | B15: =TANK_Analysis!D77 -> 0 | C15: =TANK_Analysis!E77 -> 0 | D15: =TANK_Analysis!G77 -> 0 | E15: =TANK_Analysis!AR77 -> 0 | G15: test | H15: =COUNT(IF(B6:B370>0,B6:B370)) -> 88 | I15: =SUM(E6:E370) -> 0
A16: =TANK_Analysis!A78 -> 0 | B16: =TANK_Analysis!D78 -> 0 | C16: =TANK_Analysis!E78 -> 0 | D16: =TANK_Analysis!G78 -> 0 | E16: =TANK_Analysis!AR78 -> 0
A17: =TANK_Analysis!A79 -> 0 | B17: =TANK_Analysis!D79 -> 10.6 | C17: =TANK_Analysis!E79 -> 0 | D17: =TANK_Analysis!G79 -> 1490.76 | E17: =TANK_Analysis!AR79 -> 0
A18: =TANK_Analysis!A80 -> 0 | B18: =TANK_Analysis!D80 -> 0.3 | C18: =TANK_Analysis!E80 -> 0 | D18: =TANK_Analysis!G80 -> 0 | E18: =TANK_Analysis!AR80 -> 0
A19: =TANK_Analysis!A81 -> 0 | B19: =TANK_Analysis!D81 -> 0 | C19: =TANK_Analysis!E81 -> 0 | D19: =TANK_Analysis!G81 -> 0 | E19: =TANK_Analysis!AR81 -> 0
A20: =TANK_Analysis!A82 -> 0 | B20: =TANK_Analysis!D82 -> 6.8 | C20: =TANK_Analysis!E82 -> 0 | D20: =TANK_Analysis!G82 -> 929.88 | E20: =TANK_Analysis!AR82 -> 0
A21: =TANK_Analysis!A83 -> 0 | B21: =TANK_Analysis!D83 -> 0 | C21: =TANK_Analysis!E83 -> 0 | D21: =TANK_Analysis!G83 -> 0 | E21: =TANK_Analysis!AR83 -> 0
A22: =TANK_Analysis!A84 -> 0 | B22: =TANK_Analysis!D84 -> 0 | C22: =TANK_Analysis!E84 -> 0 | D22: =TANK_Analysis!G84 -> 0 | E22: =TANK_Analysis!AR84 -> 0
A23: =TANK_Analysis!A85 -> 0 | B23: =TANK_Analysis!D85 -> 0 | C23: =TANK_Analysis!E85 -> 0 | D23: =TANK_Analysis!G85 -> 0 | E23: =TANK_Analysis!AR85 -> 0
A24: =TANK_Analysis!A86 -> 0 | B24: =TANK_Analysis!D86 -> 0 | C24: =TANK_Analysis!E86 -> 0 | D24: =TANK_Analysis!G86 -> 0 | E24: =TANK_Analysis!AR86 -> 0
A25: =TANK_Analysis!A87 -> 0 | B25: =TANK_Analysis!D87 -> 0 | C25: =TANK_Analysis!E87 -> 0 | D25: =TANK_Analysis!G87 -> 0 | E25: =TANK_Analysis!AR87 -> 0
A26: =TANK_Analysis!A88 -> 0 | B26: =TANK_Analysis!D88 -> 0 | C26: =TANK_Analysis!E88 -> 0 | D26: =TANK_Analysis!G88 -> 0 | E26: =TANK_Analysis!AR88 -> 0
A27: =TANK_Analysis!A89 -> 0 | B27: =TANK_Analysis!D89 -> 0 | C27: =TANK_Analysis!E89 -> 0 | D27: =TANK_Analysis!G89 -> 0 | E27: =TANK_Analysis!AR89 -> 0
A28: =TANK_Analysis!A90 -> 0 | B28: =TANK_Analysis!D90 -> 0 | C28: =TANK_Analysis!E90 -> 0 | D28: =TANK_Analysis!G90 -> 0 | E28: =TANK_Analysis!AR90 -> 0
A29: =TANK_Analysis!A91 -> 0 | B29: =TANK_Analysis!D91 -> 0 | C29: =TANK_Analysis!E91 -> 0 | D29: =TANK_Analysis!G91 -> 0 | E29: =TANK_Analysis!AR91 -> 0
A30: =TANK_Analysis!A92 -> 0 | B30: =TANK_Analysis!D92 -> 0 | C30: =TANK_Analysis!E92 -> 0 | D30: =TANK_Analysis!G92 -> 0 | E30: =TANK_Analysis!AR92 -> 0
A31: =TANK_Analysis!A93 -> 0 | B31: =TANK_Analysis!D93 -> 0 | C31: =TANK_Analysis!E93 -> 0 | D31: =TANK_Analysis!G93 -> 0 | E31: =TANK_Analysis!AR93 -> 0
A32: =TANK_Analysis!A94 -> 0 | B32: =TANK_Analysis!D94 -> 0 | C32: =TANK_Analysis!E94 -> 0 | D32: =TANK_Analysis!G94 -> 0 | E32: =TANK_Analysis!AR94 -> 0
A33: =TANK_Analysis!A95 -> 0 | B33: =TANK_Analysis!D95 -> 0 | C33: =TANK_Analysis!E95 -> 0 | D33: =TANK_Analysis!G95 -> 0 | E33: =TANK_Analysis!AR95 -> 0
A34: =TANK_Analysis!A96 -> 0 | B34: =TANK_Analysis!D96 -> 0 | C34: =TANK_Analysis!E96 -> 0 | D34: =TANK_Analysis!G96 -> 0 | E34: =TANK_Analysis!AR96 -> 0
A35: =TANK_Analysis!A97 -> 0 | B35: =TANK_Analysis!D97 -> 0 | C35: =TANK_Analysis!E97 -> 0 | D35: =TANK_Analysis!G97 -> 0 | E35: =TANK_Analysis!AR97 -> 0
A36: =TANK_Analysis!A98 -> 0 | B36: =TANK_Analysis!D98 -> 0 | C36: =TANK_Analysis!E98 -> 0 | D36: =TANK_Analysis!G98 -> 0 | E36: =TANK_Analysis!AR98 -> 0
A37: =TANK_Analysis!A99 -> 0 | B37: =TANK_Analysis!D99 -> 0 | C37: =TANK_Analysis!E99 -> 0 | D37: =TANK_Analysis!G99 -> 0 | E37: =TANK_Analysis!AR99 -> 0
A38: =TANK_Analysis!A100 -> 0 | B38: =TANK_Analysis!D100 -> 0 | C38: =TANK_Analysis!E100 -> 0 | D38: =TANK_Analysis!G100 -> 2753.15 | E38: =TANK_Analysis!AR100 -> 0
A39: =TANK_Analysis!A101 -> 0 | B39: =TANK_Analysis!D101 -> 0 | C39: =TANK_Analysis!E101 -> 0 | D39: =TANK_Analysis!G101 -> 0 | E39: =TANK_Analysis!AR101 -> 0
A40: =TANK_Analysis!A102 -> 0 | B40: =TANK_Analysis!D102 -> 0 | C40: =TANK_Analysis!E102 -> 0 | D40: =TANK_Analysis!G102 -> 0 | E40: =TANK_Analysis!AR102 -> 0
A41: =TANK_Analysis!A103 -> 0 | B41: =TANK_Analysis!D103 -> 7.2 | C41: =TANK_Analysis!E103 -> 0 | D41: =TANK_Analysis!G103 -> 988.92 | E41: =TANK_Analysis!AR103 -> 0
A42: =TANK_Analysis!A104 -> 0 | B42: =TANK_Analysis!D104 -> 3.7 | C42: =TANK_Analysis!E104 -> 0 | D42: =TANK_Analysis!G104 -> 472.32 | E42: =TANK_Analysis!AR104 -> 0
A43: =TANK_Analysis!A105 -> 0 | B43: =TANK_Analysis!D105 -> 0 | C43: =TANK_Analysis!E105 -> 0 | D43: =TANK_Analysis!G105 -> 0 | E43: =TANK_Analysis!AR105 -> 0
A44: =TANK_Analysis!A106 -> 0 | B44: =TANK_Analysis!D106 -> 0 | C44: =TANK_Analysis!E106 -> 0 | D44: =TANK_Analysis!G106 -> 0 | E44: =TANK_Analysis!AR106 -> 0
A45: =TANK_Analysis!A107 -> 0 | B45: =TANK_Analysis!D107 -> 5.2 | C45: =TANK_Analysis!E107 -> 0 | D45: =TANK_Analysis!G107 -> 693.72 | E45: =TANK_Analysis!AR107 -> 0
A46: =TANK_Analysis!A108 -> 0 | B46: =TANK_Analysis!D108 -> 5.5 | C46: =TANK_Analysis!E108 -> 0 | D46: =TANK_Analysis!G108 -> 738 | E46: =TANK_Analysis!AR108 -> 0
A47: =TANK_Analysis!A109 -> 0 | B47: =TANK_Analysis!D109 -> 0 | C47: =TANK_Analysis!E109 -> 0 | D47: =TANK_Analysis!G109 -> 0 | E47: =TANK_Analysis!AR109 -> 0
A48: =TANK_Analysis!A110 -> 0 | B48: =TANK_Analysis!D110 -> 0 | C48: =TANK_Analysis!E110 -> 0 | D48: =TANK_Analysis!G110 -> 0 | E48: =TANK_Analysis!AR110 -> 0
A49: =TANK_Analysis!A111 -> 0 | B49: =TANK_Analysis!D111 -> 0 | C49: =TANK_Analysis!E111 -> 0 | D49: =TANK_Analysis!G111 -> 0 | E49: =TANK_Analysis!AR111 -> 0
A50: =TANK_Analysis!A112 -> 0 | B50: =TANK_Analysis!D112 -> 0 | C50: =TANK_Analysis!E112 -> 0 | D50: =TANK_Analysis!G112 -> 0 | E50: =TANK_Analysis!AR112 -> 0
A51: =TANK_Analysis!A113 -> 0 | B51: =TANK_Analysis!D113 -> 0 | C51: =TANK_Analysis!E113 -> 0 | D51: =TANK_Analysis!G113 -> 0 | E51: =TANK_Analysis!AR113 -> 0
A52: =TANK_Analysis!A114 -> 0 | B52: =TANK_Analysis!D114 -> 0 | C52: =TANK_Analysis!E114 -> 0 | D52: =TANK_Analysis!G114 -> 0 | E52: =TANK_Analysis!AR114 -> 0
A53: =TANK_Analysis!A115 -> 0 | B53: =TANK_Analysis!D115 -> 0 | C53: =TANK_Analysis!E115 -> 0 | D53: =TANK_Analysis!G115 -> 0 | E53: =TANK_Analysis!AR115 -> 0
A54: =TANK_Analysis!A116 -> 0 | B54: =TANK_Analysis!D116 -> 0 | C54: =TANK_Analysis!E116 -> 0 | D54: =TANK_Analysis!G116 -> 0 | E54: =TANK_Analysis!AR116 -> 0
A55: =TANK_Analysis!A117 -> 0 | B55: =TANK_Analysis!D117 -> 0 | C55: =TANK_Analysis!E117 -> 0 | D55: =TANK_Analysis!G117 -> 0 | E55: =TANK_Analysis!AR117 -> 0
A56: =TANK_Analysis!A118 -> 0 | B56: =TANK_Analysis!D118 -> 0 | C56: =TANK_Analysis!E118 -> 0 | D56: =TANK_Analysis!G118 -> 0 | E56: =TANK_Analysis!AR118 -> 0
A57: =TANK_Analysis!A119 -> 0 | B57: =TANK_Analysis!D119 -> 0 | C57: =TANK_Analysis!E119 -> 0 | D57: =TANK_Analysis!G119 -> 0 | E57: =TANK_Analysis!AR119 -> 0
A58: =TANK_Analysis!A120 -> 0 | B58: =TANK_Analysis!D120 -> 0 | C58: =TANK_Analysis!E120 -> 0 | D58: =TANK_Analysis!G120 -> 0 | E58: =TANK_Analysis!AR120 -> 0
A59: =TANK_Analysis!A121 -> 0 | B59: =TANK_Analysis!D121 -> 0 | C59: =TANK_Analysis!E121 -> 0 | D59: =TANK_Analysis!G121 -> 0 | E59: =TANK_Analysis!AR121 -> 0
A60: =TANK_Analysis!A122 -> 0 | B60: =TANK_Analysis!D122 -> 0 | C60: =TANK_Analysis!E122 -> 0 | D60: =TANK_Analysis!G122 -> 0 | E60: =TANK_Analysis!AR122 -> 0
A61: =TANK_Analysis!A123 -> 0 | B61: =TANK_Analysis!D123 -> 0 | C61: =TANK_Analysis!E123 -> 0 | D61: =TANK_Analysis!G123 -> 0 | E61: =TANK_Analysis!AR123 -> 0
A62: =TANK_Analysis!A124 -> 0 | B62: =TANK_Analysis!D124 -> 0 | C62: =TANK_Analysis!E124 -> 0 | D62: =TANK_Analysis!G124 -> 0 | E62: =TANK_Analysis!AR124 -> 0
A63: =TANK_Analysis!A125 -> 0 | B63: =TANK_Analysis!D125 -> 0 | C63: =TANK_Analysis!E125 -> 0 | D63: =TANK_Analysis!G125 -> 0 | E63: =TANK_Analysis!AR125 -> 0
A64: =TANK_Analysis!A126 -> 0 | B64: =TANK_Analysis!D126 -> 0 | C64: =TANK_Analysis!E126 -> 0 | D64: =TANK_Analysis!G126 -> 0 | E64: =TANK_Analysis!AR126 -> 0
A65: =TANK_Analysis!A127 -> 0 | B65: =TANK_Analysis!D127 -> 0 | C65: =TANK_Analysis!E127 -> 0 | D65: =TANK_Analysis!G127 -> 0 | E65: =TANK_Analysis!AR127 -> 0
A66: =TANK_Analysis!A128 -> 0 | B66: =TANK_Analysis!D128 -> 0 | C66: =TANK_Analysis!E128 -> 0 | D66: =TANK_Analysis!G128 -> 2753.15 | E66: =TANK_Analysis!AR128 -> 0
A67: =TANK_Analysis!A129 -> 0 | B67: =TANK_Analysis!D129 -> 0 | C67: =TANK_Analysis!E129 -> 0 | D67: =TANK_Analysis!G129 -> 0 | E67: =TANK_Analysis!AR129 -> 0
A68: =TANK_Analysis!A130 -> 0 | B68: =TANK_Analysis!D130 -> 0 | C68: =TANK_Analysis!E130 -> 0 | D68: =TANK_Analysis!G130 -> 0 | E68: =TANK_Analysis!AR130 -> 0
A69: =TANK_Analysis!A131 -> 0 | B69: =TANK_Analysis!D131 -> 0 | C69: =TANK_Analysis!E131 -> 0 | D69: =TANK_Analysis!G131 -> 0 | E69: =TANK_Analysis!AR131 -> 0
A70: =TANK_Analysis!A132 -> 0 | B70: =TANK_Analysis!D132 -> 0 | C70: =TANK_Analysis!E132 -> 0 | D70: =TANK_Analysis!G132 -> 0 | E70: =TANK_Analysis!AR132 -> 0
A71: =TANK_Analysis!A133 -> 0 | B71: =TANK_Analysis!D133 -> 0 | C71: =TANK_Analysis!E133 -> 9.1 | D71: =TANK_Analysis!G133 -> 0 | E71: =TANK_Analysis!AR133 -> 0
A72: =TANK_Analysis!A134 -> 0 | B72: =TANK_Analysis!D134 -> 0 | C72: =TANK_Analysis!E134 -> 0 | D72: =TANK_Analysis!G134 -> 0 | E72: =TANK_Analysis!AR134 -> 0
A73: =TANK_Analysis!A135 -> 0 | B73: =TANK_Analysis!D135 -> 0 | C73: =TANK_Analysis!E135 -> 0 | D73: =TANK_Analysis!G135 -> 0 | E73: =TANK_Analysis!AR135 -> 0
A74: =TANK_Analysis!A136 -> 0 | B74: =TANK_Analysis!D136 -> 0 | C74: =TANK_Analysis!E136 -> 0 | D74: =TANK_Analysis!G136 -> 0 | E74: =TANK_Analysis!AR136 -> 0
A75: =TANK_Analysis!A137 -> 0 | B75: =TANK_Analysis!D137 -> 0 | C75: =TANK_Analysis!E137 -> 0 | D75: =TANK_Analysis!G137 -> 0 | E75: =TANK_Analysis!AR137 -> 0
A76: =TANK_Analysis!A138 -> 0 | B76: =TANK_Analysis!D138 -> 0 | C76: =TANK_Analysis!E138 -> 0 | D76: =TANK_Analysis!G138 -> 0 | E76: =TANK_Analysis!AR138 -> 0
A77: =TANK_Analysis!A139 -> 0 | B77: =TANK_Analysis!D139 -> 0 | C77: =TANK_Analysis!E139 -> 0 | D77: =TANK_Analysis!G139 -> 0 | E77: =TANK_Analysis!AR139 -> 0
A78: =TANK_Analysis!A140 -> 0 | B78: =TANK_Analysis!D140 -> 0 | C78: =TANK_Analysis!E140 -> 0 | D78: =TANK_Analysis!G140 -> 0 | E78: =TANK_Analysis!AR140 -> 0
A79: =TANK_Analysis!A141 -> 0 | B79: =TANK_Analysis!D141 -> 0 | C79: =TANK_Analysis!E141 -> 0 | D79: =TANK_Analysis!G141 -> 0 | E79: =TANK_Analysis!AR141 -> 0
A80: =TANK_Analysis!A142 -> 0 | B80: =TANK_Analysis!D142 -> 0 | C80: =TANK_Analysis!E142 -> 0 | D80: =TANK_Analysis!G142 -> 0 | E80: =TANK_Analysis!AR142 -> 0
A81: =TANK_Analysis!A143 -> 0 | B81: =TANK_Analysis!D143 -> 0 | C81: =TANK_Analysis!E143 -> 0 | D81: =TANK_Analysis!G143 -> 0 | E81: =TANK_Analysis!AR143 -> 0
A82: =TANK_Analysis!A144 -> 0 | B82: =TANK_Analysis!D144 -> 0 | C82: =TANK_Analysis!E144 -> 0 | D82: =TANK_Analysis!G144 -> 0 | E82: =TANK_Analysis!AR144 -> 0
A83: =TANK_Analysis!A145 -> 0 | B83: =TANK_Analysis!D145 -> 0 | C83: =TANK_Analysis!E145 -> 0 | D83: =TANK_Analysis!G145 -> 0 | E83: =TANK_Analysis!AR145 -> 0
A84: =TANK_Analysis!A146 -> 0 | B84: =TANK_Analysis!D146 -> 0 | C84: =TANK_Analysis!E146 -> 1.8 | D84: =TANK_Analysis!G146 -> 0 | E84: =TANK_Analysis!AR146 -> 0
A85: =TANK_Analysis!A147 -> 0 | B85: =TANK_Analysis!D147 -> 0 | C85: =TANK_Analysis!E147 -> 0 | D85: =TANK_Analysis!G147 -> 0 | E85: =TANK_Analysis!AR147 -> 0
A86: =TANK_Analysis!A148 -> 0 | B86: =TANK_Analysis!D148 -> 0 | C86: =TANK_Analysis!E148 -> 0 | D86: =TANK_Analysis!G148 -> 0 | E86: =TANK_Analysis!AR148 -> 0
A87: =TANK_Analysis!A149 -> 0 | B87: =TANK_Analysis!D149 -> 0 | C87: =TANK_Analysis!E149 -> 0 | D87: =TANK_Analysis!G149 -> 0 | E87: =TANK_Analysis!AR149 -> 0
A88: =TANK_Analysis!A150 -> 0 | B88: =TANK_Analysis!D150 -> 0 | C88: =TANK_Analysis!E150 -> 0 | D88: =TANK_Analysis!G150 -> 0 | E88: =TANK_Analysis!AR150 -> 0
A89: =TANK_Analysis!A151 -> 0 | B89: =TANK_Analysis!D151 -> 0 | C89: =TANK_Analysis!E151 -> 0 | D89: =TANK_Analysis!G151 -> 0 | E89: =TANK_Analysis!AR151 -> 0
A90: =TANK_Analysis!A152 -> 0 | B90: =TANK_Analysis!D152 -> 0 | C90: =TANK_Analysis!E152 -> 0 | D90: =TANK_Analysis!G152 -> 0 | E90: =TANK_Analysis!AR152 -> 0
A91: =TANK_Analysis!A153 -> 0 | B91: =TANK_Analysis!D153 -> 0 | C91: =TANK_Analysis!E153 -> 0 | D91: =TANK_Analysis!G153 -> 0 | E91: =TANK_Analysis!AR153 -> 0
A92: =TANK_Analysis!A154 -> 0 | B92: =TANK_Analysis!D154 -> 0 | C92: =TANK_Analysis!E154 -> 0 | D92: =TANK_Analysis!G154 -> 0 | E92: =TANK_Analysis!AR154 -> 0
A93: =TANK_Analysis!A155 -> 0 | B93: =TANK_Analysis!D155 -> 0 | C93: =TANK_Analysis!E155 -> 0 | D93: =TANK_Analysis!G155 -> 0 | E93: =TANK_Analysis!AR155 -> 0
A94: =TANK_Analysis!A156 -> 0 | B94: =TANK_Analysis!D156 -> 2.4 | C94: =TANK_Analysis!E156 -> 0 | D94: =TANK_Analysis!G156 -> 280.44 | E94: =TANK_Analysis!AR156 -> 0
A95: =TANK_Analysis!A157 -> 0 | B95: =TANK_Analysis!D157 -> 1.7 | C95: =TANK_Analysis!E157 -> 0 | D95: =TANK_Analysis!G157 -> 177.12 | E95: =TANK_Analysis!AR157 -> 0
A96: =TANK_Analysis!A158 -> 0 | B96: =TANK_Analysis!D158 -> 0 | C96: =TANK_Analysis!E158 -> 6.9 | D96: =TANK_Analysis!G158 -> 0 | E96: =TANK_Analysis!AR158 -> 0
A97: =TANK_Analysis!A159 -> 0 | B97: =TANK_Analysis!D159 -> 0 | C97: =TANK_Analysis!E159 -> 2 | D97: =TANK_Analysis!G159 -> 0 | E97: =TANK_Analysis!AR159 -> 0
A98: =TANK_Analysis!A160 -> 0 | B98: =TANK_Analysis!D160 -> 10 | C98: =TANK_Analysis!E160 -> 2 | D98: =TANK_Analysis!G160 -> 1402.2 | E98: =TANK_Analysis!AR160 -> 0
A99: =TANK_Analysis!A161 -> 0 | B99: =TANK_Analysis!D161 -> 0 | C99: =TANK_Analysis!E161 -> 0 | D99: =TANK_Analysis!G161 -> 0 | E99: =TANK_Analysis!AR161 -> 0
A100: =TANK_Analysis!A162 -> 0 | B100: =TANK_Analysis!D162 -> 0 | C100: =TANK_Analysis!E162 -> 0 | D100: =TANK_Analysis!G162 -> 0 | E100: =TANK_Analysis!AR162 -> 0
A101: =TANK_Analysis!A163 -> 0 | B101: =TANK_Analysis!D163 -> 0 | C101: =TANK_Analysis!E163 -> 0 | D101: =TANK_Analysis!G163 -> 0 | E101: =TANK_Analysis!AR163 -> 0
A102: =TANK_Analysis!A164 -> 0 | B102: =TANK_Analysis!D164 -> 0 | C102: =TANK_Analysis!E164 -> 0 | D102: =TANK_Analysis!G164 -> 0 | E102: =TANK_Analysis!AR164 -> 0
A103: =TANK_Analysis!A165 -> 0 | B103: =TANK_Analysis!D165 -> 0 | C103: =TANK_Analysis!E165 -> 0 | D103: =TANK_Analysis!G165 -> 0 | E103: =TANK_Analysis!AR165 -> 0
A104: =TANK_Analysis!A166 -> 0 | B104: =TANK_Analysis!D166 -> 0 | C104: =TANK_Analysis!E166 -> 0 | D104: =TANK_Analysis!G166 -> 0 | E104: =TANK_Analysis!AR166 -> 0
A105: =TANK_Analysis!A167 -> 0 | B105: =TANK_Analysis!D167 -> 0 | C105: =TANK_Analysis!E167 -> 0 | D105: =TANK_Analysis!G167 -> 0 | E105: =TANK_Analysis!AR167 -> 0
A106: =TANK_Analysis!A168 -> 0 | B106: =TANK_Analysis!D168 -> 0.5 | C106: =TANK_Analysis!E168 -> 0 | D106: =TANK_Analysis!G168 -> 0 | E106: =TANK_Analysis!AR168 -> 0
A107: =TANK_Analysis!A169 -> 0 | B107: =TANK_Analysis!D169 -> 0 | C107: =TANK_Analysis!E169 -> 0 | D107: =TANK_Analysis!G169 -> 0 | E107: =TANK_Analysis!AR169 -> 0
A108: =TANK_Analysis!A170 -> 0 | B108: =TANK_Analysis!D170 -> 0 | C108: =TANK_Analysis!E170 -> 0 | D108: =TANK_Analysis!G170 -> 0 | E108: =TANK_Analysis!AR170 -> 0
A109: =TANK_Analysis!A171 -> 0 | B109: =TANK_Analysis!D171 -> 5.5 | C109: =TANK_Analysis!E171 -> 0 | D109: =TANK_Analysis!G171 -> 738 | E109: =TANK_Analysis!AR171 -> 0
A110: =TANK_Analysis!A172 -> 0 | B110: =TANK_Analysis!D172 -> 4.5 | C110: =TANK_Analysis!E172 -> 0 | D110: =TANK_Analysis!G172 -> 590.4 | E110: =TANK_Analysis!AR172 -> 0
A111: =TANK_Analysis!A173 -> 0 | B111: =TANK_Analysis!D173 -> 14.9 | C111: =TANK_Analysis!E173 -> 0 | D111: =TANK_Analysis!G173 -> 2125.44 | E111: =TANK_Analysis!AR173 -> 0
A112: =TANK_Analysis!A174 -> 0 | B112: =TANK_Analysis!D174 -> 7.8 | C112: =TANK_Analysis!E174 -> 0 | D112: =TANK_Analysis!G174 -> 1077.48 | E112: =TANK_Analysis!AR174 -> 0
A113: =TANK_Analysis!A175 -> 0 | B113: =TANK_Analysis!D175 -> 0 | C113: =TANK_Analysis!E175 -> 0 | D113: =TANK_Analysis!G175 -> 0 | E113: =TANK_Analysis!AR175 -> 0
A114: =TANK_Analysis!A176 -> 0 | B114: =TANK_Analysis!D176 -> 0 | C114: =TANK_Analysis!E176 -> 0 | D114: =TANK_Analysis!G176 -> 0 | E114: =TANK_Analysis!AR176 -> 0
A115: =TANK_Analysis!A177 -> 0 | B115: =TANK_Analysis!D177 -> 0 | C115: =TANK_Analysis!E177 -> 4.4 | D115: =TANK_Analysis!G177 -> 0 | E115: =TANK_Analysis!AR177 -> 0
A116: =TANK_Analysis!A178 -> 0 | B116: =TANK_Analysis!D178 -> 2.2 | C116: =TANK_Analysis!E178 -> 0 | D116: =TANK_Analysis!G178 -> 250.92 | E116: =TANK_Analysis!AR178 -> 0
A117: =TANK_Analysis!A179 -> 0 | B117: =TANK_Analysis!D179 -> 0 | C117: =TANK_Analysis!E179 -> 6.9 | D117: =TANK_Analysis!G179 -> 0 | E117: =TANK_Analysis!AR179 -> 0
A118: =TANK_Analysis!A180 -> 0 | B118: =TANK_Analysis!D180 -> 0 | C118: =TANK_Analysis!E180 -> 15.8 | D118: =TANK_Analysis!G180 -> 0 | E118: =TANK_Analysis!AR180 -> 0
A119: =TANK_Analysis!A181 -> 0 | B119: =TANK_Analysis!D181 -> 2.4 | C119: =TANK_Analysis!E181 -> 2.9 | D119: =TANK_Analysis!G181 -> 280.44 | E119: =TANK_Analysis!AR181 -> 0
A120: =TANK_Analysis!A182 -> 0 | B120: =TANK_Analysis!D182 -> 3.5 | C120: =TANK_Analysis!E182 -> 2.4 | D120: =TANK_Analysis!G182 -> 442.8 | E120: =TANK_Analysis!AR182 -> 0
A121: =TANK_Analysis!A183 -> 0 | B121: =TANK_Analysis!D183 -> 1.5 | C121: =TANK_Analysis!E183 -> 6.5 | D121: =TANK_Analysis!G183 -> 147.6 | E121: =TANK_Analysis!AR183 -> 0
A122: =TANK_Analysis!A184 -> 0 | B122: =TANK_Analysis!D184 -> 0 | C122: =TANK_Analysis!E184 -> 0 | D122: =TANK_Analysis!G184 -> 0 | E122: =TANK_Analysis!AR184 -> 0
A123: =TANK_Analysis!A185 -> 0 | B123: =TANK_Analysis!D185 -> 0 | C123: =TANK_Analysis!E185 -> 1.3 | D123: =TANK_Analysis!G185 -> 0 | E123: =TANK_Analysis!AR185 -> 0
A124: =TANK_Analysis!A186 -> 0 | B124: =TANK_Analysis!D186 -> 0 | C124: =TANK_Analysis!E186 -> 1 | D124: =TANK_Analysis!G186 -> 0 | E124: =TANK_Analysis!AR186 -> 0
A125: =TANK_Analysis!A187 -> 0 | B125: =TANK_Analysis!D187 -> 4.9 | C125: =TANK_Analysis!E187 -> 2.6 | D125: =TANK_Analysis!G187 -> 649.44 | E125: =TANK_Analysis!AR187 -> 0
A126: =TANK_Analysis!A188 -> 0 | B126: =TANK_Analysis!D188 -> 0 | C126: =TANK_Analysis!E188 -> 3.2 | D126: =TANK_Analysis!G188 -> 0 | E126: =TANK_Analysis!AR188 -> 0
A127: =TANK_Analysis!A189 -> 0 | B127: =TANK_Analysis!D189 -> 0 | C127: =TANK_Analysis!E189 -> 0 | D127: =TANK_Analysis!G189 -> 0 | E127: =TANK_Analysis!AR189 -> 0
A128: =TANK_Analysis!A190 -> 0 | B128: =TANK_Analysis!D190 -> 0 | C128: =TANK_Analysis!E190 -> 3.1 | D128: =TANK_Analysis!G190 -> 0 | E128: =TANK_Analysis!AR190 -> 0
A129: =TANK_Analysis!A191 -> 0 | B129: =TANK_Analysis!D191 -> 0 | C129: =TANK_Analysis!E191 -> 0 | D129: =TANK_Analysis!G191 -> 0 | E129: =TANK_Analysis!AR191 -> 0
A130: =TANK_Analysis!A192 -> 0 | B130: =TANK_Analysis!D192 -> 0 | C130: =TANK_Analysis!E192 -> 0 | D130: =TANK_Analysis!G192 -> 0 | E130: =TANK_Analysis!AR192 -> 0
A131: =TANK_Analysis!A193 -> 0 | B131: =TANK_Analysis!D193 -> 1.8 | C131: =TANK_Analysis!E193 -> 0 | D131: =TANK_Analysis!G193 -> 191.88 | E131: =TANK_Analysis!AR193 -> 0
A132: =TANK_Analysis!A194 -> 0 | B132: =TANK_Analysis!D194 -> 22.3 | C132: =TANK_Analysis!E194 -> 0 | D132: =TANK_Analysis!G194 -> 3217.68 | E132: =TANK_Analysis!AR194 -> 0
A133: =TANK_Analysis!A195 -> 0 | B133: =TANK_Analysis!D195 -> 13.5 | C133: =TANK_Analysis!E195 -> 0 | D133: =TANK_Analysis!G195 -> 1918.8 | E133: =TANK_Analysis!AR195 -> 0
A134: =TANK_Analysis!A196 -> 0 | B134: =TANK_Analysis!D196 -> 9.6 | C134: =TANK_Analysis!E196 -> 0 | D134: =TANK_Analysis!G196 -> 1343.16 | E134: =TANK_Analysis!AR196 -> 0
A135: =TANK_Analysis!A197 -> 0 | B135: =TANK_Analysis!D197 -> 3 | C135: =TANK_Analysis!E197 -> 0 | D135: =TANK_Analysis!G197 -> 369 | E135: =TANK_Analysis!AR197 -> 0
A136: =TANK_Analysis!A198 -> 0 | B136: =TANK_Analysis!D198 -> 1 | C136: =TANK_Analysis!E198 -> 0 | D136: =TANK_Analysis!G198 -> 73.8 | E136: =TANK_Analysis!AR198 -> 0
A137: =TANK_Analysis!A199 -> 0 | B137: =TANK_Analysis!D199 -> 6.9 | C137: =TANK_Analysis!E199 -> 0 | D137: =TANK_Analysis!G199 -> 944.64 | E137: =TANK_Analysis!AR199 -> 0
A138: =TANK_Analysis!A200 -> 0 | B138: =TANK_Analysis!D200 -> 0.5 | C138: =TANK_Analysis!E200 -> 4.2 | D138: =TANK_Analysis!G200 -> 0 | E138: =TANK_Analysis!AR200 -> 0
A139: =TANK_Analysis!A201 -> 0 | B139: =TANK_Analysis!D201 -> 0 | C139: =TANK_Analysis!E201 -> 3.5 | D139: =TANK_Analysis!G201 -> 0 | E139: =TANK_Analysis!AR201 -> 0
A140: =TANK_Analysis!A202 -> 0 | B140: =TANK_Analysis!D202 -> 1.3 | C140: =TANK_Analysis!E202 -> 0 | D140: =TANK_Analysis!G202 -> 118.08 | E140: =TANK_Analysis!AR202 -> 0
A141: =TANK_Analysis!A203 -> 0 | B141: =TANK_Analysis!D203 -> 0 | C141: =TANK_Analysis!E203 -> 0 | D141: =TANK_Analysis!G203 -> 0 | E141: =TANK_Analysis!AR203 -> 0
A142: =TANK_Analysis!A204 -> 0 | B142: =TANK_Analysis!D204 -> 6 | C142: =TANK_Analysis!E204 -> 0 | D142: =TANK_Analysis!G204 -> 811.8 | E142: =TANK_Analysis!AR204 -> 0
A143: =TANK_Analysis!A205 -> 0 | B143: =TANK_Analysis!D205 -> 0 | C143: =TANK_Analysis!E205 -> 0 | D143: =TANK_Analysis!G205 -> 0 | E143: =TANK_Analysis!AR205 -> 0
A144: =TANK_Analysis!A206 -> 0 | B144: =TANK_Analysis!D206 -> 5.8 | C144: =TANK_Analysis!E206 -> 0 | D144: =TANK_Analysis!G206 -> 782.28 | E144: =TANK_Analysis!AR206 -> 0
A145: =TANK_Analysis!A207 -> 0 | B145: =TANK_Analysis!D207 -> 8.1 | C145: =TANK_Analysis!E207 -> 0 | D145: =TANK_Analysis!G207 -> 1121.76 | E145: =TANK_Analysis!AR207 -> 0
A146: =TANK_Analysis!A208 -> 0 | B146: =TANK_Analysis!D208 -> 0 | C146: =TANK_Analysis!E208 -> 0 | D146: =TANK_Analysis!G208 -> 0 | E146: =TANK_Analysis!AR208 -> 0
A147: =TANK_Analysis!A209 -> 0 | B147: =TANK_Analysis!D209 -> 3.7 | C147: =TANK_Analysis!E209 -> 0 | D147: =TANK_Analysis!G209 -> 472.32 | E147: =TANK_Analysis!AR209 -> 0
A148: =TANK_Analysis!A210 -> 0 | B148: =TANK_Analysis!D210 -> 0.5 | C148: =TANK_Analysis!E210 -> 0 | D148: =TANK_Analysis!G210 -> 0 | E148: =TANK_Analysis!AR210 -> 0
A149: =TANK_Analysis!A211 -> 0 | B149: =TANK_Analysis!D211 -> 0 | C149: =TANK_Analysis!E211 -> 0 | D149: =TANK_Analysis!G211 -> 0 | E149: =TANK_Analysis!AR211 -> 0
A150: =TANK_Analysis!A212 -> 0 | B150: =TANK_Analysis!D212 -> 0 | C150: =TANK_Analysis!E212 -> 0 | D150: =TANK_Analysis!G212 -> 0 | E150: =TANK_Analysis!AR212 -> 0
A151: =TANK_Analysis!A213 -> 0 | B151: =TANK_Analysis!D213 -> 0 | C151: =TANK_Analysis!E213 -> 0 | D151: =TANK_Analysis!G213 -> 0 | E151: =TANK_Analysis!AR213 -> 0
A152: =TANK_Analysis!A214 -> 0 | B152: =TANK_Analysis!D214 -> 0 | C152: =TANK_Analysis!E214 -> 0 | D152: =TANK_Analysis!G214 -> 0 | E152: =TANK_Analysis!AR214 -> 0
A153: =TANK_Analysis!A215 -> 0 | B153: =TANK_Analysis!D215 -> 0.8 | C153: =TANK_Analysis!E215 -> 0 | D153: =TANK_Analysis!G215 -> 44.28 | E153: =TANK_Analysis!AR215 -> 0
A154: =TANK_Analysis!A216 -> 0 | B154: =TANK_Analysis!D216 -> 0 | C154: =TANK_Analysis!E216 -> 19.3 | D154: =TANK_Analysis!G216 -> 0 | E154: =TANK_Analysis!AR216 -> 0
A155: =TANK_Analysis!A217 -> 0 | B155: =TANK_Analysis!D217 -> 10.9 | C155: =TANK_Analysis!E217 -> 6 | D155: =TANK_Analysis!G217 -> 1535.04 | E155: =TANK_Analysis!AR217 -> 0
A156: =TANK_Analysis!A218 -> 0 | B156: =TANK_Analysis!D218 -> 2.7 | C156: =TANK_Analysis!E218 -> 0 | D156: =TANK_Analysis!G218 -> 324.72 | E156: =TANK_Analysis!AR218 -> 0
A157: =TANK_Analysis!A219 -> 0 | B157: =TANK_Analysis!D219 -> 0 | C157: =TANK_Analysis!E219 -> 0 | D157: =TANK_Analysis!G219 -> 0 | E157: =TANK_Analysis!AR219 -> 0
A158: =TANK_Analysis!A220 -> 0 | B158: =TANK_Analysis!D220 -> 0 | C158: =TANK_Analysis!E220 -> 0 | D158: =TANK_Analysis!G220 -> 0 | E158: =TANK_Analysis!AR220 -> 0
A159: =TANK_Analysis!A221 -> 0 | B159: =TANK_Analysis!D221 -> 0 | C159: =TANK_Analysis!E221 -> 0 | D159: =TANK_Analysis!G221 -> 0 | E159: =TANK_Analysis!AR221 -> 0
A160: =TANK_Analysis!A222 -> 0 | B160: =TANK_Analysis!D222 -> 4.9 | C160: =TANK_Analysis!E222 -> 0 | D160: =TANK_Analysis!G222 -> 649.44 | E160: =TANK_Analysis!AR222 -> 0
A161: =TANK_Analysis!A223 -> 0 | B161: =TANK_Analysis!D223 -> 0.4 | C161: =TANK_Analysis!E223 -> 0 | D161: =TANK_Analysis!G223 -> 0 | E161: =TANK_Analysis!AR223 -> 0
A162: =TANK_Analysis!A224 -> 0 | B162: =TANK_Analysis!D224 -> 0 | C162: =TANK_Analysis!E224 -> 0 | D162: =TANK_Analysis!G224 -> 0 | E162: =TANK_Analysis!AR224 -> 0
A163: =TANK_Analysis!A225 -> 0 | B163: =TANK_Analysis!D225 -> 0 | C163: =TANK_Analysis!E225 -> 0 | D163: =TANK_Analysis!G225 -> 0 | E163: =TANK_Analysis!AR225 -> 0
A164: =TANK_Analysis!A226 -> 0 | B164: =TANK_Analysis!D226 -> 0 | C164: =TANK_Analysis!E226 -> 0 | D164: =TANK_Analysis!G226 -> 0 | E164: =TANK_Analysis!AR226 -> 0
A165: =TANK_Analysis!A227 -> 0 | B165: =TANK_Analysis!D227 -> 0 | C165: =TANK_Analysis!E227 -> 2.7 | D165: =TANK_Analysis!G227 -> 0 | E165: =TANK_Analysis!AR227 -> 0
A166: =TANK_Analysis!A228 -> 0 | B166: =TANK_Analysis!D228 -> 0 | C166: =TANK_Analysis!E228 -> 0 | D166: =TANK_Analysis!G228 -> 0 | E166: =TANK_Analysis!AR228 -> 0
A167: =TANK_Analysis!A229 -> 0 | B167: =TANK_Analysis!D229 -> 4.4 | C167: =TANK_Analysis!E229 -> 0 | D167: =TANK_Analysis!G229 -> 575.64 | E167: =TANK_Analysis!AR229 -> 0
A168: =TANK_Analysis!A230 -> 0 | B168: =TANK_Analysis!D230 -> 0.6 | C168: =TANK_Analysis!E230 -> 0 | D168: =TANK_Analysis!G230 -> 14.76 | E168: =TANK_Analysis!AR230 -> 0
A169: =TANK_Analysis!A231 -> 0 | B169: =TANK_Analysis!D231 -> 9.8 | C169: =TANK_Analysis!E231 -> 5 | D169: =TANK_Analysis!G231 -> 1372.68 | E169: =TANK_Analysis!AR231 -> 0
A170: =TANK_Analysis!A232 -> 0 | B170: =TANK_Analysis!D232 -> 24.5 | C170: =TANK_Analysis!E232 -> 11.9 | D170: =TANK_Analysis!G232 -> 3542.4 | E170: =TANK_Analysis!AR232 -> 0
A171: =TANK_Analysis!A233 -> 0 | B171: =TANK_Analysis!D233 -> 7.8 | C171: =TANK_Analysis!E233 -> 7.4 | D171: =TANK_Analysis!G233 -> 1077.48 | E171: =TANK_Analysis!AR233 -> 0
A172: =TANK_Analysis!A234 -> 0 | B172: =TANK_Analysis!D234 -> 0 | C172: =TANK_Analysis!E234 -> 4.8 | D172: =TANK_Analysis!G234 -> 0 | E172: =TANK_Analysis!AR234 -> 0
A173: =TANK_Analysis!A235 -> 0 | B173: =TANK_Analysis!D235 -> 4.4 | C173: =TANK_Analysis!E235 -> 2.2 | D173: =TANK_Analysis!G235 -> 575.64 | E173: =TANK_Analysis!AR235 -> 0
A174: =TANK_Analysis!A236 -> 0 | B174: =TANK_Analysis!D236 -> 0 | C174: =TANK_Analysis!E236 -> 0 | D174: =TANK_Analysis!G236 -> 0 | E174: =TANK_Analysis!AR236 -> 0
A175: =TANK_Analysis!A237 -> 0 | B175: =TANK_Analysis!D237 -> 4.9 | C175: =TANK_Analysis!E237 -> 0 | D175: =TANK_Analysis!G237 -> 649.44 | E175: =TANK_Analysis!AR237 -> 0
A176: =TANK_Analysis!A238 -> 0 | B176: =TANK_Analysis!D238 -> 0 | C176: =TANK_Analysis!E238 -> 0 | D176: =TANK_Analysis!G238 -> 0 | E176: =TANK_Analysis!AR238 -> 0
A177: =TANK_Analysis!A239 -> 0 | B177: =TANK_Analysis!D239 -> 0 | C177: =TANK_Analysis!E239 -> 0 | D177: =TANK_Analysis!G239 -> 0 | E177: =TANK_Analysis!AR239 -> 0
A178: =TANK_Analysis!A240 -> 0 | B178: =TANK_Analysis!D240 -> 0 | C178: =TANK_Analysis!E240 -> 0 | D178: =TANK_Analysis!G240 -> 0 | E178: =TANK_Analysis!AR240 -> 0
A179: =TANK_Analysis!A241 -> 0 | B179: =TANK_Analysis!D241 -> 2.1 | C179: =TANK_Analysis!E241 -> 0 | D179: =TANK_Analysis!G241 -> 236.16 | E179: =TANK_Analysis!AR241 -> 0
A180: =TANK_Analysis!A242 -> 0 | B180: =TANK_Analysis!D242 -> 0 | C180: =TANK_Analysis!E242 -> 0 | D180: =TANK_Analysis!G242 -> 0 | E180: =TANK_Analysis!AR242 -> 0
A181: =TANK_Analysis!A243 -> 0 | B181: =TANK_Analysis!D243 -> 0 | C181: =TANK_Analysis!E243 -> 5 | D181: =TANK_Analysis!G243 -> 0 | E181: =TANK_Analysis!AR243 -> 0
A182: =TANK_Analysis!A244 -> 0 | B182: =TANK_Analysis!D244 -> 0 | C182: =TANK_Analysis!E244 -> 0 | D182: =TANK_Analysis!G244 -> 0 | E182: =TANK_Analysis!AR244 -> 0
A183: =TANK_Analysis!A245 -> 0 | B183: =TANK_Analysis!D245 -> 0 | C183: =TANK_Analysis!E245 -> 0 | D183: =TANK_Analysis!G245 -> 0 | E183: =TANK_Analysis!AR245 -> 0
A184: =TANK_Analysis!A246 -> 0 | B184: =TANK_Analysis!D246 -> 4.9 | C184: =TANK_Analysis!E246 -> 1.7 | D184: =TANK_Analysis!G246 -> 649.44 | E184: =TANK_Analysis!AR246 -> 0
A185: =TANK_Analysis!A247 -> 0 | B185: =TANK_Analysis!D247 -> 0 | C185: =TANK_Analysis!E247 -> 0 | D185: =TANK_Analysis!G247 -> 0 | E185: =TANK_Analysis!AR247 -> 0
A186: =TANK_Analysis!A248 -> 0 | B186: =TANK_Analysis!D248 -> 0 | C186: =TANK_Analysis!E248 -> 0 | D186: =TANK_Analysis!G248 -> 0 | E186: =TANK_Analysis!AR248 -> 0
A187: =TANK_Analysis!A249 -> 0 | B187: =TANK_Analysis!D249 -> 0 | C187: =TANK_Analysis!E249 -> 0 | D187: =TANK_Analysis!G249 -> 0 | E187: =TANK_Analysis!AR249 -> 0
A188: =TANK_Analysis!A250 -> 0 | B188: =TANK_Analysis!D250 -> 0 | C188: =TANK_Analysis!E250 -> 0 | D188: =TANK_Analysis!G250 -> 0 | E188: =TANK_Analysis!AR250 -> 0
A189: =TANK_Analysis!A251 -> 0 | B189: =TANK_Analysis!D251 -> 0 | C189: =TANK_Analysis!E251 -> 0 | D189: =TANK_Analysis!G251 -> 0 | E189: =TANK_Analysis!AR251 -> 0
A190: =TANK_Analysis!A252 -> 0 | B190: =TANK_Analysis!D252 -> 0 | C190: =TANK_Analysis!E252 -> 0 | D190: =TANK_Analysis!G252 -> 0 | E190: =TANK_Analysis!AR252 -> 0
A191: =TANK_Analysis!A253 -> 0 | B191: =TANK_Analysis!D253 -> 0 | C191: =TANK_Analysis!E253 -> 5.5 | D191: =TANK_Analysis!G253 -> 0 | E191: =TANK_Analysis!AR253 -> 0
A192: =TANK_Analysis!A254 -> 0 | B192: =TANK_Analysis!D254 -> 0 | C192: =TANK_Analysis!E254 -> 0 | D192: =TANK_Analysis!G254 -> 0 | E192: =TANK_Analysis!AR254 -> 0
A193: =TANK_Analysis!A255 -> 0 | B193: =TANK_Analysis!D255 -> 0 | C193: =TANK_Analysis!E255 -> 0 | D193: =TANK_Analysis!G255 -> 0 | E193: =TANK_Analysis!AR255 -> 0
A194: =TANK_Analysis!A256 -> 0 | B194: =TANK_Analysis!D256 -> 0 | C194: =TANK_Analysis!E256 -> 0 | D194: =TANK_Analysis!G256 -> 0 | E194: =TANK_Analysis!AR256 -> 0
A195: =TANK_Analysis!A257 -> 0 | B195: =TANK_Analysis!D257 -> 0 | C195: =TANK_Analysis!E257 -> 0 | D195: =TANK_Analysis!G257 -> 0 | E195: =TANK_Analysis!AR257 -> 0
A196: =TANK_Analysis!A258 -> 0 | B196: =TANK_Analysis!D258 -> 4.3 | C196: =TANK_Analysis!E258 -> 0 | D196: =TANK_Analysis!G258 -> 560.88 | E196: =TANK_Analysis!AR258 -> 0
A197: =TANK_Analysis!A259 -> 0 | B197: =TANK_Analysis!D259 -> 0 | C197: =TANK_Analysis!E259 -> 0 | D197: =TANK_Analysis!G259 -> 0 | E197: =TANK_Analysis!AR259 -> 0
A198: =TANK_Analysis!A260 -> 0 | B198: =TANK_Analysis!D260 -> 2.2 | C198: =TANK_Analysis!E260 -> 0 | D198: =TANK_Analysis!G260 -> 250.92 | E198: =TANK_Analysis!AR260 -> 0
A199: =TANK_Analysis!A261 -> 0 | B199: =TANK_Analysis!D261 -> 3 | C199: =TANK_Analysis!E261 -> 0 | D199: =TANK_Analysis!G261 -> 369 | E199: =TANK_Analysis!AR261 -> 0
A200: =TANK_Analysis!A262 -> 0 | B200: =TANK_Analysis!D262 -> 0 | C200: =TANK_Analysis!E262 -> 13.4 | D200: =TANK_Analysis!G262 -> 0 | E200: =TANK_Analysis!AR262 -> 0
A201: =TANK_Analysis!A263 -> 0 | B201: =TANK_Analysis!D263 -> 0 | C201: =TANK_Analysis!E263 -> 0 | D201: =TANK_Analysis!G263 -> 0 | E201: =TANK_Analysis!AR263 -> 0
A202: =TANK_Analysis!A264 -> 0 | B202: =TANK_Analysis!D264 -> 0 | C202: =TANK_Analysis!E264 -> 20.3 | D202: =TANK_Analysis!G264 -> 0 | E202: =TANK_Analysis!AR264 -> 0
... 1628 more rows

Sheet TANK_Analysis (hidden)
F1: MAX Cistern Volume (L) | G1: =$B$14 -> 110000 | H1: MIN CISTERN VOLUME (L) | I1: =$B$23 -> 16500 | J1: RETENTION VOLUME (USABLE VOLUME) (L): | K1: 0 | P1: MAX Cistern Volume (L) | Q1: =$B$15 -> 115000 | R1: MIN CISTERN VOLUME (L) | S1: =$B$24 -> 17250 | T1: RETENTION VOLUME (USABLE VOLUME) (L): | U1: 0 | Z1: MAX Cistern Volume (L) | AA1: =$B$16 -> 120000 | AB1: MIN CISTERN VOLUME (L) | AC1: =$B$25 -> 18000 | AD1: RETENTION VOLUME (USABLE VOLUME) (L): | AE1: 0 | AJ1: MAX Cistern Volume (L) | AK1: =$B$17 -> 125000 | AL1: MIN CISTERN VOLUME (L) | AM1: =$B$26 -> 18750 | AN1: RETENTION VOLUME (USABLE VOLUME) (L): | AO1: 0 | AT1: MAX Cistern Volume (L) | AU1: =$B$18 -> 130000 | AV1: MIN CISTERN VOLUME (L) | AW1: =$B$27 -> 19500 | AX1: RETENTION VOLUME (USABLE VOLUME) (L): | AY1: 0 | BD1: MAX Cistern Volume (L) | BE1: =$B$19 -> 135000 | BF1: MIN CISTERN VOLUME (L) | BG1: =$B$28 -> 20250 | BH1: RETENTION VOLUME (USABLE VOLUME) (L): | BI1: 0 | BN1: MAX Cistern Volume (L) | BO1: =$B$20 -> 140000 | BP1: MIN CISTERN VOLUME (L) | BQ1: =$B$29 -> 21000 | BR1: RETENTION VOLUME (USABLE VOLUME) (L): | BS1: 0 | BX1: MAX Cistern Volume (L) | BY1: =$B$21 -> 145000 | BZ1: MIN CISTERN VOLUME (L) | CA1: =$B$30 -> 21750 | CB1: RETENTION VOLUME (USABLE VOLUME) (L): | CC1: 0
C2: Year | D2: Rainfall (mm) | E2: Rainfall + Snowfall (mm) | F2: Projected Annual Rainwater Use (m^3) | G2: Projected Annual Rainwater Use Including Snowfall (m^3) | H2: Projected Overflow (m^3) | I2: Projected Overflow Including Snowfall (m^3) | J2: Demand Met by RWH (Annual Use/Annual Demand) (%) | K2: Demand Met by RWH (Annual Use Incl. Snow/Annual Demand) (%) | L2: Percent of RW used (Use/Overflow+Use) | M2: Percent of RW used (Use/Overflow+Use) | P2: Projected Annual Rainwater Use (m^3) | Q2: Projected Annual Rainwater Use Including Snowfall (m^3) | R2: Projected Overflow (m^3) | S2: Projected Overflow Including Snowfall (m^3) | T2: Demand Met by RWH (Annual Use/Annual Demand) (%) | U2: Demand Met by RWH (Annual Use Incl. Snow/Annual Demand) (%) | V2: Percent of RW used (Use/Overflow+Use) | W2: Percent of RW used (Use/Overflow+Use) | Z2: Projected Annual Rainwater Use (m^3) | AA2: Projected Annual Rainwater Use Including Snowfall (m^3) | AB2: Projected Overflow (m^3) | AC2: Projected Overflow Including Snowfall (m^3) | AD2: Demand Met by RWH (Annual Use/Annual Demand) (%) | AE2: Demand Met by RWH (Annual Use Incl. Snow/Annual Demand) (%) | AF2: Percent of RW used (Use/Overflow+Use) | AG2: Percent of RW used (Use/Overflow+Use) | AJ2: Projected Annual Rainwater Use (m^3) | AK2: Projected Annual Rainwater Use Including Snowfall (m^3) | AL2: Projected Overflow (m^3) | AM2: Projected Overflow Including Snowfall (m^3) | AN2: Demand Met by RWH (Annual Use/Annual Demand) (%) | AO2: Demand Met by RWH (Annual Use Incl. Snow/Annual Demand) (%) | AP2: Percent of RW used (Use/Overflow+Use) | AQ2: Percent of RW used (Use/Overflow+Use) | AT2: Projected Annual Rainwater Use (m^3) | AU2: Projected Annual Rainwater Use Including Snowfall (m^3) | AV2: Projected Overflow (m^3) | AW2: Projected Overflow Including Snowfall (m^3) | AX2: Demand Met by RWH (Annual Use/Annual Demand) (%) | AY2: Demand Met by RWH (Annual Use Incl. Snow/Annual Demand) (%) | AZ2: Percent of RW used (Use/Overflow+Use) | BA2: Percent of RW used (Use/Overflow+Use) | BD2: Projected Annual Rainwater Use (m^3) | BE2: Projected Annual Rainwater Use Including Snowfall (m^3) | BF2: Projected Overflow (m^3) | BG2: Projected Overflow Including Snowfall (m^3) | BH2: Demand Met by RWH (Annual Use/Annual Demand) (%) | BI2: Demand Met by RWH (Annual Use Incl. Snow/Annual Demand) (%) | BJ2: Percent of RW used (Use/Overflow+Use) | BK2: Percent of RW used (Use/Overflow+Use) | BN2: Projected Annual Rainwater Use (m^3) | BO2: Projected Annual Rainwater Use Including Snowfall (m^3) | BP2: Projected Overflow (m^3) | BQ2: Projected Overflow Including Snowfall (m^3) | BR2: Demand Met by RWH (Annual Use/Annual Demand) (%) | BS2: Demand Met by RWH (Annual Use Incl. Snow/Annual Demand) (%) | BT2: Percent of RW used (Use/Overflow+Use) | BU2: Percent of RW used (Use/Overflow+Use) | BX2: Projected Annual Rainwater Use (m^3) | BY2: Projected Annual Rainwater Use Including Snowfall (m^3) | BZ2: Projected Overflow (m^3) | CA2: Projected Overflow Including Snowfall (m^3) | CB2: Demand Met by RWH (Annual Use/Annual Demand) (%) | CC2: Demand Met by RWH (Annual Use Incl. Snow/Annual Demand) (%) | CD2: Percent of RW used (Use/Overflow+Use) | CE2: Percent of RW used (Use/Overflow+Use)
A3: City | B3: St. Catherines | C3: 1950 | D3: 634.7 | E3: 737.2 | F3: =IF($D3<$E$1896,$D3*(I$1895/$E$1895),IF($D3<$E$1897,$D3*(I$1896/$E$1896),IF($D3<$E$1898,$D3*(I$1897/$E$1897),IF($D3<$E$1899,$D3*(I$1898/$E$1898),$D3*(I$1899/$E$1899))))) -> 18.6911822 | G3: =IF($D3<$E$1896,($D3+(($E3-$D3)*(1-$B$33)))*(I$1895/$E$1895),IF($D3<$E$1897,($D3+(($E3-$D3)*(1-$B$33)))*(I$1896/$E$1896),IF($D3<$E$1898,($D3+(($E3-$D3)*(1-$B$33)))*(I$1897/$E$1897),IF($D3<$E$1899,($D3+(($E3-$D3)*(1-$B$33)))*(I$1898/$E$1898),($D3+(($E3-$D3)*(1-$B$33)))*(I$1899/$E$1899))))) -> 20.20043553 | H3: =IF($D3<$E$1896,$D3*(K$1895/$E$1895),IF($D3<$E$1897,$D3*(K$1896/$E$1896),IF($D3<$E$1898,$D3*(K$1897/$E$1897),IF($D3<$E$1899,$D3*(K$1898/$E$1898),$D3*(K$1899/$E$1899))))) -> 0 | I3: =IF($D3<$E$1896,($D3+(($E3-$D3)*(1-$B$33)))*(K$1895/$E$1895),IF($D3<$E$1897,($D3+(($E3-$D3)*(1-$B$33)))*(K$1896/$E$1896),IF($D3<$E$1898,($D3+(($E3-$D3)*(1-$B$33)))*(K$1897/$E$1897),IF($D3<$E$1899,($D3+(($E3-$D3)*(1-$B$33)))*(K$1898/$E$1898),($D3+(($E3-$D3)*(1-$B$33)))*(K$1899/$E$1899))))) -> 0 | J3: =IF(((F3*1000)/($B$34*$B$12))>1,1,(F3*1000)/($B$34*$B$12)) -> 1 | K3: =IF(((G3*1000)/($B$34*$B$12))>1,1,(G3*1000)/($B$34*$B$12)) -> 1 | L3: =IF((F3/(F3+H3))>1,1,F3/(F3+H3)) -> 1 | M3: =IF((G3/(G3+I3))>1,1,G3/(G3+I3)) -> 1 | P3: =IF($D3<$E$1896,$D3*(S$1895/$E$1895),IF($D3<$E$1897,$D3*(S$1896/$E$1896),IF($D3<$E$1898,$D3*(S$1897/$E$1897),IF($D3<$E$1899,$D3*(S$1898/$E$1898),$D3*(S$1899/$E$1899))))) -> 18.6911822 | Q3: =IF($D3<$E$1896,($D3+(($E3-$D3)*(1-$B$33)))*(S$1895/$E$1895),IF($D3<$E$1897,($D3+(($E3-$D3)*(1-$B$33)))*(S$1896/$E$1896),IF($D3<$E$1898,($D3+(($E3-$D3)*(1-$B$33)))*(S$1897/$E$1897),IF($D3<$E$1899,($D3+(($E3-$D3)*(1-$B$33)))*(S$1898/$E$1898),($D3+(($E3-$D3)*(1-$B$33)))*(S$1899/$E$1899))))) -> 20.20043553 | R3: =IF($D3<$E$1896,$D3*(U$1895/$E$1895),IF($D3<$E$1897,$D3*(U$1896/$E$1896),IF($D3<$E$1898,$D3*(U$1897/$E$1897),IF($D3<$E$1899,$D3*(U$1898/$E$1898),$D3*(U$1899/$E$1899))))) -> 0 | S3: =IF($D3<$E$1896,($D3+(($E3-$D3)*(1-$B$33)))*(U$1895/$E$1895),IF($D3<$E$1897,($D3+(($E3-$D3)*(1-$B$33)))*(U$1896/$E$1896),IF($D3<$E$1898,($D3+(($E3-$D3)*(1-$B$33)))*(U$1897/$E$1897),IF($D3<$E$1899,($D3+(($E3-$D3)*(1-$B$33)))*(U$1898/$E$1898),($D3+(($E3-$D3)*(1-$B$33)))*(U$1899/$E$1899))))) -> 0 | T3: =IF(((P3*1000)/($B$34*$B$12))>1,1,(P3*1000)/($B$34*$B$12)) -> 1 | U3: =IF(((Q3*1000)/($B$34*$B$12))>1,1,(Q3*1000)/($B$34*$B$12)) -> 1 | V3: =IF((P3/(P3+R3))>1,1,P3/(P3+R3)) -> 1 | W3: =IF((Q3/(Q3+S3))>1,1,Q3/(Q3+S3)) -> 1 | Z3: =IF($D3<$E$1896,$D3*(AC$1895/$E$1895),IF($D3<$E$1897,$D3*(AC$1896/$E$1896),IF($D3<$E$1898,$D3*(AC$1897/$E$1897),IF($D3<$E$1899,$D3*(AC$1898/$E$1898),$D3*(AC$1899/$E$1899))))) -> 18.6911822 | AA3: =IF($D3<$E$1896,($D3+(($E3-$D3)*(1-$B$33)))*(AC$1895/$E$1895),IF($D3<$E$1897,($D3+(($E3-$D3)*(1-$B$33)))*(AC$1896/$E$1896),IF($D3<$E$1898,($D3+(($E3-$D3)*(1-$B$33)))*(AC$1897/$E$1897),IF($D3<$E$1899,($D3+(($E3-$D3)*(1-$B$33)))*(AC$1898/$E$1898),($D3+(($E3-$D3)*(1-$B$33)))*(AC$1899/$E$1899))))) -> 20.20043553 | AB3: =IF($D3<$E$1896,$D3*(AE$1895/$E$1895),IF($D3<$E$1897,$D3*(AE$1896/$E$1896),IF($D3<$E$1898,$D3*(AE$1897/$E$1897),IF($D3<$E$1899,$D3*(AE$1898/$E$1898),$D3*(AE$1899/$E$1899))))) -> 0 | AC3: =IF($D3<$E$1896,($D3+(($E3-$D3)*(1-$B$33)))*(AE$1895/$E$1895),IF($D3<$E$1897,($D3+(($E3-$D3)*(1-$B$33)))*(AE$1896/$E$1896),IF($D3<$E$1898,($D3+(($E3-$D3)*(1-$B$33)))*(AE$1897/$E$1897),IF($D3<$E$1899,($D3+(($E3-$D3)*(1-$B$33)))*(AE$1898/$E$1898),($D3+(($E3-$D3)*(1-$B$33)))*(AE$1899/$E$1899))))) -> 0 | AD3: =IF(((Z3*1000)/($B$34*$B$12))>1,1,(Z3*1000)/($B$34*$B$12)) -> 1 | AE3: =IF(((AA3*1000)/($B$34*$B$12))>1,1,(AA3*1000)/($B$34*$B$12)) -> 1 | AF3: =IF((Z3/(Z3+AB3))>1,1,Z3/(Z3+AB3)) -> 1 | AG3: =IF((AA3/(AA3+AC3))>1,1,AA3/(AA3+AC3)) -> 1 | AJ3: =IF($D3<$E$1896,$D3*(AM$1895/$E$1895),IF($D3<$E$1897,$D3*(AM$1896/$E$1896),IF($D3<$E$1898,$D3*(AM$1897/$E$1897),IF($D3<$E$1899,$D3*(AM$1898/$E$1898),$D3*(AM$1899/$E$1899))))) -> 18.6911822 | AK3: =IF($D3<$E$1896,($D3+(($E3-$D3)*(1-$B$33)))*(AM$1895/$E$1895),IF($D3<$E$1897,($D3+(($E3-$D3)*(1-$B$33)))*(AM$1896/$E$1896),IF($D3<$E$1898,($D3+(($E3-$D3)*(1-$B$33)))*(AM$1897/$E$1897),IF($D3<$E$1899,($D3+(($E3-$D3)*(1-$B$33)))*(AM$1898/$E$1898),($D3+(($E3-$D3)*(1-$B$33)))*(AM$1899/$E$1899))))) -> 20.20043553 | AL3: =IF($D3<$E$1896,$D3*(AO$1895/$E$1895),IF($D3<$E$1897,$D3*(AO$1896/$E$1896),IF($D3<$E$1898,$D3*(AO$1897/$E$1897),IF($D3<$E$1899,$D3*(AO$1898/$E$1898),$D3*(AO$1899/$E$1899))))) -> 0 | AM3: =IF($D3<$E$1896,($D3+(($E3-$D3)*(1-$B$33)))*(AO$1895/$E$1895),IF($D3<$E$1897,($D3+(($E3-$D3)*(1-$B$33)))*(AO$1896/$E$1896),IF($D3<$E$1898,($D3+(($E3-$D3)*(1-$B$33)))*(AO$1897/$E$1897),IF($D3<$E$1899,($D3+(($E3-$D3)*(1-$B$33)))*(AO$1898/$E$1898),($D3+(($E3-$D3)*(1-$B$33)))*(AO$1899/$E$1899))))) -> 0 | AN3: =IF(((AJ3*1000)/($B$34*$B$12))>1,1,(AJ3*1000)/($B$34*$B$12)) -> 1 | AO3: =IF(((AK3*1000)/($B$34*$B$12))>1,1,(AK3*1000)/($B$34*$B$12)) -> 1 | AP3: =IF((AJ3/(AJ3+AL3))>1,1,AJ3/(AJ3+AL3)) -> 1 | AQ3: =IF((AK3/(AK3+AM3))>1,1,AK3/(AK3+AM3)) -> 1 | AT3: =IF($D3<$E$1896,$D3*(AW$1895/$E$1895),IF($D3<$E$1897,$D3*(AW$1896/$E$1896),IF($D3<$E$1898,$D3*(AW$1897/$E$1897),IF($D3<$E$1899,$D3*(AW$1898/$E$1898),$D3*(AW$1899/$E$1899))))) -> 18.6911822 | AU3: =IF($D3<$E$1896,($D3+(($E3-$D3)*(1-$B$33)))*(AW$1895/$E$1895),IF($D3<$E$1897,($D3+(($E3-$D3)*(1-$B$33)))*(AW$1896/$E$1896),IF($D3<$E$1898,($D3+(($E3-$D3)*(1-$B$33)))*(AW$1897/$E$1897),IF($D3<$E$1899,($D3+(($E3-$D3)*(1-$B$33)))*(AW$1898/$E$1898),($D3+(($E3-$D3)*(1-$B$33)))*(AW$1899/$E$1899))))) -> 20.20043553 | AV3: =IF($D3<$E$1896,$D3*(AY$1895/$E$1895),IF($D3<$E$1897,$D3*(AY$1896/$E$1896),IF($D3<$E$1898,$D3*(AY$1897/$E$1897),IF($D3<$E$1899,$D3*(AY$1898/$E$1898),$D3*(AY$1899/$E$1899))))) -> 0 | AW3: =IF($D3<$E$1896,($D3+(($E3-$D3)*(1-$B$33)))*(AY$1895/$E$1895),IF($D3<$E$1897,($D3+(($E3-$D3)*(1-$B$33)))*(AY$1896/$E$1896),IF($D3<$E$1898,($D3+(($E3-$D3)*(1-$B$33)))*(AY$1897/$E$1897),IF($D3<$E$1899,($D3+(($E3-$D3)*(1-$B$33)))*(AY$1898/$E$1898),($D3+(($E3-$D3)*(1-$B$33)))*(AY$1899/$E$1899))))) -> 0 | AX3: =IF(((AT3*1000)/($B$34*$B$12))>1,1,(AT3*1000)/($B$34*$B$12)) -> 1 | AY3: =IF(((AU3*1000)/($B$34*$B$12))>1,1,(AU3*1000)/($B$34*$B$12)) -> 1 | AZ3: =IF((AT3/(AT3+AV3))>1,1,AT3/(AT3+AV3)) -> 1 | BA3: =IF((AU3/(AU3+AW3))>1,1,AU3/(AU3+AW3)) -> 1 | BD3: =IF($D3<$E$1896,$D3*(BG$1895/$E$1895),IF($D3<$E$1897,$D3*(BG$1896/$E$1896),IF($D3<$E$1898,$D3*(BG$1897/$E$1897),IF($D3<$E$1899,$D3*(BG$1898/$E$1898),$D3*(BG$1899/$E$1899))))) -> 18.6911822 | BE3: =IF($D3<$E$1896,($D3+(($E3-$D3)*(1-$B$33)))*(BG$1895/$E$1895),IF($D3<$E$1897,($D3+(($E3-$D3)*(1-$B$33)))*(BG$1896/$E$1896),IF($D3<$E$1898,($D3+(($E3-$D3)*(1-$B$33)))*(BG$1897/$E$1897),IF($D3<$E$1899,($D3+(($E3-$D3)*(1-$B$33)))*(BG$1898/$E$1898),($D3+(($E3-$D3)*(1-$B$33)))*(BG$1899/$E$1899))))) -> 20.20043553 | BF3: =IF($D3<$E$1896,$D3*(BI$1895/$E$1895),IF($D3<$E$1897,$D3*(BI$1896/$E$1896),IF($D3<$E$1898,$D3*(BI$1897/$E$1897),IF($D3<$E$1899,$D3*(BI$1898/$E$1898),$D3*(BI$1899/$E$1899))))) -> 0 | BG3: =IF($D3<$E$1896,($D3+(($E3-$D3)*(1-$B$33)))*(BI$1895/$E$1895),IF($D3<$E$1897,($D3+(($E3-$D3)*(1-$B$33)))*(BI$1896/$E$1896),IF($D3<$E$1898,($D3+(($E3-$D3)*(1-$B$33)))*(BI$1897/$E$1897),IF($D3<$E$1899,($D3+(($E3-$D3)*(1-$B$33)))*(BI$1898/$E$1898),($D3+(($E3-$D3)*(1-$B$33)))*(BI$1899/$E$1899))))) -> 0 | BH3: =IF(((BD3*1000)/($B$34*$B$12))>1,1,(BD3*1000)/($B$34*$B$12)) -> 1 | BI3: =IF(((BE3*1000)/($B$34*$B$12))>1,1,(BE3*1000)/($B$34*$B$12)) -> 1 | BJ3: =IF((BD3/(BD3+BF3))>1,1,BD3/(BD3+BF3)) -> 1 | BK3: =IF((BE3/(BE3+BG3))>1,1,BE3/(BE3+BG3)) -> 1 | BN3: =IF($D3<$E$1896,$D3*(BQ$1895/$E$1895),IF($D3<$E$1897,$D3*(BQ$1896/$E$1896),IF($D3<$E$1898,$D3*(BQ$1897/$E$1897),IF($D3<$E$1899,$D3*(BQ$1898/$E$1898),$D3*(BQ$1899/$E$1899))))) -> 18.6911822 | BO3: =IF($D3<$E$1896,($D3+(($E3-$D3)*(1-$B$33)))*(BQ$1895/$E$1895),IF($D3<$E$1897,($D3+(($E3-$D3)*(1-$B$33)))*(BQ$1896/$E$1896),IF($D3<$E$1898,($D3+(($E3-$D3)*(1-$B$33)))*(BQ$1897/$E$1897),IF($D3<$E$1899,($D3+(($E3-$D3)*(1-$B$33)))*(BQ$1898/$E$1898),($D3+(($E3-$D3)*(1-$B$33)))*(BQ$1899/$E$1899))))) -> 20.20043553 | BP3: =IF($D3<$E$1896,$D3*(BS$1895/$E$1895),IF($D3<$E$1897,$D3*(BS$1896/$E$1896),IF($D3<$E$1898,$D3*(BS$1897/$E$1897),IF($D3<$E$1899,$D3*(BS$1898/$E$1898),$D3*(BS$1899/$E$1899))))) -> 0 | BQ3: =IF($D3<$E$1896,($D3+(($E3-$D3)*(1-$B$33)))*(BS$1895/$E$1895),IF($D3<$E$1897,($D3+(($E3-$D3)*(1-$B$33)))*(BS$1896/$E$1896),IF($D3<$E$1898,($D3+(($E3-$D3)*(1-$B$33)))*(BS$1897/$E$1897),IF($D3<$E$1899,($D3+(($E3-$D3)*(1-$B$33)))*(BS$1898/$E$1898),($D3+(($E3-$D3)*(1-$B$33)))*(BS$1899/$E$1899))))) -> 0 | BR3: =IF(((BN3*1000)/($B$34*$B$12))>1,1,(BN3*1000)/($B$34*$B$12)) -> 1 | BS3: =IF(((BO3*1000)/($B$34*$B$12))>1,1,(BO3*1000)/($B$34*$B$12)) -> 1 | BT3: =IF((BN3/(BN3+BP3))>1,1,BN3/(BN3+BP3)) -> 1 | BU3: =IF((BO3/(BO3+BQ3))>1,1,BO3/(BO3+BQ3)) -> 1 | BX3: =IF($D3<$E$1896,$D3*(CA$1895/$E$1895),IF($D3<$E$1897,$D3*(CA$1896/$E$1896),IF($D3<$E$1898,$D3*(CA$1897/$E$1897),IF($D3<$E$1899,$D3*(CA$1898/$E$1898),$D3*(CA$1899/$E$1899))))) -> 18.6911822 | BY3: =IF($D3<$E$1896,($D3+(($E3-$D3)*(1-$B$33)))*(CA$1895/$E$1895),IF($D3<$E$1897,($D3+(($E3-$D3)*(1-$B$33)))*(CA$1896/$E$1896),IF($D3<$E$1898,($D3+(($E3-$D3)*(1-$B$33)))*(CA$1897/$E$1897),IF($D3<$E$1899,($D3+(($E3-$D3)*(1-$B$33)))*(CA$1898/$E$1898),($D3+(($E3-$D3)*(1-$B$33)))*(CA$1899/$E$1899))))) -> 20.20043553 | BZ3: =IF($D3<$E$1896,$D3*(CC$1895/$E$1895),IF($D3<$E$1897,$D3*(CC$1896/$E$1896),IF($D3<$E$1898,$D3*(CC$1897/$E$1897),IF($D3<$E$1899,$D3*(CC$1898/$E$1898),$D3*(CC$1899/$E$1899))))) -> 0 | CA3: =IF($D3<$E$1896,($D3+(($E3-$D3)*(1-$B$33)))*(CC$1895/$E$1895),IF($D3<$E$1897,($D3+(($E3-$D3)*(1-$B$33)))*(CC$1896/$E$1896),IF($D3<$E$1898,($D3+(($E3-$D3)*(1-$B$33)))*(CC$1897/$E$1897),IF($D3<$E$1899,($D3+(($E3-$D3)*(1-$B$33)))*(CC$1898/$E$1898),($D3+(($E3-$D3)*(1-$B$33)))*(CC$1899/$E$1899))))) -> 0 | CB3: =IF(((BX3*1000)/($B$34*$B$12))>1,1,(BX3*1000)/($B$34*$B$12)) -> 1 | CC3: =IF(((BY3*1000)/($B$34*$B$12))>1,1,(BY3*1000)/($B$34*$B$12)) -> 1 | CD3: =IF((BX3/(BX3+BZ3))>1,1,BX3/(BX3+BZ3)) -> 1 | CE3: =IF((BY3/(BY3+CA3))>1,1,BY3/(BY3+CA3)) -> 1
A4: Roof catchment area (m^2) | B4: 205 | C4: 1951 | D4: 701.5 | E4: 803.9 | F4: 20.65836508 | G4: 22.16614596 | H4: 0 | I4: 0 | J4: =IF(((F4*1000)/($B$34*$B$12))>1,1,(F4*1000)/($B$34*$B$12)) -> 1 | K4: =IF(((G4*1000)/($B$34*$B$12))>1,1,(G4*1000)/($B$34*$B$12)) -> 1 | L4: 1 | M4: 1 | P4: 20.65836508 | Q4: 22.16614596 | R4: 0 | S4: 0 | T4: =IF(((P4*1000)/($B$34*$B$12))>1,1,(P4*1000)/($B$34*$B$12)) -> 1 | U4: =IF(((Q4*1000)/($B$34*$B$12))>1,1,(Q4*1000)/($B$34*$B$12)) -> 1 | V4: 1 | W4: 1 | Z4: 20.65836508 | AA4: 22.16614596 | AB4: 0 | AC4: 0 | AD4: =IF(((Z4*1000)/($B$34*$B$12))>1,1,(Z4*1000)/($B$34*$B$12)) -> 1 | AE4: =IF(((AA4*1000)/($B$34*$B$12))>1,1,(AA4*1000)/($B$34*$B$12)) -> 1 | AF4: 1 | AG4: 1 | AJ4: 20.65836508 | AK4: 22.16614596 | AL4: 0 | AM4: 0 | AN4: =IF(((AJ4*1000)/($B$34*$B$12))>1,1,(AJ4*1000)/($B$34*$B$12)) -> 1 | AO4: =IF(((AK4*1000)/($B$34*$B$12))>1,1,(AK4*1000)/($B$34*$B$12)) -> 1 | AP4: 1 | AQ4: 1 | AT4: 20.65836508 | AU4: 22.16614596 | AV4: 0 | AW4: 0 | AX4: =IF(((AT4*1000)/($B$34*$B$12))>1,1,(AT4*1000)/($B$34*$B$12)) -> 1 | AY4: =IF(((AU4*1000)/($B$34*$B$12))>1,1,(AU4*1000)/($B$34*$B$12)) -> 1 | AZ4: 1 | BA4: 1 | BD4: 20.65836508 | BE4: 22.16614596 | BF4: 0 | BG4: 0 | BH4: =IF(((BD4*1000)/($B$34*$B$12))>1,1,(BD4*1000)/($B$34*$B$12)) -> 1 | BI4: =IF(((BE4*1000)/($B$34*$B$12))>1,1,(BE4*1000)/($B$34*$B$12)) -> 1 | BJ4: 1 | BK4: 1 | BN4: 20.65836508 | BO4: 22.16614596 | BP4: 0 | BQ4: 0 | BR4: =IF(((BN4*1000)/($B$34*$B$12))>1,1,(BN4*1000)/($B$34*$B$12)) -> 1 | BS4: =IF(((BO4*1000)/($B$34*$B$12))>1,1,(BO4*1000)/($B$34*$B$12)) -> 1 | BT4: 1 | BU4: 1 | BX4: 20.65836508 | BY4: 22.16614596 | BZ4: 0 | CA4: 0 | CB4: =IF(((BX4*1000)/($B$34*$B$12))>1,1,(BX4*1000)/($B$34*$B$12)) -> 1 | CC4: =IF(((BY4*1000)/($B$34*$B$12))>1,1,(BY4*1000)/($B$34*$B$12)) -> 1 | CD4: 1 | CE4: 1
A5: Analysis Type | B5: Volume | C5: 1952 | D5: 706.2 | E5: 759.3 | F5: 20.79677465 | G5: 21.5786415 | H5: 0 | I5: 0 | J5: 1 | K5: =IF(((G5*1000)/($B$34*$B$12))>1,1,(G5*1000)/($B$34*$B$12)) -> 1 | L5: 1 | M5: 1 | P5: 20.79677465 | Q5: 21.5786415 | R5: 0 | S5: 0 | T5: 1 | U5: =IF(((Q5*1000)/($B$34*$B$12))>1,1,(Q5*1000)/($B$34*$B$12)) -> 1 | V5: 1 | W5: 1 | Z5: 20.79677465 | AA5: 21.5786415 | AB5: 0 | AC5: 0 | AD5: 1 | AE5: =IF(((AA5*1000)/($B$34*$B$12))>1,1,(AA5*1000)/($B$34*$B$12)) -> 1 | AF5: 1 | AG5: 1 | AJ5: 20.79677465 | AK5: 21.5786415 | AL5: 0 | AM5: 0 | AN5: 1 | AO5: =IF(((AK5*1000)/($B$34*$B$12))>1,1,(AK5*1000)/($B$34*$B$12)) -> 1 | AP5: 1 | AQ5: 1 | AT5: 20.79677465 | AU5: 21.5786415 | AV5: 0 | AW5: 0 | AX5: 1 | AY5: =IF(((AU5*1000)/($B$34*$B$12))>1,1,(AU5*1000)/($B$34*$B$12)) -> 1 | AZ5: 1 | BA5: 1 | BD5: 20.79677465 | BE5: 21.5786415 | BF5: 0 | BG5: 0 | BH5: 1 | BI5: =IF(((BE5*1000)/($B$34*$B$12))>1,1,(BE5*1000)/($B$34*$B$12)) -> 1 | BJ5: 1 | BK5: 1 | BN5: 20.79677465 | BO5: 21.5786415 | BP5: 0 | BQ5: 0 | BR5: 1 | BS5: =IF(((BO5*1000)/($B$34*$B$12))>1,1,(BO5*1000)/($B$34*$B$12)) -> 1 | BT5: 1 | BU5: 1 | BX5: 20.79677465 | BY5: 21.5786415 | BZ5: 0 | CA5: 0 | CB5: 1 | CC5: =IF(((BY5*1000)/($B$34*$B$12))>1,1,(BY5*1000)/($B$34*$B$12)) -> 1 | CD5: 1 | CE5: 1
A6: Initial loss factor RF (mm) | B6: 0.5 | C6: 1953 | D6: 762.3 | E6: 840.4 | F6: 18.11651655 | G6: 19.04456321 | H6: 0 | I6: 0 | J6: 1 | K6: 1 | L6: 1 | M6: 1 | P6: 18.11651655 | Q6: 19.04456321 | R6: 0 | S6: 0 | T6: 1 | U6: 1 | V6: 1 | W6: 1 | Z6: 18.11651655 | AA6: 19.04456321 | AB6: 0 | AC6: 0 | AD6: 1 | AE6: 1 | AF6: 1 | AG6: 1 | AJ6: 18.11651655 | AK6: 19.04456321 | AL6: 0 | AM6: 0 | AN6: 1 | AO6: 1 | AP6: 1 | AQ6: 1 | AT6: 18.11651655 | AU6: 19.04456321 | AV6: 0 | AW6: 0 | AX6: 1 | AY6: 1 | AZ6: 1 | BA6: 1 | BD6: 18.11651655 | BE6: 19.04456321 | BF6: 0 | BG6: 0 | BH6: 1 | BI6: 1 | BJ6: 1 | BK6: 1 | BN6: 18.11651655 | BO6: 19.04456321 | BP6: 0 | BQ6: 0 | BR6: 1 | BS6: 1 | BT6: 1 | BU6: 1 | BX6: 18.11651655 | BY6: 19.04456321 | BZ6: 0 | CA6: 0 | CB6: 1 | CC6: 1 | CD6: 1 | CE6: 1
A7: Initial loss factor PR (mm) | B7: 0 | C7: 1954 | D7: 886.6 | E7: 989.4 | F7: 17.82560477 | G7: 18.85903144 | H7: 14.73614869 | I7: 15.59046635 | J7: 1 | K7: 1 | L7: 0.5474399527 | M7: 0.5474399527 | P7: 17.82560477 | Q7: 18.85903144 | R7: 10.41201511 | S7: 11.01564423 | T7: 1 | U7: 1 | V7: 0.631271504 | W7: 0.631271504 | Z7: 17.82560477 | AA7: 18.85903144 | AB7: 6.087881531 | AC7: 6.440822102 | AD7: 1 | AE7: 1 | AF7: 0.7454205776 | AG7: 0.7454205776 | AJ7: 17.82560477 | AK7: 18.85903144 | AL7: 1.763747953 | AM7: 1.865999977 | AN7: 1 | AO7: 1 | AP7: 0.9099639494 | AQ7: 0.9099639494 | AT7: 17.82560477 | AU7: 18.85903144 | AV7: 0 | AW7: 0 | AX7: 1 | AY7: 1 | AZ7: 1 | BA7: 1 | BD7: 17.82560477 | BE7: 18.85903144 | BF7: 0 | BG7: 0 | BH7: 1 | BI7: 1 | BJ7: 1 | BK7: 1 | BN7: 17.82560477 | BO7: 18.85903144 | BP7: 0 | BQ7: 0 | BR7: 1 | BS7: 1 | BT7: 1 | BU7: 1 | BX7: 17.82560477 | BY7: 18.85903144 | BZ7: 0 | CA7: 0 | CB7: 1 | CC7: 1 | CD7: 1 | CE7: 1
A8: Initial loss factor RF+PR (mm) | B8: =SUM(B6:B7) -> 0.5 | C8: 1955 | D8: 779.1 | E8: 871.4 | F8: 18.51577862 | G8: 19.61256104 | H8: 0 | I8: 0 | J8: 1 | K8: 1 | L8: 1 | M8: 1 | P8: 18.51577862 | Q8: 19.61256104 | R8: 0 | S8: 0 | T8: 1 | U8: 1 | V8: 1 | W8: 1 | Z8: 18.51577862 | AA8: 19.61256104 | AB8: 0 | AC8: 0 | AD8: 1 | AE8: 1 | AF8: 1 | AG8: 1 | AJ8: 18.51577862 | AK8: 19.61256104 | AL8: 0 | AM8: 0 | AN8: 1 | AO8: 1 | AP8: 1 | AQ8: 1 | AT8: 18.51577862 | AU8: 19.61256104 | AV8: 0 | AW8: 0 | AX8: 1 | AY8: 1 | AZ8: 1 | BA8: 1 | BD8: 18.51577862 | BE8: 19.61256104 | BF8: 0 | BG8: 0 | BH8: 1 | BI8: 1 | BJ8: 1 | BK8: 1 | BN8: 18.51577862 | BO8: 19.61256104 | BP8: 0 | BQ8: 0 | BR8: 1 | BS8: 1 | BT8: 1 | BU8: 1 | BX8: 18.51577862 | BY8: 19.61256104 | BZ8: 0 | CA8: 0 | CB8: 1 | CC8: 1 | CD8: 1 | CE8: 1
A9: Continuous loss factor RF (%) | B9: 0.2 | C9: 1956 | D9: 679.3 | E9: 782.4 | F9: 20.00460071 | G9: 21.52268869 | H9: 0 | I9: 0 | J9: 1 | K9: 1 | L9: 1 | M9: 1 | P9: 20.00460071 | Q9: 21.52268869 | R9: 0 | S9: 0 | T9: 1 | U9: 1 | V9: 1 | W9: 1 | Z9: 20.00460071 | AA9: 21.52268869 | AB9: 0 | AC9: 0 | AD9: 1 | AE9: 1 | AF9: 1 | AG9: 1 | AJ9: 20.00460071 | AK9: 21.52268869 | AL9: 0 | AM9: 0 | AN9: 1 | AO9: 1 | AP9: 1 | AQ9: 1 | AT9: 20.00460071 | AU9: 21.52268869 | AV9: 0 | AW9: 0 | AX9: 1 | AY9: 1 | AZ9: 1 | BA9: 1 | BD9: 20.00460071 | BE9: 21.52268869 | BF9: 0 | BG9: 0 | BH9: 1 | BI9: 1 | BJ9: 1 | BK9: 1 | BN9: 20.00460071 | BO9: 21.52268869 | BP9: 0 | BQ9: 0 | BR9: 1 | BS9: 1 | BT9: 1 | BU9: 1 | BX9: 20.00460071 | BY9: 21.52268869 | BZ9: 0 | CA9: 0 | CB9: 1 | CC9: 1 | CD9: 1 | CE9: 1
A10: Continuous loss factor PR (%) | B10: 0.1 | C10: 1957 | D10: 626.4 | E10: 676.3 | F10: 18.44675678 | G10: 19.18150548 | H10: 0 | I10: 0 | J10: 1 | K10: 1 | L10: 1 | M10: 1 | P10: 18.44675678 | Q10: 19.18150548 | R10: 0 | S10: 0 | T10: 1 | U10: 1 | V10: 1 | W10: 1 | Z10: 18.44675678 | AA10: 19.18150548 | AB10: 0 | AC10: 0 | AD10: 1 | AE10: 1 | AF10: 1 | AG10: 1 | AJ10: 18.44675678 | AK10: 19.18150548 | AL10: 0 | AM10: 0 | AN10: 1 | AO10: 1 | AP10: 1 | AQ10: 1 | AT10: 18.44675678 | AU10: 19.18150548 | AV10: 0 | AW10: 0 | AX10: 1 | AY10: 1 | AZ10: 1 | BA10: 1 | BD10: 18.44675678 | BE10: 19.18150548 | BF10: 0 | BG10: 0 | BH10: 1 | BI10: 1 | BJ10: 1 | BK10: 1 | BN10: 18.44675678 | BO10: 19.18150548 | BP10: 0 | BQ10: 0 | BR10: 1 | BS10: 1 | BT10: 1 | BU10: 1 | BX10: 18.44675678 | BY10: 19.18150548 | BZ10: 0 | CA10: 0 | CB10: 1 | CC10: 1 | CD10: 1 | CE10: 1
A11: Days occupied per week | B11: 7 | C11: 1958 | D11: 541 | E11: 598.8 | F11: 15.93182538 | G11: 16.78289702 | H11: 0 | I11: 0 | J11: 0.9093507639 | K11: 0.9579279119 | L11: 1 | M11: 1 | P11: 15.93182538 | Q11: 16.78289702 | R11: 0 | S11: 0 | T11: 0.9093507639 | U11: 0.9579279119 | V11: 1 | W11: 1 | Z11: 15.93182538 | AA11: 16.78289702 | AB11: 0 | AC11: 0 | AD11: 0.9093507639 | AE11: 0.9579279119 | AF11: 1 | AG11: 1 | AJ11: 15.93182538 | AK11: 16.78289702 | AL11: 0 | AM11: 0 | AN11: 0.9093507639 | AO11: 0.9579279119 | AP11: 1 | AQ11: 1 | AT11: 15.93182538 | AU11: 16.78289702 | AV11: 0 | AW11: 0 | AX11: 0.9093507639 | AY11: 0.9579279119 | AZ11: 1 | BA11: 1 | BD11: 15.93182538 | BE11: 16.78289702 | BF11: 0 | BG11: 0 | BH11: 0.9093507639 | BI11: 0.9579279119 | BJ11: 1 | BK11: 1 | BN11: 15.93182538 | BO11: 16.78289702 | BP11: 0 | BQ11: 0 | BR11: 0.9093507639 | BS11: 0.9579279119 | BT11: 1 | BU11: 1 | BX11: 15.93182538 | BY11: 16.78289702 | BZ11: 0 | CA11: 0 | CB11: 0.9093507639 | CC11: 0.9579279119 | CD11: 1 | CE11: 1
A12: Daily demand (L) | B12: 48 | C12: 1959 | D12: 628.6 | E12: 740.6 | F12: 18.51154424 | G12: 20.16067959 | H12: 0 | I12: 0 | J12: 1 | K12: 1 | L12: 1 | M12: 1 | P12: 18.51154424 | Q12: 20.16067959 | R12: 0 | S12: 0 | T12: 1 | U12: 1 | V12: 1 | W12: 1 | Z12: 18.51154424 | AA12: 20.16067959 | AB12: 0 | AC12: 0 | AD12: 1 | AE12: 1 | AF12: 1 | AG12: 1 | AJ12: 18.51154424 | AK12: 20.16067959 | AL12: 0 | AM12: 0 | AN12: 1 | AO12: 1 | AP12: 1 | AQ12: 1 | AT12: 18.51154424 | AU12: 20.16067959 | AV12: 0 | AW12: 0 | AX12: 1 | AY12: 1 | AZ12: 1 | BA12: 1 | BD12: 18.51154424 | BE12: 20.16067959 | BF12: 0 | BG12: 0 | BH12: 1 | BI12: 1 | BJ12: 1 | BK12: 1 | BN12: 18.51154424 | BO12: 20.16067959 | BP12: 0 | BQ12: 0 | BR12: 1 | BS12: 1 | BT12: 1 | BU12: 1 | BX12: 18.51154424 | BY12: 20.16067959 | BZ12: 0 | CA12: 0 | CB12: 1 | CC12: 1 | CD12: 1 | CE12: 1
A13: MAX VOLUME | C13: 1960 | D13: 459 | E13: 593.3 | F13: 13.51702006 | G13: 15.49451003 | H13: 0 | I13: 0 | J13: 0.7715194097 | K13: 0.8843898418 | L13: 1 | M13: 1 | P13: 13.51702006 | Q13: 15.49451003 | R13: 0 | S13: 0 | T13: 0.7715194097 | U13: 0.8843898418 | V13: 1 | W13: 1 | Z13: 13.51702006 | AA13: 15.49451003 | AB13: 0 | AC13: 0 | AD13: 0.7715194097 | AE13: 0.8843898418 | AF13: 1 | AG13: 1 | AJ13: 13.51702006 | AK13: 15.49451003 | AL13: 0 | AM13: 0 | AN13: 0.7715194097 | AO13: 0.8843898418 | AP13: 1 | AQ13: 1 | AT13: 13.51702006 | AU13: 15.49451003 | AV13: 0 | AW13: 0 | AX13: 0.7715194097 | AY13: 0.8843898418 | AZ13: 1 | BA13: 1 | BD13: 13.51702006 | BE13: 15.49451003 | BF13: 0 | BG13: 0 | BH13: 0.7715194097 | BI13: 0.8843898418 | BJ13: 1 | BK13: 1 | BN13: 13.51702006 | BO13: 15.49451003 | BP13: 0 | BQ13: 0 | BR13: 0.7715194097 | BS13: 0.8843898418 | BT13: 1 | BU13: 1 | BX13: 13.51702006 | BY13: 15.49451003 | BZ13: 0 | CA13: 0 | CB13: 0.7715194097 | CC13: 0.8843898418 | CD13: 1 | CE13: 1
A14: Cistern Volume (L) - 1 | B14: 110000 | C14: 1961 | D14: 678.7 | E14: 728.6 | F14: 19.9869314 | G14: 20.72168009 | H14: 0 | I14: 0 | J14: 1 | K14: 1 | L14: 1 | M14: 1 | P14: 19.9869314 | Q14: 20.72168009 | R14: 0 | S14: 0 | T14: 1 | U14: 1 | V14: 1 | W14: 1 | Z14: 19.9869314 | AA14: 20.72168009 | AB14: 0 | AC14: 0 | AD14: 1 | AE14: 1 | AF14: 1 | AG14: 1 | AJ14: 19.9869314 | AK14: 20.72168009 | AL14: 0 | AM14: 0 | AN14: 1 | AO14: 1 | AP14: 1 | AQ14: 1 | AT14: 19.9869314 | AU14: 20.72168009 | AV14: 0 | AW14: 0 | AX14: 1 | AY14: 1 | AZ14: 1 | BA14: 1 | BD14: 19.9869314 | BE14: 20.72168009 | BF14: 0 | BG14: 0 | BH14: 1 | BI14: 1 | BJ14: 1 | BK14: 1 | BN14: 19.9869314 | BO14: 20.72168009 | BP14: 0 | BQ14: 0 | BR14: 1 | BS14: 1 | BT14: 1 | BU14: 1 | BX14: 19.9869314 | BY14: 20.72168009 | BZ14: 0 | CA14: 0 | CB14: 1 | CC14: 1 | CD14: 1 | CE14: 1
A15: Cistern Volume (L) - 2 | B15: 115000 | C15: 1962 | D15: 666.4 | E15: 749.3 | F15: 19.6247106 | G15: 20.84536525 | H15: 0 | I15: 0 | J15: 1 | K15: 1 | L15: 1 | M15: 1 | P15: 19.6247106 | Q15: 20.84536525 | R15: 0 | S15: 0 | T15: 1 | U15: 1 | V15: 1 | W15: 1 | Z15: 19.6247106 | AA15: 20.84536525 | AB15: 0 | AC15: 0 | AD15: 1 | AE15: 1 | AF15: 1 | AG15: 1 | AJ15: 19.6247106 | AK15: 20.84536525 | AL15: 0 | AM15: 0 | AN15: 1 | AO15: 1 | AP15: 1 | AQ15: 1 | AT15: 19.6247106 | AU15: 20.84536525 | AV15: 0 | AW15: 0 | AX15: 1 | AY15: 1 | AZ15: 1 | BA15: 1 | BD15: 19.6247106 | BE15: 20.84536525 | BF15: 0 | BG15: 0 | BH15: 1 | BI15: 1 | BJ15: 1 | BK15: 1 | BN15: 19.6247106 | BO15: 20.84536525 | BP15: 0 | BQ15: 0 | BR15: 1 | BS15: 1 | BT15: 1 | BU15: 1 | BX15: 19.6247106 | BY15: 20.84536525 | BZ15: 0 | CA15: 0 | CB15: 1 | CC15: 1 | CD15: 1 | CE15: 1
A16: Cistern Volume (L) - 3 | B16: 120000 | C16: 1963 | D16: 546.6 | E16: 665.1 | F16: 16.09673892 | G16: 17.84158301 | H16: 0 | I16: 0 | J16: 0.9187636369 | K16: 1 | L16: 1 | M16: 1 | P16: 16.09673892 | Q16: 17.84158301 | R16: 0 | S16: 0 | T16: 0.9187636369 | U16: 1 | V16: 1 | W16: 1 | Z16: 16.09673892 | AA16: 17.84158301 | AB16: 0 | AC16: 0 | AD16: 0.9187636369 | AE16: 1 | AF16: 1 | AG16: 1 | AJ16: 16.09673892 | AK16: 17.84158301 | AL16: 0 | AM16: 0 | AN16: 0.9187636369 | AO16: 1 | AP16: 1 | AQ16: 1 | AT16: 16.09673892 | AU16: 17.84158301 | AV16: 0 | AW16: 0 | AX16: 0.9187636369 | AY16: 1 | AZ16: 1 | BA16: 1 | BD16: 16.09673892 | BE16: 17.84158301 | BF16: 0 | BG16: 0 | BH16: 0.9187636369 | BI16: 1 | BJ16: 1 | BK16: 1 | BN16: 16.09673892 | BO16: 17.84158301 | BP16: 0 | BQ16: 0 | BR16: 0.9187636369 | BS16: 1 | BT16: 1 | BU16: 1 | BX16: 16.09673892 | BY16: 17.84158301 | BZ16: 0 | CA16: 0 | CB16: 0.9187636369 | CC16: 1 | CD16: 1 | CE16: 1
A17: Cistern Volume (L) - 4 | B17: 125000 | C17: 1964 | D17: 623.5 | E17: 739.1 | F17: 18.36135513 | G17: 20.0634984 | H17: 0 | I17: 0 | J17: 1 | K17: 1 | L17: 1 | M17: 1 | P17: 18.36135513 | Q17: 20.0634984 | R17: 0 | S17: 0 | T17: 1 | U17: 1 | V17: 1 | W17: 1 | Z17: 18.36135513 | AA17: 20.0634984 | AB17: 0 | AC17: 0 | AD17: 1 | AE17: 1 | AF17: 1 | AG17: 1 | AJ17: 18.36135513 | AK17: 20.0634984 | AL17: 0 | AM17: 0 | AN17: 1 | AO17: 1 | AP17: 1 | AQ17: 1 | AT17: 18.36135513 | AU17: 20.0634984 | AV17: 0 | AW17: 0 | AX17: 1 | AY17: 1 | AZ17: 1 | BA17: 1 | BD17: 18.36135513 | BE17: 20.0634984 | BF17: 0 | BG17: 0 | BH17: 1 | BI17: 1 | BJ17: 1 | BK17: 1 | BN17: 18.36135513 | BO17: 20.0634984 | BP17: 0 | BQ17: 0 | BR17: 1 | BS17: 1 | BT17: 1 | BU17: 1 | BX17: 18.36135513 | BY17: 20.0634984 | BZ17: 0 | CA17: 0 | CB17: 1 | CC17: 1 | CD17: 1 | CE17: 1
A18: Cistern Volume (L) - 5 | B18: 130000 | C18: 1965 | D18: 683.5 | E18: 789.7 | F18: 20.12828586 | G18: 21.69201955 | H18: 0 | I18: 0 | J18: 1 | K18: 1 | L18: 1 | M18: 1 | P18: 20.12828586 | Q18: 21.69201955 | R18: 0 | S18: 0 | T18: 1 | U18: 1 | V18: 1 | W18: 1 | Z18: 20.12828586 | AA18: 21.69201955 | AB18: 0 | AC18: 0 | AD18: 1 | AE18: 1 | AF18: 1 | AG18: 1 | AJ18: 20.12828586 | AK18: 21.69201955 | AL18: 0 | AM18: 0 | AN18: 1 | AO18: 1 | AP18: 1 | AQ18: 1 | AT18: 20.12828586 | AU18: 21.69201955 | AV18: 0 | AW18: 0 | AX18: 1 | AY18: 1 | AZ18: 1 | BA18: 1 | BD18: 20.12828586 | BE18: 21.69201955 | BF18: 0 | BG18: 0 | BH18: 1 | BI18: 1 | BJ18: 1 | BK18: 1 | BN18: 20.12828586 | BO18: 21.69201955 | BP18: 0 | BQ18: 0 | BR18: 1 | BS18: 1 | BT18: 1 | BU18: 1 | BX18: 20.12828586 | BY18: 21.69201955 | BZ18: 0 | CA18: 0 | CB18: 1 | CC18: 1 | CD18: 1 | CE18: 1
A19: Cistern Volume (L) - 6 | B19: 135000 | C19: 1966 | D19: 651.9 | E19: 778.7 | F19: 19.19770234 | G19: 21.06475914 | H19: 0 | I19: 0 | J19: 1 | K19: 1 | L19: 1 | M19: 1 | P19: 19.19770234 | Q19: 21.06475914 | R19: 0 | S19: 0 | T19: 1 | U19: 1 | V19: 1 | W19: 1 | Z19: 19.19770234 | AA19: 21.06475914 | AB19: 0 | AC19: 0 | AD19: 1 | AE19: 1 | AF19: 1 | AG19: 1 | AJ19: 19.19770234 | AK19: 21.06475914 | AL19: 0 | AM19: 0 | AN19: 1 | AO19: 1 | AP19: 1 | AQ19: 1 | AT19: 19.19770234 | AU19: 21.06475914 | AV19: 0 | AW19: 0 | AX19: 1 | AY19: 1 | AZ19: 1 | BA19: 1 | BD19: 19.19770234 | BE19: 21.06475914 | BF19: 0 | BG19: 0 | BH19: 1 | BI19: 1 | BJ19: 1 | BK19: 1 | BN19: 19.19770234 | BO19: 21.06475914 | BP19: 0 | BQ19: 0 | BR19: 1 | BS19: 1 | BT19: 1 | BU19: 1 | BX19: 19.19770234 | BY19: 21.06475914 | BZ19: 0 | CA19: 0 | CB19: 1 | CC19: 1 | CD19: 1 | CE19: 1
A20: Cistern Volume (L) - 7 | B20: 140000 | C20: 1967 | D20: 681.5 | E20: 752.2 | F20: 20.06938817 | G20: 21.11040485 | H20: 0 | I20: 0 | J20: 1 | K20: 1 | L20: 1 | M20: 1 | P20: 20.06938817 | Q20: 21.11040485 | R20: 0 | S20: 0 | T20: 1 | U20: 1 | V20: 1 | W20: 1 | Z20: 20.06938817 | AA20: 21.11040485 | AB20: 0 | AC20: 0 | AD20: 1 | AE20: 1 | AF20: 1 | AG20: 1 | AJ20: 20.06938817 | AK20: 21.11040485 | AL20: 0 | AM20: 0 | AN20: 1 | AO20: 1 | AP20: 1 | AQ20: 1 | AT20: 20.06938817 | AU20: 21.11040485 | AV20: 0 | AW20: 0 | AX20: 1 | AY20: 1 | AZ20: 1 | BA20: 1 | BD20: 20.06938817 | BE20: 21.11040485 | BF20: 0 | BG20: 0 | BH20: 1 | BI20: 1 | BJ20: 1 | BK20: 1 | BN20: 20.06938817 | BO20: 21.11040485 | BP20: 0 | BQ20: 0 | BR20: 1 | BS20: 1 | BT20: 1 | BU20: 1 | BX20: 20.06938817 | BY20: 21.11040485 | BZ20: 0 | CA20: 0 | CB20: 1 | CC20: 1 | CD20: 1 | CE20: 1
A21: Cistern Volume (L) - 8 | B21: 145000 | C21: 1968 | D21: 748.2 | E21: 827.5 | F21: 17.7814216 | G21: 18.72372762 | H21: 0 | I21: 0 | J21: 1 | K21: 1 | L21: 1 | M21: 1 | P21: 17.7814216 | Q21: 18.72372762 | R21: 0 | S21: 0 | T21: 1 | U21: 1 | V21: 1 | W21: 1 | Z21: 17.7814216 | AA21: 18.72372762 | AB21: 0 | AC21: 0 | AD21: 1 | AE21: 1 | AF21: 1 | AG21: 1 | AJ21: 17.7814216 | AK21: 18.72372762 | AL21: 0 | AM21: 0 | AN21: 1 | AO21: 1 | AP21: 1 | AQ21: 1 | AT21: 17.7814216 | AU21: 18.72372762 | AV21: 0 | AW21: 0 | AX21: 1 | AY21: 1 | AZ21: 1 | BA21: 1 | BD21: 17.7814216 | BE21: 18.72372762 | BF21: 0 | BG21: 0 | BH21: 1 | BI21: 1 | BJ21: 1 | BK21: 1 | BN21: 17.7814216 | BO21: 18.72372762 | BP21: 0 | BQ21: 0 | BR21: 1 | BS21: 1 | BT21: 1 | BU21: 1 | BX21: 17.7814216 | BY21: 18.72372762 | BZ21: 0 | CA21: 0 | CB21: 1 | CC21: 1 | CD21: 1 | CE21: 1
A22: MIN VOLUME | C22: 1969 | D22: 648.7 | E22: 761.7 | F22: 19.10346604 | G22: 20.7673258 | H22: 0 | I22: 0 | J22: 1 | K22: 1 | L22: 1 | M22: 1 | P22: 19.10346604 | Q22: 20.7673258 | R22: 0 | S22: 0 | T22: 1 | U22: 1 | V22: 1 | W22: 1 | Z22: 19.10346604 | AA22: 20.7673258 | AB22: 0 | AC22: 0 | AD22: 1 | AE22: 1 | AF22: 1 | AG22: 1 | AJ22: 19.10346604 | AK22: 20.7673258 | AL22: 0 | AM22: 0 | AN22: 1 | AO22: 1 | AP22: 1 | AQ22: 1 | AT22: 19.10346604 | AU22: 20.7673258 | AV22: 0 | AW22: 0 | AX22: 1 | AY22: 1 | AZ22: 1 | BA22: 1 | BD22: 19.10346604 | BE22: 20.7673258 | BF22: 0 | BG22: 0 | BH22: 1 | BI22: 1 | BJ22: 1 | BK22: 1 | BN22: 19.10346604 | BO22: 20.7673258 | BP22: 0 | BQ22: 0 | BR22: 1 | BS22: 1 | BT22: 1 | BU22: 1 | BX22: 19.10346604 | BY22: 20.7673258 | BZ22: 0 | CA22: 0 | CB22: 1 | CC22: 1 | CD22: 1 | CE22: 1
A23: Cistern Volume (L) - 1 | B23: =B14*$B$31 -> 16500 | C23: 1970 | D23: 734.6 | E23: 845.3 | F23: 21.63312186 | G23: 23.26311546 | H23: 0 | I23: 0 | J23: 1 | K23: 1 | L23: 1 | M23: 1 | P23: 21.63312186 | Q23: 23.26311546 | R23: 0 | S23: 0 | T23: 1 | U23: 1 | V23: 1 | W23: 1 | Z23: 21.63312186 | AA23: 23.26311546 | AB23: 0 | AC23: 0 | AD23: 1 | AE23: 1 | AF23: 1 | AG23: 1 | AJ23: 21.63312186 | AK23: 23.26311546 | AL23: 0 | AM23: 0 | AN23: 1 | AO23: 1 | AP23: 1 | AQ23: 1 | AT23: 21.63312186 | AU23: 23.26311546 | AV23: 0 | AW23: 0 | AX23: 1 | AY23: 1 | AZ23: 1 | BA23: 1 | BD23: 21.63312186 | BE23: 23.26311546 | BF23: 0 | BG23: 0 | BH23: 1 | BI23: 1 | BJ23: 1 | BK23: 1 | BN23: 21.63312186 | BO23: 23.26311546 | BP23: 0 | BQ23: 0 | BR23: 1 | BS23: 1 | BT23: 1 | BU23: 1 | BX23: 21.63312186 | BY23: 23.26311546 | BZ23: 0 | CA23: 0 | CB23: 1 | CC23: 1 | CD23: 1 | CE23: 1
A24: Cistern Volume (L) - 2 | B24: =B15*$B$31 -> 17250 | C24: 1971 | D24: 680.8 | E24: 829.2 | F24: 20.04877398 | G24: 22.23387831 | H24: 0 | I24: 0 | J24: 1 | K24: 1 | L24: 1 | M24: 1 | P24: 20.04877398 | Q24: 22.23387831 | R24: 0 | S24: 0 | T24: 1 | U24: 1 | V24: 1 | W24: 1 | Z24: 20.04877398 | AA24: 22.23387831 | AB24: 0 | AC24: 0 | AD24: 1 | AE24: 1 | AF24: 1 | AG24: 1 | AJ24: 20.04877398 | AK24: 22.23387831 | AL24: 0 | AM24: 0 | AN24: 1 | AO24: 1 | AP24: 1 | AQ24: 1 | AT24: 20.04877398 | AU24: 22.23387831 | AV24: 0 | AW24: 0 | AX24: 1 | AY24: 1 | AZ24: 1 | BA24: 1 | BD24: 20.04877398 | BE24: 22.23387831 | BF24: 0 | BG24: 0 | BH24: 1 | BI24: 1 | BJ24: 1 | BK24: 1 | BN24: 20.04877398 | BO24: 22.23387831 | BP24: 0 | BQ24: 0 | BR24: 1 | BS24: 1 | BT24: 1 | BU24: 1 | BX24: 20.04877398 | BY24: 22.23387831 | BZ24: 0 | CA24: 0 | CB24: 1 | CC24: 1 | CD24: 1 | CE24: 1
A25: Cistern Volume (L) - 3 | B25: 18000 | C25: 1972 | D25: 736.3 | E25: 905.3 | F25: 21.6831849 | G25: 24.17161234 | H25: 0 | I25: 0 | J25: 1 | K25: 1 | L25: 1 | M25: 1 | P25: 21.6831849 | Q25: 24.17161234 | R25: 0 | S25: 0 | T25: 1 | U25: 1 | V25: 1 | W25: 1 | Z25: 21.6831849 | AA25: 24.17161234 | AB25: 0 | AC25: 0 | AD25: 1 | AE25: 1 | AF25: 1 | AG25: 1 | AJ25: 21.6831849 | AK25: 24.17161234 | AL25: 0 | AM25: 0 | AN25: 1 | AO25: 1 | AP25: 1 | AQ25: 1 | AT25: 21.6831849 | AU25: 24.17161234 | AV25: 0 | AW25: 0 | AX25: 1 | AY25: 1 | AZ25: 1 | BA25: 1 | BD25: 21.6831849 | BE25: 24.17161234 | BF25: 0 | BG25: 0 | BH25: 1 | BI25: 1 | BJ25: 1 | BK25: 1 | BN25: 21.6831849 | BO25: 24.17161234 | BP25: 0 | BQ25: 0 | BR25: 1 | BS25: 1 | BT25: 1 | BU25: 1 | BX25: 21.6831849 | BY25: 24.17161234 | BZ25: 0 | CA25: 0 | CB25: 1 | CC25: 1 | CD25: 1 | CE25: 1
A26: Cistern Volume (L) - 4 | B26: 18750 | C26: 1973 | D26: 796.1 | E26: 904.7 | F26: 18.91979381 | G26: 20.21026587 | H26: 0 | I26: 0 | J26: 1 | K26: 1 | L26: 1 | M26: 1 | P26: 18.91979381 | Q26: 20.21026587 | R26: 0 | S26: 0 | T26: 1 | U26: 1 | V26: 1 | W26: 1 | Z26: 18.91979381 | AA26: 20.21026587 | AB26: 0 | AC26: 0 | AD26: 1 | AE26: 1 | AF26: 1 | AG26: 1 | AJ26: 18.91979381 | AK26: 20.21026587 | AL26: 0 | AM26: 0 | AN26: 1 | AO26: 1 | AP26: 1 | AQ26: 1 | AT26: 18.91979381 | AU26: 20.21026587 | AV26: 0 | AW26: 0 | AX26: 1 | AY26: 1 | AZ26: 1 | BA26: 1 | BD26: 18.91979381 | BE26: 20.21026587 | BF26: 0 | BG26: 0 | BH26: 1 | BI26: 1 | BJ26: 1 | BK26: 1 | BN26: 18.91979381 | BO26: 20.21026587 | BP26: 0 | BQ26: 0 | BR26: 1 | BS26: 1 | BT26: 1 | BU26: 1 | BX26: 18.91979381 | BY26: 20.21026587 | BZ26: 0 | CA26: 0 | CB26: 1 | CC26: 1 | CD26: 1 | CE26: 1
A27: Cistern Volume (L) - 5 | B27: 19500 | C27: 1974 | D27: 562.6 | E27: 709.9 | F27: 16.56792044 | G27: 18.73682791 | H27: 0 | I27: 0 | J27: 0.9456575596 | K27: 1 | L27: 1 | M27: 1 | P27: 16.56792044 | Q27: 18.73682791 | R27: 0 | S27: 0 | T27: 0.9456575596 | U27: 1 | V27: 1 | W27: 1 | Z27: 16.56792044 | AA27: 18.73682791 | AB27: 0 | AC27: 0 | AD27: 0.9456575596 | AE27: 1 | AF27: 1 | AG27: 1 | AJ27: 16.56792044 | AK27: 18.73682791 | AL27: 0 | AM27: 0 | AN27: 0.9456575596 | AO27: 1 | AP27: 1 | AQ27: 1 | AT27: 16.56792044 | AU27: 18.73682791 | AV27: 0 | AW27: 0 | AX27: 0.9456575596 | AY27: 1 | AZ27: 1 | BA27: 1 | BD27: 16.56792044 | BE27: 18.73682791 | BF27: 0 | BG27: 0 | BH27: 0.9456575596 | BI27: 1 | BJ27: 1 | BK27: 1 | BN27: 16.56792044 | BO27: 18.73682791 | BP27: 0 | BQ27: 0 | BR27: 0.9456575596 | BS27: 1 | BT27: 1 | BU27: 1 | BX27: 16.56792044 | BY27: 18.73682791 | BZ27: 0 | CA27: 0 | CB27: 0.9456575596 | CC27: 1 | CD27: 1 | CE27: 1
A28: Cistern Volume (L) - 6 | B28: 20250 | C28: 1975 | D28: 648.7 | E28: 774.8 | F28: 19.10346604 | G28: 20.96021574 | H28: 0 | I28: 0 | J28: 1 | K28: 1 | L28: 1 | M28: 1 | P28: 19.10346604 | Q28: 20.96021574 | R28: 0 | S28: 0 | T28: 1 | U28: 1 | V28: 1 | W28: 1 | Z28: 19.10346604 | AA28: 20.96021574 | AB28: 0 | AC28: 0 | AD28: 1 | AE28: 1 | AF28: 1 | AG28: 1 | AJ28: 19.10346604 | AK28: 20.96021574 | AL28: 0 | AM28: 0 | AN28: 1 | AO28: 1 | AP28: 1 | AQ28: 1 | AT28: 19.10346604 | AU28: 20.96021574 | AV28: 0 | AW28: 0 | AX28: 1 | AY28: 1 | AZ28: 1 | BA28: 1 | BD28: 19.10346604 | BE28: 20.96021574 | BF28: 0 | BG28: 0 | BH28: 1 | BI28: 1 | BJ28: 1 | BK28: 1 | BN28: 19.10346604 | BO28: 20.96021574 | BP28: 0 | BQ28: 0 | BR28: 1 | BS28: 1 | BT28: 1 | BU28: 1 | BX28: 19.10346604 | BY28: 20.96021574 | BZ28: 0 | CA28: 0 | CB28: 1 | CC28: 1 | CD28: 1 | CE28: 1
A29: Cistern Volume (L) - 7 | B29: 21000 | C29: 1976 | D29: 787.1 | E29: 913.6 | F29: 18.70590342 | G29: 20.20907759 | H29: 0 | I29: 0 | J29: 1 | K29: 1 | L29: 1 | M29: 1 | P29: 18.70590342 | Q29: 20.20907759 | R29: 0 | S29: 0 | T29: 1 | U29: 1 | V29: 1 | W29: 1 | Z29: 18.70590342 | AA29: 20.20907759 | AB29: 0 | AC29: 0 | AD29: 1 | AE29: 1 | AF29: 1 | AG29: 1 | AJ29: 18.70590342 | AK29: 20.20907759 | AL29: 0 | AM29: 0 | AN29: 1 | AO29: 1 | AP29: 1 | AQ29: 1 | AT29: 18.70590342 | AU29: 20.20907759 | AV29: 0 | AW29: 0 | AX29: 1 | AY29: 1 | AZ29: 1 | BA29: 1 | BD29: 18.70590342 | BE29: 20.20907759 | BF29: 0 | BG29: 0 | BH29: 1 | BI29: 1 | BJ29: 1 | BK29: 1 | BN29: 18.70590342 | BO29: 20.20907759 | BP29: 0 | BQ29: 0 | BR29: 1 | BS29: 1 | BT29: 1 | BU29: 1 | BX29: 18.70590342 | BY29: 20.20907759 | BZ29: 0 | CA29: 0 | CB29: 1 | CC29: 1 | CD29: 1 | CE29: 1
A30: Cistern Volume (L) - 8 | B30: 21750 | C30: 1977 | D30: 878.1 | E30: 1020.6 | F30: 17.65470737 | G30: 19.08722975 | H30: 14.59487047 | I30: 15.77911432 | J30: 1 | K30: 1 | L30: 0.5474399527 | M30: 0.5474399527 | P30: 17.65470737 | Q30: 19.08722975 | R30: 10.31219317 | S30: 11.14893587 | T30: 1 | U30: 1 | V30: 0.631271504 | W30: 0.631271504 | Z30: 17.65470737 | AA30: 19.08722975 | AB30: 6.029515872 | AC30: 6.518757423 | AD30: 1 | AE30: 1 | AF30: 0.7454205776 | AG30: 0.7454205776 | AJ30: 17.65470737 | AK30: 19.08722975 | AL30: 1.746838571 | AM30: 1.888578975 | AN30: 1 | AO30: 1 | AP30: 0.9099639494 | AQ30: 0.9099639494 | AT30: 17.65470737 | AU30: 19.08722975 | AV30: 0 | AW30: 0 | AX30: 1 | AY30: 1 | AZ30: 1 | BA30: 1 | BD30: 17.65470737 | BE30: 19.08722975 | BF30: 0 | BG30: 0 | BH30: 1 | BI30: 1 | BJ30: 1 | BK30: 1 | BN30: 17.65470737 | BO30: 19.08722975 | BP30: 0 | BQ30: 0 | BR30: 1 | BS30: 1 | BT30: 1 | BU30: 1 | BX30: 17.65470737 | BY30: 19.08722975 | BZ30: 0 | CA30: 0 | CB30: 1 | CC30: 1 | CD30: 1 | CE30: 1
A31: UNUSED VOLUME | B31: 0.15 | C31: 1978 | D31: 693.2 | E31: 857 | F31: 20.41393966 | G31: 22.8258001 | H31: 0 | I31: 0 | J31: 1 | K31: 1 | L31: 1 | M31: 1 | P31: 20.41393966 | Q31: 22.8258001 | R31: 0 | S31: 0 | T31: 1 | U31: 1 | V31: 1 | W31: 1 | Z31: 20.41393966 | AA31: 22.8258001 | AB31: 0 | AC31: 0 | AD31: 1 | AE31: 1 | AF31: 1 | AG31: 1 | AJ31: 20.41393966 | AK31: 22.8258001 | AL31: 0 | AM31: 0 | AN31: 1 | AO31: 1 | AP31: 1 | AQ31: 1 | AT31: 20.41393966 | AU31: 22.8258001 | AV31: 0 | AW31: 0 | AX31: 1 | AY31: 1 | AZ31: 1 | BA31: 1 | BD31: 20.41393966 | BE31: 22.8258001 | BF31: 0 | BG31: 0 | BH31: 1 | BI31: 1 | BJ31: 1 | BK31: 1 | BN31: 20.41393966 | BO31: 22.8258001 | BP31: 0 | BQ31: 0 | BR31: 1 | BS31: 1 | BT31: 1 | BU31: 1 | BX31: 20.41393966 | BY31: 22.8258001 | BZ31: 0 | CA31: 0 | CB31: 1 | CC31: 1 | CD31: 1 | CE31: 1
A32: Initial loss factor SM (mm) | B32: 0 | C32: 1979 | D32: 794.7 | E32: 936.2 | F32: 18.88652198 | G32: 20.56793814 | H32: 0 | I32: 0 | J32: 1 | K32: 1 | L32: 1 | M32: 1 | P32: 18.88652198 | Q32: 20.56793814 | R32: 0 | S32: 0 | T32: 1 | U32: 1 | V32: 1 | W32: 1 | Z32: 18.88652198 | AA32: 20.56793814 | AB32: 0 | AC32: 0 | AD32: 1 | AE32: 1 | AF32: 1 | AG32: 1 | AJ32: 18.88652198 | AK32: 20.56793814 | AL32: 0 | AM32: 0 | AN32: 1 | AO32: 1 | AP32: 1 | AQ32: 1 | AT32: 18.88652198 | AU32: 20.56793814 | AV32: 0 | AW32: 0 | AX32: 1 | AY32: 1 | AZ32: 1 | BA32: 1 | BD32: 18.88652198 | BE32: 20.56793814 | BF32: 0 | BG32: 0 | BH32: 1 | BI32: 1 | BJ32: 1 | BK32: 1 | BN32: 18.88652198 | BO32: 20.56793814 | BP32: 0 | BQ32: 0 | BR32: 1 | BS32: 1 | BT32: 1 | BU32: 1 | BX32: 18.88652198 | BY32: 20.56793814 | BZ32: 0 | CA32: 0 | CB32: 1 | CC32: 1 | CD32: 1 | CE32: 1
A33: Continuous loss factor SM (%) | B33: 0.5 | C33: 1980 | D33: 634 | E33: 726 | F33: 18.67056801 | G33: 20.0252149 | H33: 0 | I33: 0 | J33: 1 | K33: 1 | L33: 1 | M33: 1 | P33: 18.67056801 | Q33: 20.0252149 | R33: 0 | S33: 0 | T33: 1 | U33: 1 | V33: 1 | W33: 1 | Z33: 18.67056801 | AA33: 20.0252149 | AB33: 0 | AC33: 0 | AD33: 1 | AE33: 1 | AF33: 1 | AG33: 1 | AJ33: 18.67056801 | AK33: 20.0252149 | AL33: 0 | AM33: 0 | AN33: 1 | AO33: 1 | AP33: 1 | AQ33: 1 | AT33: 18.67056801 | AU33: 20.0252149 | AV33: 0 | AW33: 0 | AX33: 1 | AY33: 1 | AZ33: 1 | BA33: 1 | BD33: 18.67056801 | BE33: 20.0252149 | BF33: 0 | BG33: 0 | BH33: 1 | BI33: 1 | BJ33: 1 | BK33: 1 | BN33: 18.67056801 | BO33: 20.0252149 | BP33: 0 | BQ33: 0 | BR33: 1 | BS33: 1 | BT33: 1 | BU33: 1 | BX33: 18.67056801 | BY33: 20.0252149 | BZ33: 0 | CA33: 0 | CB33: 1 | CC33: 1 | CD33: 1 | CE33: 1
A34: Time Period (days per year) | B34: 365 | C34: 1981 | D34: 811.8 | E34: 901.2 | F34: 19.29291373 | G34: 20.35523603 | H34: 0 | I34: 0 | J34: 1 | K34: 1 | L34: 1 | M34: 1 | P34: 19.29291373 | Q34: 20.35523603 | R34: 0 | S34: 0 | T34: 1 | U34: 1 | V34: 1 | W34: 1 | Z34: 19.29291373 | AA34: 20.35523603 | AB34: 0 | AC34: 0 | AD34: 1 | AE34: 1 | AF34: 1 | AG34: 1 | AJ34: 19.29291373 | AK34: 20.35523603 | AL34: 0 | AM34: 0 | AN34: 1 | AO34: 1 | AP34: 1 | AQ34: 1 | AT34: 19.29291373 | AU34: 20.35523603 | AV34: 0 | AW34: 0 | AX34: 1 | AY34: 1 | AZ34: 1 | BA34: 1 | BD34: 19.29291373 | BE34: 20.35523603 | BF34: 0 | BG34: 0 | BH34: 1 | BI34: 1 | BJ34: 1 | BK34: 1 | BN34: 19.29291373 | BO34: 20.35523603 | BP34: 0 | BQ34: 0 | BR34: 1 | BS34: 1 | BT34: 1 | BU34: 1 | BX34: 19.29291373 | BY34: 20.35523603 | BZ34: 0 | CA34: 0 | CB34: 1 | CC34: 1 | CD34: 1 | CE34: 1
A35: Irrigation system deaily demand (L) | C35: 1982 | D35: 655.5 | E35: 790.3 | F35: =IF($D35<$E$1896,$D35*(I$1895/$E$1895),IF($D35<$E$1897,$D35*(I$1896/$E$1896),IF($D35<$E$1898,$D35*(I$1897/$E$1897),IF($D35<$E$1899,$D35*(I$1898/$E$1898),$D35*(I$1899/$E$1899))))) -> 19.30371819 | G35: =IF($D35<$E$1896,($D35+(($E35-$D35)*(1-$B$33)))*(I$1895/$E$1895),IF($D35<$E$1897,($D35+(($E35-$D35)*(1-$B$33)))*(I$1896/$E$1896),IF($D35<$E$1898,($D35+(($E35-$D35)*(1-$B$33)))*(I$1897/$E$1897),IF($D35<$E$1899,($D35+(($E35-$D35)*(1-$B$33)))*(I$1898/$E$1898),($D35+(($E35-$D35)*(1-$B$33)))*(I$1899/$E$1899))))) -> 21.28857037 | H35: =IF($D35<$E$1896,$D35*(K$1895/$E$1895),IF($D35<$E$1897,$D35*(K$1896/$E$1896),IF($D35<$E$1898,$D35*(K$1897/$E$1897),IF($D35<$E$1899,$D35*(K$1898/$E$1898),$D35*(K$1899/$E$1899))))) -> 0 | I35: =IF($D35<$E$1896,($D35+(($E35-$D35)*(1-$B$33)))*(K$1895/$E$1895),IF($D35<$E$1897,($D35+(($E35-$D35)*(1-$B$33)))*(K$1896/$E$1896),IF($D35<$E$1898,($D35+(($E35-$D35)*(1-$B$33)))*(K$1897/$E$1897),IF($D35<$E$1899,($D35+(($E35-$D35)*(1-$B$33)))*(K$1898/$E$1898),($D35+(($E35-$D35)*(1-$B$33)))*(K$1899/$E$1899))))) -> 0 | J35: 1 | K35: 1 | L35: =IF((F35/(F35+H35))>1,1,F35/(F35+H35)) -> 1 | M35: =IF((G35/(G35+I35))>1,1,G35/(G35+I35)) -> 1 | P35: 19.30371819 | Q35: 21.28857037 | R35: 0 | S35: 0 | T35: 1 | U35: 1 | V35: 1 | W35: 1 | Z35: 19.30371819 | AA35: 21.28857037 | AB35: 0 | AC35: 0 | AD35: 1 | AE35: 1 | AF35: 1 | AG35: 1 | AJ35: 19.30371819 | AK35: 21.28857037 | AL35: 0 | AM35: 0 | AN35: 1 | AO35: 1 | AP35: 1 | AQ35: 1 | AT35: 19.30371819 | AU35: 21.28857037 | AV35: 0 | AW35: 0 | AX35: 1 | AY35: 1 | AZ35: 1 | BA35: 1 | BD35: 19.30371819 | BE35: 21.28857037 | BF35: 0 | BG35: 0 | BH35: 1 | BI35: 1 | BJ35: 1 | BK35: 1 | BN35: 19.30371819 | BO35: 21.28857037 | BP35: 0 | BQ35: 0 | BR35: 1 | BS35: 1 | BT35: 1 | BU35: 1 | BX35: 19.30371819 | BY35: 21.28857037 | BZ35: 0 | CA35: 0 | CB35: 1 | CC35: 1 | CD35: 1 | CE35: 1
A36: Rainfall - MIN | B36: =(IF($B$5="Volume",SUM(D68:D432),SUM(E68:E432))) -> 459 | C36: 1983 | D36: 812.9 | E36: 937.5 | F36: 19.31905589 | G36: 20.79965274 | H36: 0 | I36: 0 | J36: 1 | K36: 1 | L36: 1 | M36: 1 | P36: 19.31905589 | Q36: 20.79965274 | R36: 0 | S36: 0 | T36: 1 | U36: 1 | V36: 1 | W36: 1 | Z36: 19.31905589 | AA36: 20.79965274 | AB36: 0 | AC36: 0 | AD36: 1 | AE36: 1 | AF36: 1 | AG36: 1 | AJ36: 19.31905589 | AK36: 20.79965274 | AL36: 0 | AM36: 0 | AN36: 1 | AO36: 1 | AP36: 1 | AQ36: 1 | AT36: 19.31905589 | AU36: 20.79965274 | AV36: 0 | AW36: 0 | AX36: 1 | AY36: 1 | AZ36: 1 | BA36: 1 | BD36: 19.31905589 | BE36: 20.79965274 | BF36: 0 | BG36: 0 | BH36: 1 | BI36: 1 | BJ36: 1 | BK36: 1 | BN36: 19.31905589 | BO36: 20.79965274 | BP36: 0 | BQ36: 0 | BR36: 1 | BS36: 1 | BT36: 1 | BU36: 1 | BX36: 19.31905589 | BY36: 20.79965274 | BZ36: 0 | CA36: 0 | CB36: 1 | CC36: 1 | CD36: 1 | CE36: 1
A37: Rainfall - Q1 | B37: =(IF($B$5="Volume",SUM(D433:D797),SUM(E433:E797))) -> 634.7 | C37: 1984 | D37: 667 | E37: 822.5 | F37: 19.64237991 | G37: 21.93202764 | H37: 0 | I37: 0 | J37: 1 | K37: 1 | L37: 1 | M37: 1 | P37: 19.64237991 | Q37: 21.93202764 | R37: 0 | S37: 0 | T37: 1 | U37: 1 | V37: 1 | W37: 1 | Z37: 19.64237991 | AA37: 21.93202764 | AB37: 0 | AC37: 0 | AD37: 1 | AE37: 1 | AF37: 1 | AG37: 1 | AJ37: 19.64237991 | AK37: 21.93202764 | AL37: 0 | AM37: 0 | AN37: 1 | AO37: 1 | AP37: 1 | AQ37: 1 | AT37: 19.64237991 | AU37: 21.93202764 | AV37: 0 | AW37: 0 | AX37: 1 | AY37: 1 | AZ37: 1 | BA37: 1 | BD37: 19.64237991 | BE37: 21.93202764 | BF37: 0 | BG37: 0 | BH37: 1 | BI37: 1 | BJ37: 1 | BK37: 1 | BN37: 19.64237991 | BO37: 21.93202764 | BP37: 0 | BQ37: 0 | BR37: 1 | BS37: 1 | BT37: 1 | BU37: 1 | BX37: 19.64237991 | BY37: 21.93202764 | BZ37: 0 | CA37: 0 | CB37: 1 | CC37: 1 | CD37: 1 | CE37: 1
A38: Rainfall - MED | B38: =(IF($B$5="Volume",SUM(D798:D1162),SUM(E798:E1162))) -> 693.2 | C38: 1985 | D38: 767.7 | E38: 954.5 | F38: 18.24485079 | G38: 20.46455779 | H38: 0 | I38: 0 | J38: 1 | K38: 1 | L38: 1 | M38: 1 | P38: 18.24485079 | Q38: 20.46455779 | R38: 0 | S38: 0 | T38: 1 | U38: 1 | V38: 1 | W38: 1 | Z38: 18.24485079 | AA38: 20.46455779 | AB38: 0 | AC38: 0 | AD38: 1 | AE38: 1 | AF38: 1 | AG38: 1 | AJ38: 18.24485079 | AK38: 20.46455779 | AL38: 0 | AM38: 0 | AN38: 1 | AO38: 1 | AP38: 1 | AQ38: 1 | AT38: 18.24485079 | AU38: 20.46455779 | AV38: 0 | AW38: 0 | AX38: 1 | AY38: 1 | AZ38: 1 | BA38: 1 | BD38: 18.24485079 | BE38: 20.46455779 | BF38: 0 | BG38: 0 | BH38: 1 | BI38: 1 | BJ38: 1 | BK38: 1 | BN38: 18.24485079 | BO38: 20.46455779 | BP38: 0 | BQ38: 0 | BR38: 1 | BS38: 1 | BT38: 1 | BU38: 1 | BX38: 18.24485079 | BY38: 20.46455779 | BZ38: 0 | CA38: 0 | CB38: 1 | CC38: 1 | CD38: 1 | CE38: 1
A39: Rainfall - Q3 | B39: =(IF($B$5="Volume",SUM(D1163:D1527),SUM(E1163:E1527))) -> 779.1 | C39: 1986 | D39: 811.5 | E39: 938 | F39: 19.28578405 | G39: 20.78895822 | H39: 0 | I39: 0 | J39: 1 | K39: 1 | L39: 1 | M39: 1 | P39: 19.28578405 | Q39: 20.78895822 | R39: 0 | S39: 0 | T39: 1 | U39: 1 | V39: 1 | W39: 1 | Z39: 19.28578405 | AA39: 20.78895822 | AB39: 0 | AC39: 0 | AD39: 1 | AE39: 1 | AF39: 1 | AG39: 1 | AJ39: 19.28578405 | AK39: 20.78895822 | AL39: 0 | AM39: 0 | AN39: 1 | AO39: 1 | AP39: 1 | AQ39: 1 | AT39: 19.28578405 | AU39: 20.78895822 | AV39: 0 | AW39: 0 | AX39: 1 | AY39: 1 | AZ39: 1 | BA39: 1 | BD39: 19.28578405 | BE39: 20.78895822 | BF39: 0 | BG39: 0 | BH39: 1 | BI39: 1 | BJ39: 1 | BK39: 1 | BN39: 19.28578405 | BO39: 20.78895822 | BP39: 0 | BQ39: 0 | BR39: 1 | BS39: 1 | BT39: 1 | BU39: 1 | BX39: 19.28578405 | BY39: 20.78895822 | BZ39: 0 | CA39: 0 | CB39: 1 | CC39: 1 | CD39: 1 | CE39: 1
A40: Rainfall - MAX | B40: =(IF($B$5="Volume",SUM(D1528:D1892),SUM(E1528:E1892))) -> 1096.5 | C40: 1987 | D40: 741.8 | E40: 860.4 | F40: 17.62932176 | G40: 19.03862181 | H40: 0 | I40: 0 | J40: 1 | K40: 1 | L40: 1 | M40: 1 | P40: 17.62932176 | Q40: 19.03862181 | R40: 0 | S40: 0 | T40: 1 | U40: 1 | V40: 1 | W40: 1 | Z40: 17.62932176 | AA40: 19.03862181 | AB40: 0 | AC40: 0 | AD40: 1 | AE40: 1 | AF40: 1 | AG40: 1 | AJ40: 17.62932176 | AK40: 19.03862181 | AL40: 0 | AM40: 0 | AN40: 1 | AO40: 1 | AP40: 1 | AQ40: 1 | AT40: 17.62932176 | AU40: 19.03862181 | AV40: 0 | AW40: 0 | AX40: 1 | AY40: 1 | AZ40: 1 | BA40: 1 | BD40: 17.62932176 | BE40: 19.03862181 | BF40: 0 | BG40: 0 | BH40: 1 | BI40: 1 | BJ40: 1 | BK40: 1 | BN40: 17.62932176 | BO40: 19.03862181 | BP40: 0 | BQ40: 0 | BR40: 1 | BS40: 1 | BT40: 1 | BU40: 1 | BX40: 17.62932176 | BY40: 19.03862181 | BZ40: 0 | CA40: 0 | CB40: 1 | CC40: 1 | CD40: 1 | CE40: 1
A41: Rainfall and Snowfall - MIN | B41: =INDEX($E$3:$E$58,MATCH(MIN(ABS($D$3:$D$58-B36)),ABS($D$3:$D$58-B36),0)) -> 593.3 | C41: 1988 | D41: 595.3 | E41: 678 | F41: 17.53089769 | G41: 18.74860745 | H41: 0 | I41: 0 | J41: 1 | K41: 1 | L41: 1 | M41: 1 | P41: 17.53089769 | Q41: 18.74860745 | R41: 0 | S41: 0 | T41: 1 | U41: 1 | V41: 1 | W41: 1 | Z41: 17.53089769 | AA41: 18.74860745 | AB41: 0 | AC41: 0 | AD41: 1 | AE41: 1 | AF41: 1 | AG41: 1 | AJ41: 17.53089769 | AK41: 18.74860745 | AL41: 0 | AM41: 0 | AN41: 1 | AO41: 1 | AP41: 1 | AQ41: 1 | AT41: 17.53089769 | AU41: 18.74860745 | AV41: 0 | AW41: 0 | AX41: 1 | AY41: 1 | AZ41: 1 | BA41: 1 | BD41: 17.53089769 | BE41: 18.74860745 | BF41: 0 | BG41: 0 | BH41: 1 | BI41: 1 | BJ41: 1 | BK41: 1 | BN41: 17.53089769 | BO41: 18.74860745 | BP41: 0 | BQ41: 0 | BR41: 1 | BS41: 1 | BT41: 1 | BU41: 1 | BX41: 17.53089769 | BY41: 18.74860745 | BZ41: 0 | CA41: 0 | CB41: 1 | CC41: 1 | CD41: 1 | CE41: 1
A42: Rainfall and Snowfall - Q1 | B42: =INDEX($E$3:$E$58,MATCH(MIN(ABS($D$3:$D$58-B37)),ABS($D$3:$D$58-B37),0)) -> 737.2 | C42: 1989 | D42: 657.9 | E42: 797.9 | F42: 19.37439542 | G42: 21.4358146 | H42: 0 | I42: 0 | J42: 1 | K42: 1 | L42: 1 | M42: 1 | P42: 19.37439542 | Q42: 21.4358146 | R42: 0 | S42: 0 | T42: 1 | U42: 1 | V42: 1 | W42: 1 | Z42: 19.37439542 | AA42: 21.4358146 | AB42: 0 | AC42: 0 | AD42: 1 | AE42: 1 | AF42: 1 | AG42: 1 | AJ42: 19.37439542 | AK42: 21.4358146 | AL42: 0 | AM42: 0 | AN42: 1 | AO42: 1 | AP42: 1 | AQ42: 1 | AT42: 19.37439542 | AU42: 21.4358146 | AV42: 0 | AW42: 0 | AX42: 1 | AY42: 1 | AZ42: 1 | BA42: 1 | BD42: 19.37439542 | BE42: 21.4358146 | BF42: 0 | BG42: 0 | BH42: 1 | BI42: 1 | BJ42: 1 | BK42: 1 | BN42: 19.37439542 | BO42: 21.4358146 | BP42: 0 | BQ42: 0 | BR42: 1 | BS42: 1 | BT42: 1 | BU42: 1 | BX42: 19.37439542 | BY42: 21.4358146 | BZ42: 0 | CA42: 0 | CB42: 1 | CC42: 1 | CD42: 1 | CE42: 1
A43: Rainfall and Snowfall - MED | B43: =INDEX($E$3:$E$58,MATCH(MIN(ABS($D$3:$D$58-B38)),ABS($D$3:$D$58-B38),0)) -> 857 | C43: 1990 | D43: 880.9 | E43: 967.8 | F43: 17.71100298 | G43: 18.58459031 | H43: 14.64140918 | I43: 15.36359016 | J43: 1 | K43: 1 | L43: 0.5474399527 | M43: 0.5474399527 | P43: 17.71100298 | Q43: 18.58459031 | R43: 10.34507569 | S43: 10.85534194 | T43: 1 | U43: 1 | V43: 0.631271504 | W43: 0.631271504 | Z43: 17.71100298 | AA43: 18.58459031 | AB43: 6.048742207 | AC43: 6.347093721 | AD43: 1 | AE43: 1 | AF43: 0.7454205776 | AG43: 0.7454205776 | AJ43: 17.71100298 | AK43: 18.58459031 | AL43: 1.75240872 | AM43: 1.8388455 | AN43: 1 | AO43: 1 | AP43: 0.9099639494 | AQ43: 0.9099639494 | AT43: 17.71100298 | AU43: 18.58459031 | AV43: 0 | AW43: 0 | AX43: 1 | AY43: 1 | AZ43: 1 | BA43: 1 | BD43: 17.71100298 | BE43: 18.58459031 | BF43: 0 | BG43: 0 | BH43: 1 | BI43: 1 | BJ43: 1 | BK43: 1 | BN43: 17.71100298 | BO43: 18.58459031 | BP43: 0 | BQ43: 0 | BR43: 1 | BS43: 1 | BT43: 1 | BU43: 1 | BX43: 17.71100298 | BY43: 18.58459031 | BZ43: 0 | CA43: 0 | CB43: 1 | CC43: 1 | CD43: 1 | CE43: 1
A44: Rainfall and Snowfall - Q3 | B44: =INDEX($E$3:$E$58,MATCH(MIN(ABS($D$3:$D$58-B39)),ABS($D$3:$D$58-B39),0)) -> 871.4 | C44: 1991 | D44: 670.6 | E44: 791.9 | F44: 19.74839575 | G44: 21.53446823 | H44: 0 | I44: 0 | J44: 1 | K44: 1 | L44: 1 | M44: 1 | P44: 19.74839575 | Q44: 21.53446823 | R44: 0 | S44: 0 | T44: 1 | U44: 1 | V44: 1 | W44: 1 | Z44: 19.74839575 | AA44: 21.53446823 | AB44: 0 | AC44: 0 | AD44: 1 | AE44: 1 | AF44: 1 | AG44: 1 | AJ44: 19.74839575 | AK44: 21.53446823 | AL44: 0 | AM44: 0 | AN44: 1 | AO44: 1 | AP44: 1 | AQ44: 1 | AT44: 19.74839575 | AU44: 21.53446823 | AV44: 0 | AW44: 0 | AX44: 1 | AY44: 1 | AZ44: 1 | BA44: 1 | BD44: 19.74839575 | BE44: 21.53446823 | BF44: 0 | BG44: 0 | BH44: 1 | BI44: 1 | BJ44: 1 | BK44: 1 | BN44: 19.74839575 | BO44: 21.53446823 | BP44: 0 | BQ44: 0 | BR44: 1 | BS44: 1 | BT44: 1 | BU44: 1 | BX44: 19.74839575 | BY44: 21.53446823 | BZ44: 0 | CA44: 0 | CB44: 1 | CC44: 1 | CD44: 1 | CE44: 1
A45: Rainfall and Snowfall - MAX | B45: =INDEX($E$3:$E$58,MATCH(MIN(ABS($D$3:$D$58-B40)),ABS($D$3:$D$58-B40),0)) -> 1295.3 | C45: 1992 | D45: 903.5 | E45: 1017.8 | F45: 18.16538903 | G45: 19.31442277 | H45: 15.01704302 | I45: 15.96693124 | J45: 1 | K45: 1 | L45: 0.5474399527 | M45: 0.5474399527 | P45: 18.16538903 | Q45: 19.31442277 | R45: 10.61048461 | S45: 11.28164033 | T45: 1 | U45: 1 | V45: 0.631271504 | W45: 0.631271504 | Z45: 18.16538903 | AA45: 19.31442277 | AB45: 6.203926193 | AC45: 6.596349416 | AD45: 1 | AE45: 1 | AF45: 0.7454205776 | AG45: 0.7454205776 | AJ45: 18.16538903 | AK45: 19.31442277 | AL45: 1.797367782 | AM45: 1.911058505 | AN45: 1 | AO45: 1 | AP45: 0.9099639494 | AQ45: 0.9099639494 | AT45: 18.16538903 | AU45: 19.31442277 | AV45: 0 | AW45: 0 | AX45: 1 | AY45: 1 | AZ45: 1 | BA45: 1 | BD45: 18.16538903 | BE45: 19.31442277 | BF45: 0 | BG45: 0 | BH45: 1 | BI45: 1 | BJ45: 1 | BK45: 1 | BN45: 18.16538903 | BO45: 19.31442277 | BP45: 0 | BQ45: 0 | BR45: 1 | BS45: 1 | BT45: 1 | BU45: 1 | BX45: 18.16538903 | BY45: 19.31442277 | BZ45: 0 | CA45: 0 | CB45: 1 | CC45: 1 | CD45: 1 | CE45: 1
A46: Monthly Equivalent Snowfall-MIN | B46: =(B41-B36)/(5) -> 26.86 | C46: 1993 | D46: 616 | E46: 756.3 | F46: 18.14048879 | G46: 20.2063253 | H46: 0 | I46: 0 | J46: 1 | K46: 1 | L46: 1 | M46: 1 | P46: 18.14048879 | Q46: 20.2063253 | R46: 0 | S46: 0 | T46: 1 | U46: 1 | V46: 1 | W46: 1 | Z46: 18.14048879 | AA46: 20.2063253 | AB46: 0 | AC46: 0 | AD46: 1 | AE46: 1 | AF46: 1 | AG46: 1 | AJ46: 18.14048879 | AK46: 20.2063253 | AL46: 0 | AM46: 0 | AN46: 1 | AO46: 1 | AP46: 1 | AQ46: 1 | AT46: 18.14048879 | AU46: 20.2063253 | AV46: 0 | AW46: 0 | AX46: 1 | AY46: 1 | AZ46: 1 | BA46: 1 | BD46: 18.14048879 | BE46: 20.2063253 | BF46: 0 | BG46: 0 | BH46: 1 | BI46: 1 | BJ46: 1 | BK46: 1 | BN46: 18.14048879 | BO46: 20.2063253 | BP46: 0 | BQ46: 0 | BR46: 1 | BS46: 1 | BT46: 1 | BU46: 1 | BX46: 18.14048879 | BY46: 20.2063253 | BZ46: 0 | CA46: 0 | CB46: 1 | CC46: 1 | CD46: 1 | CE46: 1
A47: Monthly Equivalent Snowfall-Q1 | B47: =(B42-B37)/(5) -> 20.5 | C47: 1994 | D47: 779.8 | E47: 978.9 | F47: 18.53241454 | G47: 20.89827998 | H47: 0 | I47: 0 | J47: 1 | K47: 1 | L47: 1 | M47: 1 | P47: 18.53241454 | Q47: 20.89827998 | R47: 0 | S47: 0 | T47: 1 | U47: 1 | V47: 1 | W47: 1 | Z47: 18.53241454 | AA47: 20.89827998 | AB47: 0 | AC47: 0 | AD47: 1 | AE47: 1 | AF47: 1 | AG47: 1 | AJ47: 18.53241454 | AK47: 20.89827998 | AL47: 0 | AM47: 0 | AN47: 1 | AO47: 1 | AP47: 1 | AQ47: 1 | AT47: 18.53241454 | AU47: 20.89827998 | AV47: 0 | AW47: 0 | AX47: 1 | AY47: 1 | AZ47: 1 | BA47: 1 | BD47: 18.53241454 | BE47: 20.89827998 | BF47: 0 | BG47: 0 | BH47: 1 | BI47: 1 | BJ47: 1 | BK47: 1 | BN47: 18.53241454 | BO47: 20.89827998 | BP47: 0 | BQ47: 0 | BR47: 1 | BS47: 1 | BT47: 1 | BU47: 1 | BX47: 18.53241454 | BY47: 20.89827998 | BZ47: 0 | CA47: 0 | CB47: 1 | CC47: 1 | CD47: 1 | CE47: 1
A48: Monthly Equivalent Snowfall-MED | B48: =(B43-B38)/(5) -> 32.76 | C48: 1995 | D48: 747 | E48: 848.2 | F48: 17.75290288 | G48: 18.95544221 | H48: 0 | I48: 0 | J48: 1 | K48: 1 | L48: 1 | M48: 1 | P48: 17.75290288 | Q48: 18.95544221 | R48: 0 | S48: 0 | T48: 1 | U48: 1 | V48: 1 | W48: 1 | Z48: 17.75290288 | AA48: 18.95544221 | AB48: 0 | AC48: 0 | AD48: 1 | AE48: 1 | AF48: 1 | AG48: 1 | AJ48: 17.75290288 | AK48: 18.95544221 | AL48: 0 | AM48: 0 | AN48: 1 | AO48: 1 | AP48: 1 | AQ48: 1 | AT48: 17.75290288 | AU48: 18.95544221 | AV48: 0 | AW48: 0 | AX48: 1 | AY48: 1 | AZ48: 1 | BA48: 1 | BD48: 17.75290288 | BE48: 18.95544221 | BF48: 0 | BG48: 0 | BH48: 1 | BI48: 1 | BJ48: 1 | BK48: 1 | BN48: 17.75290288 | BO48: 18.95544221 | BP48: 0 | BQ48: 0 | BR48: 1 | BS48: 1 | BT48: 1 | BU48: 1 | BX48: 17.75290288 | BY48: 18.95544221 | BZ48: 0 | CA48: 0 | CB48: 1 | CC48: 1 | CD48: 1 | CE48: 1
A49: Monthly Equivalent Snowfall-Q3 | B49: =(B44-B39)/(5) -> 18.46 | C49: 1996 | D49: 1096.5 | E49: 1295.3 | F49: 22.04576543 | G49: 24.04425981 | H49: 18.22488951 | I49: 19.87701355 | J49: 1 | K49: 1 | L49: 0.5474399527 | M49: 0.5474399527 | P49: 22.04576543 | Q49: 24.04425981 | R49: 12.87702974 | S49: 14.0443592 | T49: 1 | U49: 1 | V49: 0.631271504 | W49: 0.631271504 | Z49: 22.04576543 | AA49: 24.04425981 | AB49: 7.529169974 | AC49: 8.211704853 | AD49: 1 | AE49: 1 | AF49: 0.7454205776 | AG49: 0.7454205776 | AJ49: 22.04576543 | AK49: 24.04425981 | AL49: 2.181310208 | AM49: 2.379050504 | AN49: 1 | AO49: 1 | AP49: 0.9099639494 | AQ49: 0.9099639494 | AT49: 22.04576543 | AU49: 24.04425981 | AV49: 0 | AW49: 0 | AX49: 1 | AY49: 1 | AZ49: 1 | BA49: 1 | BD49: 22.04576543 | BE49: 24.04425981 | BF49: 0 | BG49: 0 | BH49: 1 | BI49: 1 | BJ49: 1 | BK49: 1 | BN49: 22.04576543 | BO49: 24.04425981 | BP49: 0 | BQ49: 0 | BR49: 1 | BS49: 1 | BT49: 1 | BU49: 1 | BX49: 22.04576543 | BY49: 24.04425981 | BZ49: 0 | CA49: 0 | CB49: 1 | CC49: 1 | CD49: 1 | CE49: 1
A50: Monthly Equivalent Snowfall-MAX | B50: =(B45-B40)/(5) -> 39.76 | C50: 1997 | D50: 763.3 | E50: 924.8 | F50: 18.14028215 | G50: 20.05935431 | H50: 0 | I50: 0 | J50: 1 | K50: 1 | L50: 1 | M50: 1 | P50: 18.14028215 | Q50: 20.05935431 | R50: 0 | S50: 0 | T50: 1 | U50: 1 | V50: 1 | W50: 1 | Z50: 18.14028215 | AA50: 20.05935431 | AB50: 0 | AC50: 0 | AD50: 1 | AE50: 1 | AF50: 1 | AG50: 1 | AJ50: 18.14028215 | AK50: 20.05935431 | AL50: 0 | AM50: 0 | AN50: 1 | AO50: 1 | AP50: 1 | AQ50: 1 | AT50: 18.14028215 | AU50: 20.05935431 | AV50: 0 | AW50: 0 | AX50: 1 | AY50: 1 | AZ50: 1 | BA50: 1 | BD50: 18.14028215 | BE50: 20.05935431 | BF50: 0 | BG50: 0 | BH50: 1 | BI50: 1 | BJ50: 1 | BK50: 1 | BN50: 18.14028215 | BO50: 20.05935431 | BP50: 0 | BQ50: 0 | BR50: 1 | BS50: 1 | BT50: 1 | BU50: 1 | BX50: 18.14028215 | BY50: 20.05935431 | BZ50: 0 | CA50: 0 | CB50: 1 | CC50: 1 | CD50: 1 | CE50: 1
C51: 1998 | D51: 750.6 | E51: 833.3 | F51: 17.83845903 | G51: 18.82116658 | H51: 0 | I51: 0 | J51: 1 | K51: 1 | L51: 1 | M51: 1 | P51: 17.83845903 | Q51: 18.82116658 | R51: 0 | S51: 0 | T51: 1 | U51: 1 | V51: 1 | W51: 1 | Z51: 17.83845903 | AA51: 18.82116658 | AB51: 0 | AC51: 0 | AD51: 1 | AE51: 1 | AF51: 1 | AG51: 1 | AJ51: 17.83845903 | AK51: 18.82116658 | AL51: 0 | AM51: 0 | AN51: 1 | AO51: 1 | AP51: 1 | AQ51: 1 | AT51: 17.83845903 | AU51: 18.82116658 | AV51: 0 | AW51: 0 | AX51: 1 | AY51: 1 | AZ51: 1 | BA51: 1 | BD51: 17.83845903 | BE51: 18.82116658 | BF51: 0 | BG51: 0 | BH51: 1 | BI51: 1 | BJ51: 1 | BK51: 1 | BN51: 17.83845903 | BO51: 18.82116658 | BP51: 0 | BQ51: 0 | BR51: 1 | BS51: 1 | BT51: 1 | BU51: 1 | BX51: 17.83845903 | BY51: 18.82116658 | BZ51: 0 | CA51: 0 | CB51: 1 | CC51: 1 | CD51: 1 | CE51: 1
A52: Irrigation system Schedule: | C52: 1999 | D52: 621.3 | E52: 796.4 | F52: 18.29656767 | G52: 20.87481409 | H52: 0 | I52: 0 | J52: 1 | K52: 1 | L52: 1 | M52: 1 | P52: 18.29656767 | Q52: 20.87481409 | R52: 0 | S52: 0 | T52: 1 | U52: 1 | V52: 1 | W52: 1 | Z52: 18.29656767 | AA52: 20.87481409 | AB52: 0 | AC52: 0 | AD52: 1 | AE52: 1 | AF52: 1 | AG52: 1 | AJ52: 18.29656767 | AK52: 20.87481409 | AL52: 0 | AM52: 0 | AN52: 1 | AO52: 1 | AP52: 1 | AQ52: 1 | AT52: 18.29656767 | AU52: 20.87481409 | AV52: 0 | AW52: 0 | AX52: 1 | AY52: 1 | AZ52: 1 | BA52: 1 | BD52: 18.29656767 | BE52: 20.87481409 | BF52: 0 | BG52: 0 | BH52: 1 | BI52: 1 | BJ52: 1 | BK52: 1 | BN52: 18.29656767 | BO52: 20.87481409 | BP52: 0 | BQ52: 0 | BR52: 1 | BS52: 1 | BT52: 1 | BU52: 1 | BX52: 18.29656767 | BY52: 20.87481409 | BZ52: 0 | CA52: 0 | CB52: 1 | CC52: 1 | CD52: 1 | CE52: 1
A53: September | B53: 9 | C53: 2000 | D53: 701.7 | E53: 894.6 | F53: 20.66425485 | G53: 23.50459599 | H53: 0 | I53: 0 | J53: 1 | K53: 1 | L53: 1 | M53: 1 | P53: 20.66425485 | Q53: 23.50459599 | R53: 0 | S53: 0 | T53: 1 | U53: 1 | V53: 1 | W53: 1 | Z53: 20.66425485 | AA53: 23.50459599 | AB53: 0 | AC53: 0 | AD53: 1 | AE53: 1 | AF53: 1 | AG53: 1 | AJ53: 20.66425485 | AK53: 23.50459599 | AL53: 0 | AM53: 0 | AN53: 1 | AO53: 1 | AP53: 1 | AQ53: 1 | AT53: 20.66425485 | AU53: 23.50459599 | AV53: 0 | AW53: 0 | AX53: 1 | AY53: 1 | AZ53: 1 | BA53: 1 | BD53: 20.66425485 | BE53: 23.50459599 | BF53: 0 | BG53: 0 | BH53: 1 | BI53: 1 | BJ53: 1 | BK53: 1 | BN53: 20.66425485 | BO53: 23.50459599 | BP53: 0 | BQ53: 0 | BR53: 1 | BS53: 1 | BT53: 1 | BU53: 1 | BX53: 20.66425485 | BY53: 23.50459599 | BZ53: 0 | CA53: 0 | CB53: 1 | CC53: 1 | CD53: 1 | CE53: 1
A54: May | B54: 5 | C54: 2001 | D54: 598.9 | E54: 707.5 | F54: 17.63691353 | G54: 19.23598584 | H54: 0 | I54: 0 | J54: 1 | K54: 1 | L54: 1 | M54: 1 | P54: 17.63691353 | Q54: 19.23598584 | R54: 0 | S54: 0 | T54: 1 | U54: 1 | V54: 1 | W54: 1 | Z54: 17.63691353 | AA54: 19.23598584 | AB54: 0 | AC54: 0 | AD54: 1 | AE54: 1 | AF54: 1 | AG54: 1 | AJ54: 17.63691353 | AK54: 19.23598584 | AL54: 0 | AM54: 0 | AN54: 1 | AO54: 1 | AP54: 1 | AQ54: 1 | AT54: 17.63691353 | AU54: 19.23598584 | AV54: 0 | AW54: 0 | AX54: 1 | AY54: 1 | AZ54: 1 | BA54: 1 | BD54: 17.63691353 | BE54: 19.23598584 | BF54: 0 | BG54: 0 | BH54: 1 | BI54: 1 | BJ54: 1 | BK54: 1 | BN54: 17.63691353 | BO54: 19.23598584 | BP54: 0 | BQ54: 0 | BR54: 1 | BS54: 1 | BT54: 1 | BU54: 1 | BX54: 17.63691353 | BY54: 19.23598584 | BZ54: 0 | CA54: 0 | CB54: 1 | CC54: 1 | CD54: 1 | CE54: 1
A55: Snowfall Schedule: | C55: 2002 | D55: 626.8 | E55: 744.6 | F55: 18.45853632 | G55: 20.19307332 | H55: 0 | I55: 0 | J55: 1 | K55: 1 | L55: 1 | M55: 1 | P55: 18.45853632 | Q55: 20.19307332 | R55: 0 | S55: 0 | T55: 1 | U55: 1 | V55: 1 | W55: 1 | Z55: 18.45853632 | AA55: 20.19307332 | AB55: 0 | AC55: 0 | AD55: 1 | AE55: 1 | AF55: 1 | AG55: 1 | AJ55: 18.45853632 | AK55: 20.19307332 | AL55: 0 | AM55: 0 | AN55: 1 | AO55: 1 | AP55: 1 | AQ55: 1 | AT55: 18.45853632 | AU55: 20.19307332 | AV55: 0 | AW55: 0 | AX55: 1 | AY55: 1 | AZ55: 1 | BA55: 1 | BD55: 18.45853632 | BE55: 20.19307332 | BF55: 0 | BG55: 0 | BH55: 1 | BI55: 1 | BJ55: 1 | BK55: 1 | BN55: 18.45853632 | BO55: 20.19307332 | BP55: 0 | BQ55: 0 | BR55: 1 | BS55: 1 | BT55: 1 | BU55: 1 | BX55: 18.45853632 | BY55: 20.19307332 | BZ55: 0 | CA55: 0 | CB55: 1 | CC55: 1 | CD55: 1 | CE55: 1
A56: November | B56: 11 | C56: 2003 | D56: 834.3 | E56: 934.3 | F56: 19.82763972 | G56: 21.0159197 | H56: 0 | I56: 0 | J56: 1 | K56: 1 | L56: 1 | M56: 1 | P56: 19.82763972 | Q56: 21.0159197 | R56: 0 | S56: 0 | T56: 1 | U56: 1 | V56: 1 | W56: 1 | Z56: 19.82763972 | AA56: 21.0159197 | AB56: 0 | AC56: 0 | AD56: 1 | AE56: 1 | AF56: 1 | AG56: 1 | AJ56: 19.82763972 | AK56: 21.0159197 | AL56: 0 | AM56: 0 | AN56: 1 | AO56: 1 | AP56: 1 | AQ56: 1 | AT56: 19.82763972 | AU56: 21.0159197 | AV56: 0 | AW56: 0 | AX56: 1 | AY56: 1 | AZ56: 1 | BA56: 1 | BD56: 19.82763972 | BE56: 21.0159197 | BF56: 0 | BG56: 0 | BH56: 1 | BI56: 1 | BJ56: 1 | BK56: 1 | BN56: 19.82763972 | BO56: 21.0159197 | BP56: 0 | BQ56: 0 | BR56: 1 | BS56: 1 | BT56: 1 | BU56: 1 | BX56: 19.82763972 | BY56: 21.0159197 | BZ56: 0 | CA56: 0 | CB56: 1 | CC56: 1 | CD56: 1 | CE56: 1
A57: March | B57: 3 | C57: 2004 | D57: 849.9 | E57: 935.1 | F57: 20.19838307 | G57: 21.21079761 | H57: 0 | I57: 0 | J57: 1 | K57: 1 | L57: 1 | M57: 1 | P57: 20.19838307 | Q57: 21.21079761 | R57: 0 | S57: 0 | T57: 1 | U57: 1 | V57: 1 | W57: 1 | Z57: 20.19838307 | AA57: 21.21079761 | AB57: 0 | AC57: 0 | AD57: 1 | AE57: 1 | AF57: 1 | AG57: 1 | AJ57: 20.19838307 | AK57: 21.21079761 | AL57: 0 | AM57: 0 | AN57: 1 | AO57: 1 | AP57: 1 | AQ57: 1 | AT57: 20.19838307 | AU57: 21.21079761 | AV57: 0 | AW57: 0 | AX57: 1 | AY57: 1 | AZ57: 1 | BA57: 1 | BD57: 20.19838307 | BE57: 21.21079761 | BF57: 0 | BG57: 0 | BH57: 1 | BI57: 1 | BJ57: 1 | BK57: 1 | BN57: 20.19838307 | BO57: 21.21079761 | BP57: 0 | BQ57: 0 | BR57: 1 | BS57: 1 | BT57: 1 | BU57: 1 | BX57: 20.19838307 | BY57: 21.21079761 | BZ57: 0 | CA57: 0 | CB57: 1 | CC57: 1 | CD57: 1 | CE57: 1
A58: Snowmelt on second of every month | B58: 2 | C58: 2005 | D58: 481.1 | E58: 604.2 | F58: 14.16783954 | G58: 15.98041598 | H58: 0 | I58: 0 | J58: 0.8086666405 | K58: 0.9121241997 | L58: 1 | M58: 1 | P58: 14.16783954 | Q58: 15.98041598 | R58: 0 | S58: 0 | T58: 0.8086666405 | U58: 0.9121241997 | V58: 1 | W58: 1 | Z58: 14.16783954 | AA58: 15.98041598 | AB58: 0 | AC58: 0 | AD58: 0.8086666405 | AE58: 0.9121241997 | AF58: 1 | AG58: 1 | AJ58: 14.16783954 | AK58: 15.98041598 | AL58: 0 | AM58: 0 | AN58: 0.8086666405 | AO58: 0.9121241997 | AP58: 1 | AQ58: 1 | AT58: 14.16783954 | AU58: 15.98041598 | AV58: 0 | AW58: 0 | AX58: 0.8086666405 | AY58: 0.9121241997 | AZ58: 1 | BA58: 1 | BD58: 14.16783954 | BE58: 15.98041598 | BF58: 0 | BG58: 0 | BH58: 0.8086666405 | BI58: 0.9121241997 | BJ58: 1 | BK58: 1 | BN58: 14.16783954 | BO58: 15.98041598 | BP58: 0 | BQ58: 0 | BR58: 0.8086666405 | BS58: 0.9121241997 | BT58: 1 | BU58: 1 | BX58: 14.16783954 | BY58: 15.98041598 | BZ58: 0 | CA58: 0 | CB58: 0.8086666405 | CC58: 0.9121241997 | CD58: 1 | CE58: 1
A59: Guaranteed stormwater detention | B59: NO | C59: testa1 | D59: testa2 | E59: testa3 | F59: testa4 | G59: testa5 | H59: testa6 | I59: testa7 | J59: testa8 | K59: testa9 | L59: testa10 | P59: testa4 | Q59: testa5 | R59: testa6 | S59: testa7 | T59: testa8 | U59: testa9 | V59: testa10 | Z59: testa4 | AA59: testa5 | AB59: testa6 | AC59: testa7 | AD59: testa8 | AE59: testa9 | AF59: testa10 | AJ59: testa4 | AK59: testa5 | AL59: testa6 | AM59: testa7 | AN59: testa8 | AO59: testa9 | AP59: testa10 | AT59: testa4 | AU59: testa5 | AV59: testa6 | AW59: testa7 | AX59: testa8 | AY59: testa9 | AZ59: testa10 | BD59: testa4 | BE59: testa5 | BF59: testa6 | BG59: testa7 | BH59: testa8 | BI59: testa9 | BJ59: testa10 | BN59: testa4 | BO59: testa5 | BP59: testa6 | BQ59: testa7 | BR59: testa8 | BS59: testa9 | BT59: testa10 | BX59: testa4 | BY59: testa5 | BZ59: testa6 | CA59: testa7 | CB59: testa8 | CC59: testa9 | CD59: testa10
A60: Detention Volume (L) | C60: 5-year storm (mm) | D60: 61.2
A61: Garden hose daily demand | C61: 10-year storm (mm) | D61: 64.5
A62: Garden hose Schedule: | C62: 15-year storm (mm) | D62: 66
A63: September | B63: 9 | C63: 20-year storm (mm) | D63: 67
A64: May | B64: 5 | C64: 30-year storm (mm) | D64: 67
C65: 40-year storm (mm) | D65: 67
A66: CALCULATION COMPLETE? | B66: TRUE | C66: 50-year storm (mm) | D66: 89.3
C67: Date | D67: Rainfall [by volume] (mm) | E67: Rainfall [by rain events] (mm) | F67: Theoretical Yield (L) | G67: Yield Following Pre-treatment and Roof Losses (L) | H67: Cistern Volume - Beginning of Day (L) | I67: Cistern Volume - End of Day (L) | J67: Overflow (L) | K67: Rainwater Withdrawl (L) | L67: Final Cistern Volume (L) | M67: Rainwater Available? (1=yes) | N67: Overflow? (1=yes) | O67: Annual Theoretical Demand (L) *DO NOT REMOVE | P67: Theoretical Yield (L) | Q67: Yield Following Pre-treatment and Roof Losses (L) | R67: Cistern Volume - Beginning of Day (L) | S67: Cistern Volume - End of Day (L) | T67: Overflow (L) | U67: Rainwater Withdrawl (L) | V67: Final Cistern Volume (L) | W67: Rainwater Available? (1=yes) | X67: Overflow? (1=yes) | Y67: Annual Theoretical Demand (L) *DO NOT REMOVE | Z67: Theoretical Yield (L) | AA67: Yield Following Pre-treatment and Roof Losses (L) | AB67: Cistern Volume - Beginning of Day (L) | AC67: Cistern Volume - End of Day (L) | AD67: Overflow (L) | AE67: Rainwater Withdrawl (L) | AF67: Final Cistern Volume (L) | AG67: Rainwater Available? (1=yes) | AH67: Overflow? (1=yes) | AI67: Annual Theoretical Demand (L) *DO NOT REMOVE | AJ67: Theoretical Yield (L) | AK67: Yield Following Pre-treatment and Roof Losses (L) | AL67: Cistern Volume - Beginning of Day (L) | AM67: Cistern Volume - End of Day (L) | AN67: Overflow (L) | AO67: Rainwater Withdrawl (L) | AP67: Final Cistern Volume (L) | AQ67: Rainwater Available? (1=yes) | AR67: Overflow? (1=yes) | AS67: Annual Theoretical Demand (L) *DO NOT REMOVE | AT67: Theoretical Yield (L) | AU67: Yield Following Pre-treatment and Roof Losses (L) | AV67: Cistern Volume - Beginning of Day (L) | AW67: Cistern Volume - End of Day (L) | AX67: Overflow (L) | AY67: Rainwater Withdrawl (L) | AZ67: Final Cistern Volume (L) | BA67: Rainwater Available? (1=yes) | BB67: Overflow? (1=yes) | BC67: Annual Theoretical Demand (L) *DO NOT REMOVE | BD67: Theoretical Yield (L) | BE67: Yield Following Pre-treatment and Roof Losses (L) | BF67: Cistern Volume - Beginning of Day (L) | BG67: Cistern Volume - End of Day (L) | BH67: Overflow (L) | BI67: Rainwater Withdrawl (L) | BJ67: Final Cistern Volume (L) | BK67: Rainwater Available? (1=yes) | BL67: Overflow? (1=yes) | BM67: Annual Theoretical Demand (L) *DO NOT REMOVE | BN67: Theoretical Yield (L) | BO67: Yield Following Pre-treatment and Roof Losses (L) | BP67: Cistern Volume - Beginning of Day (L) | BQ67: Cistern Volume - End of Day (L) | BR67: Overflow (L) | BS67: Rainwater Withdrawl (L) | BT67: Final Cistern Volume (L) | BU67: Rainwater Available? (1=yes) | BV67: Overflow? (1=yes) | BW67: Annual Theoretical Demand (L) *DO NOT REMOVE | BX67: Theoretical Yield (L) | BY67: Yield Following Pre-treatment and Roof Losses (L) | BZ67: Cistern Volume - Beginning of Day (L) | CA67: Cistern Volume - End of Day (L) | CB67: Overflow (L) | CC67: Rainwater Withdrawl (L) | CD67: Final Cistern Volume (L) | CE67: Rainwater Available? (1=yes) | CF67: Overflow? (1=yes) | CG67: Annual Theoretical Demand (L) *DO NOT REMOVE
A68: MIN | B68: 1 | C68: 1 | D68: 0 | E68: 0 | F68: =IF($B$5="Volume",IF(($D68*$B$4)>0,$D68*$B$4,0),IF(($E68*$B$4)>0,$E68*$B$4,0)) -> 0 | G68: =(IF($B$5="Volume",IF((($D68-$B$8)*$B$4)>0,(($D68-$B$8)*(1-$B$9)*(1-$B$10))*$B$4,0),IF((($E68-$B$8)*$B$4)>0,(($E68-$B$8)*(1-$B$9)*(1-$B$10))*$B$4,0)))+(IF(OR($B68>=$B$56,$B68<=$B$57),IF($C68=$B$58,($B$46*$B$4*(1-$B$33))))) -> 0 | H68: =MIN((I$1+G68),G$1) -> 16500 | I68: =IF(H68+G68>G$1,G$1,H68+G68) -> 16500 | J68: =IF(I68=G$1,H68+G68-G$1,0) -> 0 | K68: =IF(AND($B68<=$B$53,$B68<=$B$63,$B68>=$B$54,$B68>=$B$64),(IF(I68-(I$1)>($B$12+$B$35+$B$61),($B$12+$B$35+$B$61),(I68-(I$1)))),(IF(AND($B68<=$B$53,$B68>=$B$54),(IF(I68-(I$1)>($B$12+$B$35),($B$12+$B$35),(I68-(I$1)))),(IF(AND($B68<=$B$63,$B68>=$B$64),(IF(I68-(I$1)>($B$12+$B$61),($B$12+$B$61),(I68-(I$1)))),(IF(I68-(I$1)>$B$12,($B$12),(I68-(I$1))))))))) -> 0 | L68: =I68-K68 -> 16500 | M68: =IF(L68=I$1,0,1) -> 0 | N68: =IF(J68>0,1,0) -> 0 | O68: =(IF(AND($B68<=$B$53,$B68<=$B$63,$B68>=$B$54,$B68>=$B$64),($B$12+$B$35+$B$61),IF(AND($B68<=$B$53,$B68>=$B$54),($B$12+$B$35),IF(AND($B68<=$B$63,$B68>=$B$64),($B$12+$B$61),$B$12)))) -> 48 | P68: =IF($B$5="Volume",IF(($D68*$B$4)>0,$D68*$B$4,0),IF(($E68*$B$4)>0,$E68*$B$4,0)) -> 0 | Q68: =(IF($B$5="Volume",IF((($D68-$B$8)*$B$4)>0,(($D68-$B$8)*(1-$B$9)*(1-$B$10))*$B$4,0),IF((($E68-$B$8)*$B$4)>0,(($E68-$B$8)*(1-$B$9)*(1-$B$10))*$B$4,0)))+(IF(OR($B68>=$B$56,$B68<=$B$57),IF($C68=$B$58,($B$46*$B$4*(1-$B$33))))) -> 0 | R68: =MIN((S$1+Q68),Q$1) -> 17250 | S68: =IF(R68+Q68>Q$1,Q$1,R68+Q68) -> 17250 | T68: =IF(S68=Q$1,R68+Q68-Q$1,0) -> 0 | U68: =IF(AND($B68<=$B$53,$B68<=$B$63,$B68>=$B$54,$B68>=$B$64),(IF(S68-(S$1)>($B$12+$B$35+$B$61),($B$12+$B$35+$B$61),(S68-(S$1)))),(IF(AND($B68<=$B$53,$B68>=$B$54),(IF(S68-(S$1)>($B$12+$B$35),($B$12+$B$35),(S68-(S$1)))),(IF(AND($B68<=$B$63,$B68>=$B$64),(IF(S68-(S$1)>($B$12+$B$61),($B$12+$B$61),(S68-(S$1)))),(IF(S68-(S$1)>$B$12,($B$12),(S68-(S$1))))))))) -> 0 | V68: =S68-U68 -> 17250 | W68: =IF(V68=S$1,0,1) -> 0 | X68: =IF(T68>0,1,0) -> 0 | Y68: =(IF(AND($B68<=$B$53,$B68<=$B$63,$B68>=$B$54,$B68>=$B$64),($B$12+$B$35+$B$61),IF(AND($B68<=$B$53,$B68>=$B$54),($B$12+$B$35),IF(AND($B68<=$B$63,$B68>=$B$64),($B$12+$B$61),$B$12)))) -> 48 | Z68: =IF($B$5="Volume",IF(($D68*$B$4)>0,$D68*$B$4,0),IF(($E68*$B$4)>0,$E68*$B$4,0)) -> 0 | AA68: =(IF($B$5="Volume",IF((($D68-$B$8)*$B$4)>0,(($D68-$B$8)*(1-$B$9)*(1-$B$10))*$B$4,0),IF((($E68-$B$8)*$B$4)>0,(($E68-$B$8)*(1-$B$9)*(1-$B$10))*$B$4,0)))+(IF(OR($B68>=$B$56,$B68<=$B$57),IF($C68=$B$58,($B$46*$B$4*(1-$B$33))))) -> 0 | AB68: =MIN((AC$1+AA68),AA$1) -> 18000 | AC68: =IF(AB68+AA68>AA$1,AA$1,AB68+AA68) -> 18000 | AD68: =IF(AC68=AA$1,AB68+AA68-AA$1,0) -> 0 | AE68: =IF(AND($B68<=$B$53,$B68<=$B$63,$B68>=$B$54,$B68>=$B$64),(IF(AC68-(AC$1)>($B$12+$B$35+$B$61),($B$12+$B$35+$B$61),(AC68-(AC$1)))),(IF(AND($B68<=$B$53,$B68>=$B$54),(IF(AC68-(AC$1)>($B$12+$B$35),($B$12+$B$35),(AC68-(AC$1)))),(IF(AND($B68<=$B$63,$B68>=$B$64),(IF(AC68-(AC$1)>($B$12+$B$61),($B$12+$B$61),(AC68-(AC$1)))),(IF(AC68-(AC$1)>$B$12,($B$12),(AC68-(AC$1))))))))) -> 0 | AF68: =AC68-AE68 -> 18000 | AG68: =IF(AF68=AC$1,0,1) -> 0 | AH68: =IF(AD68>0,1,0) -> 0 | AI68: =(IF(AND($B68<=$B$53,$B68<=$B$63,$B68>=$B$54,$B68>=$B$64),($B$12+$B$35+$B$61),IF(AND($B68<=$B$53,$B68>=$B$54),($B$12+$B$35),IF(AND($B68<=$B$63,$B68>=$B$64),($B$12+$B$61),$B$12)))) -> 48 | AJ68: =IF($B$5="Volume",IF(($D68*$B$4)>0,$D68*$B$4,0),IF(($E68*$B$4)>0,$E68*$B$4,0)) -> 0 | AK68: =(IF($B$5="Volume",IF((($D68-$B$8)*$B$4)>0,(($D68-$B$8)*(1-$B$9)*(1-$B$10))*$B$4,0),IF((($E68-$B$8)*$B$4)>0,(($E68-$B$8)*(1-$B$9)*(1-$B$10))*$B$4,0)))+(IF(OR($B68>=$B$56,$B68<=$B$57),IF($C68=$B$58,($B$46*$B$4*(1-$B$33))))) -> 0 | AL68: =MIN((AM$1+AK68),AK$1) -> 18750 | AM68: =IF(AL68+AK68>AK$1,AK$1,AL68+AK68) -> 18750 | AN68: =IF(AM68=AK$1,AL68+AK68-AK$1,0) -> 0 | AO68: =IF(AND($B68<=$B$53,$B68<=$B$63,$B68>=$B$54,$B68>=$B$64),(IF(AM68-(AM$1)>($B$12+$B$35+$B$61),($B$12+$B$35+$B$61),(AM68-(AM$1)))),(IF(AND($B68<=$B$53,$B68>=$B$54),(IF(AM68-(AM$1)>($B$12+$B$35),($B$12+$B$35),(AM68-(AM$1)))),(IF(AND($B68<=$B$63,$B68>=$B$64),(IF(AM68-(AM$1)>($B$12+$B$61),($B$12+$B$61),(AM68-(AM$1)))),(IF(AM68-(AM$1)>$B$12,($B$12),(AM68-(AM$1))))))))) -> 0 | AP68: =AM68-AO68 -> 18750 | AQ68: =IF(AP68=AM$1,0,1) -> 0 | AR68: =IF(AN68>0,1,0) -> 0 | AS68: =(IF(AND($B68<=$B$53,$B68<=$B$63,$B68>=$B$54,$B68>=$B$64),($B$12+$B$35+$B$61),IF(AND($B68<=$B$53,$B68>=$B$54),($B$12+$B$35),IF(AND($B68<=$B$63,$B68>=$B$64),($B$12+$B$61),$B$12)))) -> 48 | AT68: =IF($B$5="Volume",IF(($D68*$B$4)>0,$D68*$B$4,0),IF(($E68*$B$4)>0,$E68*$B$4,0)) -> 0 | AU68: =(IF($B$5="Volume",IF((($D68-$B$8)*$B$4)>0,(($D68-$B$8)*(1-$B$9)*(1-$B$10))*$B$4,0),IF((($E68-$B$8)*$B$4)>0,(($E68-$B$8)*(1-$B$9)*(1-$B$10))*$B$4,0)))+(IF(OR($B68>=$B$56,$B68<=$B$57),IF($C68=$B$58,($B$46*$B$4*(1-$B$33))))) -> 0 | AV68: =MIN((AW$1+AU68),AU$1) -> 19500 | AW68: =IF(AV68+AU68>AU$1,AU$1,AV68+AU68) -> 19500 | AX68: =IF(AW68=AU$1,AV68+AU68-AU$1,0) -> 0 | AY68: =IF(AND($B68<=$B$53,$B68<=$B$63,$B68>=$B$54,$B68>=$B$64),(IF(AW68-(AW$1)>($B$12+$B$35+$B$61),($B$12+$B$35+$B$61),(AW68-(AW$1)))),(IF(AND($B68<=$B$53,$B68>=$B$54),(IF(AW68-(AW$1)>($B$12+$B$35),($B$12+$B$35),(AW68-(AW$1)))),(IF(AND($B68<=$B$63,$B68>=$B$64),(IF(AW68-(AW$1)>($B$12+$B$61),($B$12+$B$61),(AW68-(AW$1)))),(IF(AW68-(AW$1)>$B$12,($B$12),(AW68-(AW$1))))))))) -> 0 | AZ68: =AW68-AY68 -> 19500 | BA68: =IF(AZ68=AW$1,0,1) -> 0 | BB68: =IF(AX68>0,1,0) -> 0 | BC68: =(IF(AND($B68<=$B$53,$B68<=$B$63,$B68>=$B$54,$B68>=$B$64),($B$12+$B$35+$B$61),IF(AND($B68<=$B$53,$B68>=$B$54),($B$12+$B$35),IF(AND($B68<=$B$63,$B68>=$B$64),($B$12+$B$61),$B$12)))) -> 48 | BD68: =IF($B$5="Volume",IF(($D68*$B$4)>0,$D68*$B$4,0),IF(($E68*$B$4)>0,$E68*$B$4,0)) -> 0 | BE68: =(IF($B$5="Volume",IF((($D68-$B$8)*$B$4)>0,(($D68-$B$8)*(1-$B$9)*(1-$B$10))*$B$4,0),IF((($E68-$B$8)*$B$4)>0,(($E68-$B$8)*(1-$B$9)*(1-$B$10))*$B$4,0)))+(IF(OR($B68>=$B$56,$B68<=$B$57),IF($C68=$B$58,($B$46*$B$4*(1-$B$33))))) -> 0 | BF68: =MIN((BG$1+BE68),BE$1) -> 20250 | BG68: =IF(BF68+BE68>BE$1,BE$1,BF68+BE68) -> 20250 | BH68: =IF(BG68=BE$1,BF68+BE68-BE$1,0) -> 0 | BI68: =IF(AND($B68<=$B$53,$B68<=$B$63,$B68>=$B$54,$B68>=$B$64),(IF(BG68-(BG$1)>($B$12+$B$35+$B$61),($B$12+$B$35+$B$61),(BG68-(BG$1)))),(IF(AND($B68<=$B$53,$B68>=$B$54),(IF(BG68-(BG$1)>($B$12+$B$35),($B$12+$B$35),(BG68-(BG$1)))),(IF(AND($B68<=$B$63,$B68>=$B$64),(IF(BG68-(BG$1)>($B$12+$B$61),($B$12+$B$61),(BG68-(BG$1)))),(IF(BG68-(BG$1)>$B$12,($B$12),(BG68-(BG$1))))))))) -> 0 | BJ68: =BG68-BI68 -> 20250 | BK68: =IF(BJ68=BG$1,0,1) -> 0 | BL68: =IF(BH68>0,1,0) -> 0 | BM68: =(IF(AND($B68<=$B$53,$B68<=$B$63,$B68>=$B$54,$B68>=$B$64),($B$12+$B$35+$B$61),IF(AND($B68<=$B$53,$B68>=$B$54),($B$12+$B$35),IF(AND($B68<=$B$63,$B68>=$B$64),($B$12+$B$61),$B$12)))) -> 48 | BN68: =IF($B$5="Volume",IF(($D68*$B$4)>0,$D68*$B$4,0),IF(($E68*$B$4)>0,$E68*$B$4,0)) -> 0 | BO68: =(IF($B$5="Volume",IF((($D68-$B$8)*$B$4)>0,(($D68-$B$8)*(1-$B$9)*(1-$B$10))*$B$4,0),IF((($E68-$B$8)*$B$4)>0,(($E68-$B$8)*(1-$B$9)*(1-$B$10))*$B$4,0)))+(IF(OR($B68>=$B$56,$B68<=$B$57),IF($C68=$B$58,($B$46*$B$4*(1-$B$33))))) -> 0 | BP68: =MIN((BQ$1+BO68),BO$1) -> 21000 | BQ68: =IF(BP68+BO68>BO$1,BO$1,BP68+BO68) -> 21000 | BR68: =IF(BQ68=BO$1,BP68+BO68-BO$1,0) -> 0 | BS68: =IF(AND($B68<=$B$53,$B68<=$B$63,$B68>=$B$54,$B68>=$B$64),(IF(BQ68-(BQ$1)>($B$12+$B$35+$B$61),($B$12+$B$35+$B$61),(BQ68-(BQ$1)))),(IF(AND($B68<=$B$53,$B68>=$B$54),(IF(BQ68-(BQ$1)>($B$12+$B$35),($B$12+$B$35),(BQ68-(BQ$1)))),(IF(AND($B68<=$B$63,$B68>=$B$64),(IF(BQ68-(BQ$1)>($B$12+$B$61),($B$12+$B$61),(BQ68-(BQ$1)))),(IF(BQ68-(BQ$1)>$B$12,($B$12),(BQ68-(BQ$1))))))))) -> 0 | BT68: =BQ68-BS68 -> 21000 | BU68: =IF(BT68=BQ$1,0,1) -> 0 | BV68: =IF(BR68>0,1,0) -> 0 | BW68: =(IF(AND($B68<=$B$53,$B68<=$B$63,$B68>=$B$54,$B68>=$B$64),($B$12+$B$35+$B$61),IF(AND($B68<=$B$53,$B68>=$B$54),($B$12+$B$35),IF(AND($B68<=$B$63,$B68>=$B$64),($B$12+$B$61),$B$12)))) -> 48 | BX68: =IF($B$5="Volume",IF(($D68*$B$4)>0,$D68*$B$4,0),IF(($E68*$B$4)>0,$E68*$B$4,0)) -> 0 | BY68: =(IF($B$5="Volume",IF((($D68-$B$8)*$B$4)>0,(($D68-$B$8)*(1-$B$9)*(1-$B$10))*$B$4,0),IF((($E68-$B$8)*$B$4)>0,(($E68-$B$8)*(1-$B$9)*(1-$B$10))*$B$4,0)))+(IF(OR($B68>=$B$56,$B68<=$B$57),IF($C68=$B$58,($B$46*$B$4*(1-$B$33))))) -> 0 | BZ68: =MIN((CA$1+BY68),BY$1) -> 21750 | CA68: =IF(BZ68+BY68>BY$1,BY$1,BZ68+BY68) -> 21750 | CB68: =IF(CA68=BY$1,BZ68+BY68-BY$1,0) -> 0 | CC68: =IF(AND($B68<=$B$53,$B68<=$B$63,$B68>=$B$54,$B68>=$B$64),(IF(CA68-(CA$1)>($B$12+$B$35+$B$61),($B$12+$B$35+$B$61),(CA68-(CA$1)))),(IF(AND($B68<=$B$53,$B68>=$B$54),(IF(CA68-(CA$1)>($B$12+$B$35),($B$12+$B$35),(CA68-(CA$1)))),(IF(AND($B68<=$B$63,$B68>=$B$64),(IF(CA68-(CA$1)>($B$12+$B$61),($B$12+$B$61),(CA68-(CA$1)))),(IF(CA68-(CA$1)>$B$12,($B$12),(CA68-(CA$1))))))))) -> 0 | CD68: =CA68-CC68 -> 21750 | CE68: =IF(CD68=CA$1,0,1) -> 0 | CF68: =IF(CB68>0,1,0) -> 0 | CG68: =(IF(AND($B68<=$B$53,$B68<=$B$63,$B68>=$B$54,$B68>=$B$64),($B$12+$B$35+$B$61),IF(AND($B68<=$B$53,$B68>=$B$54),($B$12+$B$35),IF(AND($B68<=$B$63,$B68>=$B$64),($B$12+$B$61),$B$12)))) -> 48
B69: 1 | C69: 2 | D69: 4.8 | E69: 0 | F69: =IF($B$5="Volume",IF(($D69*$B$4)>0,$D69*$B$4,0),IF(($E69*$B$4)>0,$E69*$B$4,0)) -> 984 | G69: =(IF($B$5="Volume",IF((($D69-$B$8)*$B$4)>0,(($D69-$B$8)*(1-$B$9)*(1-$B$10))*$B$4,0),IF((($E69-$B$8)*$B$4)>0,(($E69-$B$8)*(1-$B$9)*(1-$B$10))*$B$4,0)))+(IF(OR($B69>=$B$56,$B69<=$B$57),IF($C69=$B$58,($B$46*$B$4*(1-$B$33))))) -> 3387.83 | H69: =L68 -> 16500 | I69: =IF(H69+G69>G$1,G$1,H69+G69) -> 19887.83 | J69: =IF(I69=G$1,H69+G69-G$1,0) -> 0 | K69: =IF(AND($B69<=$B$53,$B69<=$B$63,$B69>=$B$54,$B69>=$B$64),(IF(I69-(I$1)>($B$12+$B$35+$B$61),($B$12+$B$35+$B$61),(I69-(I$1)))),(IF(AND($B69<=$B$53,$B69>=$B$54),(IF(I69-(I$1)>($B$12+$B$35),($B$12+$B$35),(I69-(I$1)))),(IF(AND($B69<=$B$63,$B69>=$B$64),(IF(I69-(I$1)>($B$12+$B$61),($B$12+$B$61),(I69-(I$1)))),(IF(I69-(I$1)>$B$12,($B$12),(I69-(I$1))))))))) -> 48 | L69: =I69-K69 -> 19839.83 | M69: 1 | N69: =IF(J69>0,1,0) -> 0 | O69: =(IF(AND($B69<=$B$53,$B69<=$B$63,$B69>=$B$54,$B69>=$B$64),($B$12+$B$35+$B$61),IF(AND($B69<=$B$53,$B69>=$B$54),($B$12+$B$35),IF(AND($B69<=$B$63,$B69>=$B$64),($B$12+$B$61),$B$12)))) -> 48 | P69: =IF($B$5="Volume",IF(($D69*$B$4)>0,$D69*$B$4,0),IF(($E69*$B$4)>0,$E69*$B$4,0)) -> 984 | Q69: =(IF($B$5="Volume",IF((($D69-$B$8)*$B$4)>0,(($D69-$B$8)*(1-$B$9)*(1-$B$10))*$B$4,0),IF((($E69-$B$8)*$B$4)>0,(($E69-$B$8)*(1-$B$9)*(1-$B$10))*$B$4,0)))+(IF(OR($B69>=$B$56,$B69<=$B$57),IF($C69=$B$58,($B$46*$B$4*(1-$B$33))))) -> 3387.83 | R69: =V68 -> 17250 | S69: =IF(R69+Q69>Q$1,Q$1,R69+Q69) -> 20637.83 | T69: =IF(S69=Q$1,R69+Q69-Q$1,0) -> 0 | U69: =IF(AND($B69<=$B$53,$B69<=$B$63,$B69>=$B$54,$B69>=$B$64),(IF(S69-(S$1)>($B$12+$B$35+$B$61),($B$12+$B$35+$B$61),(S69-(S$1)))),(IF(AND($B69<=$B$53,$B69>=$B$54),(IF(S69-(S$1)>($B$12+$B$35),($B$12+$B$35),(S69-(S$1)))),(IF(AND($B69<=$B$63,$B69>=$B$64),(IF(S69-(S$1)>($B$12+$B$61),($B$12+$B$61),(S69-(S$1)))),(IF(S69-(S$1)>$B$12,($B$12),(S69-(S$1))))))))) -> 48 | V69: =S69-U69 -> 20589.83 | W69: 1 | X69: =IF(T69>0,1,0) -> 0 | Y69: =(IF(AND($B69<=$B$53,$B69<=$B$63,$B69>=$B$54,$B69>=$B$64),($B$12+$B$35+$B$61),IF(AND($B69<=$B$53,$B69>=$B$54),($B$12+$B$35),IF(AND($B69<=$B$63,$B69>=$B$64),($B$12+$B$61),$B$12)))) -> 48 | Z69: =IF($B$5="Volume",IF(($D69*$B$4)>0,$D69*$B$4,0),IF(($E69*$B$4)>0,$E69*$B$4,0)) -> 984 | AA69: =(IF($B$5="Volume",IF((($D69-$B$8)*$B$4)>0,(($D69-$B$8)*(1-$B$9)*(1-$B$10))*$B$4,0),IF((($E69-$B$8)*$B$4)>0,(($E69-$B$8)*(1-$B$9)*(1-$B$10))*$B$4,0)))+(IF(OR($B69>=$B$56,$B69<=$B$57),IF($C69=$B$58,($B$46*$B$4*(1-$B$33))))) -> 3387.83 | AB69: =AF68 -> 18000 | AC69: =IF(AB69+AA69>AA$1,AA$1,AB69+AA69) -> 21387.83 | AD69: =IF(AC69=AA$1,AB69+AA69-AA$1,0) -> 0 | AE69: =IF(AND($B69<=$B$53,$B69<=$B$63,$B69>=$B$54,$B69>=$B$64),(IF(AC69-(AC$1)>($B$12+$B$35+$B$61),($B$12+$B$35+$B$61),(AC69-(AC$1)))),(IF(AND($B69<=$B$53,$B69>=$B$54),(IF(AC69-(AC$1)>($B$12+$B$35),($B$12+$B$35),(AC69-(AC$1)))),(IF(AND($B69<=$B$63,$B69>=$B$64),(IF(AC69-(AC$1)>($B$12+$B$61),($B$12+$B$61),(AC69-(AC$1)))),(IF(AC69-(AC$1)>$B$12,($B$12),(AC69-(AC$1))))))))) -> 48 | AF69: =AC69-AE69 -> 21339.83 | AG69: 1 | AH69: =IF(AD69>0,1,0) -> 0 | AI69: =(IF(AND($B69<=$B$53,$B69<=$B$63,$B69>=$B$54,$B69>=$B$64),($B$12+$B$35+$B$61),IF(AND($B69<=$B$53,$B69>=$B$54),($B$12+$B$35),IF(AND($B69<=$B$63,$B69>=$B$64),($B$12+$B$61),$B$12)))) -> 48 | AJ69: =IF($B$5="Volume",IF(($D69*$B$4)>0,$D69*$B$4,0),IF(($E69*$B$4)>0,$E69*$B$4,0)) -> 984 | AK69: =(IF($B$5="Volume",IF((($D69-$B$8)*$B$4)>0,(($D69-$B$8)*(1-$B$9)*(1-$B$10))*$B$4,0),IF((($E69-$B$8)*$B$4)>0,(($E69-$B$8)*(1-$B$9)*(1-$B$10))*$B$4,0)))+(IF(OR($B69>=$B$56,$B69<=$B$57),IF($C69=$B$58,($B$46*$B$4*(1-$B$33))))) -> 3387.83 | AL69: =AP68 -> 18750 | AM69: =IF(AL69+AK69>AK$1,AK$1,AL69+AK69) -> 22137.83 | AN69: =IF(AM69=AK$1,AL69+AK69-AK$1,0) -> 0 | AO69: =IF(AND($B69<=$B$53,$B69<=$B$63,$B69>=$B$54,$B69>=$B$64),(IF(AM69-(AM$1)>($B$12+$B$35+$B$61),($B$12+$B$35+$B$61),(AM69-(AM$1)))),(IF(AND($B69<=$B$53,$B69>=$B$54),(IF(AM69-(AM$1)>($B$12+$B$35),($B$12+$B$35),(AM69-(AM$1)))),(IF(AND($B69<=$B$63,$B69>=$B$64),(IF(AM69-(AM$1)>($B$12+$B$61),($B$12+$B$61),(AM69-(AM$1)))),(IF(AM69-(AM$1)>$B$12,($B$12),(AM69-(AM$1))))))))) -> 48 | AP69: =AM69-AO69 -> 22089.83 | AQ69: 1 | AR69: =IF(AN69>0,1,0) -> 0 | AS69: =(IF(AND($B69<=$B$53,$B69<=$B$63,$B69>=$B$54,$B69>=$B$64),($B$12+$B$35+$B$61),IF(AND($B69<=$B$53,$B69>=$B$54),($B$12+$B$35),IF(AND($B69<=$B$63,$B69>=$B$64),($B$12+$B$61),$B$12)))) -> 48 | AT69: =IF($B$5="Volume",IF(($D69*$B$4)>0,$D69*$B$4,0),IF(($E69*$B$4)>0,$E69*$B$4,0)) -> 984 | AU69: =(IF($B$5="Volume",IF((($D69-$B$8)*$B$4)>0,(($D69-$B$8)*(1-$B$9)*(1-$B$10))*$B$4,0),IF((($E69-$B$8)*$B$4)>0,(($E69-$B$8)*(1-$B$9)*(1-$B$10))*$B$4,0)))+(IF(OR($B69>=$B$56,$B69<=$B$57),IF($C69=$B$58,($B$46*$B$4*(1-$B$33))))) -> 3387.83 | AV69: =AZ68 -> 19500 | AW69: =IF(AV69+AU69>AU$1,AU$1,AV69+AU69) -> 22887.83 | AX69: =IF(AW69=AU$1,AV69+AU69-AU$1,0) -> 0 | AY69: =IF(AND($B69<=$B$53,$B69<=$B$63,$B69>=$B$54,$B69>=$B$64),(IF(AW69-(AW$1)>($B$12+$B$35+$B$61),($B$12+$B$35+$B$61),(AW69-(AW$1)))),(IF(AND($B69<=$B$53,$B69>=$B$54),(IF(AW69-(AW$1)>($B$12+$B$35),($B$12+$B$35),(AW69-(AW$1)))),(IF(AND($B69<=$B$63,$B69>=$B$64),(IF(AW69-(AW$1)>($B$12+$B$61),($B$12+$B$61),(AW69-(AW$1)))),(IF(AW69-(AW$1)>$B$12,($B$12),(AW69-(AW$1))))))))) -> 48 | AZ69: =AW69-AY69 -> 22839.83 | BA69: 1 | BB69: =IF(AX69>0,1,0) -> 0 | BC69: =(IF(AND($B69<=$B$53,$B69<=$B$63,$B69>=$B$54,$B69>=$B$64),($B$12+$B$35+$B$61),IF(AND($B69<=$B$53,$B69>=$B$54),($B$12+$B$35),IF(AND($B69<=$B$63,$B69>=$B$64),($B$12+$B$61),$B$12)))) -> 48 | BD69: =IF($B$5="Volume",IF(($D69*$B$4)>0,$D69*$B$4,0),IF(($E69*$B$4)>0,$E69*$B$4,0)) -> 984 | BE69: =(IF($B$5="Volume",IF((($D69-$B$8)*$B$4)>0,(($D69-$B$8)*(1-$B$9)*(1-$B$10))*$B$4,0),IF((($E69-$B$8)*$B$4)>0,(($E69-$B$8)*(1-$B$9)*(1-$B$10))*$B$4,0)))+(IF(OR($B69>=$B$56,$B69<=$B$57),IF($C69=$B$58,($B$46*$B$4*(1-$B$33))))) -> 3387.83 | BF69: =BJ68 -> 20250 | BG69: =IF(BF69+BE69>BE$1,BE$1,BF69+BE69) -> 23637.83 | BH69: =IF(BG69=BE$1,BF69+BE69-BE$1,0) -> 0 | BI69: =IF(AND($B69<=$B$53,$B69<=$B$63,$B69>=$B$54,$B69>=$B$64),(IF(BG69-(BG$1)>($B$12+$B$35+$B$61),($B$12+$B$35+$B$61),(BG69-(BG$1)))),(IF(AND($B69<=$B$53,$B69>=$B$54),(IF(BG69-(BG$1)>($B$12+$B$35),($B$12+$B$35),(BG69-(BG$1)))),(IF(AND($B69<=$B$63,$B69>=$B$64),(IF(BG69-(BG$1)>($B$12+$B$61),($B$12+$B$61),(BG69-(BG$1)))),(IF(BG69-(BG$1)>$B$12,($B$12),(BG69-(BG$1))))))))) -> 48 | BJ69: =BG69-BI69 -> 23589.83 | BK69: 1 | BL69: =IF(BH69>0,1,0) -> 0 | BM69: =(IF(AND($B69<=$B$53,$B69<=$B$63,$B69>=$B$54,$B69>=$B$64),($B$12+$B$35+$B$61),IF(AND($B69<=$B$53,$B69>=$B$54),($B$12+$B$35),IF(AND($B69<=$B$63,$B69>=$B$64),($B$12+$B$61),$B$12)))) -> 48 | BN69: =IF($B$5="Volume",IF(($D69*$B$4)>0,$D69*$B$4,0),IF(($E69*$B$4)>0,$E69*$B$4,0)) -> 984 | BO69: =(IF($B$5="Volume",IF((($D69-$B$8)*$B$4)>0,(($D69-$B$8)*(1-$B$9)*(1-$B$10))*$B$4,0),IF((($E69-$B$8)*$B$4)>0,(($E69-$B$8)*(1-$B$9)*(1-$B$10))*$B$4,0)))+(IF(OR($B69>=$B$56,$B69<=$B$57),IF($C69=$B$58,($B$46*$B$4*(1-$B$33))))) -> 3387.83 | BP69: =BT68 -> 21000 | BQ69: =IF(BP69+BO69>BO$1,BO$1,BP69+BO69) -> 24387.83 | BR69: =IF(BQ69=BO$1,BP69+BO69-BO$1,0) -> 0 | BS69: =IF(AND($B69<=$B$53,$B69<=$B$63,$B69>=$B$54,$B69>=$B$64),(IF(BQ69-(BQ$1)>($B$12+$B$35+$B$61),($B$12+$B$35+$B$61),(BQ69-(BQ$1)))),(IF(AND($B69<=$B$53,$B69>=$B$54),(IF(BQ69-(BQ$1)>($B$12+$B$35),($B$12+$B$35),(BQ69-(BQ$1)))),(IF(AND($B69<=$B$63,$B69>=$B$64),(IF(BQ69-(BQ$1)>($B$12+$B$61),($B$12+$B$61),(BQ69-(BQ$1)))),(IF(BQ69-(BQ$1)>$B$12,($B$12),(BQ69-(BQ$1))))))))) -> 48 | BT69: =BQ69-BS69 -> 24339.83 | BU69: 1 | BV69: =IF(BR69>0,1,0) -> 0 | BW69: =(IF(AND($B69<=$B$53,$B69<=$B$63,$B69>=$B$54,$B69>=$B$64),($B$12+$B$35+$B$61),IF(AND($B69<=$B$53,$B69>=$B$54),($B$12+$B$35),IF(AND($B69<=$B$63,$B69>=$B$64),($B$12+$B$61),$B$12)))) -> 48 | BX69: =IF($B$5="Volume",IF(($D69*$B$4)>0,$D69*$B$4,0),IF(($E69*$B$4)>0,$E69*$B$4,0)) -> 984 | BY69: =(IF($B$5="Volume",IF((($D69-$B$8)*$B$4)>0,(($D69-$B$8)*(1-$B$9)*(1-$B$10))*$B$4,0),IF((($E69-$B$8)*$B$4)>0,(($E69-$B$8)*(1-$B$9)*(1-$B$10))*$B$4,0)))+(IF(OR($B69>=$B$56,$B69<=$B$57),IF($C69=$B$58,($B$46*$B$4*(1-$B$33))))) -> 3387.83 | BZ69: =CD68 -> 21750 | CA69: =IF(BZ69+BY69>BY$1,BY$1,BZ69+BY69) -> 25137.83 | CB69: =IF(CA69=BY$1,BZ69+BY69-BY$1,0) -> 0 | CC69: =IF(AND($B69<=$B$53,$B69<=$B$63,$B69>=$B$54,$B69>=$B$64),(IF(CA69-(CA$1)>($B$12+$B$35+$B$61),($B$12+$B$35+$B$61),(CA69-(CA$1)))),(IF(AND($B69<=$B$53,$B69>=$B$54),(IF(CA69-(CA$1)>($B$12+$B$35),($B$12+$B$35),(CA69-(CA$1)))),(IF(AND($B69<=$B$63,$B69>=$B$64),(IF(CA69-(CA$1)>($B$12+$B$61),($B$12+$B$61),(CA69-(CA$1)))),(IF(CA69-(CA$1)>$B$12,($B$12),(CA69-(CA$1))))))))) -> 48 | CD69: =CA69-CC69 -> 25089.83 | CE69: 1 | CF69: =IF(CB69>0,1,0) -> 0 | CG69: =(IF(AND($B69<=$B$53,$B69<=$B$63,$B69>=$B$54,$B69>=$B$64),($B$12+$B$35+$B$61),IF(AND($B69<=$B$53,$B69>=$B$54),($B$12+$B$35),IF(AND($B69<=$B$63,$B69>=$B$64),($B$12+$B$61),$B$12)))) -> 48
B70: 1 | C70: 3 | D70: 0 | E70: 0 | F70: 0 | G70: =(IF($B$5="Volume",IF((($D70-$B$8)*$B$4)>0,(($D70-$B$8)*(1-$B$9)*(1-$B$10))*$B$4,0),IF((($E70-$B$8)*$B$4)>0,(($E70-$B$8)*(1-$B$9)*(1-$B$10))*$B$4,0)))+(IF(OR($B70>=$B$56,$B70<=$B$57),IF($C70=$B$58,($B$46*$B$4*(1-$B$33))))) -> 0 | H70: =L69 -> 19839.83 | I70: =IF(H70+G70>G$1,G$1,H70+G70) -> 19839.83 | J70: =IF(I70=G$1,H70+G70-G$1,0) -> 0 | K70: =IF(AND($B70<=$B$53,$B70<=$B$63,$B70>=$B$54,$B70>=$B$64),(IF(I70-(I$1)>($B$12+$B$35+$B$61),($B$12+$B$35+$B$61),(I70-(I$1)))),(IF(AND($B70<=$B$53,$B70>=$B$54),(IF(I70-(I$1)>($B$12+$B$35),($B$12+$B$35),(I70-(I$1)))),(IF(AND($B70<=$B$63,$B70>=$B$64),(IF(I70-(I$1)>($B$12+$B$61),($B$12+$B$61),(I70-(I$1)))),(IF(I70-(I$1)>$B$12,($B$12),(I70-(I$1))))))))) -> 48 | L70: =I70-K70 -> 19791.83 | M70: 1 | N70: 0 | O70: 48 | P70: 0 | Q70: =(IF($B$5="Volume",IF((($D70-$B$8)*$B$4)>0,(($D70-$B$8)*(1-$B$9)*(1-$B$10))*$B$4,0),IF((($E70-$B$8)*$B$4)>0,(($E70-$B$8)*(1-$B$9)*(1-$B$10))*$B$4,0)))+(IF(OR($B70>=$B$56,$B70<=$B$57),IF($C70=$B$58,($B$46*$B$4*(1-$B$33))))) -> 0 | R70: =V69 -> 20589.83 | S70: =IF(R70+Q70>Q$1,Q$1,R70+Q70) -> 20589.83 | T70: =IF(S70=Q$1,R70+Q70-Q$1,0) -> 0 | U70: =IF(AND($B70<=$B$53,$B70<=$B$63,$B70>=$B$54,$B70>=$B$64),(IF(S70-(S$1)>($B$12+$B$35+$B$61),($B$12+$B$35+$B$61),(S70-(S$1)))),(IF(AND($B70<=$B$53,$B70>=$B$54),(IF(S70-(S$1)>($B$12+$B$35),($B$12+$B$35),(S70-(S$1)))),(IF(AND($B70<=$B$63,$B70>=$B$64),(IF(S70-(S$1)>($B$12+$B$61),($B$12+$B$61),(S70-(S$1)))),(IF(S70-(S$1)>$B$12,($B$12),(S70-(S$1))))))))) -> 48 | V70: =S70-U70 -> 20541.83 | W70: 1 | X70: 0 | Y70: 48 | Z70: 0 | AA70: =(IF($B$5="Volume",IF((($D70-$B$8)*$B$4)>0,(($D70-$B$8)*(1-$B$9)*(1-$B$10))*$B$4,0),IF((($E70-$B$8)*$B$4)>0,(($E70-$B$8)*(1-$B$9)*(1-$B$10))*$B$4,0)))+(IF(OR($B70>=$B$56,$B70<=$B$57),IF($C70=$B$58,($B$46*$B$4*(1-$B$33))))) -> 0 | AB70: =AF69 -> 21339.83 | AC70: =IF(AB70+AA70>AA$1,AA$1,AB70+AA70) -> 21339.83 | AD70: =IF(AC70=AA$1,AB70+AA70-AA$1,0) -> 0 | AE70: =IF(AND($B70<=$B$53,$B70<=$B$63,$B70>=$B$54,$B70>=$B$64),(IF(AC70-(AC$1)>($B$12+$B$35+$B$61),($B$12+$B$35+$B$61),(AC70-(AC$1)))),(IF(AND($B70<=$B$53,$B70>=$B$54),(IF(AC70-(AC$1)>($B$12+$B$35),($B$12+$B$35),(AC70-(AC$1)))),(IF(AND($B70<=$B$63,$B70>=$B$64),(IF(AC70-(AC$1)>($B$12+$B$61),($B$12+$B$61),(AC70-(AC$1)))),(IF(AC70-(AC$1)>$B$12,($B$12),(AC70-(AC$1))))))))) -> 48 | AF70: =AC70-AE70 -> 21291.83 | AG70: 1 | AH70: 0 | AI70: 48 | AJ70: 0 | AK70: =(IF($B$5="Volume",IF((($D70-$B$8)*$B$4)>0,(($D70-$B$8)*(1-$B$9)*(1-$B$10))*$B$4,0),IF((($E70-$B$8)*$B$4)>0,(($E70-$B$8)*(1-$B$9)*(1-$B$10))*$B$4,0)))+(IF(OR($B70>=$B$56,$B70<=$B$57),IF($C70=$B$58,($B$46*$B$4*(1-$B$33))))) -> 0 | AL70: =AP69 -> 22089.83 | AM70: =IF(AL70+AK70>AK$1,AK$1,AL70+AK70) -> 22089.83 | AN70: =IF(AM70=AK$1,AL70+AK70-AK$1,0) -> 0 | AO70: =IF(AND($B70<=$B$53,$B70<=$B$63,$B70>=$B$54,$B70>=$B$64),(IF(AM70-(AM$1)>($B$12+$B$35+$B$61),($B$12+$B$35+$B$61),(AM70-(AM$1)))),(IF(AND($B70<=$B$53,$B70>=$B$54),(IF(AM70-(AM$1)>($B$12+$B$35),($B$12+$B$35),(AM70-(AM$1)))),(IF(AND($B70<=$B$63,$B70>=$B$64),(IF(AM70-(AM$1)>($B$12+$B$61),($B$12+$B$61),(AM70-(AM$1)))),(IF(AM70-(AM$1)>$B$12,($B$12),(AM70-(AM$1))))))))) -> 48 | AP70: =AM70-AO70 -> 22041.83 | AQ70: 1 | AR70: 0 | AS70: 48 | AT70: 0 | AU70: =(IF($B$5="Volume",IF((($D70-$B$8)*$B$4)>0,(($D70-$B$8)*(1-$B$9)*(1-$B$10))*$B$4,0),IF((($E70-$B$8)*$B$4)>0,(($E70-$B$8)*(1-$B$9)*(1-$B$10))*$B$4,0)))+(IF(OR($B70>=$B$56,$B70<=$B$57),IF($C70=$B$58,($B$46*$B$4*(1-$B$33))))) -> 0 | AV70: =AZ69 -> 22839.83 | AW70: =IF(AV70+AU70>AU$1,AU$1,AV70+AU70) -> 22839.83 | AX70: =IF(AW70=AU$1,AV70+AU70-AU$1,0) -> 0 | AY70: =IF(AND($B70<=$B$53,$B70<=$B$63,$B70>=$B$54,$B70>=$B$64),(IF(AW70-(AW$1)>($B$12+$B$35+$B$61),($B$12+$B$35+$B$61),(AW70-(AW$1)))),(IF(AND($B70<=$B$53,$B70>=$B$54),(IF(AW70-(AW$1)>($B$12+$B$35),($B$12+$B$35),(AW70-(AW$1)))),(IF(AND($B70<=$B$63,$B70>=$B$64),(IF(AW70-(AW$1)>($B$12+$B$61),($B$12+$B$61),(AW70-(AW$1)))),(IF(AW70-(AW$1)>$B$12,($B$12),(AW70-(AW$1))))))))) -> 48 | AZ70: =AW70-AY70 -> 22791.83 | BA70: 1 | BB70: 0 | BC70: 48 | BD70: 0 | BE70: =(IF($B$5="Volume",IF((($D70-$B$8)*$B$4)>0,(($D70-$B$8)*(1-$B$9)*(1-$B$10))*$B$4,0),IF((($E70-$B$8)*$B$4)>0,(($E70-$B$8)*(1-$B$9)*(1-$B$10))*$B$4,0)))+(IF(OR($B70>=$B$56,$B70<=$B$57),IF($C70=$B$58,($B$46*$B$4*(1-$B$33))))) -> 0 | BF70: =BJ69 -> 23589.83 | BG70: =IF(BF70+BE70>BE$1,BE$1,BF70+BE70) -> 23589.83 | BH70: =IF(BG70=BE$1,BF70+BE70-BE$1,0) -> 0 | BI70: =IF(AND($B70<=$B$53,$B70<=$B$63,$B70>=$B$54,$B70>=$B$64),(IF(BG70-(BG$1)>($B$12+$B$35+$B$61),($B$12+$B$35+$B$61),(BG70-(BG$1)))),(IF(AND($B70<=$B$53,$B70>=$B$54),(IF(BG70-(BG$1)>($B$12+$B$35),($B$12+$B$35),(BG70-(BG$1)))),(IF(AND($B70<=$B$63,$B70>=$B$64),(IF(BG70-(BG$1)>($B$12+$B$61),($B$12+$B$61),(BG70-(BG$1)))),(IF(BG70-(BG$1)>$B$12,($B$12),(BG70-(BG$1))))))))) -> 48 | BJ70: =BG70-BI70 -> 23541.83 | BK70: 1 | BL70: 0 | BM70: 48 | BN70: 0 | BO70: =(IF($B$5="Volume",IF((($D70-$B$8)*$B$4)>0,(($D70-$B$8)*(1-$B$9)*(1-$B$10))*$B$4,0),IF((($E70-$B$8)*$B$4)>0,(($E70-$B$8)*(1-$B$9)*(1-$B$10))*$B$4,0)))+(IF(OR($B70>=$B$56,$B70<=$B$57),IF($C70=$B$58,($B$46*$B$4*(1-$B$33))))) -> 0 | BP70: =BT69 -> 24339.83 | BQ70: =IF(BP70+BO70>BO$1,BO$1,BP70+BO70) -> 24339.83 | BR70: 0 | BS70: =IF(AND($B70<=$B$53,$B70<=$B$63,$B70>=$B$54,$B70>=$B$64),(IF(BQ70-(BQ$1)>($B$12+$B$35+$B$61),($B$12+$B$35+$B$61),(BQ70-(BQ$1)))),(IF(AND($B70<=$B$53,$B70>=$B$54),(IF(BQ70-(BQ$1)>($B$12+$B$35),($B$12+$B$35),(BQ70-(BQ$1)))),(IF(AND($B70<=$B$63,$B70>=$B$64),(IF(BQ70-(BQ$1)>($B$12+$B$61),($B$12+$B$61),(BQ70-(BQ$1)))),(IF(BQ70-(BQ$1)>$B$12,($B$12),(BQ70-(BQ$1))))))))) -> 48 | BT70: =BQ70-BS70 -> 24291.83 | BU70: 1 | BV70: 0 | BW70: 48 | BX70: 0 | BY70: =(IF($B$5="Volume",IF((($D70-$B$8)*$B$4)>0,(($D70-$B$8)*(1-$B$9)*(1-$B$10))*$B$4,0),IF((($E70-$B$8)*$B$4)>0,(($E70-$B$8)*(1-$B$9)*(1-$B$10))*$B$4,0)))+(IF(OR($B70>=$B$56,$B70<=$B$57),IF($C70=$B$58,($B$46*$B$4*(1-$B$33))))) -> 0 | BZ70: =CD69 -> 25089.83 | CA70: =IF(BZ70+BY70>BY$1,BY$1,BZ70+BY70) -> 25089.83 | CB70: =IF(CA70=BY$1,BZ70+BY70-BY$1,0) -> 0 | CC70: =IF(AND($B70<=$B$53,$B70<=$B$63,$B70>=$B$54,$B70>=$B$64),(IF(CA70-(CA$1)>($B$12+$B$35+$B$61),($B$12+$B$35+$B$61),(CA70-(CA$1)))),(IF(AND($B70<=$B$53,$B70>=$B$54),(IF(CA70-(CA$1)>($B$12+$B$35),($B$12+$B$35),(CA70-(CA$1)))),(IF(AND($B70<=$B$63,$B70>=$B$64),(IF(CA70-(CA$1)>($B$12+$B$61),($B$12+$B$61),(CA70-(CA$1)))),(IF(CA70-(CA$1)>$B$12,($B$12),(CA70-(CA$1))))))))) -> 48 | CD70: =CA70-CC70 -> 25041.83 | CE70: 1 | CF70: 0 | CG70: 48
B71: 1 | C71: 4 | D71: 0 | E71: 0 | F71: 0 | G71: =(IF($B$5="Volume",IF((($D71-$B$8)*$B$4)>0,(($D71-$B$8)*(1-$B$9)*(1-$B$10))*$B$4,0),IF((($E71-$B$8)*$B$4)>0,(($E71-$B$8)*(1-$B$9)*(1-$B$10))*$B$4,0)))+(IF(OR($B71>=$B$56,$B71<=$B$57),IF($C71=$B$58,($B$46*$B$4*(1-$B$33))))) -> 0 | H71: =L70 -> 19791.83 | I71: =IF(H71+G71>G$1,G$1,H71+G71) -> 19791.83 | J71: =IF(I71=G$1,H71+G71-G$1,0) -> 0 | K71: =IF(AND($B71<=$B$53,$B71<=$B$63,$B71>=$B$54,$B71>=$B$64),(IF(I71-(I$1)>($B$12+$B$35+$B$61),($B$12+$B$35+$B$61),(I71-(I$1)))),(IF(AND($B71<=$B$53,$B71>=$B$54),(IF(I71-(I$1)>($B$12+$B$35),($B$12+$B$35),(I71-(I$1)))),(IF(AND($B71<=$B$63,$B71>=$B$64),(IF(I71-(I$1)>($B$12+$B$61),($B$12+$B$61),(I71-(I$1)))),(IF(I71-(I$1)>$B$12,($B$12),(I71-(I$1))))))))) -> 48 | L71: =I71-K71 -> 19743.83 | M71: 1 | N71: 0 | O71: 48 | P71: 0 | Q71: =(IF($B$5="Volume",IF((($D71-$B$8)*$B$4)>0,(($D71-$B$8)*(1-$B$9)*(1-$B$10))*$B$4,0),IF((($E71-$B$8)*$B$4)>0,(($E71-$B$8)*(1-$B$9)*(1-$B$10))*$B$4,0)))+(IF(OR($B71>=$B$56,$B71<=$B$57),IF($C71=$B$58,($B$46*$B$4*(1-$B$33))))) -> 0 | R71: =V70 -> 20541.83 | S71: =IF(R71+Q71>Q$1,Q$1,R71+Q71) -> 20541.83 | T71: =IF(S71=Q$1,R71+Q71-Q$1,0) -> 0 | U71: =IF(AND($B71<=$B$53,$B71<=$B$63,$B71>=$B$54,$B71>=$B$64),(IF(S71-(S$1)>($B$12+$B$35+$B$61),($B$12+$B$35+$B$61),(S71-(S$1)))),(IF(AND($B71<=$B$53,$B71>=$B$54),(IF(S71-(S$1)>($B$12+$B$35),($B$12+$B$35),(S71-(S$1)))),(IF(AND($B71<=$B$63,$B71>=$B$64),(IF(S71-(S$1)>($B$12+$B$61),($B$12+$B$61),(S71-(S$1)))),(IF(S71-(S$1)>$B$12,($B$12),(S71-(S$1))))))))) -> 48 | V71: =S71-U71 -> 20493.83 | W71: 1 | X71: 0 | Y71: 48 | Z71: 0 | AA71: =(IF($B$5="Volume",IF((($D71-$B$8)*$B$4)>0,(($D71-$B$8)*(1-$B$9)*(1-$B$10))*$B$4,0),IF((($E71-$B$8)*$B$4)>0,(($E71-$B$8)*(1-$B$9)*(1-$B$10))*$B$4,0)))+(IF(OR($B71>=$B$56,$B71<=$B$57),IF($C71=$B$58,($B$46*$B$4*(1-$B$33))))) -> 0 | AB71: =AF70 -> 21291.83 | AC71: =IF(AB71+AA71>AA$1,AA$1,AB71+AA71) -> 21291.83 | AD71: =IF(AC71=AA$1,AB71+AA71-AA$1,0) -> 0 | AE71: =IF(AND($B71<=$B$53,$B71<=$B$63,$B71>=$B$54,$B71>=$B$64),(IF(AC71-(AC$1)>($B$12+$B$35+$B$61),($B$12+$B$35+$B$61),(AC71-(AC$1)))),(IF(AND($B71<=$B$53,$B71>=$B$54),(IF(AC71-(AC$1)>($B$12+$B$35),($B$12+$B$35),(AC71-(AC$1)))),(IF(AND($B71<=$B$63,$B71>=$B$64),(IF(AC71-(AC$1)>($B$12+$B$61),($B$12+$B$61),(AC71-(AC$1)))),(IF(AC71-(AC$1)>$B$12,($B$12),(AC71-(AC$1))))))))) -> 48 | AF71: =AC71-AE71 -> 21243.83 | AG71: 1 | AH71: 0 | AI71: 48 | AJ71: 0 | AK71: =(IF($B$5="Volume",IF((($D71-$B$8)*$B$4)>0,(($D71-$B$8)*(1-$B$9)*(1-$B$10))*$B$4,0),IF((($E71-$B$8)*$B$4)>0,(($E71-$B$8)*(1-$B$9)*(1-$B$10))*$B$4,0)))+(IF(OR($B71>=$B$56,$B71<=$B$57),IF($C71=$B$58,($B$46*$B$4*(1-$B$33))))) -> 0 | AL71: =AP70 -> 22041.83 | AM71: =IF(AL71+AK71>AK$1,AK$1,AL71+AK71) -> 22041.83 | AN71: =IF(AM71=AK$1,AL71+AK71-AK$1,0) -> 0 | AO71: =IF(AND($B71<=$B$53,$B71<=$B$63,$B71>=$B$54,$B71>=$B$64),(IF(AM71-(AM$1)>($B$12+$B$35+$B$61),($B$12+$B$35+$B$61),(AM71-(AM$1)))),(IF(AND($B71<=$B$53,$B71>=$B$54),(IF(AM71-(AM$1)>($B$12+$B$35),($B$12+$B$35),(AM71-(AM$1)))),(IF(AND($B71<=$B$63,$B71>=$B$64),(IF(AM71-(AM$1)>($B$12+$B$61),($B$12+$B$61),(AM71-(AM$1)))),(IF(AM71-(AM$1)>$B$12,($B$12),(AM71-(AM$1))))))))) -> 48 | AP71: =AM71-AO71 -> 21993.83 | AQ71: 1 | AR71: 0 | AS71: 48 | AT71: 0 | AU71: =(IF($B$5="Volume",IF((($D71-$B$8)*$B$4)>0,(($D71-$B$8)*(1-$B$9)*(1-$B$10))*$B$4,0),IF((($E71-$B$8)*$B$4)>0,(($E71-$B$8)*(1-$B$9)*(1-$B$10))*$B$4,0)))+(IF(OR($B71>=$B$56,$B71<=$B$57),IF($C71=$B$58,($B$46*$B$4*(1-$B$33))))) -> 0 | AV71: =AZ70 -> 22791.83 | AW71: =IF(AV71+AU71>AU$1,AU$1,AV71+AU71) -> 22791.83 | AX71: =IF(AW71=AU$1,AV71+AU71-AU$1,0) -> 0 | AY71: =IF(AND($B71<=$B$53,$B71<=$B$63,$B71>=$B$54,$B71>=$B$64),(IF(AW71-(AW$1)>($B$12+$B$35+$B$61),($B$12+$B$35+$B$61),(AW71-(AW$1)))),(IF(AND($B71<=$B$53,$B71>=$B$54),(IF(AW71-(AW$1)>($B$12+$B$35),($B$12+$B$35),(AW71-(AW$1)))),(IF(AND($B71<=$B$63,$B71>=$B$64),(IF(AW71-(AW$1)>($B$12+$B$61),($B$12+$B$61),(AW71-(AW$1)))),(IF(AW71-(AW$1)>$B$12,($B$12),(AW71-(AW$1))))))))) -> 48 | AZ71: =AW71-AY71 -> 22743.83 | BA71: 1 | BB71: 0 | BC71: 48 | BD71: 0 | BE71: =(IF($B$5="Volume",IF((($D71-$B$8)*$B$4)>0,(($D71-$B$8)*(1-$B$9)*(1-$B$10))*$B$4,0),IF((($E71-$B$8)*$B$4)>0,(($E71-$B$8)*(1-$B$9)*(1-$B$10))*$B$4,0)))+(IF(OR($B71>=$B$56,$B71<=$B$57),IF($C71=$B$58,($B$46*$B$4*(1-$B$33))))) -> 0 | BF71: =BJ70 -> 23541.83 | BG71: =IF(BF71+BE71>BE$1,BE$1,BF71+BE71) -> 23541.83 | BH71: =IF(BG71=BE$1,BF71+BE71-BE$1,0) -> 0 | BI71: =IF(AND($B71<=$B$53,$B71<=$B$63,$B71>=$B$54,$B71>=$B$64),(IF(BG71-(BG$1)>($B$12+$B$35+$B$61),($B$12+$B$35+$B$61),(BG71-(BG$1)))),(IF(AND($B71<=$B$53,$B71>=$B$54),(IF(BG71-(BG$1)>($B$12+$B$35),($B$12+$B$35),(BG71-(BG$1)))),(IF(AND($B71<=$B$63,$B71>=$B$64),(IF(BG71-(BG$1)>($B$12+$B$61),($B$12+$B$61),(BG71-(BG$1)))),(IF(BG71-(BG$1)>$B$12,($B$12),(BG71-(BG$1))))))))) -> 48 | BJ71: =BG71-BI71 -> 23493.83 | BK71: 1 | BL71: 0 | BM71: 48 | BN71: 0 | BO71: =(IF($B$5="Volume",IF((($D71-$B$8)*$B$4)>0,(($D71-$B$8)*(1-$B$9)*(1-$B$10))*$B$4,0),IF((($E71-$B$8)*$B$4)>0,(($E71-$B$8)*(1-$B$9)*(1-$B$10))*$B$4,0)))+(IF(OR($B71>=$B$56,$B71<=$B$57),IF($C71=$B$58,($B$46*$B$4*(1-$B$33))))) -> 0 | BP71: =BT70 -> 24291.83 | BQ71: =IF(BP71+BO71>BO$1,BO$1,BP71+BO71) -> 24291.83 | BR71: 0 | BS71: =IF(AND($B71<=$B$53,$B71<=$B$63,$B71>=$B$54,$B71>=$B$64),(IF(BQ71-(BQ$1)>($B$12+$B$35+$B$61),($B$12+$B$35+$B$61),(BQ71-(BQ$1)))),(IF(AND($B71<=$B$53,$B71>=$B$54),(IF(BQ71-(BQ$1)>($B$12+$B$35),($B$12+$B$35),(BQ71-(BQ$1)))),(IF(AND($B71<=$B$63,$B71>=$B$64),(IF(BQ71-(BQ$1)>($B$12+$B$61),($B$12+$B$61),(BQ71-(BQ$1)))),(IF(BQ71-(BQ$1)>$B$12,($B$12),(BQ71-(BQ$1))))))))) -> 48 | BT71: =BQ71-BS71 -> 24243.83 | BU71: 1 | BV71: 0 | BW71: 48 | BX71: 0 | BY71: =(IF($B$5="Volume",IF((($D71-$B$8)*$B$4)>0,(($D71-$B$8)*(1-$B$9)*(1-$B$10))*$B$4,0),IF((($E71-$B$8)*$B$4)>0,(($E71-$B$8)*(1-$B$9)*(1-$B$10))*$B$4,0)))+(IF(OR($B71>=$B$56,$B71<=$B$57),IF($C71=$B$58,($B$46*$B$4*(1-$B$33))))) -> 0 | BZ71: =CD70 -> 25041.83 | CA71: =IF(BZ71+BY71>BY$1,BY$1,BZ71+BY71) -> 25041.83 | CB71: =IF(CA71=BY$1,BZ71+BY71-BY$1,0) -> 0 | CC71: =IF(AND($B71<=$B$53,$B71<=$B$63,$B71>=$B$54,$B71>=$B$64),(IF(CA71-(CA$1)>($B$12+$B$35+$B$61),($B$12+$B$35+$B$61),(CA71-(CA$1)))),(IF(AND($B71<=$B$53,$B71>=$B$54),(IF(CA71-(CA$1)>($B$12+$B$35),($B$12+$B$35),(CA71-(CA$1)))),(IF(AND($B71<=$B$63,$B71>=$B$64),(IF(CA71-(CA$1)>($B$12+$B$61),($B$12+$B$61),(CA71-(CA$1)))),(IF(CA71-(CA$1)>$B$12,($B$12),(CA71-(CA$1))))))))) -> 48 | CD71: =CA71-CC71 -> 24993.83 | CE71: 1 | CF71: 0 | CG71: 48
B72: 1 | C72: 5 | D72: 0 | E72: 0 | F72: 0 | G72: =(IF($B$5="Volume",IF((($D72-$B$8)*$B$4)>0,(($D72-$B$8)*(1-$B$9)*(1-$B$10))*$B$4,0),IF((($E72-$B$8)*$B$4)>0,(($E72-$B$8)*(1-$B$9)*(1-$B$10))*$B$4,0)))+(IF(OR($B72>=$B$56,$B72<=$B$57),IF($C72=$B$58,($B$46*$B$4*(1-$B$33))))) -> 0 | H72: 19743.83 | I72: 19743.83 | J72: 0 | K72: =IF(AND($B72<=$B$53,$B72<=$B$63,$B72>=$B$54,$B72>=$B$64),(IF(I72-(I$1)>($B$12+$B$35+$B$61),($B$12+$B$35+$B$61),(I72-(I$1)))),(IF(AND($B72<=$B$53,$B72>=$B$54),(IF(I72-(I$1)>($B$12+$B$35),($B$12+$B$35),(I72-(I$1)))),(IF(AND($B72<=$B$63,$B72>=$B$64),(IF(I72-(I$1)>($B$12+$B$61),($B$12+$B$61),(I72-(I$1)))),(IF(I72-(I$1)>$B$12,($B$12),(I72-(I$1))))))))) -> 48 | L72: 19695.83 | M72: 1 | N72: 0 | O72: 48 | P72: 0 | Q72: =(IF($B$5="Volume",IF((($D72-$B$8)*$B$4)>0,(($D72-$B$8)*(1-$B$9)*(1-$B$10))*$B$4,0),IF((($E72-$B$8)*$B$4)>0,(($E72-$B$8)*(1-$B$9)*(1-$B$10))*$B$4,0)))+(IF(OR($B72>=$B$56,$B72<=$B$57),IF($C72=$B$58,($B$46*$B$4*(1-$B$33))))) -> 0 | R72: 20493.83 | S72: 20493.83 | T72: 0 | U72: =IF(AND($B72<=$B$53,$B72<=$B$63,$B72>=$B$54,$B72>=$B$64),(IF(S72-(S$1)>($B$12+$B$35+$B$61),($B$12+$B$35+$B$61),(S72-(S$1)))),(IF(AND($B72<=$B$53,$B72>=$B$54),(IF(S72-(S$1)>($B$12+$B$35),($B$12+$B$35),(S72-(S$1)))),(IF(AND($B72<=$B$63,$B72>=$B$64),(IF(S72-(S$1)>($B$12+$B$61),($B$12+$B$61),(S72-(S$1)))),(IF(S72-(S$1)>$B$12,($B$12),(S72-(S$1))))))))) -> 48 | V72: 20445.83 | W72: 1 | X72: 0 | Y72: 48 | Z72: 0 | AA72: =(IF($B$5="Volume",IF((($D72-$B$8)*$B$4)>0,(($D72-$B$8)*(1-$B$9)*(1-$B$10))*$B$4,0),IF((($E72-$B$8)*$B$4)>0,(($E72-$B$8)*(1-$B$9)*(1-$B$10))*$B$4,0)))+(IF(OR($B72>=$B$56,$B72<=$B$57),IF($C72=$B$58,($B$46*$B$4*(1-$B$33))))) -> 0 | AB72: 21243.83 | AC72: 21243.83 | AD72: 0 | AE72: =IF(AND($B72<=$B$53,$B72<=$B$63,$B72>=$B$54,$B72>=$B$64),(IF(AC72-(AC$1)>($B$12+$B$35+$B$61),($B$12+$B$35+$B$61),(AC72-(AC$1)))),(IF(AND($B72<=$B$53,$B72>=$B$54),(IF(AC72-(AC$1)>($B$12+$B$35),($B$12+$B$35),(AC72-(AC$1)))),(IF(AND($B72<=$B$63,$B72>=$B$64),(IF(AC72-(AC$1)>($B$12+$B$61),($B$12+$B$61),(AC72-(AC$1)))),(IF(AC72-(AC$1)>$B$12,($B$12),(AC72-(AC$1))))))))) -> 48 | AF72: 21195.83 | AG72: 1 | AH72: 0 | AI72: 48 | AJ72: 0 | AK72: =(IF($B$5="Volume",IF((($D72-$B$8)*$B$4)>0,(($D72-$B$8)*(1-$B$9)*(1-$B$10))*$B$4,0),IF((($E72-$B$8)*$B$4)>0,(($E72-$B$8)*(1-$B$9)*(1-$B$10))*$B$4,0)))+(IF(OR($B72>=$B$56,$B72<=$B$57),IF($C72=$B$58,($B$46*$B$4*(1-$B$33))))) -> 0 | AL72: 21993.83 | AM72: 21993.83 | AN72: 0 | AO72: =IF(AND($B72<=$B$53,$B72<=$B$63,$B72>=$B$54,$B72>=$B$64),(IF(AM72-(AM$1)>($B$12+$B$35+$B$61),($B$12+$B$35+$B$61),(AM72-(AM$1)))),(IF(AND($B72<=$B$53,$B72>=$B$54),(IF(AM72-(AM$1)>($B$12+$B$35),($B$12+$B$35),(AM72-(AM$1)))),(IF(AND($B72<=$B$63,$B72>=$B$64),(IF(AM72-(AM$1)>($B$12+$B$61),($B$12+$B$61),(AM72-(AM$1)))),(IF(AM72-(AM$1)>$B$12,($B$12),(AM72-(AM$1))))))))) -> 48 | AP72: 21945.83 | AQ72: 1 | AR72: 0 | AS72: 48 | AT72: 0 | AU72: =(IF($B$5="Volume",IF((($D72-$B$8)*$B$4)>0,(($D72-$B$8)*(1-$B$9)*(1-$B$10))*$B$4,0),IF((($E72-$B$8)*$B$4)>0,(($E72-$B$8)*(1-$B$9)*(1-$B$10))*$B$4,0)))+(IF(OR($B72>=$B$56,$B72<=$B$57),IF($C72=$B$58,($B$46*$B$4*(1-$B$33))))) -> 0 | AV72: 22743.83 | AW72: 22743.83 | AX72: 0 | AY72: =IF(AND($B72<=$B$53,$B72<=$B$63,$B72>=$B$54,$B72>=$B$64),(IF(AW72-(AW$1)>($B$12+$B$35+$B$61),($B$12+$B$35+$B$61),(AW72-(AW$1)))),(IF(AND($B72<=$B$53,$B72>=$B$54),(IF(AW72-(AW$1)>($B$12+$B$35),($B$12+$B$35),(AW72-(AW$1)))),(IF(AND($B72<=$B$63,$B72>=$B$64),(IF(AW72-(AW$1)>($B$12+$B$61),($B$12+$B$61),(AW72-(AW$1)))),(IF(AW72-(AW$1)>$B$12,($B$12),(AW72-(AW$1))))))))) -> 48 | AZ72: 22695.83 | BA72: 1 | BB72: 0 | BC72: 48 | BD72: 0 | BE72: =(IF($B$5="Volume",IF((($D72-$B$8)*$B$4)>0,(($D72-$B$8)*(1-$B$9)*(1-$B$10))*$B$4,0),IF((($E72-$B$8)*$B$4)>0,(($E72-$B$8)*(1-$B$9)*(1-$B$10))*$B$4,0)))+(IF(OR($B72>=$B$56,$B72<=$B$57),IF($C72=$B$58,($B$46*$B$4*(1-$B$33))))) -> 0 | BF72: 23493.83 | BG72: 23493.83 | BH72: 0 | BI72: =IF(AND($B72<=$B$53,$B72<=$B$63,$B72>=$B$54,$B72>=$B$64),(IF(BG72-(BG$1)>($B$12+$B$35+$B$61),($B$12+$B$35+$B$61),(BG72-(BG$1)))),(IF(AND($B72<=$B$53,$B72>=$B$54),(IF(BG72-(BG$1)>($B$12+$B$35),($B$12+$B$35),(BG72-(BG$1)))),(IF(AND($B72<=$B$63,$B72>=$B$64),(IF(BG72-(BG$1)>($B$12+$B$61),($B$12+$B$61),(BG72-(BG$1)))),(IF(BG72-(BG$1)>$B$12,($B$12),(BG72-(BG$1))))))))) -> 48 | BJ72: 23445.83 | BK72: 1 | BL72: 0 | BM72: 48 | BN72: 0 | BO72: =(IF($B$5="Volume",IF((($D72-$B$8)*$B$4)>0,(($D72-$B$8)*(1-$B$9)*(1-$B$10))*$B$4,0),IF((($E72-$B$8)*$B$4)>0,(($E72-$B$8)*(1-$B$9)*(1-$B$10))*$B$4,0)))+(IF(OR($B72>=$B$56,$B72<=$B$57),IF($C72=$B$58,($B$46*$B$4*(1-$B$33))))) -> 0 | BP72: 24243.83 | BQ72: 24243.83 | BR72: 0 | BS72: =IF(AND($B72<=$B$53,$B72<=$B$63,$B72>=$B$54,$B72>=$B$64),(IF(BQ72-(BQ$1)>($B$12+$B$35+$B$61),($B$12+$B$35+$B$61),(BQ72-(BQ$1)))),(IF(AND($B72<=$B$53,$B72>=$B$54),(IF(BQ72-(BQ$1)>($B$12+$B$35),($B$12+$B$35),(BQ72-(BQ$1)))),(IF(AND($B72<=$B$63,$B72>=$B$64),(IF(BQ72-(BQ$1)>($B$12+$B$61),($B$12+$B$61),(BQ72-(BQ$1)))),(IF(BQ72-(BQ$1)>$B$12,($B$12),(BQ72-(BQ$1))))))))) -> 48 | BT72: 24195.83 | BU72: 1 | BV72: 0 | BW72: 48 | BX72: 0 | BY72: =(IF($B$5="Volume",IF((($D72-$B$8)*$B$4)>0,(($D72-$B$8)*(1-$B$9)*(1-$B$10))*$B$4,0),IF((($E72-$B$8)*$B$4)>0,(($E72-$B$8)*(1-$B$9)*(1-$B$10))*$B$4,0)))+(IF(OR($B72>=$B$56,$B72<=$B$57),IF($C72=$B$58,($B$46*$B$4*(1-$B$33))))) -> 0 | BZ72: 24993.83 | CA72: 24993.83 | CB72: 0 | CC72: =IF(AND($B72<=$B$53,$B72<=$B$63,$B72>=$B$54,$B72>=$B$64),(IF(CA72-(CA$1)>($B$12+$B$35+$B$61),($B$12+$B$35+$B$61),(CA72-(CA$1)))),(IF(AND($B72<=$B$53,$B72>=$B$54),(IF(CA72-(CA$1)>($B$12+$B$35),($B$12+$B$35),(CA72-(CA$1)))),(IF(AND($B72<=$B$63,$B72>=$B$64),(IF(CA72-(CA$1)>($B$12+$B$61),($B$12+$B$61),(CA72-(CA$1)))),(IF(CA72-(CA$1)>$B$12,($B$12),(CA72-(CA$1))))))))) -> 48 | CD72: 24945.83 | CE72: 1 | CF72: 0 | CG72: 48
B73: 1 | C73: 6 | D73: 0 | E73: 0 | F73: 0 | G73: =(IF($B$5="Volume",IF((($D73-$B$8)*$B$4)>0,(($D73-$B$8)*(1-$B$9)*(1-$B$10))*$B$4,0),IF((($E73-$B$8)*$B$4)>0,(($E73-$B$8)*(1-$B$9)*(1-$B$10))*$B$4,0)))+(IF(OR($B73>=$B$56,$B73<=$B$57),IF($C73=$B$58,($B$46*$B$4*(1-$B$33))))) -> 0 | H73: 19695.83 | I73: 19695.83 | J73: 0 | K73: =IF(AND($B73<=$B$53,$B73<=$B$63,$B73>=$B$54,$B73>=$B$64),(IF(I73-(I$1)>($B$12+$B$35+$B$61),($B$12+$B$35+$B$61),(I73-(I$1)))),(IF(AND($B73<=$B$53,$B73>=$B$54),(IF(I73-(I$1)>($B$12+$B$35),($B$12+$B$35),(I73-(I$1)))),(IF(AND($B73<=$B$63,$B73>=$B$64),(IF(I73-(I$1)>($B$12+$B$61),($B$12+$B$61),(I73-(I$1)))),(IF(I73-(I$1)>$B$12,($B$12),(I73-(I$1))))))))) -> 48 | L73: 19647.83 | M73: 1 | N73: 0 | O73: 48 | P73: 0 | Q73: =(IF($B$5="Volume",IF((($D73-$B$8)*$B$4)>0,(($D73-$B$8)*(1-$B$9)*(1-$B$10))*$B$4,0),IF((($E73-$B$8)*$B$4)>0,(($E73-$B$8)*(1-$B$9)*(1-$B$10))*$B$4,0)))+(IF(OR($B73>=$B$56,$B73<=$B$57),IF($C73=$B$58,($B$46*$B$4*(1-$B$33))))) -> 0 | R73: 20445.83 | S73: 20445.83 | T73: 0 | U73: =IF(AND($B73<=$B$53,$B73<=$B$63,$B73>=$B$54,$B73>=$B$64),(IF(S73-(S$1)>($B$12+$B$35+$B$61),($B$12+$B$35+$B$61),(S73-(S$1)))),(IF(AND($B73<=$B$53,$B73>=$B$54),(IF(S73-(S$1)>($B$12+$B$35),($B$12+$B$35),(S73-(S$1)))),(IF(AND($B73<=$B$63,$B73>=$B$64),(IF(S73-(S$1)>($B$12+$B$61),($B$12+$B$61),(S73-(S$1)))),(IF(S73-(S$1)>$B$12,($B$12),(S73-(S$1))))))))) -> 48 | V73: 20397.83 | W73: 1 | X73: 0 | Y73: 48 | Z73: 0 | AA73: =(IF($B$5="Volume",IF((($D73-$B$8)*$B$4)>0,(($D73-$B$8)*(1-$B$9)*(1-$B$10))*$B$4,0),IF((($E73-$B$8)*$B$4)>0,(($E73-$B$8)*(1-$B$9)*(1-$B$10))*$B$4,0)))+(IF(OR($B73>=$B$56,$B73<=$B$57),IF($C73=$B$58,($B$46*$B$4*(1-$B$33))))) -> 0 | AB73: 21195.83 | AC73: 21195.83 | AD73: 0 | AE73: =IF(AND($B73<=$B$53,$B73<=$B$63,$B73>=$B$54,$B73>=$B$64),(IF(AC73-(AC$1)>($B$12+$B$35+$B$61),($B$12+$B$35+$B$61),(AC73-(AC$1)))),(IF(AND($B73<=$B$53,$B73>=$B$54),(IF(AC73-(AC$1)>($B$12+$B$35),($B$12+$B$35),(AC73-(AC$1)))),(IF(AND($B73<=$B$63,$B73>=$B$64),(IF(AC73-(AC$1)>($B$12+$B$61),($B$12+$B$61),(AC73-(AC$1)))),(IF(AC73-(AC$1)>$B$12,($B$12),(AC73-(AC$1))))))))) -> 48 | AF73: 21147.83 | AG73: 1 | AH73: 0 | AI73: 48 | AJ73: 0 | AK73: =(IF($B$5="Volume",IF((($D73-$B$8)*$B$4)>0,(($D73-$B$8)*(1-$B$9)*(1-$B$10))*$B$4,0),IF((($E73-$B$8)*$B$4)>0,(($E73-$B$8)*(1-$B$9)*(1-$B$10))*$B$4,0)))+(IF(OR($B73>=$B$56,$B73<=$B$57),IF($C73=$B$58,($B$46*$B$4*(1-$B$33))))) -> 0 | AL73: 21945.83 | AM73: 21945.83 | AN73: 0 | AO73: =IF(AND($B73<=$B$53,$B73<=$B$63,$B73>=$B$54,$B73>=$B$64),(IF(AM73-(AM$1)>($B$12+$B$35+$B$61),($B$12+$B$35+$B$61),(AM73-(AM$1)))),(IF(AND($B73<=$B$53,$B73>=$B$54),(IF(AM73-(AM$1)>($B$12+$B$35),($B$12+$B$35),(AM73-(AM$1)))),(IF(AND($B73<=$B$63,$B73>=$B$64),(IF(AM73-(AM$1)>($B$12+$B$61),($B$12+$B$61),(AM73-(AM$1)))),(IF(AM73-(AM$1)>$B$12,($B$12),(AM73-(AM$1))))))))) -> 48 | AP73: 21897.83 | AQ73: 1 | AR73: 0 | AS73: 48 | AT73: 0 | AU73: =(IF($B$5="Volume",IF((($D73-$B$8)*$B$4)>0,(($D73-$B$8)*(1-$B$9)*(1-$B$10))*$B$4,0),IF((($E73-$B$8)*$B$4)>0,(($E73-$B$8)*(1-$B$9)*(1-$B$10))*$B$4,0)))+(IF(OR($B73>=$B$56,$B73<=$B$57),IF($C73=$B$58,($B$46*$B$4*(1-$B$33))))) -> 0 | AV73: 22695.83 | AW73: 22695.83 | AX73: 0 | AY73: =IF(AND($B73<=$B$53,$B73<=$B$63,$B73>=$B$54,$B73>=$B$64),(IF(AW73-(AW$1)>($B$12+$B$35+$B$61),($B$12+$B$35+$B$61),(AW73-(AW$1)))),(IF(AND($B73<=$B$53,$B73>=$B$54),(IF(AW73-(AW$1)>($B$12+$B$35),($B$12+$B$35),(AW73-(AW$1)))),(IF(AND($B73<=$B$63,$B73>=$B$64),(IF(AW73-(AW$1)>($B$12+$B$61),($B$12+$B$61),(AW73-(AW$1)))),(IF(AW73-(AW$1)>$B$12,($B$12),(AW73-(AW$1))))))))) -> 48 | AZ73: 22647.83 | BA73: 1 | BB73: 0 | BC73: 48 | BD73: 0 | BE73: =(IF($B$5="Volume",IF((($D73-$B$8)*$B$4)>0,(($D73-$B$8)*(1-$B$9)*(1-$B$10))*$B$4,0),IF((($E73-$B$8)*$B$4)>0,(($E73-$B$8)*(1-$B$9)*(1-$B$10))*$B$4,0)))+(IF(OR($B73>=$B$56,$B73<=$B$57),IF($C73=$B$58,($B$46*$B$4*(1-$B$33))))) -> 0 | BF73: 23445.83 | BG73: 23445.83 | BH73: 0 | BI73: =IF(AND($B73<=$B$53,$B73<=$B$63,$B73>=$B$54,$B73>=$B$64),(IF(BG73-(BG$1)>($B$12+$B$35+$B$61),($B$12+$B$35+$B$61),(BG73-(BG$1)))),(IF(AND($B73<=$B$53,$B73>=$B$54),(IF(BG73-(BG$1)>($B$12+$B$35),($B$12+$B$35),(BG73-(BG$1)))),(IF(AND($B73<=$B$63,$B73>=$B$64),(IF(BG73-(BG$1)>($B$12+$B$61),($B$12+$B$61),(BG73-(BG$1)))),(IF(BG73-(BG$1)>$B$12,($B$12),(BG73-(BG$1))))))))) -> 48 | BJ73: 23397.83 | BK73: 1 | BL73: 0 | BM73: 48 | BN73: 0 | BO73: =(IF($B$5="Volume",IF((($D73-$B$8)*$B$4)>0,(($D73-$B$8)*(1-$B$9)*(1-$B$10))*$B$4,0),IF((($E73-$B$8)*$B$4)>0,(($E73-$B$8)*(1-$B$9)*(1-$B$10))*$B$4,0)))+(IF(OR($B73>=$B$56,$B73<=$B$57),IF($C73=$B$58,($B$46*$B$4*(1-$B$33))))) -> 0 | BP73: 24195.83 | BQ73: 24195.83 | BR73: 0 | BS73: =IF(AND($B73<=$B$53,$B73<=$B$63,$B73>=$B$54,$B73>=$B$64),(IF(BQ73-(BQ$1)>($B$12+$B$35+$B$61),($B$12+$B$35+$B$61),(BQ73-(BQ$1)))),(IF(AND($B73<=$B$53,$B73>=$B$54),(IF(BQ73-(BQ$1)>($B$12+$B$35),($B$12+$B$35),(BQ73-(BQ$1)))),(IF(AND($B73<=$B$63,$B73>=$B$64),(IF(BQ73-(BQ$1)>($B$12+$B$61),($B$12+$B$61),(BQ73-(BQ$1)))),(IF(BQ73-(BQ$1)>$B$12,($B$12),(BQ73-(BQ$1))))))))) -> 48 | BT73: 24147.83 | BU73: 1 | BV73: 0 | BW73: 48 | BX73: 0 | BY73: =(IF($B$5="Volume",IF((($D73-$B$8)*$B$4)>0,(($D73-$B$8)*(1-$B$9)*(1-$B$10))*$B$4,0),IF((($E73-$B$8)*$B$4)>0,(($E73-$B$8)*(1-$B$9)*(1-$B$10))*$B$4,0)))+(IF(OR($B73>=$B$56,$B73<=$B$57),IF($C73=$B$58,($B$46*$B$4*(1-$B$33))))) -> 0 | BZ73: 24945.83 | CA73: 24945.83 | CB73: 0 | CC73: =IF(AND($B73<=$B$53,$B73<=$B$63,$B73>=$B$54,$B73>=$B$64),(IF(CA73-(CA$1)>($B$12+$B$35+$B$61),($B$12+$B$35+$B$61),(CA73-(CA$1)))),(IF(AND($B73<=$B$53,$B73>=$B$54),(IF(CA73-(CA$1)>($B$12+$B$35),($B$12+$B$35),(CA73-(CA$1)))),(IF(AND($B73<=$B$63,$B73>=$B$64),(IF(CA73-(CA$1)>($B$12+$B$61),($B$12+$B$61),(CA73-(CA$1)))),(IF(CA73-(CA$1)>$B$12,($B$12),(CA73-(CA$1))))))))) -> 48 | CD73: 24897.83 | CE73: 1 | CF73: 0 | CG73: 48
B74: 1 | C74: 7 | D74: 0 | E74: 0 | F74: 0 | G74: =(IF($B$5="Volume",IF((($D74-$B$8)*$B$4)>0,(($D74-$B$8)*(1-$B$9)*(1-$B$10))*$B$4,0),IF((($E74-$B$8)*$B$4)>0,(($E74-$B$8)*(1-$B$9)*(1-$B$10))*$B$4,0)))+(IF(OR($B74>=$B$56,$B74<=$B$57),IF($C74=$B$58,($B$46*$B$4*(1-$B$33))))) -> 0 | H74: 19647.83 | I74: 19647.83 | J74: 0 | K74: =IF(AND($B74<=$B$53,$B74<=$B$63,$B74>=$B$54,$B74>=$B$64),(IF(I74-(I$1)>($B$12+$B$35+$B$61),($B$12+$B$35+$B$61),(I74-(I$1)))),(IF(AND($B74<=$B$53,$B74>=$B$54),(IF(I74-(I$1)>($B$12+$B$35),($B$12+$B$35),(I74-(I$1)))),(IF(AND($B74<=$B$63,$B74>=$B$64),(IF(I74-(I$1)>($B$12+$B$61),($B$12+$B$61),(I74-(I$1)))),(IF(I74-(I$1)>$B$12,($B$12),(I74-(I$1))))))))) -> 48 | L74: 19599.83 | M74: 1 | N74: 0 | O74: 48 | P74: 0 | Q74: =(IF($B$5="Volume",IF((($D74-$B$8)*$B$4)>0,(($D74-$B$8)*(1-$B$9)*(1-$B$10))*$B$4,0),IF((($E74-$B$8)*$B$4)>0,(($E74-$B$8)*(1-$B$9)*(1-$B$10))*$B$4,0)))+(IF(OR($B74>=$B$56,$B74<=$B$57),IF($C74=$B$58,($B$46*$B$4*(1-$B$33))))) -> 0 | R74: 20397.83 | S74: 20397.83 | T74: 0 | U74: =IF(AND($B74<=$B$53,$B74<=$B$63,$B74>=$B$54,$B74>=$B$64),(IF(S74-(S$1)>($B$12+$B$35+$B$61),($B$12+$B$35+$B$61),(S74-(S$1)))),(IF(AND($B74<=$B$53,$B74>=$B$54),(IF(S74-(S$1)>($B$12+$B$35),($B$12+$B$35),(S74-(S$1)))),(IF(AND($B74<=$B$63,$B74>=$B$64),(IF(S74-(S$1)>($B$12+$B$61),($B$12+$B$61),(S74-(S$1)))),(IF(S74-(S$1)>$B$12,($B$12),(S74-(S$1))))))))) -> 48 | V74: 20349.83 | W74: 1 | X74: 0 | Y74: 48 | Z74: 0 | AA74: =(IF($B$5="Volume",IF((($D74-$B$8)*$B$4)>0,(($D74-$B$8)*(1-$B$9)*(1-$B$10))*$B$4,0),IF((($E74-$B$8)*$B$4)>0,(($E74-$B$8)*(1-$B$9)*(1-$B$10))*$B$4,0)))+(IF(OR($B74>=$B$56,$B74<=$B$57),IF($C74=$B$58,($B$46*$B$4*(1-$B$33))))) -> 0 | AB74: 21147.83 | AC74: 21147.83 | AD74: 0 | AE74: =IF(AND($B74<=$B$53,$B74<=$B$63,$B74>=$B$54,$B74>=$B$64),(IF(AC74-(AC$1)>($B$12+$B$35+$B$61),($B$12+$B$35+$B$61),(AC74-(AC$1)))),(IF(AND($B74<=$B$53,$B74>=$B$54),(IF(AC74-(AC$1)>($B$12+$B$35),($B$12+$B$35),(AC74-(AC$1)))),(IF(AND($B74<=$B$63,$B74>=$B$64),(IF(AC74-(AC$1)>($B$12+$B$61),($B$12+$B$61),(AC74-(AC$1)))),(IF(AC74-(AC$1)>$B$12,($B$12),(AC74-(AC$1))))))))) -> 48 | AF74: 21099.83 | AG74: 1 | AH74: 0 | AI74: 48 | AJ74: 0 | AK74: =(IF($B$5="Volume",IF((($D74-$B$8)*$B$4)>0,(($D74-$B$8)*(1-$B$9)*(1-$B$10))*$B$4,0),IF((($E74-$B$8)*$B$4)>0,(($E74-$B$8)*(1-$B$9)*(1-$B$10))*$B$4,0)))+(IF(OR($B74>=$B$56,$B74<=$B$57),IF($C74=$B$58,($B$46*$B$4*(1-$B$33))))) -> 0 | AL74: 21897.83 | AM74: 21897.83 | AN74: 0 | AO74: =IF(AND($B74<=$B$53,$B74<=$B$63,$B74>=$B$54,$B74>=$B$64),(IF(AM74-(AM$1)>($B$12+$B$35+$B$61),($B$12+$B$35+$B$61),(AM74-(AM$1)))),(IF(AND($B74<=$B$53,$B74>=$B$54),(IF(AM74-(AM$1)>($B$12+$B$35),($B$12+$B$35),(AM74-(AM$1)))),(IF(AND($B74<=$B$63,$B74>=$B$64),(IF(AM74-(AM$1)>($B$12+$B$61),($B$12+$B$61),(AM74-(AM$1)))),(IF(AM74-(AM$1)>$B$12,($B$12),(AM74-(AM$1))))))))) -> 48 | AP74: 21849.83 | AQ74: 1 | AR74: 0 | AS74: 48 | AT74: 0 | AU74: =(IF($B$5="Volume",IF((($D74-$B$8)*$B$4)>0,(($D74-$B$8)*(1-$B$9)*(1-$B$10))*$B$4,0),IF((($E74-$B$8)*$B$4)>0,(($E74-$B$8)*(1-$B$9)*(1-$B$10))*$B$4,0)))+(IF(OR($B74>=$B$56,$B74<=$B$57),IF($C74=$B$58,($B$46*$B$4*(1-$B$33))))) -> 0 | AV74: 22647.83 | AW74: 22647.83 | AX74: 0 | AY74: =IF(AND($B74<=$B$53,$B74<=$B$63,$B74>=$B$54,$B74>=$B$64),(IF(AW74-(AW$1)>($B$12+$B$35+$B$61),($B$12+$B$35+$B$61),(AW74-(AW$1)))),(IF(AND($B74<=$B$53,$B74>=$B$54),(IF(AW74-(AW$1)>($B$12+$B$35),($B$12+$B$35),(AW74-(AW$1)))),(IF(AND($B74<=$B$63,$B74>=$B$64),(IF(AW74-(AW$1)>($B$12+$B$61),($B$12+$B$61),(AW74-(AW$1)))),(IF(AW74-(AW$1)>$B$12,($B$12),(AW74-(AW$1))))))))) -> 48 | AZ74: 22599.83 | BA74: 1 | BB74: 0 | BC74: 48 | BD74: 0 | BE74: =(IF($B$5="Volume",IF((($D74-$B$8)*$B$4)>0,(($D74-$B$8)*(1-$B$9)*(1-$B$10))*$B$4,0),IF((($E74-$B$8)*$B$4)>0,(($E74-$B$8)*(1-$B$9)*(1-$B$10))*$B$4,0)))+(IF(OR($B74>=$B$56,$B74<=$B$57),IF($C74=$B$58,($B$46*$B$4*(1-$B$33))))) -> 0 | BF74: 23397.83 | BG74: 23397.83 | BH74: 0 | BI74: =IF(AND($B74<=$B$53,$B74<=$B$63,$B74>=$B$54,$B74>=$B$64),(IF(BG74-(BG$1)>($B$12+$B$35+$B$61),($B$12+$B$35+$B$61),(BG74-(BG$1)))),(IF(AND($B74<=$B$53,$B74>=$B$54),(IF(BG74-(BG$1)>($B$12+$B$35),($B$12+$B$35),(BG74-(BG$1)))),(IF(AND($B74<=$B$63,$B74>=$B$64),(IF(BG74-(BG$1)>($B$12+$B$61),($B$12+$B$61),(BG74-(BG$1)))),(IF(BG74-(BG$1)>$B$12,($B$12),(BG74-(BG$1))))))))) -> 48 | BJ74: 23349.83 | BK74: 1 | BL74: 0 | BM74: 48 | BN74: 0 | BO74: =(IF($B$5="Volume",IF((($D74-$B$8)*$B$4)>0,(($D74-$B$8)*(1-$B$9)*(1-$B$10))*$B$4,0),IF((($E74-$B$8)*$B$4)>0,(($E74-$B$8)*(1-$B$9)*(1-$B$10))*$B$4,0)))+(IF(OR($B74>=$B$56,$B74<=$B$57),IF($C74=$B$58,($B$46*$B$4*(1-$B$33))))) -> 0 | BP74: 24147.83 | BQ74: 24147.83 | BR74: 0 | BS74: =IF(AND($B74<=$B$53,$B74<=$B$63,$B74>=$B$54,$B74>=$B$64),(IF(BQ74-(BQ$1)>($B$12+$B$35+$B$61),($B$12+$B$35+$B$61),(BQ74-(BQ$1)))),(IF(AND($B74<=$B$53,$B74>=$B$54),(IF(BQ74-(BQ$1)>($B$12+$B$35),($B$12+$B$35),(BQ74-(BQ$1)))),(IF(AND($B74<=$B$63,$B74>=$B$64),(IF(BQ74-(BQ$1)>($B$12+$B$61),($B$12+$B$61),(BQ74-(BQ$1)))),(IF(BQ74-(BQ$1)>$B$12,($B$12),(BQ74-(BQ$1))))))))) -> 48 | BT74: 24099.83 | BU74: 1 | BV74: 0 | BW74: 48 | BX74: 0 | BY74: =(IF($B$5="Volume",IF((($D74-$B$8)*$B$4)>0,(($D74-$B$8)*(1-$B$9)*(1-$B$10))*$B$4,0),IF((($E74-$B$8)*$B$4)>0,(($E74-$B$8)*(1-$B$9)*(1-$B$10))*$B$4,0)))+(IF(OR($B74>=$B$56,$B74<=$B$57),IF($C74=$B$58,($B$46*$B$4*(1-$B$33))))) -> 0 | BZ74: 24897.83 | CA74: 24897.83 | CB74: 0 | CC74: =IF(AND($B74<=$B$53,$B74<=$B$63,$B74>=$B$54,$B74>=$B$64),(IF(CA74-(CA$1)>($B$12+$B$35+$B$61),($B$12+$B$35+$B$61),(CA74-(CA$1)))),(IF(AND($B74<=$B$53,$B74>=$B$54),(IF(CA74-(CA$1)>($B$12+$B$35),($B$12+$B$35),(CA74-(CA$1)))),(IF(AND($B74<=$B$63,$B74>=$B$64),(IF(CA74-(CA$1)>($B$12+$B$61),($B$12+$B$61),(CA74-(CA$1)))),(IF(CA74-(CA$1)>$B$12,($B$12),(CA74-(CA$1))))))))) -> 48 | CD74: 24849.83 | CE74: 1 | CF74: 0 | CG74: 48
B75: 1 | C75: 8 | D75: 0 | E75: 0 | F75: 0 | G75: =(IF($B$5="Volume",IF((($D75-$B$8)*$B$4)>0,(($D75-$B$8)*(1-$B$9)*(1-$B$10))*$B$4,0),IF((($E75-$B$8)*$B$4)>0,(($E75-$B$8)*(1-$B$9)*(1-$B$10))*$B$4,0)))+(IF(OR($B75>=$B$56,$B75<=$B$57),IF($C75=$B$58,($B$46*$B$4*(1-$B$33))))) -> 0 | H75: 19599.83 | I75: 19599.83 | J75: 0 | K75: =IF(AND($B75<=$B$53,$B75<=$B$63,$B75>=$B$54,$B75>=$B$64),(IF(I75-(I$1)>($B$12+$B$35+$B$61),($B$12+$B$35+$B$61),(I75-(I$1)))),(IF(AND($B75<=$B$53,$B75>=$B$54),(IF(I75-(I$1)>($B$12+$B$35),($B$12+$B$35),(I75-(I$1)))),(IF(AND($B75<=$B$63,$B75>=$B$64),(IF(I75-(I$1)>($B$12+$B$61),($B$12+$B$61),(I75-(I$1)))),(IF(I75-(I$1)>$B$12,($B$12),(I75-(I$1))))))))) -> 48 | L75: 19551.83 | M75: 1 | N75: 0 | O75: 48 | P75: 0 | Q75: =(IF($B$5="Volume",IF((($D75-$B$8)*$B$4)>0,(($D75-$B$8)*(1-$B$9)*(1-$B$10))*$B$4,0),IF((($E75-$B$8)*$B$4)>0,(($E75-$B$8)*(1-$B$9)*(1-$B$10))*$B$4,0)))+(IF(OR($B75>=$B$56,$B75<=$B$57),IF($C75=$B$58,($B$46*$B$4*(1-$B$33))))) -> 0 | R75: 20349.83 | S75: 20349.83 | T75: 0 | U75: =IF(AND($B75<=$B$53,$B75<=$B$63,$B75>=$B$54,$B75>=$B$64),(IF(S75-(S$1)>($B$12+$B$35+$B$61),($B$12+$B$35+$B$61),(S75-(S$1)))),(IF(AND($B75<=$B$53,$B75>=$B$54),(IF(S75-(S$1)>($B$12+$B$35),($B$12+$B$35),(S75-(S$1)))),(IF(AND($B75<=$B$63,$B75>=$B$64),(IF(S75-(S$1)>($B$12+$B$61),($B$12+$B$61),(S75-(S$1)))),(IF(S75-(S$1)>$B$12,($B$12),(S75-(S$1))))))))) -> 48 | V75: 20301.83 | W75: 1 | X75: 0 | Y75: 48 | Z75: 0 | AA75: =(IF($B$5="Volume",IF((($D75-$B$8)*$B$4)>0,(($D75-$B$8)*(1-$B$9)*(1-$B$10))*$B$4,0),IF((($E75-$B$8)*$B$4)>0,(($E75-$B$8)*(1-$B$9)*(1-$B$10))*$B$4,0)))+(IF(OR($B75>=$B$56,$B75<=$B$57),IF($C75=$B$58,($B$46*$B$4*(1-$B$33))))) -> 0 | AB75: 21099.83 | AC75: 21099.83 | AD75: 0 | AE75: =IF(AND($B75<=$B$53,$B75<=$B$63,$B75>=$B$54,$B75>=$B$64),(IF(AC75-(AC$1)>($B$12+$B$35+$B$61),($B$12+$B$35+$B$61),(AC75-(AC$1)))),(IF(AND($B75<=$B$53,$B75>=$B$54),(IF(AC75-(AC$1)>($B$12+$B$35),($B$12+$B$35),(AC75-(AC$1)))),(IF(AND($B75<=$B$63,$B75>=$B$64),(IF(AC75-(AC$1)>($B$12+$B$61),($B$12+$B$61),(AC75-(AC$1)))),(IF(AC75-(AC$1)>$B$12,($B$12),(AC75-(AC$1))))))))) -> 48 | AF75: 21051.83 | AG75: 1 | AH75: 0 | AI75: 48 | AJ75: 0 | AK75: =(IF($B$5="Volume",IF((($D75-$B$8)*$B$4)>0,(($D75-$B$8)*(1-$B$9)*(1-$B$10))*$B$4,0),IF((($E75-$B$8)*$B$4)>0,(($E75-$B$8)*(1-$B$9)*(1-$B$10))*$B$4,0)))+(IF(OR($B75>=$B$56,$B75<=$B$57),IF($C75=$B$58,($B$46*$B$4*(1-$B$33))))) -> 0 | AL75: 21849.83 | AM75: 21849.83 | AN75: 0 | AO75: =IF(AND($B75<=$B$53,$B75<=$B$63,$B75>=$B$54,$B75>=$B$64),(IF(AM75-(AM$1)>($B$12+$B$35+$B$61),($B$12+$B$35+$B$61),(AM75-(AM$1)))),(IF(AND($B75<=$B$53,$B75>=$B$54),(IF(AM75-(AM$1)>($B$12+$B$35),($B$12+$B$35),(AM75-(AM$1)))),(IF(AND($B75<=$B$63,$B75>=$B$64),(IF(AM75-(AM$1)>($B$12+$B$61),($B$12+$B$61),(AM75-(AM$1)))),(IF(AM75-(AM$1)>$B$12,($B$12),(AM75-(AM$1))))))))) -> 48 | AP75: 21801.83 | AQ75: 1 | AR75: 0 | AS75: 48 | AT75: 0 | AU75: =(IF($B$5="Volume",IF((($D75-$B$8)*$B$4)>0,(($D75-$B$8)*(1-$B$9)*(1-$B$10))*$B$4,0),IF((($E75-$B$8)*$B$4)>0,(($E75-$B$8)*(1-$B$9)*(1-$B$10))*$B$4,0)))+(IF(OR($B75>=$B$56,$B75<=$B$57),IF($C75=$B$58,($B$46*$B$4*(1-$B$33))))) -> 0 | AV75: 22599.83 | AW75: 22599.83 | AX75: 0 | AY75: =IF(AND($B75<=$B$53,$B75<=$B$63,$B75>=$B$54,$B75>=$B$64),(IF(AW75-(AW$1)>($B$12+$B$35+$B$61),($B$12+$B$35+$B$61),(AW75-(AW$1)))),(IF(AND($B75<=$B$53,$B75>=$B$54),(IF(AW75-(AW$1)>($B$12+$B$35),($B$12+$B$35),(AW75-(AW$1)))),(IF(AND($B75<=$B$63,$B75>=$B$64),(IF(AW75-(AW$1)>($B$12+$B$61),($B$12+$B$61),(AW75-(AW$1)))),(IF(AW75-(AW$1)>$B$12,($B$12),(AW75-(AW$1))))))))) -> 48 | AZ75: 22551.83 | BA75: 1 | BB75: 0 | BC75: 48 | BD75: 0 | BE75: =(IF($B$5="Volume",IF((($D75-$B$8)*$B$4)>0,(($D75-$B$8)*(1-$B$9)*(1-$B$10))*$B$4,0),IF((($E75-$B$8)*$B$4)>0,(($E75-$B$8)*(1-$B$9)*(1-$B$10))*$B$4,0)))+(IF(OR($B75>=$B$56,$B75<=$B$57),IF($C75=$B$58,($B$46*$B$4*(1-$B$33))))) -> 0 | BF75: 23349.83 | BG75: 23349.83 | BH75: 0 | BI75: =IF(AND($B75<=$B$53,$B75<=$B$63,$B75>=$B$54,$B75>=$B$64),(IF(BG75-(BG$1)>($B$12+$B$35+$B$61),($B$12+$B$35+$B$61),(BG75-(BG$1)))),(IF(AND($B75<=$B$53,$B75>=$B$54),(IF(BG75-(BG$1)>($B$12+$B$35),($B$12+$B$35),(BG75-(BG$1)))),(IF(AND($B75<=$B$63,$B75>=$B$64),(IF(BG75-(BG$1)>($B$12+$B$61),($B$12+$B$61),(BG75-(BG$1)))),(IF(BG75-(BG$1)>$B$12,($B$12),(BG75-(BG$1))))))))) -> 48 | BJ75: 23301.83 | BK75: 1 | BL75: 0 | BM75: 48 | BN75: 0 | BO75: =(IF($B$5="Volume",IF((($D75-$B$8)*$B$4)>0,(($D75-$B$8)*(1-$B$9)*(1-$B$10))*$B$4,0),IF((($E75-$B$8)*$B$4)>0,(($E75-$B$8)*(1-$B$9)*(1-$B$10))*$B$4,0)))+(IF(OR($B75>=$B$56,$B75<=$B$57),IF($C75=$B$58,($B$46*$B$4*(1-$B$33))))) -> 0 | BP75: 24099.83 | BQ75: 24099.83 | BR75: 0 | BS75: =IF(AND($B75<=$B$53,$B75<=$B$63,$B75>=$B$54,$B75>=$B$64),(IF(BQ75-(BQ$1)>($B$12+$B$35+$B$61),($B$12+$B$35+$B$61),(BQ75-(BQ$1)))),(IF(AND($B75<=$B$53,$B75>=$B$54),(IF(BQ75-(BQ$1)>($B$12+$B$35),($B$12+$B$35),(BQ75-(BQ$1)))),(IF(AND($B75<=$B$63,$B75>=$B$64),(IF(BQ75-(BQ$1)>($B$12+$B$61),($B$12+$B$61),(BQ75-(BQ$1)))),(IF(BQ75-(BQ$1)>$B$12,($B$12),(BQ75-(BQ$1))))))))) -> 48 | BT75: 24051.83 | BU75: 1 | BV75: 0 | BW75: 48 | BX75: 0 | BY75: =(IF($B$5="Volume",IF((($D75-$B$8)*$B$4)>0,(($D75-$B$8)*(1-$B$9)*(1-$B$10))*$B$4,0),IF((($E75-$B$8)*$B$4)>0,(($E75-$B$8)*(1-$B$9)*(1-$B$10))*$B$4,0)))+(IF(OR($B75>=$B$56,$B75<=$B$57),IF($C75=$B$58,($B$46*$B$4*(1-$B$33))))) -> 0 | BZ75: 24849.83 | CA75: 24849.83 | CB75: 0 | CC75: =IF(AND($B75<=$B$53,$B75<=$B$63,$B75>=$B$54,$B75>=$B$64),(IF(CA75-(CA$1)>($B$12+$B$35+$B$61),($B$12+$B$35+$B$61),(CA75-(CA$1)))),(IF(AND($B75<=$B$53,$B75>=$B$54),(IF(CA75-(CA$1)>($B$12+$B$35),($B$12+$B$35),(CA75-(CA$1)))),(IF(AND($B75<=$B$63,$B75>=$B$64),(IF(CA75-(CA$1)>($B$12+$B$61),($B$12+$B$61),(CA75-(CA$1)))),(IF(CA75-(CA$1)>$B$12,($B$12),(CA75-(CA$1))))))))) -> 48 | CD75: 24801.83 | CE75: 1 | CF75: 0 | CG75: 48
B76: 1 | C76: 9 | D76: 0 | E76: 0 | F76: 0 | G76: =(IF($B$5="Volume",IF((($D76-$B$8)*$B$4)>0,(($D76-$B$8)*(1-$B$9)*(1-$B$10))*$B$4,0),IF((($E76-$B$8)*$B$4)>0,(($E76-$B$8)*(1-$B$9)*(1-$B$10))*$B$4,0)))+(IF(OR($B76>=$B$56,$B76<=$B$57),IF($C76=$B$58,($B$46*$B$4*(1-$B$33))))) -> 0 | H76: 19551.83 | I76: 19551.83 | J76: 0 | K76: =IF(AND($B76<=$B$53,$B76<=$B$63,$B76>=$B$54,$B76>=$B$64),(IF(I76-(I$1)>($B$12+$B$35+$B$61),($B$12+$B$35+$B$61),(I76-(I$1)))),(IF(AND($B76<=$B$53,$B76>=$B$54),(IF(I76-(I$1)>($B$12+$B$35),($B$12+$B$35),(I76-(I$1)))),(IF(AND($B76<=$B$63,$B76>=$B$64),(IF(I76-(I$1)>($B$12+$B$61),($B$12+$B$61),(I76-(I$1)))),(IF(I76-(I$1)>$B$12,($B$12),(I76-(I$1))))))))) -> 48 | L76: 19503.83 | M76: 1 | N76: 0 | O76: 48 | P76: 0 | Q76: =(IF($B$5="Volume",IF((($D76-$B$8)*$B$4)>0,(($D76-$B$8)*(1-$B$9)*(1-$B$10))*$B$4,0),IF((($E76-$B$8)*$B$4)>0,(($E76-$B$8)*(1-$B$9)*(1-$B$10))*$B$4,0)))+(IF(OR($B76>=$B$56,$B76<=$B$57),IF($C76=$B$58,($B$46*$B$4*(1-$B$33))))) -> 0 | R76: 20301.83 | S76: 20301.83 | T76: 0 | U76: =IF(AND($B76<=$B$53,$B76<=$B$63,$B76>=$B$54,$B76>=$B$64),(IF(S76-(S$1)>($B$12+$B$35+$B$61),($B$12+$B$35+$B$61),(S76-(S$1)))),(IF(AND($B76<=$B$53,$B76>=$B$54),(IF(S76-(S$1)>($B$12+$B$35),($B$12+$B$35),(S76-(S$1)))),(IF(AND($B76<=$B$63,$B76>=$B$64),(IF(S76-(S$1)>($B$12+$B$61),($B$12+$B$61),(S76-(S$1)))),(IF(S76-(S$1)>$B$12,($B$12),(S76-(S$1))))))))) -> 48 | V76: 20253.83 | W76: 1 | X76: 0 | Y76: 48 | Z76: 0 | AA76: =(IF($B$5="Volume",IF((($D76-$B$8)*$B$4)>0,(($D76-$B$8)*(1-$B$9)*(1-$B$10))*$B$4,0),IF((($E76-$B$8)*$B$4)>0,(($E76-$B$8)*(1-$B$9)*(1-$B$10))*$B$4,0)))+(IF(OR($B76>=$B$56,$B76<=$B$57),IF($C76=$B$58,($B$46*$B$4*(1-$B$33))))) -> 0 | AB76: 21051.83 | AC76: 21051.83 | AD76: 0 | AE76: =IF(AND($B76<=$B$53,$B76<=$B$63,$B76>=$B$54,$B76>=$B$64),(IF(AC76-(AC$1)>($B$12+$B$35+$B$61),($B$12+$B$35+$B$61),(AC76-(AC$1)))),(IF(AND($B76<=$B$53,$B76>=$B$54),(IF(AC76-(AC$1)>($B$12+$B$35),($B$12+$B$35),(AC76-(AC$1)))),(IF(AND($B76<=$B$63,$B76>=$B$64),(IF(AC76-(AC$1)>($B$12+$B$61),($B$12+$B$61),(AC76-(AC$1)))),(IF(AC76-(AC$1)>$B$12,($B$12),(AC76-(AC$1))))))))) -> 48 | AF76: 21003.83 | AG76: 1 | AH76: 0 | AI76: 48 | AJ76: 0 | AK76: =(IF($B$5="Volume",IF((($D76-$B$8)*$B$4)>0,(($D76-$B$8)*(1-$B$9)*(1-$B$10))*$B$4,0),IF((($E76-$B$8)*$B$4)>0,(($E76-$B$8)*(1-$B$9)*(1-$B$10))*$B$4,0)))+(IF(OR($B76>=$B$56,$B76<=$B$57),IF($C76=$B$58,($B$46*$B$4*(1-$B$33))))) -> 0 | AL76: 21801.83 | AM76: 21801.83 | AN76: 0 | AO76: =IF(AND($B76<=$B$53,$B76<=$B$63,$B76>=$B$54,$B76>=$B$64),(IF(AM76-(AM$1)>($B$12+$B$35+$B$61),($B$12+$B$35+$B$61),(AM76-(AM$1)))),(IF(AND($B76<=$B$53,$B76>=$B$54),(IF(AM76-(AM$1)>($B$12+$B$35),($B$12+$B$35),(AM76-(AM$1)))),(IF(AND($B76<=$B$63,$B76>=$B$64),(IF(AM76-(AM$1)>($B$12+$B$61),($B$12+$B$61),(AM76-(AM$1)))),(IF(AM76-(AM$1)>$B$12,($B$12),(AM76-(AM$1))))))))) -> 48 | AP76: 21753.83 | AQ76: 1 | AR76: 0 | AS76: 48 | AT76: 0 | AU76: =(IF($B$5="Volume",IF((($D76-$B$8)*$B$4)>0,(($D76-$B$8)*(1-$B$9)*(1-$B$10))*$B$4,0),IF((($E76-$B$8)*$B$4)>0,(($E76-$B$8)*(1-$B$9)*(1-$B$10))*$B$4,0)))+(IF(OR($B76>=$B$56,$B76<=$B$57),IF($C76=$B$58,($B$46*$B$4*(1-$B$33))))) -> 0 | AV76: 22551.83 | AW76: 22551.83 | AX76: 0 | AY76: =IF(AND($B76<=$B$53,$B76<=$B$63,$B76>=$B$54,$B76>=$B$64),(IF(AW76-(AW$1)>($B$12+$B$35+$B$61),($B$12+$B$35+$B$61),(AW76-(AW$1)))),(IF(AND($B76<=$B$53,$B76>=$B$54),(IF(AW76-(AW$1)>($B$12+$B$35),($B$12+$B$35),(AW76-(AW$1)))),(IF(AND($B76<=$B$63,$B76>=$B$64),(IF(AW76-(AW$1)>($B$12+$B$61),($B$12+$B$61),(AW76-(AW$1)))),(IF(AW76-(AW$1)>$B$12,($B$12),(AW76-(AW$1))))))))) -> 48 | AZ76: 22503.83 | BA76: 1 | BB76: 0 | BC76: 48 | BD76: 0 | BE76: =(IF($B$5="Volume",IF((($D76-$B$8)*$B$4)>0,(($D76-$B$8)*(1-$B$9)*(1-$B$10))*$B$4,0),IF((($E76-$B$8)*$B$4)>0,(($E76-$B$8)*(1-$B$9)*(1-$B$10))*$B$4,0)))+(IF(OR($B76>=$B$56,$B76<=$B$57),IF($C76=$B$58,($B$46*$B$4*(1-$B$33))))) -> 0 | BF76: 23301.83 | BG76: 23301.83 | BH76: 0 | BI76: =IF(AND($B76<=$B$53,$B76<=$B$63,$B76>=$B$54,$B76>=$B$64),(IF(BG76-(BG$1)>($B$12+$B$35+$B$61),($B$12+$B$35+$B$61),(BG76-(BG$1)))),(IF(AND($B76<=$B$53,$B76>=$B$54),(IF(BG76-(BG$1)>($B$12+$B$35),($B$12+$B$35),(BG76-(BG$1)))),(IF(AND($B76<=$B$63,$B76>=$B$64),(IF(BG76-(BG$1)>($B$12+$B$61),($B$12+$B$61),(BG76-(BG$1)))),(IF(BG76-(BG$1)>$B$12,($B$12),(BG76-(BG$1))))))))) -> 48 | BJ76: 23253.83 | BK76: 1 | BL76: 0 | BM76: 48 | BN76: 0 | BO76: =(IF($B$5="Volume",IF((($D76-$B$8)*$B$4)>0,(($D76-$B$8)*(1-$B$9)*(1-$B$10))*$B$4,0),IF((($E76-$B$8)*$B$4)>0,(($E76-$B$8)*(1-$B$9)*(1-$B$10))*$B$4,0)))+(IF(OR($B76>=$B$56,$B76<=$B$57),IF($C76=$B$58,($B$46*$B$4*(1-$B$33))))) -> 0 | BP76: 24051.83 | BQ76: 24051.83 | BR76: 0 | BS76: =IF(AND($B76<=$B$53,$B76<=$B$63,$B76>=$B$54,$B76>=$B$64),(IF(BQ76-(BQ$1)>($B$12+$B$35+$B$61),($B$12+$B$35+$B$61),(BQ76-(BQ$1)))),(IF(AND($B76<=$B$53,$B76>=$B$54),(IF(BQ76-(BQ$1)>($B$12+$B$35),($B$12+$B$35),(BQ76-(BQ$1)))),(IF(AND($B76<=$B$63,$B76>=$B$64),(IF(BQ76-(BQ$1)>($B$12+$B$61),($B$12+$B$61),(BQ76-(BQ$1)))),(IF(BQ76-(BQ$1)>$B$12,($B$12),(BQ76-(BQ$1))))))))) -> 48 | BT76: 24003.83 | BU76: 1 | BV76: 0 | BW76: 48 | BX76: 0 | BY76: =(IF($B$5="Volume",IF((($D76-$B$8)*$B$4)>0,(($D76-$B$8)*(1-$B$9)*(1-$B$10))*$B$4,0),IF((($E76-$B$8)*$B$4)>0,(($E76-$B$8)*(1-$B$9)*(1-$B$10))*$B$4,0)))+(IF(OR($B76>=$B$56,$B76<=$B$57),IF($C76=$B$58,($B$46*$B$4*(1-$B$33))))) -> 0 | BZ76: 24801.83 | CA76: 24801.83 | CB76: 0 | CC76: =IF(AND($B76<=$B$53,$B76<=$B$63,$B76>=$B$54,$B76>=$B$64),(IF(CA76-(CA$1)>($B$12+$B$35+$B$61),($B$12+$B$35+$B$61),(CA76-(CA$1)))),(IF(AND($B76<=$B$53,$B76>=$B$54),(IF(CA76-(CA$1)>($B$12+$B$35),($B$12+$B$35),(CA76-(CA$1)))),(IF(AND($B76<=$B$63,$B76>=$B$64),(IF(CA76-(CA$1)>($B$12+$B$61),($B$12+$B$61),(CA76-(CA$1)))),(IF(CA76-(CA$1)>$B$12,($B$12),(CA76-(CA$1))))))))) -> 48 | CD76: 24753.83 | CE76: 1 | CF76: 0 | CG76: 48
B77: 1 | C77: 10 | D77: 0 | E77: 0 | F77: 0 | G77: =(IF($B$5="Volume",IF((($D77-$B$8)*$B$4)>0,(($D77-$B$8)*(1-$B$9)*(1-$B$10))*$B$4,0),IF((($E77-$B$8)*$B$4)>0,(($E77-$B$8)*(1-$B$9)*(1-$B$10))*$B$4,0)))+(IF(OR($B77>=$B$56,$B77<=$B$57),IF($C77=$B$58,($B$46*$B$4*(1-$B$33))))) -> 0 | H77: 19503.83 | I77: 19503.83 | J77: 0 | K77: =IF(AND($B77<=$B$53,$B77<=$B$63,$B77>=$B$54,$B77>=$B$64),(IF(I77-(I$1)>($B$12+$B$35+$B$61),($B$12+$B$35+$B$61),(I77-(I$1)))),(IF(AND($B77<=$B$53,$B77>=$B$54),(IF(I77-(I$1)>($B$12+$B$35),($B$12+$B$35),(I77-(I$1)))),(IF(AND($B77<=$B$63,$B77>=$B$64),(IF(I77-(I$1)>($B$12+$B$61),($B$12+$B$61),(I77-(I$1)))),(IF(I77-(I$1)>$B$12,($B$12),(I77-(I$1))))))))) -> 48 | L77: 19455.83 | M77: 1 | N77: 0 | O77: 48 | P77: 0 | Q77: =(IF($B$5="Volume",IF((($D77-$B$8)*$B$4)>0,(($D77-$B$8)*(1-$B$9)*(1-$B$10))*$B$4,0),IF((($E77-$B$8)*$B$4)>0,(($E77-$B$8)*(1-$B$9)*(1-$B$10))*$B$4,0)))+(IF(OR($B77>=$B$56,$B77<=$B$57),IF($C77=$B$58,($B$46*$B$4*(1-$B$33))))) -> 0 | R77: 20253.83 | S77: 20253.83 | T77: 0 | U77: =IF(AND($B77<=$B$53,$B77<=$B$63,$B77>=$B$54,$B77>=$B$64),(IF(S77-(S$1)>($B$12+$B$35+$B$61),($B$12+$B$35+$B$61),(S77-(S$1)))),(IF(AND($B77<=$B$53,$B77>=$B$54),(IF(S77-(S$1)>($B$12+$B$35),($B$12+$B$35),(S77-(S$1)))),(IF(AND($B77<=$B$63,$B77>=$B$64),(IF(S77-(S$1)>($B$12+$B$61),($B$12+$B$61),(S77-(S$1)))),(IF(S77-(S$1)>$B$12,($B$12),(S77-(S$1))))))))) -> 48 | V77: 20205.83 | W77: 1 | X77: 0 | Y77: 48 | Z77: 0 | AA77: =(IF($B$5="Volume",IF((($D77-$B$8)*$B$4)>0,(($D77-$B$8)*(1-$B$9)*(1-$B$10))*$B$4,0),IF((($E77-$B$8)*$B$4)>0,(($E77-$B$8)*(1-$B$9)*(1-$B$10))*$B$4,0)))+(IF(OR($B77>=$B$56,$B77<=$B$57),IF($C77=$B$58,($B$46*$B$4*(1-$B$33))))) -> 0 | AB77: 21003.83 | AC77: 21003.83 | AD77: 0 | AE77: =IF(AND($B77<=$B$53,$B77<=$B$63,$B77>=$B$54,$B77>=$B$64),(IF(AC77-(AC$1)>($B$12+$B$35+$B$61),($B$12+$B$35+$B$61),(AC77-(AC$1)))),(IF(AND($B77<=$B$53,$B77>=$B$54),(IF(AC77-(AC$1)>($B$12+$B$35),($B$12+$B$35),(AC77-(AC$1)))),(IF(AND($B77<=$B$63,$B77>=$B$64),(IF(AC77-(AC$1)>($B$12+$B$61),($B$12+$B$61),(AC77-(AC$1)))),(IF(AC77-(AC$1)>$B$12,($B$12),(AC77-(AC$1))))))))) -> 48 | AF77: 20955.83 | AG77: 1 | AH77: 0 | AI77: 48 | AJ77: 0 | AK77: =(IF($B$5="Volume",IF((($D77-$B$8)*$B$4)>0,(($D77-$B$8)*(1-$B$9)*(1-$B$10))*$B$4,0),IF((($E77-$B$8)*$B$4)>0,(($E77-$B$8)*(1-$B$9)*(1-$B$10))*$B$4,0)))+(IF(OR($B77>=$B$56,$B77<=$B$57),IF($C77=$B$58,($B$46*$B$4*(1-$B$33))))) -> 0 | AL77: 21753.83 | AM77: 21753.83 | AN77: 0 | AO77: =IF(AND($B77<=$B$53,$B77<=$B$63,$B77>=$B$54,$B77>=$B$64),(IF(AM77-(AM$1)>($B$12+$B$35+$B$61),($B$12+$B$35+$B$61),(AM77-(AM$1)))),(IF(AND($B77<=$B$53,$B77>=$B$54),(IF(AM77-(AM$1)>($B$12+$B$35),($B$12+$B$35),(AM77-(AM$1)))),(IF(AND($B77<=$B$63,$B77>=$B$64),(IF(AM77-(AM$1)>($B$12+$B$61),($B$12+$B$61),(AM77-(AM$1)))),(IF(AM77-(AM$1)>$B$12,($B$12),(AM77-(AM$1))))))))) -> 48 | AP77: 21705.83 | AQ77: 1 | AR77: 0 | AS77: 48 | AT77: 0 | AU77: =(IF($B$5="Volume",IF((($D77-$B$8)*$B$4)>0,(($D77-$B$8)*(1-$B$9)*(1-$B$10))*$B$4,0),IF((($E77-$B$8)*$B$4)>0,(($E77-$B$8)*(1-$B$9)*(1-$B$10))*$B$4,0)))+(IF(OR($B77>=$B$56,$B77<=$B$57),IF($C77=$B$58,($B$46*$B$4*(1-$B$33))))) -> 0 | AV77: 22503.83 | AW77: 22503.83 | AX77: 0 | AY77: =IF(AND($B77<=$B$53,$B77<=$B$63,$B77>=$B$54,$B77>=$B$64),(IF(AW77-(AW$1)>($B$12+$B$35+$B$61),($B$12+$B$35+$B$61),(AW77-(AW$1)))),(IF(AND($B77<=$B$53,$B77>=$B$54),(IF(AW77-(AW$1)>($B$12+$B$35),($B$12+$B$35),(AW77-(AW$1)))),(IF(AND($B77<=$B$63,$B77>=$B$64),(IF(AW77-(AW$1)>($B$12+$B$61),($B$12+$B$61),(AW77-(AW$1)))),(IF(AW77-(AW$1)>$B$12,($B$12),(AW77-(AW$1))))))))) -> 48 | AZ77: 22455.83 | BA77: 1 | BB77: 0 | BC77: 48 | BD77: 0 | BE77: =(IF($B$5="Volume",IF((($D77-$B$8)*$B$4)>0,(($D77-$B$8)*(1-$B$9)*(1-$B$10))*$B$4,0),IF((($E77-$B$8)*$B$4)>0,(($E77-$B$8)*(1-$B$9)*(1-$B$10))*$B$4,0)))+(IF(OR($B77>=$B$56,$B77<=$B$57),IF($C77=$B$58,($B$46*$B$4*(1-$B$33))))) -> 0 | BF77: 23253.83 | BG77: 23253.83 | BH77: 0 | BI77: =IF(AND($B77<=$B$53,$B77<=$B$63,$B77>=$B$54,$B77>=$B$64),(IF(BG77-(BG$1)>($B$12+$B$35+$B$61),($B$12+$B$35+$B$61),(BG77-(BG$1)))),(IF(AND($B77<=$B$53,$B77>=$B$54),(IF(BG77-(BG$1)>($B$12+$B$35),($B$12+$B$35),(BG77-(BG$1)))),(IF(AND($B77<=$B$63,$B77>=$B$64),(IF(BG77-(BG$1)>($B$12+$B$61),($B$12+$B$61),(BG77-(BG$1)))),(IF(BG77-(BG$1)>$B$12,($B$12),(BG77-(BG$1))))))))) -> 48 | BJ77: 23205.83 | BK77: 1 | BL77: 0 | BM77: 48 | BN77: 0 | BO77: =(IF($B$5="Volume",IF((($D77-$B$8)*$B$4)>0,(($D77-$B$8)*(1-$B$9)*(1-$B$10))*$B$4,0),IF((($E77-$B$8)*$B$4)>0,(($E77-$B$8)*(1-$B$9)*(1-$B$10))*$B$4,0)))+(IF(OR($B77>=$B$56,$B77<=$B$57),IF($C77=$B$58,($B$46*$B$4*(1-$B$33))))) -> 0 | BP77: 24003.83 | BQ77: 24003.83 | BR77: 0 | BS77: =IF(AND($B77<=$B$53,$B77<=$B$63,$B77>=$B$54,$B77>=$B$64),(IF(BQ77-(BQ$1)>($B$12+$B$35+$B$61),($B$12+$B$35+$B$61),(BQ77-(BQ$1)))),(IF(AND($B77<=$B$53,$B77>=$B$54),(IF(BQ77-(BQ$1)>($B$12+$B$35),($B$12+$B$35),(BQ77-(BQ$1)))),(IF(AND($B77<=$B$63,$B77>=$B$64),(IF(BQ77-(BQ$1)>($B$12+$B$61),($B$12+$B$61),(BQ77-(BQ$1)))),(IF(BQ77-(BQ$1)>$B$12,($B$12),(BQ77-(BQ$1))))))))) -> 48 | BT77: 23955.83 | BU77: 1 | BV77: 0 | BW77: 48 | BX77: 0 | BY77: =(IF($B$5="Volume",IF((($D77-$B$8)*$B$4)>0,(($D77-$B$8)*(1-$B$9)*(1-$B$10))*$B$4,0),IF((($E77-$B$8)*$B$4)>0,(($E77-$B$8)*(1-$B$9)*(1-$B$10))*$B$4,0)))+(IF(OR($B77>=$B$56,$B77<=$B$57),IF($C77=$B$58,($B$46*$B$4*(1-$B$33))))) -> 0 | BZ77: 24753.83 | CA77: 24753.83 | CB77: 0 | CC77: =IF(AND($B77<=$B$53,$B77<=$B$63,$B77>=$B$54,$B77>=$B$64),(IF(CA77-(CA$1)>($B$12+$B$35+$B$61),($B$12+$B$35+$B$61),(CA77-(CA$1)))),(IF(AND($B77<=$B$53,$B77>=$B$54),(IF(CA77-(CA$1)>($B$12+$B$35),($B$12+$B$35),(CA77-(CA$1)))),(IF(AND($B77<=$B$63,$B77>=$B$64),(IF(CA77-(CA$1)>($B$12+$B$61),($B$12+$B$61),(CA77-(CA$1)))),(IF(CA77-(CA$1)>$B$12,($B$12),(CA77-(CA$1))))))))) -> 48 | CD77: 24705.83 | CE77: 1 | CF77: 0 | CG77: 48
B78: 1 | C78: 11 | D78: 0 | E78: 0 | F78: 0 | G78: =(IF($B$5="Volume",IF((($D78-$B$8)*$B$4)>0,(($D78-$B$8)*(1-$B$9)*(1-$B$10))*$B$4,0),IF((($E78-$B$8)*$B$4)>0,(($E78-$B$8)*(1-$B$9)*(1-$B$10))*$B$4,0)))+(IF(OR($B78>=$B$56,$B78<=$B$57),IF($C78=$B$58,($B$46*$B$4*(1-$B$33))))) -> 0 | H78: 19455.83 | I78: 19455.83 | J78: 0 | K78: =IF(AND($B78<=$B$53,$B78<=$B$63,$B78>=$B$54,$B78>=$B$64),(IF(I78-(I$1)>($B$12+$B$35+$B$61),($B$12+$B$35+$B$61),(I78-(I$1)))),(IF(AND($B78<=$B$53,$B78>=$B$54),(IF(I78-(I$1)>($B$12+$B$35),($B$12+$B$35),(I78-(I$1)))),(IF(AND($B78<=$B$63,$B78>=$B$64),(IF(I78-(I$1)>($B$12+$B$61),($B$12+$B$61),(I78-(I$1)))),(IF(I78-(I$1)>$B$12,($B$12),(I78-(I$1))))))))) -> 48 | L78: 19407.83 | M78: 1 | N78: 0 | O78: 48 | P78: 0 | Q78: =(IF($B$5="Volume",IF((($D78-$B$8)*$B$4)>0,(($D78-$B$8)*(1-$B$9)*(1-$B$10))*$B$4,0),IF((($E78-$B$8)*$B$4)>0,(($E78-$B$8)*(1-$B$9)*(1-$B$10))*$B$4,0)))+(IF(OR($B78>=$B$56,$B78<=$B$57),IF($C78=$B$58,($B$46*$B$4*(1-$B$33))))) -> 0 | R78: 20205.83 | S78: 20205.83 | T78: 0 | U78: =IF(AND($B78<=$B$53,$B78<=$B$63,$B78>=$B$54,$B78>=$B$64),(IF(S78-(S$1)>($B$12+$B$35+$B$61),($B$12+$B$35+$B$61),(S78-(S$1)))),(IF(AND($B78<=$B$53,$B78>=$B$54),(IF(S78-(S$1)>($B$12+$B$35),($B$12+$B$35),(S78-(S$1)))),(IF(AND($B78<=$B$63,$B78>=$B$64),(IF(S78-(S$1)>($B$12+$B$61),($B$12+$B$61),(S78-(S$1)))),(IF(S78-(S$1)>$B$12,($B$12),(S78-(S$1))))))))) -> 48 | V78: 20157.83 | W78: 1 | X78: 0 | Y78: 48 | Z78: 0 | AA78: =(IF($B$5="Volume",IF((($D78-$B$8)*$B$4)>0,(($D78-$B$8)*(1-$B$9)*(1-$B$10))*$B$4,0),IF((($E78-$B$8)*$B$4)>0,(($E78-$B$8)*(1-$B$9)*(1-$B$10))*$B$4,0)))+(IF(OR($B78>=$B$56,$B78<=$B$57),IF($C78=$B$58,($B$46*$B$4*(1-$B$33))))) -> 0 | AB78: 20955.83 | AC78: 20955.83 | AD78: 0 | AE78: =IF(AND($B78<=$B$53,$B78<=$B$63,$B78>=$B$54,$B78>=$B$64),(IF(AC78-(AC$1)>($B$12+$B$35+$B$61),($B$12+$B$35+$B$61),(AC78-(AC$1)))),(IF(AND($B78<=$B$53,$B78>=$B$54),(IF(AC78-(AC$1)>($B$12+$B$35),($B$12+$B$35),(AC78-(AC$1)))),(IF(AND($B78<=$B$63,$B78>=$B$64),(IF(AC78-(AC$1)>($B$12+$B$61),($B$12+$B$61),(AC78-(AC$1)))),(IF(AC78-(AC$1)>$B$12,($B$12),(AC78-(AC$1))))))))) -> 48 | AF78: 20907.83 | AG78: 1 | AH78: 0 | AI78: 48 | AJ78: 0 | AK78: =(IF($B$5="Volume",IF((($D78-$B$8)*$B$4)>0,(($D78-$B$8)*(1-$B$9)*(1-$B$10))*$B$4,0),IF((($E78-$B$8)*$B$4)>0,(($E78-$B$8)*(1-$B$9)*(1-$B$10))*$B$4,0)))+(IF(OR($B78>=$B$56,$B78<=$B$57),IF($C78=$B$58,($B$46*$B$4*(1-$B$33))))) -> 0 | AL78: 21705.83 | AM78: 21705.83 | AN78: 0 | AO78: =IF(AND($B78<=$B$53,$B78<=$B$63,$B78>=$B$54,$B78>=$B$64),(IF(AM78-(AM$1)>($B$12+$B$35+$B$61),($B$12+$B$35+$B$61),(AM78-(AM$1)))),(IF(AND($B78<=$B$53,$B78>=$B$54),(IF(AM78-(AM$1)>($B$12+$B$35),($B$12+$B$35),(AM78-(AM$1)))),(IF(AND($B78<=$B$63,$B78>=$B$64),(IF(AM78-(AM$1)>($B$12+$B$61),($B$12+$B$61),(AM78-(AM$1)))),(IF(AM78-(AM$1)>$B$12,($B$12),(AM78-(AM$1))))))))) -> 48 | AP78: 21657.83 | AQ78: 1 | AR78: 0 | AS78: 48 | AT78: 0 | AU78: =(IF($B$5="Volume",IF((($D78-$B$8)*$B$4)>0,(($D78-$B$8)*(1-$B$9)*(1-$B$10))*$B$4,0),IF((($E78-$B$8)*$B$4)>0,(($E78-$B$8)*(1-$B$9)*(1-$B$10))*$B$4,0)))+(IF(OR($B78>=$B$56,$B78<=$B$57),IF($C78=$B$58,($B$46*$B$4*(1-$B$33))))) -> 0 | AV78: 22455.83 | AW78: 22455.83 | AX78: 0 | AY78: =IF(AND($B78<=$B$53,$B78<=$B$63,$B78>=$B$54,$B78>=$B$64),(IF(AW78-(AW$1)>($B$12+$B$35+$B$61),($B$12+$B$35+$B$61),(AW78-(AW$1)))),(IF(AND($B78<=$B$53,$B78>=$B$54),(IF(AW78-(AW$1)>($B$12+$B$35),($B$12+$B$35),(AW78-(AW$1)))),(IF(AND($B78<=$B$63,$B78>=$B$64),(IF(AW78-(AW$1)>($B$12+$B$61),($B$12+$B$61),(AW78-(AW$1)))),(IF(AW78-(AW$1)>$B$12,($B$12),(AW78-(AW$1))))))))) -> 48 | AZ78: 22407.83 | BA78: 1 | BB78: 0 | BC78: 48 | BD78: 0 | BE78: =(IF($B$5="Volume",IF((($D78-$B$8)*$B$4)>0,(($D78-$B$8)*(1-$B$9)*(1-$B$10))*$B$4,0),IF((($E78-$B$8)*$B$4)>0,(($E78-$B$8)*(1-$B$9)*(1-$B$10))*$B$4,0)))+(IF(OR($B78>=$B$56,$B78<=$B$57),IF($C78=$B$58,($B$46*$B$4*(1-$B$33))))) -> 0 | BF78: 23205.83 | BG78: 23205.83 | BH78: 0 | BI78: =IF(AND($B78<=$B$53,$B78<=$B$63,$B78>=$B$54,$B78>=$B$64),(IF(BG78-(BG$1)>($B$12+$B$35+$B$61),($B$12+$B$35+$B$61),(BG78-(BG$1)))),(IF(AND($B78<=$B$53,$B78>=$B$54),(IF(BG78-(BG$1)>($B$12+$B$35),($B$12+$B$35),(BG78-(BG$1)))),(IF(AND($B78<=$B$63,$B78>=$B$64),(IF(BG78-(BG$1)>($B$12+$B$61),($B$12+$B$61),(BG78-(BG$1)))),(IF(BG78-(BG$1)>$B$12,($B$12),(BG78-(BG$1))))))))) -> 48 | BJ78: 23157.83 | BK78: 1 | BL78: 0 | BM78: 48 | BN78: 0 | BO78: =(IF($B$5="Volume",IF((($D78-$B$8)*$B$4)>0,(($D78-$B$8)*(1-$B$9)*(1-$B$10))*$B$4,0),IF((($E78-$B$8)*$B$4)>0,(($E78-$B$8)*(1-$B$9)*(1-$B$10))*$B$4,0)))+(IF(OR($B78>=$B$56,$B78<=$B$57),IF($C78=$B$58,($B$46*$B$4*(1-$B$33))))) -> 0 | BP78: 23955.83 | BQ78: 23955.83 | BR78: 0 | BS78: =IF(AND($B78<=$B$53,$B78<=$B$63,$B78>=$B$54,$B78>=$B$64),(IF(BQ78-(BQ$1)>($B$12+$B$35+$B$61),($B$12+$B$35+$B$61),(BQ78-(BQ$1)))),(IF(AND($B78<=$B$53,$B78>=$B$54),(IF(BQ78-(BQ$1)>($B$12+$B$35),($B$12+$B$35),(BQ78-(BQ$1)))),(IF(AND($B78<=$B$63,$B78>=$B$64),(IF(BQ78-(BQ$1)>($B$12+$B$61),($B$12+$B$61),(BQ78-(BQ$1)))),(IF(BQ78-(BQ$1)>$B$12,($B$12),(BQ78-(BQ$1))))))))) -> 48 | BT78: 23907.83 | BU78: 1 | BV78: 0 | BW78: 48 | BX78: 0 | BY78: =(IF($B$5="Volume",IF((($D78-$B$8)*$B$4)>0,(($D78-$B$8)*(1-$B$9)*(1-$B$10))*$B$4,0),IF((($E78-$B$8)*$B$4)>0,(($E78-$B$8)*(1-$B$9)*(1-$B$10))*$B$4,0)))+(IF(OR($B78>=$B$56,$B78<=$B$57),IF($C78=$B$58,($B$46*$B$4*(1-$B$33))))) -> 0 | BZ78: 24705.83 | CA78: 24705.83 | CB78: 0 | CC78: =IF(AND($B78<=$B$53,$B78<=$B$63,$B78>=$B$54,$B78>=$B$64),(IF(CA78-(CA$1)>($B$12+$B$35+$B$61),($B$12+$B$35+$B$61),(CA78-(CA$1)))),(IF(AND($B78<=$B$53,$B78>=$B$54),(IF(CA78-(CA$1)>($B$12+$B$35),($B$12+$B$35),(CA78-(CA$1)))),(IF(AND($B78<=$B$63,$B78>=$B$64),(IF(CA78-(CA$1)>($B$12+$B$61),($B$12+$B$61),(CA78-(CA$1)))),(IF(CA78-(CA$1)>$B$12,($B$12),(CA78-(CA$1))))))))) -> 48 | CD78: 24657.83 | CE78: 1 | CF78: 0 | CG78: 48
B79: 1 | C79: 12 | D79: 10.6 | E79: 0 | F79: 2173 | G79: =(IF($B$5="Volume",IF((($D79-$B$8)*$B$4)>0,(($D79-$B$8)*(1-$B$9)*(1-$B$10))*$B$4,0),IF((($E79-$B$8)*$B$4)>0,(($E79-$B$8)*(1-$B$9)*(1-$B$10))*$B$4,0)))+(IF(OR($B79>=$B$56,$B79<=$B$57),IF($C79=$B$58,($B$46*$B$4*(1-$B$33))))) -> 1490.76 | H79: 19407.83 | I79: 20898.59 | J79: 0 | K79: =IF(AND($B79<=$B$53,$B79<=$B$63,$B79>=$B$54,$B79>=$B$64),(IF(I79-(I$1)>($B$12+$B$35+$B$61),($B$12+$B$35+$B$61),(I79-(I$1)))),(IF(AND($B79<=$B$53,$B79>=$B$54),(IF(I79-(I$1)>($B$12+$B$35),($B$12+$B$35),(I79-(I$1)))),(IF(AND($B79<=$B$63,$B79>=$B$64),(IF(I79-(I$1)>($B$12+$B$61),($B$12+$B$61),(I79-(I$1)))),(IF(I79-(I$1)>$B$12,($B$12),(I79-(I$1))))))))) -> 48 | L79: 20850.59 | M79: 1 | N79: 0 | O79: 48 | P79: 2173 | Q79: =(IF($B$5="Volume",IF((($D79-$B$8)*$B$4)>0,(($D79-$B$8)*(1-$B$9)*(1-$B$10))*$B$4,0),IF((($E79-$B$8)*$B$4)>0,(($E79-$B$8)*(1-$B$9)*(1-$B$10))*$B$4,0)))+(IF(OR($B79>=$B$56,$B79<=$B$57),IF($C79=$B$58,($B$46*$B$4*(1-$B$33))))) -> 1490.76 | R79: 20157.83 | S79: 21648.59 | T79: 0 | U79: =IF(AND($B79<=$B$53,$B79<=$B$63,$B79>=$B$54,$B79>=$B$64),(IF(S79-(S$1)>($B$12+$B$35+$B$61),($B$12+$B$35+$B$61),(S79-(S$1)))),(IF(AND($B79<=$B$53,$B79>=$B$54),(IF(S79-(S$1)>($B$12+$B$35),($B$12+$B$35),(S79-(S$1)))),(IF(AND($B79<=$B$63,$B79>=$B$64),(IF(S79-(S$1)>($B$12+$B$61),($B$12+$B$61),(S79-(S$1)))),(IF(S79-(S$1)>$B$12,($B$12),(S79-(S$1))))))))) -> 48 | V79: 21600.59 | W79: 1 | X79: 0 | Y79: 48 | Z79: 2173 | AA79: =(IF($B$5="Volume",IF((($D79-$B$8)*$B$4)>0,(($D79-$B$8)*(1-$B$9)*(1-$B$10))*$B$4,0),IF((($E79-$B$8)*$B$4)>0,(($E79-$B$8)*(1-$B$9)*(1-$B$10))*$B$4,0)))+(IF(OR($B79>=$B$56,$B79<=$B$57),IF($C79=$B$58,($B$46*$B$4*(1-$B$33))))) -> 1490.76 | AB79: 20907.83 | AC79: 22398.59 | AD79: 0 | AE79: =IF(AND($B79<=$B$53,$B79<=$B$63,$B79>=$B$54,$B79>=$B$64),(IF(AC79-(AC$1)>($B$12+$B$35+$B$61),($B$12+$B$35+$B$61),(AC79-(AC$1)))),(IF(AND($B79<=$B$53,$B79>=$B$54),(IF(AC79-(AC$1)>($B$12+$B$35),($B$12+$B$35),(AC79-(AC$1)))),(IF(AND($B79<=$B$63,$B79>=$B$64),(IF(AC79-(AC$1)>($B$12+$B$61),($B$12+$B$61),(AC79-(AC$1)))),(IF(AC79-(AC$1)>$B$12,($B$12),(AC79-(AC$1))))))))) -> 48 | AF79: 22350.59 | AG79: 1 | AH79: 0 | AI79: 48 | AJ79: 2173 | AK79: =(IF($B$5="Volume",IF((($D79-$B$8)*$B$4)>0,(($D79-$B$8)*(1-$B$9)*(1-$B$10))*$B$4,0),IF((($E79-$B$8)*$B$4)>0,(($E79-$B$8)*(1-$B$9)*(1-$B$10))*$B$4,0)))+(IF(OR($B79>=$B$56,$B79<=$B$57),IF($C79=$B$58,($B$46*$B$4*(1-$B$33))))) -> 1490.76 | AL79: 21657.83 | AM79: 23148.59 | AN79: 0 | AO79: =IF(AND($B79<=$B$53,$B79<=$B$63,$B79>=$B$54,$B79>=$B$64),(IF(AM79-(AM$1)>($B$12+$B$35+$B$61),($B$12+$B$35+$B$61),(AM79-(AM$1)))),(IF(AND($B79<=$B$53,$B79>=$B$54),(IF(AM79-(AM$1)>($B$12+$B$35),($B$12+$B$35),(AM79-(AM$1)))),(IF(AND($B79<=$B$63,$B79>=$B$64),(IF(AM79-(AM$1)>($B$12+$B$61),($B$12+$B$61),(AM79-(AM$1)))),(IF(AM79-(AM$1)>$B$12,($B$12),(AM79-(AM$1))))))))) -> 48 | AP79: 23100.59 | AQ79: 1 | AR79: 0 | AS79: 48 | AT79: 2173 | AU79: =(IF($B$5="Volume",IF((($D79-$B$8)*$B$4)>0,(($D79-$B$8)*(1-$B$9)*(1-$B$10))*$B$4,0),IF((($E79-$B$8)*$B$4)>0,(($E79-$B$8)*(1-$B$9)*(1-$B$10))*$B$4,0)))+(IF(OR($B79>=$B$56,$B79<=$B$57),IF($C79=$B$58,($B$46*$B$4*(1-$B$33))))) -> 1490.76 | AV79: 22407.83 | AW79: 23898.59 | AX79: 0 | AY79: =IF(AND($B79<=$B$53,$B79<=$B$63,$B79>=$B$54,$B79>=$B$64),(IF(AW79-(AW$1)>($B$12+$B$35+$B$61),($B$12+$B$35+$B$61),(AW79-(AW$1)))),(IF(AND($B79<=$B$53,$B79>=$B$54),(IF(AW79-(AW$1)>($B$12+$B$35),($B$12+$B$35),(AW79-(AW$1)))),(IF(AND($B79<=$B$63,$B79>=$B$64),(IF(AW79-(AW$1)>($B$12+$B$61),($B$12+$B$61),(AW79-(AW$1)))),(IF(AW79-(AW$1)>$B$12,($B$12),(AW79-(AW$1))))))))) -> 48 | AZ79: 23850.59 | BA79: 1 | BB79: 0 | BC79: 48 | BD79: 2173 | BE79: =(IF($B$5="Volume",IF((($D79-$B$8)*$B$4)>0,(($D79-$B$8)*(1-$B$9)*(1-$B$10))*$B$4,0),IF((($E79-$B$8)*$B$4)>0,(($E79-$B$8)*(1-$B$9)*(1-$B$10))*$B$4,0)))+(IF(OR($B79>=$B$56,$B79<=$B$57),IF($C79=$B$58,($B$46*$B$4*(1-$B$33))))) -> 1490.76 | BF79: 23157.83 | BG79: 24648.59 | BH79: 0 | BI79: =IF(AND($B79<=$B$53,$B79<=$B$63,$B79>=$B$54,$B79>=$B$64),(IF(BG79-(BG$1)>($B$12+$B$35+$B$61),($B$12+$B$35+$B$61),(BG79-(BG$1)))),(IF(AND($B79<=$B$53,$B79>=$B$54),(IF(BG79-(BG$1)>($B$12+$B$35),($B$12+$B$35),(BG79-(BG$1)))),(IF(AND($B79<=$B$63,$B79>=$B$64),(IF(BG79-(BG$1)>($B$12+$B$61),($B$12+$B$61),(BG79-(BG$1)))),(IF(BG79-(BG$1)>$B$12,($B$12),(BG79-(BG$1))))))))) -> 48 | BJ79: 24600.59 | BK79: 1 | BL79: 0 | BM79: 48 | BN79: 2173 | BO79: =(IF($B$5="Volume",IF((($D79-$B$8)*$B$4)>0,(($D79-$B$8)*(1-$B$9)*(1-$B$10))*$B$4,0),IF((($E79-$B$8)*$B$4)>0,(($E79-$B$8)*(1-$B$9)*(1-$B$10))*$B$4,0)))+(IF(OR($B79>=$B$56,$B79<=$B$57),IF($C79=$B$58,($B$46*$B$4*(1-$B$33))))) -> 1490.76 | BP79: 23907.83 | BQ79: 25398.59 | BR79: 0 | BS79: =IF(AND($B79<=$B$53,$B79<=$B$63,$B79>=$B$54,$B79>=$B$64),(IF(BQ79-(BQ$1)>($B$12+$B$35+$B$61),($B$12+$B$35+$B$61),(BQ79-(BQ$1)))),(IF(AND($B79<=$B$53,$B79>=$B$54),(IF(BQ79-(BQ$1)>($B$12+$B$35),($B$12+$B$35),(BQ79-(BQ$1)))),(IF(AND($B79<=$B$63,$B79>=$B$64),(IF(BQ79-(BQ$1)>($B$12+$B$61),($B$12+$B$61),(BQ79-(BQ$1)))),(IF(BQ79-(BQ$1)>$B$12,($B$12),(BQ79-(BQ$1))))))))) -> 48 | BT79: 25350.59 | BU79: 1 | BV79: 0 | BW79: 48 | BX79: 2173 | BY79: =(IF($B$5="Volume",IF((($D79-$B$8)*$B$4)>0,(($D79-$B$8)*(1-$B$9)*(1-$B$10))*$B$4,0),IF((($E79-$B$8)*$B$4)>0,(($E79-$B$8)*(1-$B$9)*(1-$B$10))*$B$4,0)))+(IF(OR($B79>=$B$56,$B79<=$B$57),IF($C79=$B$58,($B$46*$B$4*(1-$B$33))))) -> 1490.76 | BZ79: 24657.83 | CA79: 26148.59 | CB79: 0 | CC79: =IF(AND($B79<=$B$53,$B79<=$B$63,$B79>=$B$54,$B79>=$B$64),(IF(CA79-(CA$1)>($B$12+$B$35+$B$61),($B$12+$B$35+$B$61),(CA79-(CA$1)))),(IF(AND($B79<=$B$53,$B79>=$B$54),(IF(CA79-(CA$1)>($B$12+$B$35),($B$12+$B$35),(CA79-(CA$1)))),(IF(AND($B79<=$B$63,$B79>=$B$64),(IF(CA79-(CA$1)>($B$12+$B$61),($B$12+$B$61),(CA79-(CA$1)))),(IF(CA79-(CA$1)>$B$12,($B$12),(CA79-(CA$1))))))))) -> 48 | CD79: 26100.59 | CE79: 1 | CF79: 0 | CG79: 48
B80: 1 | C80: 13 | D80: 0.3 | E80: 0 | F80: 61.5 | G80: =(IF($B$5="Volume",IF((($D80-$B$8)*$B$4)>0,(($D80-$B$8)*(1-$B$9)*(1-$B$10))*$B$4,0),IF((($E80-$B$8)*$B$4)>0,(($E80-$B$8)*(1-$B$9)*(1-$B$10))*$B$4,0)))+(IF(OR($B80>=$B$56,$B80<=$B$57),IF($C80=$B$58,($B$46*$B$4*(1-$B$33))))) -> 0 | H80: 20850.59 | I80: 20850.59 | J80: 0 | K80: =IF(AND($B80<=$B$53,$B80<=$B$63,$B80>=$B$54,$B80>=$B$64),(IF(I80-(I$1)>($B$12+$B$35+$B$61),($B$12+$B$35+$B$61),(I80-(I$1)))),(IF(AND($B80<=$B$53,$B80>=$B$54),(IF(I80-(I$1)>($B$12+$B$35),($B$12+$B$35),(I80-(I$1)))),(IF(AND($B80<=$B$63,$B80>=$B$64),(IF(I80-(I$1)>($B$12+$B$61),($B$12+$B$61),(I80-(I$1)))),(IF(I80-(I$1)>$B$12,($B$12),(I80-(I$1))))))))) -> 48 | L80: 20802.59 | M80: 1 | N80: 0 | O80: 48 | P80: 61.5 | Q80: =(IF($B$5="Volume",IF((($D80-$B$8)*$B$4)>0,(($D80-$B$8)*(1-$B$9)*(1-$B$10))*$B$4,0),IF((($E80-$B$8)*$B$4)>0,(($E80-$B$8)*(1-$B$9)*(1-$B$10))*$B$4,0)))+(IF(OR($B80>=$B$56,$B80<=$B$57),IF($C80=$B$58,($B$46*$B$4*(1-$B$33))))) -> 0 | R80: 21600.59 | S80: 21600.59 | T80: 0 | U80: =IF(AND($B80<=$B$53,$B80<=$B$63,$B80>=$B$54,$B80>=$B$64),(IF(S80-(S$1)>($B$12+$B$35+$B$61),($B$12+$B$35+$B$61),(S80-(S$1)))),(IF(AND($B80<=$B$53,$B80>=$B$54),(IF(S80-(S$1)>($B$12+$B$35),($B$12+$B$35),(S80-(S$1)))),(IF(AND($B80<=$B$63,$B80>=$B$64),(IF(S80-(S$1)>($B$12+$B$61),($B$12+$B$61),(S80-(S$1)))),(IF(S80-(S$1)>$B$12,($B$12),(S80-(S$1))))))))) -> 48 | V80: 21552.59 | W80: 1 | X80: 0 | Y80: 48 | Z80: 61.5 | AA80: =(IF($B$5="Volume",IF((($D80-$B$8)*$B$4)>0,(($D80-$B$8)*(1-$B$9)*(1-$B$10))*$B$4,0),IF((($E80-$B$8)*$B$4)>0,(($E80-$B$8)*(1-$B$9)*(1-$B$10))*$B$4,0)))+(IF(OR($B80>=$B$56,$B80<=$B$57),IF($C80=$B$58,($B$46*$B$4*(1-$B$33))))) -> 0 | AB80: 22350.59 | AC80: 22350.59 | AD80: 0 | AE80: =IF(AND($B80<=$B$53,$B80<=$B$63,$B80>=$B$54,$B80>=$B$64),(IF(AC80-(AC$1)>($B$12+$B$35+$B$61),($B$12+$B$35+$B$61),(AC80-(AC$1)))),(IF(AND($B80<=$B$53,$B80>=$B$54),(IF(AC80-(AC$1)>($B$12+$B$35),($B$12+$B$35),(AC80-(AC$1)))),(IF(AND($B80<=$B$63,$B80>=$B$64),(IF(AC80-(AC$1)>($B$12+$B$61),($B$12+$B$61),(AC80-(AC$1)))),(IF(AC80-(AC$1)>$B$12,($B$12),(AC80-(AC$1))))))))) -> 48 | AF80: 22302.59 | AG80: 1 | AH80: 0 | AI80: 48 | AJ80: 61.5 | AK80: =(IF($B$5="Volume",IF((($D80-$B$8)*$B$4)>0,(($D80-$B$8)*(1-$B$9)*(1-$B$10))*$B$4,0),IF((($E80-$B$8)*$B$4)>0,(($E80-$B$8)*(1-$B$9)*(1-$B$10))*$B$4,0)))+(IF(OR($B80>=$B$56,$B80<=$B$57),IF($C80=$B$58,($B$46*$B$4*(1-$B$33))))) -> 0 | AL80: 23100.59 | AM80: 23100.59 | AN80: 0 | AO80: =IF(AND($B80<=$B$53,$B80<=$B$63,$B80>=$B$54,$B80>=$B$64),(IF(AM80-(AM$1)>($B$12+$B$35+$B$61),($B$12+$B$35+$B$61),(AM80-(AM$1)))),(IF(AND($B80<=$B$53,$B80>=$B$54),(IF(AM80-(AM$1)>($B$12+$B$35),($B$12+$B$35),(AM80-(AM$1)))),(IF(AND($B80<=$B$63,$B80>=$B$64),(IF(AM80-(AM$1)>($B$12+$B$61),($B$12+$B$61),(AM80-(AM$1)))),(IF(AM80-(AM$1)>$B$12,($B$12),(AM80-(AM$1))))))))) -> 48 | AP80: 23052.59 | AQ80: 1 | AR80: 0 | AS80: 48 | AT80: 61.5 | AU80: =(IF($B$5="Volume",IF((($D80-$B$8)*$B$4)>0,(($D80-$B$8)*(1-$B$9)*(1-$B$10))*$B$4,0),IF((($E80-$B$8)*$B$4)>0,(($E80-$B$8)*(1-$B$9)*(1-$B$10))*$B$4,0)))+(IF(OR($B80>=$B$56,$B80<=$B$57),IF($C80=$B$58,($B$46*$B$4*(1-$B$33))))) -> 0 | AV80: 23850.59 | AW80: 23850.59 | AX80: 0 | AY80: =IF(AND($B80<=$B$53,$B80<=$B$63,$B80>=$B$54,$B80>=$B$64),(IF(AW80-(AW$1)>($B$12+$B$35+$B$61),($B$12+$B$35+$B$61),(AW80-(AW$1)))),(IF(AND($B80<=$B$53,$B80>=$B$54),(IF(AW80-(AW$1)>($B$12+$B$35),($B$12+$B$35),(AW80-(AW$1)))),(IF(AND($B80<=$B$63,$B80>=$B$64),(IF(AW80-(AW$1)>($B$12+$B$61),($B$12+$B$61),(AW80-(AW$1)))),(IF(AW80-(AW$1)>$B$12,($B$12),(AW80-(AW$1))))))))) -> 48 | AZ80: 23802.59 | BA80: 1 | BB80: 0 | BC80: 48 | BD80: 61.5 | BE80: =(IF($B$5="Volume",IF((($D80-$B$8)*$B$4)>0,(($D80-$B$8)*(1-$B$9)*(1-$B$10))*$B$4,0),IF((($E80-$B$8)*$B$4)>0,(($E80-$B$8)*(1-$B$9)*(1-$B$10))*$B$4,0)))+(IF(OR($B80>=$B$56,$B80<=$B$57),IF($C80=$B$58,($B$46*$B$4*(1-$B$33))))) -> 0 | BF80: 24600.59 | BG80: 24600.59 | BH80: 0 | BI80: =IF(AND($B80<=$B$53,$B80<=$B$63,$B80>=$B$54,$B80>=$B$64),(IF(BG80-(BG$1)>($B$12+$B$35+$B$61),($B$12+$B$35+$B$61),(BG80-(BG$1)))),(IF(AND($B80<=$B$53,$B80>=$B$54),(IF(BG80-(BG$1)>($B$12+$B$35),($B$12+$B$35),(BG80-(BG$1)))),(IF(AND($B80<=$B$63,$B80>=$B$64),(IF(BG80-(BG$1)>($B$12+$B$61),($B$12+$B$61),(BG80-(BG$1)))),(IF(BG80-(BG$1)>$B$12,($B$12),(BG80-(BG$1))))))))) -> 48 | BJ80: 24552.59 | BK80: 1 | BL80: 0 | BM80: 48 | BN80: 61.5 | BO80: =(IF($B$5="Volume",IF((($D80-$B$8)*$B$4)>0,(($D80-$B$8)*(1-$B$9)*(1-$B$10))*$B$4,0),IF((($E80-$B$8)*$B$4)>0,(($E80-$B$8)*(1-$B$9)*(1-$B$10))*$B$4,0)))+(IF(OR($B80>=$B$56,$B80<=$B$57),IF($C80=$B$58,($B$46*$B$4*(1-$B$33))))) -> 0 | BP80: 25350.59 | BQ80: 25350.59 | BR80: 0 | BS80: =IF(AND($B80<=$B$53,$B80<=$B$63,$B80>=$B$54,$B80>=$B$64),(IF(BQ80-(BQ$1)>($B$12+$B$35+$B$61),($B$12+$B$35+$B$61),(BQ80-(BQ$1)))),(IF(AND($B80<=$B$53,$B80>=$B$54),(IF(BQ80-(BQ$1)>($B$12+$B$35),($B$12+$B$35),(BQ80-(BQ$1)))),(IF(AND($B80<=$B$63,$B80>=$B$64),(IF(BQ80-(BQ$1)>($B$12+$B$61),($B$12+$B$61),(BQ80-(BQ$1)))),(IF(BQ80-(BQ$1)>$B$12,($B$12),(BQ80-(BQ$1))))))))) -> 48 | BT80: 25302.59 | BU80: 1 | BV80: 0 | BW80: 48 | BX80: 61.5 | BY80: =(IF($B$5="Volume",IF((($D80-$B$8)*$B$4)>0,(($D80-$B$8)*(1-$B$9)*(1-$B$10))*$B$4,0),IF((($E80-$B$8)*$B$4)>0,(($E80-$B$8)*(1-$B$9)*(1-$B$10))*$B$4,0)))+(IF(OR($B80>=$B$56,$B80<=$B$57),IF($C80=$B$58,($B$46*$B$4*(1-$B$33))))) -> 0 | BZ80: 26100.59 | CA80: 26100.59 | CB80: 0 | CC80: =IF(AND($B80<=$B$53,$B80<=$B$63,$B80>=$B$54,$B80>=$B$64),(IF(CA80-(CA$1)>($B$12+$B$35+$B$61),($B$12+$B$35+$B$61),(CA80-(CA$1)))),(IF(AND($B80<=$B$53,$B80>=$B$54),(IF(CA80-(CA$1)>($B$12+$B$35),($B$12+$B$35),(CA80-(CA$1)))),(IF(AND($B80<=$B$63,$B80>=$B$64),(IF(CA80-(CA$1)>($B$12+$B$61),($B$12+$B$61),(CA80-(CA$1)))),(IF(CA80-(CA$1)>$B$12,($B$12),(CA80-(CA$1))))))))) -> 48 | CD80: 26052.59 | CE80: 1 | CF80: 0 | CG80: 48
B81: 1 | C81: 14 | D81: 0 | E81: 0 | F81: 0 | G81: =(IF($B$5="Volume",IF((($D81-$B$8)*$B$4)>0,(($D81-$B$8)*(1-$B$9)*(1-$B$10))*$B$4,0),IF((($E81-$B$8)*$B$4)>0,(($E81-$B$8)*(1-$B$9)*(1-$B$10))*$B$4,0)))+(IF(OR($B81>=$B$56,$B81<=$B$57),IF($C81=$B$58,($B$46*$B$4*(1-$B$33))))) -> 0 | H81: 20802.59 | I81: 20802.59 | J81: 0 | K81: =IF(AND($B81<=$B$53,$B81<=$B$63,$B81>=$B$54,$B81>=$B$64),(IF(I81-(I$1)>($B$12+$B$35+$B$61),($B$12+$B$35+$B$61),(I81-(I$1)))),(IF(AND($B81<=$B$53,$B81>=$B$54),(IF(I81-(I$1)>($B$12+$B$35),($B$12+$B$35),(I81-(I$1)))),(IF(AND($B81<=$B$63,$B81>=$B$64),(IF(I81-(I$1)>($B$12+$B$61),($B$12+$B$61),(I81-(I$1)))),(IF(I81-(I$1)>$B$12,($B$12),(I81-(I$1))))))))) -> 48 | L81: 20754.59 | M81: 1 | N81: 0 | O81: 48 | P81: 0 | Q81: =(IF($B$5="Volume",IF((($D81-$B$8)*$B$4)>0,(($D81-$B$8)*(1-$B$9)*(1-$B$10))*$B$4,0),IF((($E81-$B$8)*$B$4)>0,(($E81-$B$8)*(1-$B$9)*(1-$B$10))*$B$4,0)))+(IF(OR($B81>=$B$56,$B81<=$B$57),IF($C81=$B$58,($B$46*$B$4*(1-$B$33))))) -> 0 | R81: 21552.59 | S81: 21552.59 | T81: 0 | U81: =IF(AND($B81<=$B$53,$B81<=$B$63,$B81>=$B$54,$B81>=$B$64),(IF(S81-(S$1)>($B$12+$B$35+$B$61),($B$12+$B$35+$B$61),(S81-(S$1)))),(IF(AND($B81<=$B$53,$B81>=$B$54),(IF(S81-(S$1)>($B$12+$B$35),($B$12+$B$35),(S81-(S$1)))),(IF(AND($B81<=$B$63,$B81>=$B$64),(IF(S81-(S$1)>($B$12+$B$61),($B$12+$B$61),(S81-(S$1)))),(IF(S81-(S$1)>$B$12,($B$12),(S81-(S$1))))))))) -> 48 | V81: 21504.59 | W81: 1 | X81: 0 | Y81: 48 | Z81: 0 | AA81: =(IF($B$5="Volume",IF((($D81-$B$8)*$B$4)>0,(($D81-$B$8)*(1-$B$9)*(1-$B$10))*$B$4,0),IF((($E81-$B$8)*$B$4)>0,(($E81-$B$8)*(1-$B$9)*(1-$B$10))*$B$4,0)))+(IF(OR($B81>=$B$56,$B81<=$B$57),IF($C81=$B$58,($B$46*$B$4*(1-$B$33))))) -> 0 | AB81: 22302.59 | AC81: 22302.59 | AD81: 0 | AE81: =IF(AND($B81<=$B$53,$B81<=$B$63,$B81>=$B$54,$B81>=$B$64),(IF(AC81-(AC$1)>($B$12+$B$35+$B$61),($B$12+$B$35+$B$61),(AC81-(AC$1)))),(IF(AND($B81<=$B$53,$B81>=$B$54),(IF(AC81-(AC$1)>($B$12+$B$35),($B$12+$B$35),(AC81-(AC$1)))),(IF(AND($B81<=$B$63,$B81>=$B$64),(IF(AC81-(AC$1)>($B$12+$B$61),($B$12+$B$61),(AC81-(AC$1)))),(IF(AC81-(AC$1)>$B$12,($B$12),(AC81-(AC$1))))))))) -> 48 | AF81: 22254.59 | AG81: 1 | AH81: 0 | AI81: 48 | AJ81: 0 | AK81: =(IF($B$5="Volume",IF((($D81-$B$8)*$B$4)>0,(($D81-$B$8)*(1-$B$9)*(1-$B$10))*$B$4,0),IF((($E81-$B$8)*$B$4)>0,(($E81-$B$8)*(1-$B$9)*(1-$B$10))*$B$4,0)))+(IF(OR($B81>=$B$56,$B81<=$B$57),IF($C81=$B$58,($B$46*$B$4*(1-$B$33))))) -> 0 | AL81: 23052.59 | AM81: 23052.59 | AN81: 0 | AO81: =IF(AND($B81<=$B$53,$B81<=$B$63,$B81>=$B$54,$B81>=$B$64),(IF(AM81-(AM$1)>($B$12+$B$35+$B$61),($B$12+$B$35+$B$61),(AM81-(AM$1)))),(IF(AND($B81<=$B$53,$B81>=$B$54),(IF(AM81-(AM$1)>($B$12+$B$35),($B$12+$B$35),(AM81-(AM$1)))),(IF(AND($B81<=$B$63,$B81>=$B$64),(IF(AM81-(AM$1)>($B$12+$B$61),($B$12+$B$61),(AM81-(AM$1)))),(IF(AM81-(AM$1)>$B$12,($B$12),(AM81-(AM$1))))))))) -> 48 | AP81: 23004.59 | AQ81: 1 | AR81: 0 | AS81: 48 | AT81: 0 | AU81: =(IF($B$5="Volume",IF((($D81-$B$8)*$B$4)>0,(($D81-$B$8)*(1-$B$9)*(1-$B$10))*$B$4,0),IF((($E81-$B$8)*$B$4)>0,(($E81-$B$8)*(1-$B$9)*(1-$B$10))*$B$4,0)))+(IF(OR($B81>=$B$56,$B81<=$B$57),IF($C81=$B$58,($B$46*$B$4*(1-$B$33))))) -> 0 | AV81: 23802.59 | AW81: 23802.59 | AX81: 0 | AY81: =IF(AND($B81<=$B$53,$B81<=$B$63,$B81>=$B$54,$B81>=$B$64),(IF(AW81-(AW$1)>($B$12+$B$35+$B$61),($B$12+$B$35+$B$61),(AW81-(AW$1)))),(IF(AND($B81<=$B$53,$B81>=$B$54),(IF(AW81-(AW$1)>($B$12+$B$35),($B$12+$B$35),(AW81-(AW$1)))),(IF(AND($B81<=$B$63,$B81>=$B$64),(IF(AW81-(AW$1)>($B$12+$B$61),($B$12+$B$61),(AW81-(AW$1)))),(IF(AW81-(AW$1)>$B$12,($B$12),(AW81-(AW$1))))))))) -> 48 | AZ81: 23754.59 | BA81: 1 | BB81: 0 | BC81: 48 | BD81: 0 | BE81: =(IF($B$5="Volume",IF((($D81-$B$8)*$B$4)>0,(($D81-$B$8)*(1-$B$9)*(1-$B$10))*$B$4,0),IF((($E81-$B$8)*$B$4)>0,(($E81-$B$8)*(1-$B$9)*(1-$B$10))*$B$4,0)))+(IF(OR($B81>=$B$56,$B81<=$B$57),IF($C81=$B$58,($B$46*$B$4*(1-$B$33))))) -> 0 | BF81: 24552.59 | BG81: 24552.59 | BH81: 0 | BI81: =IF(AND($B81<=$B$53,$B81<=$B$63,$B81>=$B$54,$B81>=$B$64),(IF(BG81-(BG$1)>($B$12+$B$35+$B$61),($B$12+$B$35+$B$61),(BG81-(BG$1)))),(IF(AND($B81<=$B$53,$B81>=$B$54),(IF(BG81-(BG$1)>($B$12+$B$35),($B$12+$B$35),(BG81-(BG$1)))),(IF(AND($B81<=$B$63,$B81>=$B$64),(IF(BG81-(BG$1)>($B$12+$B$61),($B$12+$B$61),(BG81-(BG$1)))),(IF(BG81-(BG$1)>$B$12,($B$12),(BG81-(BG$1))))))))) -> 48 | BJ81: 24504.59 | BK81: 1 | BL81: 0 | BM81: 48 | BN81: 0 | BO81: =(IF($B$5="Volume",IF((($D81-$B$8)*$B$4)>0,(($D81-$B$8)*(1-$B$9)*(1-$B$10))*$B$4,0),IF((($E81-$B$8)*$B$4)>0,(($E81-$B$8)*(1-$B$9)*(1-$B$10))*$B$4,0)))+(IF(OR($B81>=$B$56,$B81<=$B$57),IF($C81=$B$58,($B$46*$B$4*(1-$B$33))))) -> 0 | BP81: 25302.59 | BQ81: 25302.59 | BR81: 0 | BS81: =IF(AND($B81<=$B$53,$B81<=$B$63,$B81>=$B$54,$B81>=$B$64),(IF(BQ81-(BQ$1)>($B$12+$B$35+$B$61),($B$12+$B$35+$B$61),(BQ81-(BQ$1)))),(IF(AND($B81<=$B$53,$B81>=$B$54),(IF(BQ81-(BQ$1)>($B$12+$B$35),($B$12+$B$35),(BQ81-(BQ$1)))),(IF(AND($B81<=$B$63,$B81>=$B$64),(IF(BQ81-(BQ$1)>($B$12+$B$61),($B$12+$B$61),(BQ81-(BQ$1)))),(IF(BQ81-(BQ$1)>$B$12,($B$12),(BQ81-(BQ$1))))))))) -> 48 | BT81: 25254.59 | BU81: 1 | BV81: 0 | BW81: 48 | BX81: 0 | BY81: =(IF($B$5="Volume",IF((($D81-$B$8)*$B$4)>0,(($D81-$B$8)*(1-$B$9)*(1-$B$10))*$B$4,0),IF((($E81-$B$8)*$B$4)>0,(($E81-$B$8)*(1-$B$9)*(1-$B$10))*$B$4,0)))+(IF(OR($B81>=$B$56,$B81<=$B$57),IF($C81=$B$58,($B$46*$B$4*(1-$B$33))))) -> 0 | BZ81: 26052.59 | CA81: 26052.59 | CB81: 0 | CC81: =IF(AND($B81<=$B$53,$B81<=$B$63,$B81>=$B$54,$B81>=$B$64),(IF(CA81-(CA$1)>($B$12+$B$35+$B$61),($B$12+$B$35+$B$61),(CA81-(CA$1)))),(IF(AND($B81<=$B$53,$B81>=$B$54),(IF(CA81-(CA$1)>($B$12+$B$35),($B$12+$B$35),(CA81-(CA$1)))),(IF(AND($B81<=$B$63,$B81>=$B$64),(IF(CA81-(CA$1)>($B$12+$B$61),($B$12+$B$61),(CA81-(CA$1)))),(IF(CA81-(CA$1)>$B$12,($B$12),(CA81-(CA$1))))))))) -> 48 | CD81: 26004.59 | CE81: 1 | CF81: 0 | CG81: 48
B82: 1 | C82: 15 | D82: 6.8 | E82: 0 | F82: 1394 | G82: =(IF($B$5="Volume",IF((($D82-$B$8)*$B$4)>0,(($D82-$B$8)*(1-$B$9)*(1-$B$10))*$B$4,0),IF((($E82-$B$8)*$B$4)>0,(($E82-$B$8)*(1-$B$9)*(1-$B$10))*$B$4,0)))+(IF(OR($B82>=$B$56,$B82<=$B$57),IF($C82=$B$58,($B$46*$B$4*(1-$B$33))))) -> 929.88 | H82: 20754.59 | I82: 21684.47 | J82: 0 | K82: =IF(AND($B82<=$B$53,$B82<=$B$63,$B82>=$B$54,$B82>=$B$64),(IF(I82-(I$1)>($B$12+$B$35+$B$61),($B$12+$B$35+$B$61),(I82-(I$1)))),(IF(AND($B82<=$B$53,$B82>=$B$54),(IF(I82-(I$1)>($B$12+$B$35),($B$12+$B$35),(I82-(I$1)))),(IF(AND($B82<=$B$63,$B82>=$B$64),(IF(I82-(I$1)>($B$12+$B$61),($B$12+$B$61),(I82-(I$1)))),(IF(I82-(I$1)>$B$12,($B$12),(I82-(I$1))))))))) -> 48 | L82: 21636.47 | M82: 1 | N82: 0 | O82: 48 | P82: 1394 | Q82: =(IF($B$5="Volume",IF((($D82-$B$8)*$B$4)>0,(($D82-$B$8)*(1-$B$9)*(1-$B$10))*$B$4,0),IF((($E82-$B$8)*$B$4)>0,(($E82-$B$8)*(1-$B$9)*(1-$B$10))*$B$4,0)))+(IF(OR($B82>=$B$56,$B82<=$B$57),IF($C82=$B$58,($B$46*$B$4*(1-$B$33))))) -> 929.88 | R82: 21504.59 | S82: 22434.47 | T82: 0 | U82: =IF(AND($B82<=$B$53,$B82<=$B$63,$B82>=$B$54,$B82>=$B$64),(IF(S82-(S$1)>($B$12+$B$35+$B$61),($B$12+$B$35+$B$61),(S82-(S$1)))),(IF(AND($B82<=$B$53,$B82>=$B$54),(IF(S82-(S$1)>($B$12+$B$35),($B$12+$B$35),(S82-(S$1)))),(IF(AND($B82<=$B$63,$B82>=$B$64),(IF(S82-(S$1)>($B$12+$B$61),($B$12+$B$61),(S82-(S$1)))),(IF(S82-(S$1)>$B$12,($B$12),(S82-(S$1))))))))) -> 48 | V82: 22386.47 | W82: 1 | X82: 0 | Y82: 48 | Z82: 1394 | AA82: =(IF($B$5="Volume",IF((($D82-$B$8)*$B$4)>0,(($D82-$B$8)*(1-$B$9)*(1-$B$10))*$B$4,0),IF((($E82-$B$8)*$B$4)>0,(($E82-$B$8)*(1-$B$9)*(1-$B$10))*$B$4,0)))+(IF(OR($B82>=$B$56,$B82<=$B$57),IF($C82=$B$58,($B$46*$B$4*(1-$B$33))))) -> 929.88 | AB82: 22254.59 | AC82: 23184.47 | AD82: 0 | AE82: =IF(AND($B82<=$B$53,$B82<=$B$63,$B82>=$B$54,$B82>=$B$64),(IF(AC82-(AC$1)>($B$12+$B$35+$B$61),($B$12+$B$35+$B$61),(AC82-(AC$1)))),(IF(AND($B82<=$B$53,$B82>=$B$54),(IF(AC82-(AC$1)>($B$12+$B$35),($B$12+$B$35),(AC82-(AC$1)))),(IF(AND($B82<=$B$63,$B82>=$B$64),(IF(AC82-(AC$1)>($B$12+$B$61),($B$12+$B$61),(AC82-(AC$1)))),(IF(AC82-(AC$1)>$B$12,($B$12),(AC82-(AC$1))))))))) -> 48 | AF82: 23136.47 | AG82: 1 | AH82: 0 | AI82: 48 | AJ82: 1394 | AK82: =(IF($B$5="Volume",IF((($D82-$B$8)*$B$4)>0,(($D82-$B$8)*(1-$B$9)*(1-$B$10))*$B$4,0),IF((($E82-$B$8)*$B$4)>0,(($E82-$B$8)*(1-$B$9)*(1-$B$10))*$B$4,0)))+(IF(OR($B82>=$B$56,$B82<=$B$57),IF($C82=$B$58,($B$46*$B$4*(1-$B$33))))) -> 929.88 | AL82: 23004.59 | AM82: 23934.47 | AN82: 0 | AO82: =IF(AND($B82<=$B$53,$B82<=$B$63,$B82>=$B$54,$B82>=$B$64),(IF(AM82-(AM$1)>($B$12+$B$35+$B$61),($B$12+$B$35+$B$61),(AM82-(AM$1)))),(IF(AND($B82<=$B$53,$B82>=$B$54),(IF(AM82-(AM$1)>($B$12+$B$35),($B$12+$B$35),(AM82-(AM$1)))),(IF(AND($B82<=$B$63,$B82>=$B$64),(IF(AM82-(AM$1)>($B$12+$B$61),($B$12+$B$61),(AM82-(AM$1)))),(IF(AM82-(AM$1)>$B$12,($B$12),(AM82-(AM$1))))))))) -> 48 | AP82: 23886.47 | AQ82: 1 | AR82: 0 | AS82: 48 | AT82: 1394 | AU82: =(IF($B$5="Volume",IF((($D82-$B$8)*$B$4)>0,(($D82-$B$8)*(1-$B$9)*(1-$B$10))*$B$4,0),IF((($E82-$B$8)*$B$4)>0,(($E82-$B$8)*(1-$B$9)*(1-$B$10))*$B$4,0)))+(IF(OR($B82>=$B$56,$B82<=$B$57),IF($C82=$B$58,($B$46*$B$4*(1-$B$33))))) -> 929.88 | AV82: 23754.59 | AW82: 24684.47 | AX82: 0 | AY82: =IF(AND($B82<=$B$53,$B82<=$B$63,$B82>=$B$54,$B82>=$B$64),(IF(AW82-(AW$1)>($B$12+$B$35+$B$61),($B$12+$B$35+$B$61),(AW82-(AW$1)))),(IF(AND($B82<=$B$53,$B82>=$B$54),(IF(AW82-(AW$1)>($B$12+$B$35),($B$12+$B$35),(AW82-(AW$1)))),(IF(AND($B82<=$B$63,$B82>=$B$64),(IF(AW82-(AW$1)>($B$12+$B$61),($B$12+$B$61),(AW82-(AW$1)))),(IF(AW82-(AW$1)>$B$12,($B$12),(AW82-(AW$1))))))))) -> 48 | AZ82: 24636.47 | BA82: 1 | BB82: 0 | BC82: 48 | BD82: 1394 | BE82: =(IF($B$5="Volume",IF((($D82-$B$8)*$B$4)>0,(($D82-$B$8)*(1-$B$9)*(1-$B$10))*$B$4,0),IF((($E82-$B$8)*$B$4)>0,(($E82-$B$8)*(1-$B$9)*(1-$B$10))*$B$4,0)))+(IF(OR($B82>=$B$56,$B82<=$B$57),IF($C82=$B$58,($B$46*$B$4*(1-$B$33))))) -> 929.88 | BF82: 24504.59 | BG82: 25434.47 | BH82: 0 | BI82: =IF(AND($B82<=$B$53,$B82<=$B$63,$B82>=$B$54,$B82>=$B$64),(IF(BG82-(BG$1)>($B$12+$B$35+$B$61),($B$12+$B$35+$B$61),(BG82-(BG$1)))),(IF(AND($B82<=$B$53,$B82>=$B$54),(IF(BG82-(BG$1)>($B$12+$B$35),($B$12+$B$35),(BG82-(BG$1)))),(IF(AND($B82<=$B$63,$B82>=$B$64),(IF(BG82-(BG$1)>($B$12+$B$61),($B$12+$B$61),(BG82-(BG$1)))),(IF(BG82-(BG$1)>$B$12,($B$12),(BG82-(BG$1))))))))) -> 48 | BJ82: 25386.47 | BK82: 1 | BL82: 0 | BM82: 48 | BN82: 1394 | BO82: =(IF($B$5="Volume",IF((($D82-$B$8)*$B$4)>0,(($D82-$B$8)*(1-$B$9)*(1-$B$10))*$B$4,0),IF((($E82-$B$8)*$B$4)>0,(($E82-$B$8)*(1-$B$9)*(1-$B$10))*$B$4,0)))+(IF(OR($B82>=$B$56,$B82<=$B$57),IF($C82=$B$58,($B$46*$B$4*(1-$B$33))))) -> 929.88 | BP82: 25254.59 | BQ82: 26184.47 | BR82: 0 | BS82: =IF(AND($B82<=$B$53,$B82<=$B$63,$B82>=$B$54,$B82>=$B$64),(IF(BQ82-(BQ$1)>($B$12+$B$35+$B$61),($B$12+$B$35+$B$61),(BQ82-(BQ$1)))),(IF(AND($B82<=$B$53,$B82>=$B$54),(IF(BQ82-(BQ$1)>($B$12+$B$35),($B$12+$B$35),(BQ82-(BQ$1)))),(IF(AND($B82<=$B$63,$B82>=$B$64),(IF(BQ82-(BQ$1)>($B$12+$B$61),($B$12+$B$61),(BQ82-(BQ$1)))),(IF(BQ82-(BQ$1)>$B$12,($B$12),(BQ82-(BQ$1))))))))) -> 48 | BT82: 26136.47 | BU82: 1 | BV82: 0 | BW82: 48 | BX82: 1394 | BY82: =(IF($B$5="Volume",IF((($D82-$B$8)*$B$4)>0,(($D82-$B$8)*(1-$B$9)*(1-$B$10))*$B$4,0),IF((($E82-$B$8)*$B$4)>0,(($E82-$B$8)*(1-$B$9)*(1-$B$10))*$B$4,0)))+(IF(OR($B82>=$B$56,$B82<=$B$57),IF($C82=$B$58,($B$46*$B$4*(1-$B$33))))) -> 929.88 | BZ82: 26004.59 | CA82: 26934.47 | CB82: 0 | CC82: =IF(AND($B82<=$B$53,$B82<=$B$63,$B82>=$B$54,$B82>=$B$64),(IF(CA82-(CA$1)>($B$12+$B$35+$B$61),($B$12+$B$35+$B$61),(CA82-(CA$1)))),(IF(AND($B82<=$B$53,$B82>=$B$54),(IF(CA82-(CA$1)>($B$12+$B$35),($B$12+$B$35),(CA82-(CA$1)))),(IF(AND($B82<=$B$63,$B82>=$B$64),(IF(CA82-(CA$1)>($B$12+$B$61),($B$12+$B$61),(CA82-(CA$1)))),(IF(CA82-(CA$1)>$B$12,($B$12),(CA82-(CA$1))))))))) -> 48 | CD82: 26886.47 | CE82: 1 | CF82: 0 | CG82: 48
B83: 1 | C83: 16 | D83: 0 | E83: 0 | F83: 0 | G83: =(IF($B$5="Volume",IF((($D83-$B$8)*$B$4)>0,(($D83-$B$8)*(1-$B$9)*(1-$B$10))*$B$4,0),IF((($E83-$B$8)*$B$4)>0,(($E83-$B$8)*(1-$B$9)*(1-$B$10))*$B$4,0)))+(IF(OR($B83>=$B$56,$B83<=$B$57),IF($C83=$B$58,($B$46*$B$4*(1-$B$33))))) -> 0 | H83: 21636.47 | I83: 21636.47 | J83: 0 | K83: =IF(AND($B83<=$B$53,$B83<=$B$63,$B83>=$B$54,$B83>=$B$64),(IF(I83-(I$1)>($B$12+$B$35+$B$61),($B$12+$B$35+$B$61),(I83-(I$1)))),(IF(AND($B83<=$B$53,$B83>=$B$54),(IF(I83-(I$1)>($B$12+$B$35),($B$12+$B$35),(I83-(I$1)))),(IF(AND($B83<=$B$63,$B83>=$B$64),(IF(I83-(I$1)>($B$12+$B$61),($B$12+$B$61),(I83-(I$1)))),(IF(I83-(I$1)>$B$12,($B$12),(I83-(I$1))))))))) -> 48 | L83: 21588.47 | M83: 1 | N83: 0 | O83: 48 | P83: 0 | Q83: =(IF($B$5="Volume",IF((($D83-$B$8)*$B$4)>0,(($D83-$B$8)*(1-$B$9)*(1-$B$10))*$B$4,0),IF((($E83-$B$8)*$B$4)>0,(($E83-$B$8)*(1-$B$9)*(1-$B$10))*$B$4,0)))+(IF(OR($B83>=$B$56,$B83<=$B$57),IF($C83=$B$58,($B$46*$B$4*(1-$B$33))))) -> 0 | R83: 22386.47 | S83: 22386.47 | T83: 0 | U83: =IF(AND($B83<=$B$53,$B83<=$B$63,$B83>=$B$54,$B83>=$B$64),(IF(S83-(S$1)>($B$12+$B$35+$B$61),($B$12+$B$35+$B$61),(S83-(S$1)))),(IF(AND($B83<=$B$53,$B83>=$B$54),(IF(S83-(S$1)>($B$12+$B$35),($B$12+$B$35),(S83-(S$1)))),(IF(AND($B83<=$B$63,$B83>=$B$64),(IF(S83-(S$1)>($B$12+$B$61),($B$12+$B$61),(S83-(S$1)))),(IF(S83-(S$1)>$B$12,($B$12),(S83-(S$1))))))))) -> 48 | V83: 22338.47 | W83: 1 | X83: 0 | Y83: 48 | Z83: 0 | AA83: =(IF($B$5="Volume",IF((($D83-$B$8)*$B$4)>0,(($D83-$B$8)*(1-$B$9)*(1-$B$10))*$B$4,0),IF((($E83-$B$8)*$B$4)>0,(($E83-$B$8)*(1-$B$9)*(1-$B$10))*$B$4,0)))+(IF(OR($B83>=$B$56,$B83<=$B$57),IF($C83=$B$58,($B$46*$B$4*(1-$B$33))))) -> 0 | AB83: 23136.47 | AC83: 23136.47 | AD83: 0 | AE83: =IF(AND($B83<=$B$53,$B83<=$B$63,$B83>=$B$54,$B83>=$B$64),(IF(AC83-(AC$1)>($B$12+$B$35+$B$61),($B$12+$B$35+$B$61),(AC83-(AC$1)))),(IF(AND($B83<=$B$53,$B83>=$B$54),(IF(AC83-(AC$1)>($B$12+$B$35),($B$12+$B$35),(AC83-(AC$1)))),(IF(AND($B83<=$B$63,$B83>=$B$64),(IF(AC83-(AC$1)>($B$12+$B$61),($B$12+$B$61),(AC83-(AC$1)))),(IF(AC83-(AC$1)>$B$12,($B$12),(AC83-(AC$1))))))))) -> 48 | AF83: 23088.47 | AG83: 1 | AH83: 0 | AI83: 48 | AJ83: 0 | AK83: =(IF($B$5="Volume",IF((($D83-$B$8)*$B$4)>0,(($D83-$B$8)*(1-$B$9)*(1-$B$10))*$B$4,0),IF((($E83-$B$8)*$B$4)>0,(($E83-$B$8)*(1-$B$9)*(1-$B$10))*$B$4,0)))+(IF(OR($B83>=$B$56,$B83<=$B$57),IF($C83=$B$58,($B$46*$B$4*(1-$B$33))))) -> 0 | AL83: 23886.47 | AM83: 23886.47 | AN83: 0 | AO83: =IF(AND($B83<=$B$53,$B83<=$B$63,$B83>=$B$54,$B83>=$B$64),(IF(AM83-(AM$1)>($B$12+$B$35+$B$61),($B$12+$B$35+$B$61),(AM83-(AM$1)))),(IF(AND($B83<=$B$53,$B83>=$B$54),(IF(AM83-(AM$1)>($B$12+$B$35),($B$12+$B$35),(AM83-(AM$1)))),(IF(AND($B83<=$B$63,$B83>=$B$64),(IF(AM83-(AM$1)>($B$12+$B$61),($B$12+$B$61),(AM83-(AM$1)))),(IF(AM83-(AM$1)>$B$12,($B$12),(AM83-(AM$1))))))))) -> 48 | AP83: 23838.47 | AQ83: 1 | AR83: 0 | AS83: 48 | AT83: 0 | AU83: =(IF($B$5="Volume",IF((($D83-$B$8)*$B$4)>0,(($D83-$B$8)*(1-$B$9)*(1-$B$10))*$B$4,0),IF((($E83-$B$8)*$B$4)>0,(($E83-$B$8)*(1-$B$9)*(1-$B$10))*$B$4,0)))+(IF(OR($B83>=$B$56,$B83<=$B$57),IF($C83=$B$58,($B$46*$B$4*(1-$B$33))))) -> 0 | AV83: 24636.47 | AW83: 24636.47 | AX83: 0 | AY83: =IF(AND($B83<=$B$53,$B83<=$B$63,$B83>=$B$54,$B83>=$B$64),(IF(AW83-(AW$1)>($B$12+$B$35+$B$61),($B$12+$B$35+$B$61),(AW83-(AW$1)))),(IF(AND($B83<=$B$53,$B83>=$B$54),(IF(AW83-(AW$1)>($B$12+$B$35),($B$12+$B$35),(AW83-(AW$1)))),(IF(AND($B83<=$B$63,$B83>=$B$64),(IF(AW83-(AW$1)>($B$12+$B$61),($B$12+$B$61),(AW83-(AW$1)))),(IF(AW83-(AW$1)>$B$12,($B$12),(AW83-(AW$1))))))))) -> 48 | AZ83: 24588.47 | BA83: 1 | BB83: 0 | BC83: 48 | BD83: 0 | BE83: =(IF($B$5="Volume",IF((($D83-$B$8)*$B$4)>0,(($D83-$B$8)*(1-$B$9)*(1-$B$10))*$B$4,0),IF((($E83-$B$8)*$B$4)>0,(($E83-$B$8)*(1-$B$9)*(1-$B$10))*$B$4,0)))+(IF(OR($B83>=$B$56,$B83<=$B$57),IF($C83=$B$58,($B$46*$B$4*(1-$B$33))))) -> 0 | BF83: 25386.47 | BG83: 25386.47 | BH83: 0 | BI83: =IF(AND($B83<=$B$53,$B83<=$B$63,$B83>=$B$54,$B83>=$B$64),(IF(BG83-(BG$1)>($B$12+$B$35+$B$61),($B$12+$B$35+$B$61),(BG83-(BG$1)))),(IF(AND($B83<=$B$53,$B83>=$B$54),(IF(BG83-(BG$1)>($B$12+$B$35),($B$12+$B$35),(BG83-(BG$1)))),(IF(AND($B83<=$B$63,$B83>=$B$64),(IF(BG83-(BG$1)>($B$12+$B$61),($B$12+$B$61),(BG83-(BG$1)))),(IF(BG83-(BG$1)>$B$12,($B$12),(BG83-(BG$1))))))))) -> 48 | BJ83: 25338.47 | BK83: 1 | BL83: 0 | BM83: 48 | BN83: 0 | BO83: =(IF($B$5="Volume",IF((($D83-$B$8)*$B$4)>0,(($D83-$B$8)*(1-$B$9)*(1-$B$10))*$B$4,0),IF((($E83-$B$8)*$B$4)>0,(($E83-$B$8)*(1-$B$9)*(1-$B$10))*$B$4,0)))+(IF(OR($B83>=$B$56,$B83<=$B$57),IF($C83=$B$58,($B$46*$B$4*(1-$B$33))))) -> 0 | BP83: 26136.47 | BQ83: 26136.47 | BR83: 0 | BS83: =IF(AND($B83<=$B$53,$B83<=$B$63,$B83>=$B$54,$B83>=$B$64),(IF(BQ83-(BQ$1)>($B$12+$B$35+$B$61),($B$12+$B$35+$B$61),(BQ83-(BQ$1)))),(IF(AND($B83<=$B$53,$B83>=$B$54),(IF(BQ83-(BQ$1)>($B$12+$B$35),($B$12+$B$35),(BQ83-(BQ$1)))),(IF(AND($B83<=$B$63,$B83>=$B$64),(IF(BQ83-(BQ$1)>($B$12+$B$61),($B$12+$B$61),(BQ83-(BQ$1)))),(IF(BQ83-(BQ$1)>$B$12,($B$12),(BQ83-(BQ$1))))))))) -> 48 | BT83: 26088.47 | BU83: 1 | BV83: 0 | BW83: 48 | BX83: 0 | BY83: =(IF($B$5="Volume",IF((($D83-$B$8)*$B$4)>0,(($D83-$B$8)*(1-$B$9)*(1-$B$10))*$B$4,0),IF((($E83-$B$8)*$B$4)>0,(($E83-$B$8)*(1-$B$9)*(1-$B$10))*$B$4,0)))+(IF(OR($B83>=$B$56,$B83<=$B$57),IF($C83=$B$58,($B$46*$B$4*(1-$B$33))))) -> 0 | BZ83: 26886.47 | CA83: 26886.47 | CB83: 0 | CC83: =IF(AND($B83<=$B$53,$B83<=$B$63,$B83>=$B$54,$B83>=$B$64),(IF(CA83-(CA$1)>($B$12+$B$35+$B$61),($B$12+$B$35+$B$61),(CA83-(CA$1)))),(IF(AND($B83<=$B$53,$B83>=$B$54),(IF(CA83-(CA$1)>($B$12+$B$35),($B$12+$B$35),(CA83-(CA$1)))),(IF(AND($B83<=$B$63,$B83>=$B$64),(IF(CA83-(CA$1)>($B$12+$B$61),($B$12+$B$61),(CA83-(CA$1)))),(IF(CA83-(CA$1)>$B$12,($B$12),(CA83-(CA$1))))))))) -> 48 | CD83: 26838.47 | CE83: 1 | CF83: 0 | CG83: 48
